Workbook

Sheet Control Panel
A1: 1 | B1: Questar Gas Company | F1: DEFICIENCY
B2: =F11&" - "&F16 -> Utah - DEC 2017 Adjusted Avg Results | F2: =Report!K13 -> 22233115.19
B3: ="12 Months Ended"&" : "& TEXT(F12,"mmm-yyyy") -> 12 Months Ended : Dec-2017 | F3: ROE
B4: ="Capital Structure"&" : "&F70 -> Capital Structure : AVG CAP STR DEC 17 | F4: =+Report!J78 -> 0.07905044078
B9: REPORT CHECK: MUST BE (0) ======> | C9: =IF((SUM(Report!F13:H73)-SUM(Report!I13:I73))<1,"0","ERROR") -> 0 | H9: DEC 2015 Unadjusted Avg Results | J9: DEC 2015 Adjusted Avg Results | L9: DEC 2016 Adjusted Avg Results | N9: DEC 2017 Adjusted Avg Results | P9: DEC 2017 Adjusted Avg Results CET | S9: Line #
E10: =F10&" - "&"A" -> 7 - A | F10: 7 | H10: 4 | I10: =H10&" - "&"A" -> 4 - A | J10: 5 | K10: =J10&" - "&"A" -> 5 - A | L10: 6 | M10: =L10&" - "&"A" -> 6 - A | N10: 7 | O10: =N10&" - "&"A" -> 7 - A | P10: 8 | Q10: =P10&" - "&"A" -> 8 - A | S10: 1
B11: Jurisdiction | F11: =HLOOKUP($F$10,Scenarios,S11,FALSE) -> Utah | H11: Utah | J11: Utah | L11: Utah | N11: Utah | P11: Utah | S11: =S10+1 -> 2
B12: Scenario Title 1 | F12: =HLOOKUP($F$10,Scenarios,S12,FALSE) -> 2017-12-31 | H12: 2015-12-31 | J12: 2015-12-31 | L12: 2016-12-31 | N12: 2017-12-31 | P12: 2017-12-31 | S12: =S11+1 -> 3
S13: 4
S14: 5
S15: 6
B16: Scenario Title 2 | F16: =HLOOKUP($F$10,Scenarios,S16,FALSE) -> DEC 2017 Adjusted Avg Results | H16: =+H9 -> DEC 2015 Unadjusted Avg Results | J16: =+J9 -> DEC 2015 Adjusted Avg Results | L16: =+L9 -> DEC 2016 Adjusted Avg Results | N16: =+N9 -> DEC 2017 Adjusted Avg Results | P16: =+P9 -> DEC 2017 Adjusted Avg Results CET | S16: 7
B17: Required Inputs and Factors | S17: 8
S18: 9
B19: Return On Equity | F19: =HLOOKUP($F$10,Scenarios,S19,FALSE) -> 0.0985 | H19: 0.0985 | J19: 0.0985 | L19: 0.0985 | N19: 0.0985 | P19: 0.0985 | S19: 10
S20: 11
B21: Lead-Lag Factor | F21: =HLOOKUP($F$10,Scenarios,S21,FALSE) -> 1.761 | H21: 1.015 | J21: 1.015 | L21: 1.761 | N21: 1.761 | P21: 1.761 | S21: 12
B22: Bad Debt Ratio | F22: =HLOOKUP($F$10,Scenarios,S22,FALSE) -> 0.001804574437 | H22: =+'Utah Bad Debt'!$G$17 -> 0.001804574437 | J22: =+'Utah Bad Debt'!$G$17 -> 0.001804574437 | L22: ='Utah Bad Debt'!$G$17 -> 0.001804574437 | N22: ='Utah Bad Debt'!$G$17 -> 0.001804574437 | P22: ='Utah Bad Debt'!$G$17 -> 0.001804574437 | S22: =S21+1 -> 13
S23: =S22+1 -> 14
S24: 15
B25: Adjustments | C25: Go To Adjustment | S25: 16
S26: 17
A27: 1 | B27: =+F27 -> AVG RB DEC 2017 | C27: RATE BASE | E27: =HLOOKUP($E$10,Scenarios,S27,FALSE) -> Y | F27: =HLOOKUP($F$10,Scenarios,S27,FALSE) -> AVG RB DEC 2017 | H27: AVG RB DEC 2015 | I27: Y | J27: AVG RB DEC 2015 | K27: Y | L27: AVG RB DEC 2016 | M27: Y | N27: AVG RB DEC 2017 | O27: Y | P27: AVG RB DEC 2017 | Q27: Y | S27: 18
A28: =+A27+1 -> 2 | B28: QGC Expense Dec 2017 | C28: Expense Adjustment | E28: Y | F28: QGC Expense Dec 2017 | H28: QGC Expense Dec 2015 | I28: N | J28: QGC Expense Dec 2015 | K28: N | L28: QGC Expense Dec 2016 | M28: Y | N28: QGC Expense Dec 2017 | O28: Y | P28: QGC Expense Dec 2017 | Q28: Y | S28: 19
A29: =+A28+1 -> 3 | B29: =+F29 -> AVG Projected Rev 2017 | C29: REVENUE ADJUSTMENT | E29: Y | F29: AVG Projected Rev 2017 | H29: Booked Rev DEC 2015 | I29: N | J29: Booked Rev DEC 2015 | K29: N | L29: AVG Projected Rev 2016 | M29: Y | N29: AVG Projected Rev 2017 | O29: Y | P29: AVG Projected Rev 2017 with CET | Q29: Y | S29: 20
A30: =+A29+1 -> 4 | B30: Underground Storage | C30: Underground Storage | E30: Y | F30: Underground Storage | H30: Underground Storage | I30: Y | J30: Underground Storage | K30: Y | L30: Underground Storage | M30: Y | N30: Underground Storage | O30: Y | P30: Underground Storage | Q30: Y | S30: 21
A31: 5 | B31: Wexpro | C31: 3-Wexpro'!A1 | E31: Y | F31: Wexpro | H31: Wexpro | I31: Y | J31: Wexpro | K31: Y | L31: Wexpro | M31: Y | N31: Wexpro | O31: Y | P31: Wexpro | Q31: Y | S31: 22
A32: 6 | B32: =+F32 -> Energy Efficiency 2017 | C32: Energy Efficiency | E32: =HLOOKUP($E$10,Scenarios,S32,FALSE) -> Y | F32: Energy Efficiency 2017 | H32: Energy Efficiency 2015 | I32: Y | J32: Energy Efficiency 2015 | K32: Y | L32: Energy Efficiency 2016 | M32: Y | N32: Energy Efficiency 2017 | O32: Y | P32: Energy Efficiency 2017 | Q32: Y | S32: 23
A33: 7 | B33: Utah Bad Debt 2017 | C33: Utah Bad Debt | E33: Y | F33: Utah Bad Debt 2017 | H33: Utah Bad Debt 2015 | I33: N | J33: Utah Bad Debt 2015 | K33: Y | L33: Utah Bad Debt 2016 | M33: Y | N33: Utah Bad Debt 2017 | O33: Y | P33: Utah Bad Debt 2017 | Q33: Y | S33: 24
A34: 8 | B34: QGC Incentives 2017 | C34: Incentives | E34: Y | F34: QGC Incentives 2017 | H34: QGC Incentives 2015 | I34: N | J34: QGC Incentives 2015 | K34: Y | L34: QGC Incentives 2016 | M34: Y | N34: QGC Incentives 2017 | O34: Y | P34: QGC Incentives 2017 | Q34: Y | S34: 25
A35: 9 | B35: Sporting Events DEC 2017 | C35: Sporting Events | E35: Y | F35: Sporting Events DEC 2017 | H35: Sporting Events DEC 2015 | I35: N | J35: Sporting Events DEC 2015 | K35: Y | L35: Sporting Events DEC 2016 | M35: Y | N35: Sporting Events DEC 2017 | O35: Y | P35: Sporting Events DEC 2017 | Q35: Y | S35: 26
A36: 10 | B36: Advertising DEC 2017 | C36: Advertising | E36: Y | F36: Advertising DEC 2017 | H36: Advertising DEC 2015 | I36: N | J36: Advertising DEC 2015 | K36: Y | L36: Advertising DEC 2016 | M36: Y | N36: Advertising DEC 2017 | O36: Y | P36: Advertising DEC 2017 | Q36: Y | S36: 27
A37: 11 | B37: QGC Don & Membership DEC 2017 | C37: Donations | E37: Y | F37: QGC Don & Membership DEC 2017 | H37: QGC Don & Membership DEC 2015 | I37: N | J37: QGC Don & Membership DEC 2015 | K37: Y | L37: QGC Don & Membership DEC 2016 | M37: Y | N37: QGC Don & Membership DEC 2017 | O37: Y | P37: QGC Don & Membership DEC 2017 | Q37: Y | S37: 28
A38: 12 | B38: Reserve Accrual Dec 2017 | C38: RESERVE ACCRUAL | E38: Y | F38: Reserve Accrual Dec 2017 | H38: Reserve Accrual Dec 2015 | I38: N | J38: Reserve Accrual Dec 2015 | K38: Y | L38: Reserve Accrual Dec 2016 | M38: Y | N38: Reserve Accrual Dec 2017 | O38: Y | P38: Reserve Accrual Dec 2017 | Q38: Y | S38: 29
A39: 13 | B39: Pipeline Integrity 2017 | C39: Pipeline Integrity | E39: Y | F39: Pipeline Integrity 2017 | H39: Pipeline Integrity 2017 | I39: N | J39: Pipeline Integrity 2017 | K39: N | L39: Pipeline Integrity 2017 | M39: Y | N39: Pipeline Integrity 2017 | O39: Y | P39: Pipeline Integrity 2017 | Q39: Y | S39: 30
A40: 14 | B40: =F40 -> Optional Adjustment 1 | C40: Optional Adjustment 1 | E40: Y | F40: Optional Adjustment 1 | H40: Optional Adjustment 1 | I40: N | J40: Optional Adjustment 1 | K40: N | L40: Optional Adjustment 1 | M40: N | N40: Optional Adjustment 1 | O40: Y | P40: Optional Adjustment 1 | Q40: Y | S40: 31
A41: 15 | B41: =F41 -> Optional Adjustment 2 | C41: Optional Adjustment 2 | E41: Y | F41: Optional Adjustment 2 | H41: Optional Adjustment 2 | I41: N | J41: Optional Adjustment 2 | K41: N | L41: Optional Adjustment 2 | M41: N | N41: Optional Adjustment 2 | O41: Y | P41: Optional Adjustment 2 | Q41: Y | S41: 32
A42: 16 | B42: Optional Adjustment 3 | C42: Optional Adjustment 3 | E42: Y | F42: Optional Adjustment 3 | H42: Optional Adjustment 3 | I42: N | J42: Optional Adjustment 3 | K42: N | L42: Optional Adjustment 3 | M42: N | N42: Optional Adjustment 3 | O42: Y | P42: Optional Adjustment 3 | Q42: Y | S42: 33
A43: 17 | B43: Optional Adjustment 4 | C43: Optional Adjustment 4 | E43: Y | F43: Optional Adjustment 4 | H43: Optional Adjustment 4 | I43: N | J43: Optional Adjustment 4 | K43: N | L43: Optional Adjustment 4 | M43: N | N43: Optional Adjustment 4 | O43: Y | P43: Optional Adjustment 4 | Q43: Y | S43: 34
A44: 18 | B44: Optional Adjustment 5 | C44: Optional Adjustment 5 | E44: Y | F44: Optional Adjustment 5 | H44: Optional Adjustment 5 | I44: N | J44: Optional Adjustment 5 | K44: N | L44: Optional Adjustment 5 | M44: N | N44: Optional Adjustment 5 | O44: Y | P44: Optional Adjustment 5 | Q44: Y | S44: 35
A45: 19 | B45: Optional Adjustment 6 | C45: Optional Adjustment 6 | E45: Y | F45: Optional Adjustment 6 | H45: Optional Adjustment 6 | I45: N | J45: Optional Adjustment 6 | K45: N | L45: Optional Adjustment 6 | M45: N | N45: Optional Adjustment 6 | O45: Y | P45: Optional Adjustment 6 | Q45: Y | S45: 36
A46: 20 | B46: Optional Adjustment 7 | C46: Optional Adjustment 7 | E46: Y | F46: Optional Adjustment 7 | H46: Optional Adjustment 7 | I46: N | J46: Optional Adjustment 7 | K46: N | L46: Optional Adjustment 7 | M46: N | N46: Optional Adjustment 7 | O46: Y | P46: Optional Adjustment 7 | Q46: Y | S46: 37
A47: 21 | B47: Optional Adjustment 8 | C47: Optional Adjustment 8 | E47: Y | F47: Optional Adjustment 8 | H47: Optional Adjustment 8 | I47: N | J47: Optional Adjustment 8 | K47: N | L47: Optional Adjustment 8 | M47: N | N47: Optional Adjustment 8 | O47: Y | P47: Optional Adjustment 8 | Q47: Y | S47: 38
A48: 22 | B48: Optional Adjustment 9 | C48: Optional Adjustment 9 | E48: Y | F48: Optional Adjustment 9 | H48: Optional Adjustment 9 | I48: N | J48: Optional Adjustment 9 | K48: N | L48: Optional Adjustment 9 | M48: N | N48: Optional Adjustment 9 | O48: Y | P48: Optional Adjustment 9 | Q48: Y | S48: 39
A49: 23 | B49: Optional Adjustment 10 | C49: Optional Adjustment 10 | E49: Y | F49: Optional Adjustment 10 | H49: Optional Adjustment 10 | I49: N | J49: Optional Adjustment 10 | K49: N | L49: Optional Adjustment 10 | M49: N | N49: Optional Adjustment 10 | O49: Y | P49: Optional Adjustment 10 | Q49: Y | S49: 40
A50: 24 | B50: Optional Adjustment 11 | C50: Optional Adjustment 11 | E50: Y | F50: Optional Adjustment 11 | H50: Optional Adjustment 11 | I50: N | J50: Optional Adjustment 11 | K50: N | L50: Optional Adjustment 11 | M50: N | N50: Optional Adjustment 11 | O50: Y | P50: Optional Adjustment 11 | Q50: Y | S50: 41
A51: 25 | B51: Optional Adjustment 12 | C51: Optional Adjustment 12 | E51: Y | F51: Optional Adjustment 12 | H51: Optional Adjustment 12 | I51: N | J51: Optional Adjustment 12 | K51: N | L51: Optional Adjustment 12 | M51: N | N51: Optional Adjustment 12 | O51: Y | P51: Optional Adjustment 12 | Q51: Y | S51: 42
A52: 26 | B52: Optional Adjustment 13 | C52: Optional Adjustment 13 | E52: Y | F52: Optional Adjustment 13 | H52: Optional Adjustment 13 | I52: N | J52: Optional Adjustment 13 | K52: N | L52: Optional Adjustment 13 | M52: N | N52: Optional Adjustment 13 | O52: Y | P52: Optional Adjustment 13 | Q52: Y | S52: 43
A53: 27 | B53: Optional Adjustment 14 | C53: Optional Adjustment 14 | E53: Y | F53: Optional Adjustment 14 | H53: Optional Adjustment 14 | I53: N | J53: Optional Adjustment 14 | K53: N | L53: Optional Adjustment 14 | M53: N | N53: Optional Adjustment 14 | O53: Y | P53: Optional Adjustment 14 | Q53: Y | S53: 44
A54: 28 | B54: Optional Adjustment 15 | C54: Optional Adjustment 15 | E54: Y | F54: Optional Adjustment 15 | H54: Optional Adjustment 15 | I54: N | J54: Optional Adjustment 15 | K54: N | L54: Optional Adjustment 15 | M54: N | N54: Optional Adjustment 15 | O54: Y | P54: Optional Adjustment 15 | Q54: Y | S54: 45
A55: 29 | B55: =F55 -> Optional Adjustment 16 | C55: Optional Adjustment 16 | E55: =HLOOKUP($E$10,Scenarios,S55,FALSE) -> Y | F55: =HLOOKUP($F$10,Scenarios,S55,FALSE) -> Optional Adjustment 16 | H55: Optional Adjustment 16 | I55: N | J55: Optional Adjustment 16 | K55: N | L55: Optional Adjustment 16 | M55: N | N55: Optional Adjustment 16 | O55: Y | P55: Optional Adjustment 16 | Q55: Y | S55: 46
A56: 30 | B56: Optional Adjustment 17 | C56: Optional Adjustment 17 | E56: Y | F56: Optional Adjustment 17 | H56: Optional Adjustment 17 | I56: N | J56: Optional Adjustment 17 | K56: N | L56: Optional Adjustment 17 | M56: N | N56: Optional Adjustment 17 | O56: Y | P56: Optional Adjustment 17 | Q56: Y | S56: 47
A57: 31 | B57: Optional Adjustment 18 | C57: Optional Adjustment 18 | E57: Y | F57: Optional Adjustment 18 | H57: Optional Adjustment 18 | I57: N | J57: Optional Adjustment 18 | K57: N | L57: Optional Adjustment 18 | M57: N | N57: Optional Adjustment 18 | O57: Y | P57: Optional Adjustment 18 | Q57: Y | S57: 48
A58: 32 | B58: Optional Adjustment 19 | C58: Optional Adjustment 19 | E58: Y | F58: Optional Adjustment 19 | H58: Optional Adjustment 19 | I58: N | J58: Optional Adjustment 19 | K58: N | L58: Optional Adjustment 19 | M58: N | N58: Optional Adjustment 19 | O58: Y | P58: Optional Adjustment 19 | Q58: Y | S58: 49
A59: 33 | B59: Optional Adjustment 20 | C59: Optional Adjustment 20 | E59: Y | F59: Optional Adjustment 20 | H59: Optional Adjustment 20 | I59: N | J59: Optional Adjustment 20 | K59: N | L59: Optional Adjustment 20 | M59: N | N59: Optional Adjustment 20 | O59: Y | P59: Optional Adjustment 20 | Q59: Y | S59: 50
A60: 34 | B60: Optional Adjustment 21 | C60: Optional Adjustment 21 | E60: Y | F60: Optional Adjustment 21 | H60: Optional Adjustment 21 | I60: N | J60: Optional Adjustment 21 | K60: N | L60: Optional Adjustment 21 | M60: N | N60: Optional Adjustment 21 | O60: Y | P60: Optional Adjustment 21 | Q60: Y | S60: 51
A61: 35 | B61: Optional Adjustment 22 | C61: Optional Adjustment 22 | E61: Y | F61: Optional Adjustment 22 | H61: Optional Adjustment 22 | I61: N | J61: Optional Adjustment 22 | K61: N | L61: Optional Adjustment 22 | M61: N | N61: Optional Adjustment 22 | O61: Y | P61: Optional Adjustment 22 | Q61: Y | S61: 52
A62: 36 | B62: Optional Adjustment 23 | C62: Optional Adjustment 23 | E62: Y | F62: Optional Adjustment 23 | H62: Optional Adjustment 23 | I62: N | J62: Optional Adjustment 23 | K62: N | L62: Optional Adjustment 23 | M62: N | N62: Optional Adjustment 23 | O62: Y | P62: Optional Adjustment 23 | Q62: Y | S62: 53
A63: 37 | B63: Optional Adjustment 24 | C63: Optional Adjustment 24 | E63: Y | F63: Optional Adjustment 24 | H63: Optional Adjustment 24 | I63: N | J63: Optional Adjustment 24 | K63: N | L63: Optional Adjustment 24 | M63: N | N63: Optional Adjustment 24 | O63: Y | P63: Optional Adjustment 24 | Q63: Y | S63: 54
A64: 38 | B64: Optional Adjustment 25 | C64: Optional Adjustment 25 | E64: Y | F64: Optional Adjustment 25 | H64: Optional Adjustment 25 | I64: N | J64: Optional Adjustment 25 | K64: N | L64: Optional Adjustment 25 | M64: N | N64: Optional Adjustment 25 | O64: Y | P64: Optional Adjustment 25 | Q64: Y | S64: 55
A65: 39 | B65: Optional Adjustment 26 | C65: Optional Adjustment 26 | E65: Y | F65: Optional Adjustment 26 | H65: Optional Adjustment 26 | I65: N | J65: Optional Adjustment 26 | K65: N | L65: Optional Adjustment 26 | M65: N | N65: Optional Adjustment 26 | O65: Y | P65: Optional Adjustment 26 | Q65: Y | S65: 56
A66: 40 | B66: Optional Adjustment 27 | C66: Optional Adjustment 27 | E66: Y | F66: Optional Adjustment 27 | H66: Optional Adjustment 27 | I66: N | J66: Optional Adjustment 27 | K66: N | L66: Optional Adjustment 27 | M66: N | N66: Optional Adjustment 27 | O66: Y | P66: Optional Adjustment 27 | Q66: Y | S66: 57
A67: 41 | B67: Labor Adjustment-ROO | E67: N | F67: Labor Adjustment-ROO | H67: Labor Adjustment-ROO | I67: N | J67: Labor Adjustment-ROO | K67: Y | L67: Labor Adjustment-ROO | M67: N | N67: Labor Adjustment-ROO | O67: N | P67: Labor Adjustment-ROO | Q67: N | S67: 58
A68: 42 | B68: =+F68 -> Dist Gas Effective 2017 | C68: District Gas & Pretax | F68: Dist Gas Effective 2017 | H68: Dist Gas Effective 2015 | J68: Dist Gas Effective 2015 | L68: Dist Gas Effective 2016 | N68: Dist Gas Effective 2017 | P68: Dist Gas Effective 2017 | S68: 59
A69: 43 | S69: 60
A70: 44 | B70: =+F70 -> AVG CAP STR DEC 17 | C70: Capital Structure | F70: =HLOOKUP($F$10,Scenarios,S70,FALSE) -> AVG CAP STR DEC 17 | H70: AVG CAP STR DEC 15 | J70: AVG CAP STR DEC 15 | L70: AVG CAP STR DEC 16 | N70: AVG CAP STR DEC 17 | P70: AVG CAP STR DEC 17 | S70: 61
A71: 45

Sheet Report
A1: ='Control Panel'!$B$1 -> Questar Gas Company
A2: ='Control Panel'!$B$2 -> Utah - DEC 2017 Adjusted Avg Results
A3: ='Control Panel'!$B$3 -> 12 Months Ended : Dec-2017 | F3: =+'Control Panel'!$B$3 -> 12 Months Ended : Dec-2017
A4: =+'Control Panel'!B19 -> Return On Equity | D4: =+'Control Panel'!F19 -> 0.0985
B5: (A) | F5: (B) | G5: (C) | H5: (D) | I5: (E) | J5: (F) | K5: (G) | L5: (H)
F6: =+'ROR-Model'!F7 -> Historical | H6: =+'ROR-Model'!H7 -> Imputed | I6: =+'ROR-Model'!I7 -> Adjusted | J6: =+'ROR-Model'!W9 -> Utah | L6: =+J6 -> Utah
E7: CHECKS MUST BE (0) | F7: =+'ROR-Model'!F8 -> 12 Months | G7: Adjustments | H7: =+'ROR-Model'!H8 -> Tax | I7: =+'ROR-Model'!I8 -> System | J7: Jurisdiction | L7: Jurisdiction | M7: CHECKS MUST BE (0)
B8: Description | F8: 2015-12-31 | G8: Total | H8: =+'ROR-Model'!H9 -> Adjustment | I8: =+'ROR-Model'!I9 -> Total | J8: DNG Related | K8: Deficiency | L8: Total
A10: 1 | B10: NET INCOME SUMMARY
A12: =+A10+1 -> 2 | B12: Utility Operating Revenue
A13: =+A12+1 -> 3 | D13: System Distribution Non-Gas Revenue | E13: =+F13+G13+H13-I13 -> 0 | F13: =+'ROR-Model'!F363+'ROR-Model'!F365 -> 353918860.7 | G13: =+'ROR-Model'!G363+'ROR-Model'!G365 -> -14990887.63 | H13: =+'ROR-Model'!H363+'ROR-Model'!H365 -> 0 | I13: =+'ROR-Model'!I363+'ROR-Model'!I365 -> 338927973.1 | J13: ='ROR-Model'!W368 -> 338927973.1 | K13: =+K44*Taxes!L29 -> 22233115.19 | L13: =SUM(J13:K13) -> 361161088.2 | M13: =+N13-I13 -> 0 | N13: =SUM(F13:H13) -> 338927973.1
A14: 4 | D14: System Supplier Non-Gas Revenue | E14: 0 | F14: =+'ROR-Model'!F364 -> 87553957.89 | G14: =+'ROR-Model'!G364 -> 26769867.36 | H14: =+'ROR-Model'!H364 -> 0 | I14: =+'ROR-Model'!I364 -> 114323825.2 | L14: =SUM(J14:K14) -> 0 | M14: =+N14-I14 -> 0 | N14: =SUM(F14:H14) -> 114323825.2
A15: 5 | D15: System Commodity Revenue | E15: 0 | F15: =+'ROR-Model'!F366 -> 450667349.1 | G15: =+'ROR-Model'!G366 -> -8339684.045 | H15: =+'ROR-Model'!H366 -> 0 | I15: =+'ROR-Model'!I366 -> 442327665 | L15: =SUM(J15:K15) -> 0 | M15: 0 | N15: 442327665
A16: 6 | D16: Pass-Through Related Other Revenue | E16: 0 | F16: ='ROR-Model'!F501+'ROR-Model'!F505 -> 20785521.95 | G16: ='ROR-Model'!G501+'ROR-Model'!G505 -> 0 | H16: ='ROR-Model'!H501+'ROR-Model'!H505 -> 0 | I16: ='ROR-Model'!I501+'ROR-Model'!I505 -> 20785521.95 | L16: =SUM(J16:K16) -> 0 | M16: 0 | N16: 20785521.95
A17: 7 | D17: General Related Other Revenue | E17: 0 | F17: ='ROR-Model'!F502+'ROR-Model'!F506 -> 4702749.81 | G17: ='ROR-Model'!G502+'ROR-Model'!G506 -> 0 | H17: ='ROR-Model'!H502+'ROR-Model'!H506 -> 0 | I17: ='ROR-Model'!I502+'ROR-Model'!I506 -> 4702749.81 | J17: ='ROR-Model'!W509 -> 4601764.01 | L17: =SUM(J17:K17) -> 4601764.01 | M17: 0 | N17: 4702749.81
A18: 8 | C18: Total Utility Operating Revenue | E18: 0 | F18: =SUM(F13:F17) -> 917628439.4 | G18: 3439295.688 | H18: 0 | I18: =SUM(I13:I17) -> 921067735.1 | J18: 343529737.1 | K18: 22233115.19 | L18: 365762852.3 | M18: 0 | N18: 921067735.1
M19: 0 | N19: 0
A20: =+A18+1 -> 9 | B20: Utility Operating Expenses | M20: 0 | N20: 0
A21: =+A20+1 -> 10 | C21: Gas Purchase Expenses | M21: 0 | N21: 0
A22: =+A21+1 -> 11 | D22: Utah | E22: =+F22+G22+H22-I22 -> 0 | F22: ='ROR-Model'!F633+'ROR-Model'!F636 -> 539464029.4 | G22: ='ROR-Model'!G633+'ROR-Model'!G636 -> 37225015.58 | H22: ='ROR-Model'!H633+'ROR-Model'!H636 -> 0 | I22: ='ROR-Model'!I633+'ROR-Model'!I636 -> 576689045 | L22: =SUM(J22:K22) -> 0 | M22: 0 | N22: 576689045
A23: =+A22+1 -> 12 | D23: Wyoming | E23: =+F23+G23+H23-I23 -> 0 | F23: ='ROR-Model'!F635+'ROR-Model'!F637 -> 19542799.47 | G23: ='ROR-Model'!G635+'ROR-Model'!G637 -> -18794832.26 | H23: ='ROR-Model'!H635+'ROR-Model'!H637 -> 0 | I23: ='ROR-Model'!I635+'ROR-Model'!I637 -> 747967.2034 | L23: =SUM(J23:K23) -> 0 | M23: 0 | N23: 747967.2034
A24: =+A23+1 -> 13 | D24: Total | E24: =+F24+G24+H24-I24 -> 0 | F24: =SUM(F22:F23) -> 559006828.9 | G24: 18430183.32 | H24: 0 | I24: 577437012.2 | J24: 0 | K24: 0 | L24: 0 | M24: 0 | N24: 577437012.2
E25: =+F25+G25+H25-I25 -> 0 | M25: 0 | N25: =SUM(F25:H25) -> 0
A26: =A24+1 -> 14 | C26: O&M Expenses | M26: 0 | N26: 0
A27: =+A26+1 -> 15 | D27: Production | E27: =+F27+G27+H27-I27 -> 0 | F27: ='ROR-Model'!F650 -> -497458.97 | G27: ='ROR-Model'!G650 -> 75508.91615 | H27: ='ROR-Model'!H650 -> 0 | I27: ='ROR-Model'!I650 -> -421950.0539 | J27: ='ROR-Model'!W650 -> -406645.4272 | L27: =SUM(J27:K27) -> -406645.4272 | M27: 0 | N27: -421950.0539
A28: 16 | D28: Distribution | E28: 0 | F28: ='ROR-Model'!F753 -> 58606964.11 | G28: ='ROR-Model'!G753 -> 2253301.477 | H28: ='ROR-Model'!H753 -> 0 | I28: ='ROR-Model'!I753 -> 60860265.59 | J28: ='ROR-Model'!W753 -> 57577416.48 | L28: =SUM(J28:K28) -> 57577416.48 | M28: 0 | N28: 60860265.59
A29: 17 | D29: Customer Accounts | E29: 0 | F29: ='ROR-Model'!F806 -> 25184307.27 | G29: ='ROR-Model'!G806 -> -322267.4264 | H29: ='ROR-Model'!H806 -> 0 | I29: ='ROR-Model'!I806 -> 24862039.84 | J29: ='ROR-Model'!W806 -> 23954596.5 | K29: =+K13*'Control Panel'!F22 -> 40121.31134 | L29: =SUM(J29:K29) -> 23994717.81 | M29: 0 | N29: 24862039.84
A30: 18 | D30: Customer Service & Information | E30: 0 | F30: ='ROR-Model'!F834 -> 28641930.21 | G30: ='ROR-Model'!G834 -> -23203358.39 | H30: ='ROR-Model'!H834 -> 0 | I30: ='ROR-Model'!I834 -> 5438571.819 | J30: ='ROR-Model'!W834 -> 5278520.064 | L30: =SUM(J30:K30) -> 5278520.064 | M30: 0 | N30: 5438571.819
A31: 19 | D31: Administrative & General | E31: 0 | F31: ='ROR-Model'!F902 -> 50550710.38 | G31: ='ROR-Model'!G902 -> -1799366.575 | H31: ='ROR-Model'!H902 -> 0 | I31: ='ROR-Model'!I902 -> 48751343.81 | J31: ='ROR-Model'!W902 -> 46535423.26 | L31: =SUM(J31:K31) -> 46535423.26 | M31: 0 | N31: 48751343.81
A32: 20 | D32: Total O&M Expense | E32: 0 | F32: =SUM(F27:F31) -> 162486453 | G32: -22996182 | H32: 0 | I32: 139490271 | J32: 132939310.9 | K32: 40121.31134 | L32: 132979432.2 | M32: 0 | N32: 139490271
M33: 0 | N33: 0
A34: =+A32+1 -> 21 | C34: Other Operating Expenses | M34: 0 | N34: 0
A35: =+A34+1 -> 22 | D35: Depreciation, Depletion, Amortization | E35: =+F35+G35+H35-I35 -> 0 | F35: ='ROR-Model'!F926 -> 55107902.29 | G35: ='ROR-Model'!G926 -> 14944654.83 | H35: ='ROR-Model'!H926 -> 0 | I35: ='ROR-Model'!I926 -> 70052557.12 | J35: ='ROR-Model'!W926 -> 67584435.69 | L35: =SUM(J35:K35) -> 67584435.69 | M35: 0 | N35: 70052557.12
A36: =+A35+1 -> 23 | D36: Taxes Other Than Income Taxes | E36: =+F36+G36+H36-I36 -> 0 | F36: ='ROR-Model'!F934 -> 19311668.81 | G36: ='ROR-Model'!G934 -> 3691395.46 | H36: ='ROR-Model'!H934 -> 0 | I36: ='ROR-Model'!I934 -> 23003064.27 | J36: ='ROR-Model'!W934 -> 21988639.83 | L36: =SUM(J36:K36) -> 21988639.83 | M36: 0 | N36: 23003064.27
A37: =+A36+1 -> 24 | D37: Income Taxes | E37: =+F37+G37+H37-I37 -> 0 | F37: ='ROR-Model'!F936+'ROR-Model'!F938+'ROR-Model'!F940+'ROR-Model'!F942 -> 35368434.88 | G37: ='ROR-Model'!G936+'ROR-Model'!G938+'ROR-Model'!G940+'ROR-Model'!G942 -> -4047697.685 | H37: ='ROR-Model'!H936+'ROR-Model'!H938+'ROR-Model'!H940+'ROR-Model'!H942 -> -1130993.074 | I37: ='ROR-Model'!I936+'ROR-Model'!I938+'ROR-Model'!I940+'ROR-Model'!I942 -> 30189744.12 | J37: ='ROR-Model'!W936 -> 34344274.55 | K37: =(K13-K29)*Taxes!L23 -> 8450060.428 | L37: =SUM(J37:K37) -> 42794334.97 | M37: 0 | N37: 30189744.12
A38: =+A37+1 -> 25 | D38: Total Other Operating Expenses | E38: =+F38+G38+H38-I38 -> 0 | F38: =SUM(F35:F37) -> 109788006 | G38: 14588352.61 | H38: -1130993.074 | I38: =SUM(I35:I37) -> 123245365.5 | J38: 123917350.1 | K38: 8450060.428 | L38: 132367410.5 | M38: 0 | N38: 123245365.5
M39: 0 | N39: 0
M40: 0 | N40: 0
A41: =+A38+1 -> 26 | C41: Total Utility Operating Expenses | E41: =+F41+G41+H41-I41 -> 0 | F41: =+F24+F32+F38 -> 831281287.9 | G41: =+G24+G32+G38 -> 10022353.93 | H41: -1130993.074 | I41: =+I24+I32+I38 -> 840172648.7 | J41: 256856660.9 | K41: 8490181.739 | L41: 265346842.7 | M41: 0 | N41: 840172648.7
M42: 0 | N42: 0
M43: 0 | N43: 0
A44: =+A41+1 -> 27 | B44: NET OPERATING INCOME | E44: =+F44+G44+H44-I44 -> -1.192092896e-07 | F44: =+F18-F41 -> 86347151.52 | G44: =+G18-G41 -> -6583058.238 | H44: =+H18-H41 -> 1130993.074 | I44: =+I18-I41 -> 80895086.36 | J44: =+J18-J41 -> 86673076.13 | K44: =+L44-J44 -> 13742933.45 | L44: =L73*L76 -> 100416009.6 | M44: -1.192092896e-07 | N44: 80895086.36
M45: 0
A47: =+A44+1 -> 28 | B47: RATE BASE SUMMARY
A49: =+A47+1 -> 29 | B49: Net Utility Plant
A50: =+A49+1 -> 30 | C50: 101 | D50: Gas Plant In Service | E50: =+F50+G50+H50-I50 -> 0 | F50: ='ROR-Model'!F1113 -> 2506731972 | G50: ='ROR-Model'!G1113 -> 297260368.1 | H50: ='ROR-Model'!H1113 -> 0 | I50: ='ROR-Model'!I1113 -> 2803992340 | J50: ='ROR-Model'!W1113 -> 2708449420 | L50: =SUM(J50:K50) -> 2708449420 | M50: =+N50-I50 -> 0 | N50: =SUM(F50:H50) -> 2803992340
A51: 31 | C51: 105 | D51: Gas Plant Held For Future Use | E51: 0 | F51: ='ROR-Model'!F1117 -> 5036.83 | G51: ='ROR-Model'!G1117 -> 0 | H51: ='ROR-Model'!H1117 -> 0 | I51: ='ROR-Model'!I1117 -> 5036.83 | J51: ='ROR-Model'!W1117 -> 5036.83 | L51: 5036.83 | M51: 0 | N51: 5036.83
A52: 32 | C52: 106 | D52: Completed Construction Not Classified | E52: 0 | F52: ='ROR-Model'!F1124 -> 11515347.99 | G52: ='ROR-Model'!G1124 -> -11515347.99 | H52: ='ROR-Model'!H1124 -> 0 | I52: ='ROR-Model'!I1124 -> 0 | J52: ='ROR-Model'!W1124 -> 0 | L52: 0 | M52: 0 | N52: 0
A53: 33 | C53: 108 | D53: Accumulated Depreciation | E53: 0 | F53: ='ROR-Model'!F1131 -> -805011928.5 | G53: ='ROR-Model'!G1131 -> -60495341.87 | H53: ='ROR-Model'!H1131 -> 0 | I53: ='ROR-Model'!I1131 -> -865507270.4 | J53: ='ROR-Model'!W1131 -> -829503550.1 | L53: -829503550.1 | M53: 0 | N53: -865507270.4
A54: 34 | C54: 111 | D54: Accumulated Amort & Depletion | E54: 0 | F54: ='ROR-Model'!F1138 -> -6181318.38 | G54: ='ROR-Model'!G1138 -> 385040.6714 | H54: ='ROR-Model'!H1138 -> 0 | I54: ='ROR-Model'!I1138 -> -5796277.709 | J54: ='ROR-Model'!W1138 -> -5577689.922 | L54: -5577689.922 | M54: 0 | N54: -5796277.709
A55: 35 | C55: 254 | D55: Other Regulatory Liabilities ARC | F55: ='ROR-Model'!F1145 -> -69179997 | G55: ='ROR-Model'!G1145 -> -10692165.6 | H55: ='ROR-Model'!H1145 -> 0 | I55: ='ROR-Model'!I1145 -> -79872162.6 | J55: ='ROR-Model'!W1145 -> -77341812.48 | L55: -77341812.48
A56: 36 | C56: Total Net Utility Plant | E56: 0 | F56: =SUM(F50:F55) -> 1637879113 | G56: =SUM(G50:G55) -> 214942553.3 | H56: =SUM(H50:H55) -> 0 | I56: =SUM(I50:I55) -> 1852821667 | J56: =SUM(J50:J55) -> 1796031404 | K56: =SUM(K50:K54) -> 0 | L56: =SUM(L50:L55) -> 1796031404 | M56: 0 | N56: 1852821667
M57: 0
A58: =+A56+1 -> 37 | B58: Other Rate Base Accounts | M58: 0
A59: =+A58+1 -> 38 | C59: 154 | D59: Materials & Supplies | E59: =+F59+G59+H59-I59 -> 0 | F59: ='ROR-Model'!F1163 -> 17066114.32 | G59: ='ROR-Model'!G1163 -> 2334417.665 | H59: ='ROR-Model'!H1163 -> 0 | I59: ='ROR-Model'!I1163 -> 19400531.99 | J59: ='ROR-Model'!W1163 -> 18748924.46 | L59: =SUM(J59:K59) -> 18748924.46 | M59: 0 | N59: =SUM(F59:H59) -> 19400531.99
A60: 39 | C60: 164-1 | D60: Gas Stored Underground | E60: 0 | F60: ='ROR-Model'!F1167 -> 43864860.97 | G60: ='ROR-Model'!G1167 -> -43864860.97 | H60: ='ROR-Model'!H1167 -> 0 | I60: ='ROR-Model'!I1167 -> 0 | J60: ='ROR-Model'!W1167 -> 0 | L60: 0 | M60: 0 | N60: 0
A61: 40 | C61: 165 | D61: Prepayments | E61: 0 | F61: ='ROR-Model'!F1171 -> 3888116.7 | G61: ='ROR-Model'!G1171 -> -719205.2058 | H61: ='ROR-Model'!H1171 -> 0 | I61: ='ROR-Model'!I1171 -> 3168911.494 | J61: ='ROR-Model'!W1171 -> 3062476.961 | L61: 3062476.961 | M61: 0 | N61: 3168911.494
A62: 41 | C62: 190008 | D62: Accum Deferred Income Tax Federal | E62: 0 | F62: =+'ROR-Model'!F1178 -> 0 | G62: =+'ROR-Model'!G1178 -> 0 | H62: ='ROR-Model'!H1178 -> 0 | I62: =+'ROR-Model'!I1178 -> 0 | J62: =+'ROR-Model'!W1178 -> 0 | L62: 0 | M62: 0 | N62: 0
A63: 42 | C63: 190009 | D63: Accum Deferred Income Tax State | E63: 0 | F63: =+'ROR-Model'!F1185 -> 0 | G63: =+'ROR-Model'!G1185 -> 0 | H63: ='ROR-Model'!H1185 -> 0 | I63: =+'ROR-Model'!I1185 -> 0 | J63: =+'ROR-Model'!W1185 -> 0 | L63: 0 | M63: 0 | N63: 0
A64: 43 | C64: 235-1 | D64: Customer Deposits | E64: 0 | F64: ='ROR-Model'!F1190 -> -6425539.61 | G64: ='ROR-Model'!G1190 -> 220139.33 | H64: ='ROR-Model'!H1190 -> 0 | I64: ='ROR-Model'!I1190 -> -6205400.28 | J64: ='ROR-Model'!W1190 -> -5974990.162 | L64: -5974990.162 | M64: 0 | N64: -6205400.28
A65: 44 | C65: 252 | D65: Contributions in Aid of Construction | E65: 0 | F65: =+'ROR-Model'!F1195 -> -24527223.8 | G65: ='ROR-Model'!G1195 -> 8851746.247 | H65: ='ROR-Model'!H1195 -> 0 | I65: ='ROR-Model'!I1195 -> -15675477.55 | J65: ='ROR-Model'!W1195 -> -15257074.17 | L65: -15257074.17 | M65: 0 | N65: -15675477.55
A66: 45 | C66: 253-1 | D66: Unclaimed Customer Deposits | E66: 0 | F66: ='ROR-Model'!F1199 -> -63695.87 | G66: ='ROR-Model'!G1199 -> -473.0608333 | H66: ='ROR-Model'!H1199 -> 0 | I66: ='ROR-Model'!I1199 -> -64168.93083 | J66: ='ROR-Model'!W1199 -> -62013.68281 | L66: -62013.68281 | M66: 0 | N66: -64168.93083
A67: 46 | C67: 255 | D67: Deferred Investment Tax Credits | E67: 0 | F67: ='ROR-Model'!F1206 -> -214050.11 | G67: ='ROR-Model'!G1206 -> 149021.4889 | H67: ='ROR-Model'!H1206 -> 0 | I67: ='ROR-Model'!I1206 -> -65028.62112 | J67: ='ROR-Model'!W1206 -> -62900.15745 | L67: -62900.15745 | M67: 0 | N67: -65028.62112
A68: 47 | C68: 282 | D68: Accum Deferred Income Taxes | E68: 0 | F68: ='ROR-Model'!F1213+'ROR-Model'!F1220+'ROR-Model'!F1224 -> -427747587 | G68: ='ROR-Model'!G1213+'ROR-Model'!G1220+'ROR-Model'!G1224 -> -46529577.26 | H68: ='ROR-Model'!H1213+'ROR-Model'!H1220+'ROR-Model'!H1224 -> 0 | I68: ='ROR-Model'!I1213+'ROR-Model'!I1220+'ROR-Model'!I1224 -> -474277164.2 | J68: ='ROR-Model'!W1213+'ROR-Model'!W1220+'ROR-Model'!W1224 -> -459931898.5 | L68: -459931898.5 | M68: 0 | N68: -474277164.2
A69: 48 | D69: Working Capital - Cash | F69: ='ROR-Model'!F1264 -> 3744770.773 | G69: ='ROR-Model'!G1264 -> -23748.41614 | H69: ='ROR-Model'!H1264 -> -5456.654257 | I69: ='ROR-Model'!I1264 -> 3715565.702 | J69: ='ROR-Model'!W1264 -> 3695500.813 | L69: =SUM(J69:K69) -> 3695500.813 | M69: 0 | N69: 3715565.702
A70: 49 | C70: Total Other Rate Base Accounts | F70: =SUM(F59:F69) -> -390414233.6 | G70: =SUM(G59:G69) -> -79582540.18 | H70: -5456.654257 | I70: =SUM(I59:I69) -> -470002230.4 | J70: =SUM(J59:J69) -> -455781974.5 | K70: 0 | L70: -455781974.5 | M70: 0 | N70: -470002230.4
M71: 0 | N71: 0
M72: 0 | N72: 0
A73: =+A70+1 -> 50 | B73: TOTAL RATE BASE | F73: =+F56+F70 -> 1247464880 | G73: =+G56+G70 -> 135360013.1 | H73: =+H56+H70 -> -5456.654257 | I73: =+I56+I70 -> 1382819436 | J73: =+J56+J70 -> 1340249429 | L73: =+L56+L70 -> 1340249429 | M73: 0 | N73: 1382819436
M74: 0
E75: =SUM(E13:E73) -> -1.192092896e-07 | M75: 0 | N75: =SUM(F75:H75) -> 0
A76: =+A73+1 -> 51 | B76: RETURN ON RATE BASE | F76: =F44/F73 -> 0.06921810219 | I76: =I44/I73 -> 0.058500108 | J76: =J44/J73 -> 0.06466936246 | L76: ='Capital Str'!F10 -> 0.07492337425 | M76: =+N76-I76 -> 0.01071799419 | N76: =SUM(F76:H76) -> 0.06921810219
N77: =SUM(F77:H77) -> 0
A78: =+A76+1 -> 52 | B78: RETURN ON EQUITY | F78: =(F76-'Capital Str'!$F$7)/'Capital Str'!$D$9 -> 0.08767837926 | I78: =(I76-'Capital Str'!$F$7)/'Capital Str'!$D$9 -> 0.06734874955 | J78: =(J76-'Capital Str'!$F$7)/'Capital Str'!$D$9 -> 0.07905044078 | L78: ='Capital Str'!E9 -> 0.0985 | M78: =+N78-I78 -> 0.02032962971 | N78: =SUM(F78:H78) -> 0.08767837926

Sheet ROR-Model
A1: ='Control Panel'!$B$1 -> Questar Gas Company | L1: Jurisdictional Allocation Base Summary
A2: ='Control Panel'!$B$2 -> Utah - DEC 2017 Adjusted Avg Results | K2: #1 | L2: Gross Plant | M2: ='Utah Allocation'!D18 -> 0.9664129043 | N2: ='Utah Allocation'!E18 -> 0.03358709571
A3: ='Control Panel'!$B$3 -> 12 Months Ended : Dec-2017 | K3: #2 | L3: Rate Base | M3: ='Utah Allocation'!D35 -> 0.9693414028 | N3: ='Utah Allocation'!E35 -> 0.03065859718
K4: #3 | L4: Sales | M4: ='Utah Allocation'!D46 -> 0.9637288192 | N4: ='Utah Allocation'!E46 -> 0.03627118079
K5: #4 | L5: Utah | M5: 1 | N5: 0 | P5: PT = Pass Through Item
K6: #5 | L6: Wyoming | M6: 0 | N6: 1
F7: Historical | G7: CASE | H7: Imputed | I7: Adjusted | Q7: Utah | T7: Wyoming | W7: HOT
A8: FERC | F8: 12 Months | G8: Adjustments | H8: Tax | I8: System | P8: Utah Method & Allocations | S8: Wyoming Method & Allocations | W8: This Scenario
A9: Account | C9: Description | F9: 2015-12-01 | G9: Total | H9: Adjustment | I9: Total | L9: Alloc Base | M9: Utah | N9: Wyoming | Q9: General | R9: PT | T9: General | U9: PT | W9: =+'Control Panel'!F11 -> Utah
Q10: Utah | T10: Wyoming | Y10: 1
A11: UTILITY OPERATING REVENUE | Y11: =Y10+1 -> 2
Y12: =Y11+1 -> 3
A13: TARIFF DTH SALES AND REVENUE | Y13: 4
Y14: 5
A15: Utah | Y15: 6
B16: GSR | C16: Distribution Non-Gas Rev | E16: =+G16-Adjustments!H16 -> 0 | F16: =Revenue!$F$15 -> 277850439 | G16: =+Adjustments!AW16 -> 29621253.51 | I16: =SUM($F$16:$H$16) -> 307471692.5 | L16: Utah | M16: =VLOOKUP($L16,$L$2:$N$7,2,FALSE)*I16 -> 307471692.5 | N16: =VLOOKUP($L16,$L$2:$N$7,3,FALSE)*I16 -> 0 | P16: G | Q16: =IF(P16="G",M16,IF(P16="PT",0,ERR)) -> 307471692.5 | R16: =IF(P16="PT",M16,IF(P16="G",0,ERR)) -> 0 | S16: G | T16: =IF(S16="G",N16,IF(S16="PT",0,ERR)) -> 0 | U16: =IF(S16="PT",N16,IF(S16="G",0,ERR)) -> 0 | W16: =HLOOKUP($W$9,'ROR-Model'!$Q$10:$U$1274,Y16) -> 307471692.5 | Y16: 7
E17: =+G17-Adjustments!H17 -> 0 | Y17: 8
C18: Supplier Non-Gas Revenue | E18: =+G18-Adjustments!H18 -> 0 | F18: =Revenue!$F$17 -> 82823487 | G18: =+Adjustments!AW18 -> 26765634.56 | I18: =SUM($F$18:$H$18) -> 109589121.6 | L18: Utah | M18: =VLOOKUP($L18,$L$2:$N$7,2,FALSE)*I18 -> 109589121.6 | N18: =VLOOKUP($L18,$L$2:$N$7,3,FALSE)*I18 -> 0 | P18: PT | Q18: =IF(P18="G",M18,IF(P18="PT",0,ERR)) -> 0 | R18: =IF(P18="PT",M18,IF(P18="G",0,ERR)) -> 109589121.6 | S18: PT | T18: =IF(S18="G",N18,IF(S18="PT",0,ERR)) -> 0 | U18: =IF(S18="PT",N18,IF(S18="G",0,ERR)) -> 0 | W18: =HLOOKUP($W$9,'ROR-Model'!$Q$10:$U$1274,Y18) -> 0 | Y18: 9
E19: =+G19-Adjustments!H19 -> 0 | Y19: 10
C20: Commodity Revenue | E20: =+G20-Adjustments!H20 -> 0 | F20: =Revenue!$F$19 -> 399573039 | G20: =+Adjustments!AW20 -> 19565900.55 | I20: =SUM($F$20:$H$20) -> 419138939.6 | L20: Utah | M20: =VLOOKUP($L20,$L$2:$N$7,2,FALSE)*I20 -> 419138939.6 | N20: =VLOOKUP($L20,$L$2:$N$7,3,FALSE)*I20 -> 0 | P20: PT | Q20: =IF(P20="G",M20,IF(P20="PT",0,ERR)) -> 0 | R20: =IF(P20="PT",M20,IF(P20="G",0,ERR)) -> 419138939.6 | S20: PT | T20: =IF(S20="G",N20,IF(S20="PT",0,ERR)) -> 0 | U20: =IF(S20="PT",N20,IF(S20="G",0,ERR)) -> 0 | W20: =HLOOKUP($W$9,'ROR-Model'!$Q$10:$U$1274,Y20) -> 0 | Y20: 11
C21: Total Revenue | E21: =+G21-Adjustments!H21 -> 0 | F21: =SUM(F16:F20) -> 760246965 | G21: =SUM(G16:G20) -> 75952788.62 | H21: =SUM(H16:H20) -> 0 | I21: =SUM(I16:I20) -> 836199753.6 | M21: =SUM(M16:M20) -> 836199753.6 | N21: =SUM(N16:N20) -> 0 | Q21: =SUM(Q16:Q20) -> 307471692.5 | R21: =SUM(R16:R20) -> 528728061.1 | T21: =SUM(T16:T20) -> 0 | U21: =SUM(U16:U20) -> 0 | W21: =HLOOKUP($W$9,'ROR-Model'!$Q$10:$U$1274,Y21) -> 307471692.5 | Y21: 12
E22: =+G22-Adjustments!H22 -> 0 | Y22: 13
C23: Total Dth | E23: =+G23-Adjustments!H23 -> 0 | F23: =Revenue!$F$22 -> 86742178 | G23: =+Adjustments!AW23 -> 15379977 | I23: =SUM($F$23:$H$23) -> 102122155 | L23: Utah | M23: =VLOOKUP($L23,$L$2:$N$7,2,FALSE)*I23 -> 102122155 | N23: =VLOOKUP($L23,$L$2:$N$7,3,FALSE)*I23 -> 0 | P23: G | Q23: =IF(P23="G",M23,IF(P23="PT",0,ERR)) -> 102122155 | R23: =IF(P23="PT",M23,IF(P23="G",0,ERR)) -> 0 | S23: G | T23: =IF(S23="G",N23,IF(S23="PT",0,ERR)) -> 0 | U23: =IF(S23="PT",N23,IF(S23="G",0,ERR)) -> 0 | W23: =HLOOKUP($W$9,'ROR-Model'!$Q$10:$U$1274,Y23) -> 102122155 | Y23: 14
E24: =+G24-Adjustments!H24 -> 0 | Y24: 15
B25: GSC | C25: Distribution Non-Gas Rev | E25: =+G25-Adjustments!H25 -> 0 | F25: =Revenue!$F$24 -> 0 | G25: =+Adjustments!AW25 -> 0 | I25: =SUM($F$25:$H$25) -> 0 | L25: Utah | M25: =VLOOKUP($L25,$L$2:$N$7,2,FALSE)*I25 -> 0 | N25: =VLOOKUP($L25,$L$2:$N$7,3,FALSE)*I25 -> 0 | P25: G | Q25: =IF(P25="G",M25,IF(P25="PT",0,ERR)) -> 0 | R25: =IF(P25="PT",M25,IF(P25="G",0,ERR)) -> 0 | S25: G | T25: =IF(S25="G",N25,IF(S25="PT",0,ERR)) -> 0 | U25: =IF(S25="PT",N25,IF(S25="G",0,ERR)) -> 0 | W25: =HLOOKUP($W$9,'ROR-Model'!$Q$10:$U$1274,Y25) -> 0 | Y25: 16
E26: =+G26-Adjustments!H26 -> 0 | Y26: 17
C27: Supplier Non-Gas Revenue | E27: =+G27-Adjustments!H27 -> 0 | F27: =Revenue!$F$26 -> 0 | G27: =+Adjustments!AW27 -> 0 | I27: =SUM($F$27:$H$27) -> 0 | L27: Utah | M27: =VLOOKUP($L27,$L$2:$N$7,2,FALSE)*I27 -> 0 | N27: =VLOOKUP($L27,$L$2:$N$7,3,FALSE)*I27 -> 0 | P27: PT | Q27: =IF(P27="G",M27,IF(P27="PT",0,ERR)) -> 0 | R27: =IF(P27="PT",M27,IF(P27="G",0,ERR)) -> 0 | S27: PT | T27: =IF(S27="G",N27,IF(S27="PT",0,ERR)) -> 0 | U27: =IF(S27="PT",N27,IF(S27="G",0,ERR)) -> 0 | W27: =HLOOKUP($W$9,'ROR-Model'!$Q$10:$U$1274,Y27) -> 0 | Y27: 18
E28: =+G28-Adjustments!H28 -> 0 | Y28: 19
C29: Commodity Revenue | E29: =+G29-Adjustments!H29 -> 0 | F29: =Revenue!$F$28 -> 0 | G29: =+Adjustments!AW29 -> 0 | I29: =SUM($F$29:$H$29) -> 0 | L29: Utah | M29: =VLOOKUP($L29,$L$2:$N$7,2,FALSE)*I29 -> 0 | N29: =VLOOKUP($L29,$L$2:$N$7,3,FALSE)*I29 -> 0 | P29: PT | Q29: =IF(P29="G",M29,IF(P29="PT",0,ERR)) -> 0 | R29: =IF(P29="PT",M29,IF(P29="G",0,ERR)) -> 0 | S29: PT | T29: =IF(S29="G",N29,IF(S29="PT",0,ERR)) -> 0 | U29: =IF(S29="PT",N29,IF(S29="G",0,ERR)) -> 0 | W29: =HLOOKUP($W$9,'ROR-Model'!$Q$10:$U$1274,Y29) -> 0 | Y29: 20
C30: Total Revenue | E30: =+G30-Adjustments!H30 -> 0 | F30: =SUM(F25:F29) -> 0 | G30: =SUM(G25:G29) -> 0 | H30: =SUM(H25:H29) -> 0 | I30: =SUM(I25:I29) -> 0 | M30: =SUM(M25:M29) -> 0 | N30: =SUM(N25:N29) -> 0 | Q30: =SUM(Q25:Q29) -> 0 | R30: =SUM(R25:R29) -> 0 | T30: =SUM(T25:T29) -> 0 | U30: =SUM(U25:U29) -> 0 | W30: =HLOOKUP($W$9,'ROR-Model'!$Q$10:$U$1274,Y30) -> 0 | Y30: 21
E31: =+G31-Adjustments!H31 -> 0 | Y31: 22
C32: Total Dth | E32: =+G32-Adjustments!H32 -> 0 | F32: =Revenue!$F$31 -> 0 | G32: =+Adjustments!AW32 -> 0 | I32: =SUM(F32:H32) -> 0 | L32: Utah | M32: =VLOOKUP($L32,$L$2:$N$7,2,FALSE)*I32 -> 0 | N32: =VLOOKUP($L32,$L$2:$N$7,3,FALSE)*I32 -> 0 | P32: G | Q32: =IF(P32="G",M32,IF(P32="PT",0,ERR)) -> 0 | R32: =IF(P32="PT",M32,IF(P32="G",0,ERR)) -> 0 | S32: G | T32: =IF(S32="G",N32,IF(S32="PT",0,ERR)) -> 0 | U32: =IF(S32="PT",N32,IF(S32="G",0,ERR)) -> 0 | W32: =HLOOKUP($W$9,'ROR-Model'!$Q$10:$U$1274,Y32) -> 0 | Y32: 23
E33: =+G33-Adjustments!H33 -> 0 | Y33: 24
B34: GSS | C34: Distribution Non-Gas Rev | E34: =+G34-Adjustments!H34 -> 0 | F34: =Revenue!$F$33 -> 0 | G34: =+Adjustments!AW34 -> 0 | I34: =SUM(F34:H34) -> 0 | L34: Utah | M34: =VLOOKUP($L34,$L$2:$N$7,2,FALSE)*I34 -> 0 | N34: =VLOOKUP($L34,$L$2:$N$7,3,FALSE)*I34 -> 0 | P34: G | Q34: =IF(P34="G",M34,IF(P34="PT",0,ERR)) -> 0 | R34: =IF(P34="PT",M34,IF(P34="G",0,ERR)) -> 0 | S34: G | T34: =IF(S34="G",N34,IF(S34="PT",0,ERR)) -> 0 | U34: =IF(S34="PT",N34,IF(S34="G",0,ERR)) -> 0 | W34: =HLOOKUP($W$9,'ROR-Model'!$Q$10:$U$1274,Y34) -> 0 | Y34: 25
E35: =+G35-Adjustments!H35 -> 0 | Y35: 26
C36: Supplier Non-Gas Revenue | E36: =+G36-Adjustments!H36 -> 0 | F36: =Revenue!$F$35 -> 0 | G36: =+Adjustments!AW36 -> 0 | I36: =SUM($F$36:$H$36) -> 0 | L36: Utah | M36: =VLOOKUP($L36,$L$2:$N$7,2,FALSE)*I36 -> 0 | N36: =VLOOKUP($L36,$L$2:$N$7,3,FALSE)*I36 -> 0 | P36: PT | Q36: =IF(P36="G",M36,IF(P36="PT",0,ERR)) -> 0 | R36: =IF(P36="PT",M36,IF(P36="G",0,ERR)) -> 0 | S36: PT | T36: =IF(S36="G",N36,IF(S36="PT",0,ERR)) -> 0 | U36: =IF(S36="PT",N36,IF(S36="G",0,ERR)) -> 0 | W36: =HLOOKUP($W$9,'ROR-Model'!$Q$10:$U$1274,Y36) -> 0 | Y36: 27
E37: =+G37-Adjustments!H37 -> 0 | Y37: 28
C38: Commodity Revenue | E38: =+G38-Adjustments!H38 -> 0 | F38: =Revenue!$F$37 -> 0 | G38: =+Adjustments!AW38 -> 0 | I38: =SUM($F$38:$H$38) -> 0 | L38: Utah | M38: =VLOOKUP($L38,$L$2:$N$7,2,FALSE)*I38 -> 0 | N38: =VLOOKUP($L38,$L$2:$N$7,3,FALSE)*I38 -> 0 | P38: PT | Q38: =IF(P38="G",M38,IF(P38="PT",0,ERR)) -> 0 | R38: =IF(P38="PT",M38,IF(P38="G",0,ERR)) -> 0 | S38: PT | T38: =IF(S38="G",N38,IF(S38="PT",0,ERR)) -> 0 | U38: =IF(S38="PT",N38,IF(S38="G",0,ERR)) -> 0 | W38: =HLOOKUP($W$9,'ROR-Model'!$Q$10:$U$1274,Y38) -> 0 | Y38: 29
C39: Total Revenue | E39: =+G39-Adjustments!H39 -> 0 | F39: =SUM(F34:F38) -> 0 | G39: =SUM(G34:G38) -> 0 | H39: =SUM(H34:H38) -> 0 | I39: =SUM(I34:I38) -> 0 | M39: =SUM(M34:M38) -> 0 | N39: =SUM(N34:N38) -> 0 | Q39: =SUM(Q34:Q38) -> 0 | R39: =SUM(R34:R38) -> 0 | T39: =SUM(T34:T38) -> 0 | U39: =SUM(U34:U38) -> 0 | W39: =HLOOKUP($W$9,'ROR-Model'!$Q$10:$U$1274,Y39) -> 0 | Y39: 30
E40: =+G40-Adjustments!H40 -> 0 | Y40: 31
C41: Total Dth | E41: =+G41-Adjustments!H41 -> 0 | F41: =Revenue!$F$40 -> 0 | G41: =+Adjustments!AW41 -> 0 | I41: =SUM($F$41:$H$41) -> 0 | L41: Utah | M41: =VLOOKUP($L41,$L$2:$N$7,2,FALSE)*I41 -> 0 | N41: =VLOOKUP($L41,$L$2:$N$7,3,FALSE)*I41 -> 0 | P41: G | Q41: =IF(P41="G",M41,IF(P41="PT",0,ERR)) -> 0 | R41: =IF(P41="PT",M41,IF(P41="G",0,ERR)) -> 0 | S41: G | T41: =IF(S41="G",N41,IF(S41="PT",0,ERR)) -> 0 | U41: =IF(S41="PT",N41,IF(S41="G",0,ERR)) -> 0 | W41: =HLOOKUP($W$9,'ROR-Model'!$Q$10:$U$1274,Y41) -> 0 | Y41: 32
E42: =+G42-Adjustments!H42 -> 0 | Y42: 33
B43: F-1 | C43: Distribution Non-Gas Rev | E43: =+G43-Adjustments!H43 -> 0 | F43: =Revenue!$F$42 -> 3984333 | G43: =+Adjustments!AW43 -> -224162.9433 | I43: =SUM($F$43:$H$43) -> 3760170.057 | L43: Utah | M43: =VLOOKUP($L43,$L$2:$N$7,2,FALSE)*I43 -> 3760170.057 | N43: =VLOOKUP($L43,$L$2:$N$7,3,FALSE)*I43 -> 0 | P43: G | Q43: =IF(P43="G",M43,IF(P43="PT",0,ERR)) -> 3760170.057 | R43: =IF(P43="PT",M43,IF(P43="G",0,ERR)) -> 0 | S43: G | T43: =IF(S43="G",N43,IF(S43="PT",0,ERR)) -> 0 | U43: =IF(S43="PT",N43,IF(S43="G",0,ERR)) -> 0 | W43: =HLOOKUP($W$9,'ROR-Model'!$Q$10:$U$1274,Y43) -> 3760170.057 | Y43: 34
E44: =+G44-Adjustments!H44 -> 0 | Y44: 35
C45: Supplier Non-Gas Revenue | E45: =+G45-Adjustments!H45 -> 0 | F45: =Revenue!$F$44 -> 4014755 | G45: =+Adjustments!AW45 -> 142512.73 | I45: =SUM($F$45:$H$45) -> 4157267.73 | L45: Utah | M45: =VLOOKUP($L45,$L$2:$N$7,2,FALSE)*I45 -> 4157267.73 | N45: =VLOOKUP($L45,$L$2:$N$7,3,FALSE)*I45 -> 0 | P45: PT | Q45: =IF(P45="G",M45,IF(P45="PT",0,ERR)) -> 0 | R45: =IF(P45="PT",M45,IF(P45="G",0,ERR)) -> 4157267.73 | S45: PT | T45: =IF(S45="G",N45,IF(S45="PT",0,ERR)) -> 0 | U45: =IF(S45="PT",N45,IF(S45="G",0,ERR)) -> 0 | W45: =HLOOKUP($W$9,'ROR-Model'!$Q$10:$U$1274,Y45) -> 0 | Y45: 36
E46: =+G46-Adjustments!H46 -> 0 | Y46: 37
C47: Commodity Revenue | E47: =+G47-Adjustments!H47 -> 0 | F47: =Revenue!$F$46 -> 22538259 | G47: =+Adjustments!AW47 -> -3872054.8 | I47: =SUM($F$47:$H$47) -> 18666204.2 | L47: Utah | M47: =VLOOKUP($L47,$L$2:$N$7,2,FALSE)*I47 -> 18666204.2 | N47: =VLOOKUP($L47,$L$2:$N$7,3,FALSE)*I47 -> 0 | P47: PT | Q47: =IF(P47="G",M47,IF(P47="PT",0,ERR)) -> 0 | R47: =IF(P47="PT",M47,IF(P47="G",0,ERR)) -> 18666204.2 | S47: PT | T47: =IF(S47="G",N47,IF(S47="PT",0,ERR)) -> 0 | U47: =IF(S47="PT",N47,IF(S47="G",0,ERR)) -> 0 | W47: =HLOOKUP($W$9,'ROR-Model'!$Q$10:$U$1274,Y47) -> 0 | Y47: 38
C48: Total Revenue | E48: =+G48-Adjustments!H48 -> 0 | F48: =SUM(F43:F47) -> 30537347 | G48: =SUM(G43:G47) -> -3953705.013 | H48: =SUM(H43:H47) -> 0 | I48: =SUM(I43:I47) -> 26583641.99 | M48: =SUM(M43:M47) -> 26583641.99 | N48: =SUM(N43:N47) -> 0 | Q48: =SUM(Q43:Q47) -> 3760170.057 | R48: =SUM(R43:R47) -> 22823471.93 | T48: =SUM(T43:T47) -> 0 | U48: =SUM(U43:U47) -> 0 | W48: =HLOOKUP($W$9,'ROR-Model'!$Q$10:$U$1274,Y48) -> 3760170.057 | Y48: 39
E49: =+G49-Adjustments!H49 -> 0 | Y49: 40
C50: Total Dth | E50: =+G50-Adjustments!H50 -> 0 | F50: =Revenue!$F$49 -> 4932842 | G50: =+Adjustments!AW50 -> -384868 | I50: =SUM($F$50:$H$50) -> 4547974 | L50: Utah | M50: =VLOOKUP($L50,$L$2:$N$7,2,FALSE)*I50 -> 4547974 | N50: =VLOOKUP($L50,$L$2:$N$7,3,FALSE)*I50 -> 0 | P50: G | Q50: =IF(P50="G",M50,IF(P50="PT",0,ERR)) -> 4547974 | R50: =IF(P50="PT",M50,IF(P50="G",0,ERR)) -> 0 | S50: G | T50: =IF(S50="G",N50,IF(S50="PT",0,ERR)) -> 0 | U50: =IF(S50="PT",N50,IF(S50="G",0,ERR)) -> 0 | W50: =HLOOKUP($W$9,'ROR-Model'!$Q$10:$U$1274,Y50) -> 4547974 | Y50: 41
E51: =+G51-Adjustments!H51 -> 0 | Y51: 42
B52: F-3 | C52: Distribution Non-Gas Rev | E52: =+G52-Adjustments!H52 -> 0 | F52: =Revenue!$F$51 -> 0 | G52: =+Adjustments!AW52 -> 0 | I52: =SUM($F$52:$H$52) -> 0 | L52: Utah | M52: =VLOOKUP($L52,$L$2:$N$7,2,FALSE)*I52 -> 0 | N52: =VLOOKUP($L52,$L$2:$N$7,3,FALSE)*I52 -> 0 | P52: G | Q52: =IF(P52="G",M52,IF(P52="PT",0,ERR)) -> 0 | R52: =IF(P52="PT",M52,IF(P52="G",0,ERR)) -> 0 | S52: G | T52: =IF(S52="G",N52,IF(S52="PT",0,ERR)) -> 0 | U52: =IF(S52="PT",N52,IF(S52="G",0,ERR)) -> 0 | W52: =HLOOKUP($W$9,'ROR-Model'!$Q$10:$U$1274,Y52) -> 0 | Y52: 43
C53: Supplier Non-Gas Revenue | E53: =+G53-Adjustments!H53 -> 0 | I53: =SUM($F$53:$H$53) -> 0 | L53: Utah | M53: =VLOOKUP($L53,$L$2:$N$7,2,FALSE)*I53 -> 0 | N53: =VLOOKUP($L53,$L$2:$N$7,3,FALSE)*I53 -> 0 | P53: PT | Q53: =IF(P53="G",M53,IF(P53="PT",0,ERR)) -> 0 | R53: =IF(P53="PT",M53,IF(P53="G",0,ERR)) -> 0 | S53: PT | T53: =IF(S53="G",N53,IF(S53="PT",0,ERR)) -> 0 | U53: =IF(S53="PT",N53,IF(S53="G",0,ERR)) -> 0 | W53: =HLOOKUP($W$9,'ROR-Model'!$Q$10:$U$1274,Y53) -> 0 | Y53: 44
C54: Supplier Non-Gas Demand Revenue | E54: =+G54-Adjustments!H54 -> 0 | F54: =Revenue!$F$53 -> 0 | G54: =+Adjustments!AW54 -> 0 | I54: =SUM($F$54:$H$54) -> 0 | L54: Utah | M54: =VLOOKUP($L54,$L$2:$N$7,2,FALSE)*I54 -> 0 | N54: =VLOOKUP($L54,$L$2:$N$7,3,FALSE)*I54 -> 0 | P54: PT | Q54: =IF(P54="G",M54,IF(P54="PT",0,ERR)) -> 0 | R54: =IF(P54="PT",M54,IF(P54="G",0,ERR)) -> 0 | S54: PT | T54: =IF(S54="G",N54,IF(S54="PT",0,ERR)) -> 0 | U54: =IF(S54="PT",N54,IF(S54="G",0,ERR)) -> 0 | W54: =HLOOKUP($W$9,'ROR-Model'!$Q$10:$U$1274,Y54) -> 0 | Y54: 45
C55: Commodity Tariff Revenue | E55: =+G55-Adjustments!H55 -> 0 | I55: =SUM($F$55:$H$55) -> 0 | L55: Utah | M55: =VLOOKUP($L55,$L$2:$N$7,2,FALSE)*I55 -> 0 | N55: =VLOOKUP($L55,$L$2:$N$7,3,FALSE)*I55 -> 0 | P55: PT | Q55: =IF(P55="G",M55,IF(P55="PT",0,ERR)) -> 0 | R55: =IF(P55="PT",M55,IF(P55="G",0,ERR)) -> 0 | S55: PT | T55: =IF(S55="G",N55,IF(S55="PT",0,ERR)) -> 0 | U55: =IF(S55="PT",N55,IF(S55="G",0,ERR)) -> 0 | W55: =HLOOKUP($W$9,'ROR-Model'!$Q$10:$U$1274,Y55) -> 0 | Y55: 46
C56: Commodity Demand Revenue | E56: =+G56-Adjustments!H56 -> 0 | F56: =Revenue!$F$55 -> 0 | G56: =+Adjustments!AW56 -> 0 | I56: =SUM($F$56:$H$56) -> 0 | L56: Utah | M56: =VLOOKUP($L56,$L$2:$N$7,2,FALSE)*I56 -> 0 | N56: =VLOOKUP($L56,$L$2:$N$7,3,FALSE)*I56 -> 0 | P56: PT | Q56: =IF(P56="G",M56,IF(P56="PT",0,ERR)) -> 0 | R56: =IF(P56="PT",M56,IF(P56="G",0,ERR)) -> 0 | S56: PT | T56: =IF(S56="G",N56,IF(S56="PT",0,ERR)) -> 0 | U56: =IF(S56="PT",N56,IF(S56="G",0,ERR)) -> 0 | W56: =HLOOKUP($W$9,'ROR-Model'!$Q$10:$U$1274,Y56) -> 0 | Y56: 47
C57: Total Revenue | E57: =+G57-Adjustments!H57 -> 0 | F57: =SUM(F52:F56) -> 0 | G57: =SUM(G52:G56) -> 0 | H57: =SUM(H52:H56) -> 0 | I57: =SUM(I52:I56) -> 0 | M57: =SUM(M52:M56) -> 0 | N57: =SUM(N52:N56) -> 0 | Q57: =SUM(Q52:Q56) -> 0 | R57: =SUM(R52:R56) -> 0 | T57: =SUM(T52:T56) -> 0 | U57: =SUM(U52:U56) -> 0 | W57: =HLOOKUP($W$9,'ROR-Model'!$Q$10:$U$1274,Y57) -> 0 | Y57: 48
E58: =+G58-Adjustments!H58 -> 0 | Y58: 49
C59: Total Sales Dth | E59: =+G59-Adjustments!H59 -> 0 | F59: =Revenue!$F$58 -> 0 | G59: =+Adjustments!AW59 -> 0 | I59: =SUM($F$59:$H$59) -> 0 | L59: Utah | M59: =VLOOKUP($L59,$L$2:$N$7,2,FALSE)*I59 -> 0 | N59: =VLOOKUP($L59,$L$2:$N$7,3,FALSE)*I59 -> 0 | P59: G | Q59: =IF(P59="G",M59,IF(P59="PT",0,ERR)) -> 0 | R59: =IF(P59="PT",M59,IF(P59="G",0,ERR)) -> 0 | S59: G | T59: =IF(S59="G",N59,IF(S59="PT",0,ERR)) -> 0 | U59: =IF(S59="PT",N59,IF(S59="G",0,ERR)) -> 0 | W59: =HLOOKUP($W$9,'ROR-Model'!$Q$10:$U$1274,Y59) -> 0 | Y59: 50
E60: =+G60-Adjustments!H60 -> 0 | W60: =HLOOKUP($W$9,'ROR-Model'!$Q$10:$U$1274,Y60) -> 0 | Y60: 51
B61: NGV | C61: Distribution Non-Gas Rev | E61: =+G61-Adjustments!H61 -> 0 | F61: =Revenue!$F$60 -> 4860752.303 | G61: =+Adjustments!AW61 -> -1831461.029 | I61: =SUM($F$61:$H$61) -> 3029291.274 | L61: Utah | M61: =VLOOKUP($L61,$L$2:$N$7,2,FALSE)*I61 -> 3029291.274 | N61: =VLOOKUP($L61,$L$2:$N$7,3,FALSE)*I61 -> 0 | P61: G | Q61: =IF(P61="G",M61,IF(P61="PT",0,ERR)) -> 3029291.274 | R61: =IF(P61="PT",M61,IF(P61="G",0,ERR)) -> 0 | S61: G | T61: =IF(S61="G",N61,IF(S61="PT",0,ERR)) -> 0 | U61: =IF(S61="PT",N61,IF(S61="G",0,ERR)) -> 0 | W61: =HLOOKUP($W$9,'ROR-Model'!$Q$10:$U$1274,Y61) -> 3029291.274 | Y61: 52
E62: =+G62-Adjustments!H62 -> 0 | F62: =Revenue!$F$61 -> 0 | W62: =HLOOKUP($W$9,'ROR-Model'!$Q$10:$U$1274,Y62) -> 0 | Y62: 53
C63: Supplier Non-Gas Revenue | E63: =+G63-Adjustments!H63 -> 0 | F63: =Revenue!$F$62 -> 429688.8855 | G63: =+Adjustments!AW63 -> 41189.57454 | I63: =SUM($F$63:$H$63) -> 470878.46 | L63: Utah | M63: =VLOOKUP($L63,$L$2:$N$7,2,FALSE)*I63 -> 470878.46 | N63: =VLOOKUP($L63,$L$2:$N$7,3,FALSE)*I63 -> 0 | P63: PT | Q63: =IF(P63="G",M63,IF(P63="PT",0,ERR)) -> 0 | R63: =IF(P63="PT",M63,IF(P63="G",0,ERR)) -> 470878.46 | S63: PT | T63: =IF(S63="G",N63,IF(S63="PT",0,ERR)) -> 0 | U63: =IF(S63="PT",N63,IF(S63="G",0,ERR)) -> 0 | W63: =HLOOKUP($W$9,'ROR-Model'!$Q$10:$U$1274,Y63) -> 0 | Y63: 54
E64: =+G64-Adjustments!H64 -> 0 | F64: =Revenue!$F$63 -> 0 | W64: =HLOOKUP($W$9,'ROR-Model'!$Q$10:$U$1274,Y64) -> 0 | Y64: 55
C65: Commodity Revenue | E65: =+G65-Adjustments!H65 -> 0 | F65: =Revenue!$F$64 -> 2356401.791 | G65: =+Adjustments!AW65 -> -228479.2813 | I65: =SUM($F$65:$H$65) -> 2127922.51 | L65: Utah | M65: =VLOOKUP($L65,$L$2:$N$7,2,FALSE)*I65 -> 2127922.51 | N65: =VLOOKUP($L65,$L$2:$N$7,3,FALSE)*I65 -> 0 | P65: PT | Q65: =IF(P65="G",M65,IF(P65="PT",0,ERR)) -> 0 | R65: =IF(P65="PT",M65,IF(P65="G",0,ERR)) -> 2127922.51 | S65: PT | T65: =IF(S65="G",N65,IF(S65="PT",0,ERR)) -> 0 | U65: =IF(S65="PT",N65,IF(S65="G",0,ERR)) -> 0 | W65: =HLOOKUP($W$9,'ROR-Model'!$Q$10:$U$1274,Y65) -> 0 | Y65: 56
C66: Total Revenue | E66: =+G66-Adjustments!H66 -> 0 | F66: =SUM(F61:F65) -> 7646842.98 | G66: =SUM(G61:G65) -> -2018750.736 | H66: =SUM(H61:H65) -> 0 | I66: =SUM(I61:I65) -> 5628092.244 | M66: =SUM(M61:M65) -> 5628092.244 | N66: =SUM(N61:N65) -> 0 | Q66: =SUM(Q61:Q65) -> 3029291.274 | R66: =SUM(R61:R65) -> 2598800.97 | T66: =SUM(T61:T65) -> 0 | U66: =SUM(U61:U65) -> 0 | W66: =HLOOKUP($W$9,'ROR-Model'!$Q$10:$U$1274,Y66) -> 3029291.274 | Y66: 57
E67: =+G67-Adjustments!H67 -> 0 | Y67: 58
C68: Total Dth | E68: =+G68-Adjustments!H68 -> 0 | F68: =Revenue!$F$67 -> 518464.23 | G68: =+Adjustments!AW68 -> -1.23 | I68: =SUM($F$68:$H$68) -> 518463 | L68: Utah | M68: =VLOOKUP($L68,$L$2:$N$7,2,FALSE)*I68 -> 518463 | N68: =VLOOKUP($L68,$L$2:$N$7,3,FALSE)*I68 -> 0 | P68: G | Q68: =IF(P68="G",M68,IF(P68="PT",0,ERR)) -> 518463 | R68: =IF(P68="PT",M68,IF(P68="G",0,ERR)) -> 0 | S68: G | T68: =IF(S68="G",N68,IF(S68="PT",0,ERR)) -> 0 | U68: =IF(S68="PT",N68,IF(S68="G",0,ERR)) -> 0 | W68: =HLOOKUP($W$9,'ROR-Model'!$Q$10:$U$1274,Y68) -> 518463 | Y68: 59
E69: =+G69-Adjustments!H69 -> 0 | Y69: 60
B70: F-4 | C70: Distribution Non-Gas Rev | E70: =+G70-Adjustments!H70 -> 0 | F70: =Revenue!$F$69 -> 0 | G70: =+Adjustments!AW70 -> 0 | I70: =SUM($F$70:$H$70) -> 0 | L70: Utah | M70: =VLOOKUP($L70,$L$2:$N$7,2,FALSE)*I70 -> 0 | N70: =VLOOKUP($L70,$L$2:$N$7,3,FALSE)*I70 -> 0 | P70: G | Q70: =IF(P70="G",M70,IF(P70="PT",0,ERR)) -> 0 | R70: =IF(P70="PT",M70,IF(P70="G",0,ERR)) -> 0 | S70: G | T70: =IF(S70="G",N70,IF(S70="PT",0,ERR)) -> 0 | U70: =IF(S70="PT",N70,IF(S70="G",0,ERR)) -> 0 | W70: =HLOOKUP($W$9,'ROR-Model'!$Q$10:$U$1274,Y70) -> 0 | Y70: 61
E71: =+G71-Adjustments!H71 -> 0 | Y71: 62
C72: Supplier Non-Gas Revenue | E72: =+G72-Adjustments!H72 -> 0 | F72: =Revenue!$F$71 -> 0 | G72: =+Adjustments!AW72 -> 0 | I72: =SUM($F$72:$H$72) -> 0 | L72: Utah | M72: =VLOOKUP($L72,$L$2:$N$7,2,FALSE)*I72 -> 0 | N72: =VLOOKUP($L72,$L$2:$N$7,3,FALSE)*I72 -> 0 | P72: PT | Q72: =IF(P72="G",M72,IF(P72="PT",0,ERR)) -> 0 | R72: =IF(P72="PT",M72,IF(P72="G",0,ERR)) -> 0 | S72: PT | T72: =IF(S72="G",N72,IF(S72="PT",0,ERR)) -> 0 | U72: =IF(S72="PT",N72,IF(S72="G",0,ERR)) -> 0 | W72: =HLOOKUP($W$9,'ROR-Model'!$Q$10:$U$1274,Y72) -> 0 | Y72: 63
E73: =+G73-Adjustments!H73 -> 0 | Y73: 64
C74: Commodity Revenue | E74: =+G74-Adjustments!H74 -> 0 | F74: =Revenue!$F$73 -> 0 | G74: =+Adjustments!AW74 -> 0 | I74: =SUM($F$74:$H$74) -> 0 | L74: Utah | M74: =VLOOKUP($L74,$L$2:$N$7,2,FALSE)*I74 -> 0 | N74: =VLOOKUP($L74,$L$2:$N$7,3,FALSE)*I74 -> 0 | P74: PT | Q74: =IF(P74="G",M74,IF(P74="PT",0,ERR)) -> 0 | R74: =IF(P74="PT",M74,IF(P74="G",0,ERR)) -> 0 | S74: PT | T74: =IF(S74="G",N74,IF(S74="PT",0,ERR)) -> 0 | U74: =IF(S74="PT",N74,IF(S74="G",0,ERR)) -> 0 | W74: =HLOOKUP($W$9,'ROR-Model'!$Q$10:$U$1274,Y74) -> 0 | Y74: 65
C75: Total Revenue | E75: =+G75-Adjustments!H75 -> 0 | F75: =SUM(F70:F74) -> 0 | G75: =SUM(G70:G74) -> 0 | H75: =SUM(H70:H74) -> 0 | I75: =SUM(I70:I74) -> 0 | M75: =SUM(M70:M74) -> 0 | N75: =SUM(N70:N74) -> 0 | Q75: =SUM(Q70:Q74) -> 0 | R75: =SUM(R70:R74) -> 0 | T75: =SUM(T70:T74) -> 0 | U75: =SUM(U70:U74) -> 0 | W75: =HLOOKUP($W$9,'ROR-Model'!$Q$10:$U$1274,Y75) -> 0 | Y75: 66
E76: =+G76-Adjustments!H76 -> 0 | Y76: =Y75+1 -> 67
C77: Total Dth | E77: =+G77-Adjustments!H77 -> 0 | F77: =Revenue!$F$76 -> 0 | G77: =+Adjustments!AW77 -> 0 | I77: =SUM($F$77:$H$77) -> 0 | L77: Utah | M77: =VLOOKUP($L77,$L$2:$N$7,2,FALSE)*I77 -> 0 | N77: =VLOOKUP($L77,$L$2:$N$7,3,FALSE)*I77 -> 0 | P77: G | Q77: =IF(P77="G",M77,IF(P77="PT",0,ERR)) -> 0 | R77: =IF(P77="PT",M77,IF(P77="G",0,ERR)) -> 0 | S77: G | T77: =IF(S77="G",N77,IF(S77="PT",0,ERR)) -> 0 | U77: =IF(S77="PT",N77,IF(S77="G",0,ERR)) -> 0 | W77: =HLOOKUP($W$9,'ROR-Model'!$Q$10:$U$1274,Y77) -> 0 | Y77: 68
E78: =+G78-Adjustments!H78 -> 0 | Y78: 69
B79: Blank | C79: Distribution Non-Gas Rev | E79: =+G79-Adjustments!H79 -> 0 | F79: =Revenue!$F$78 -> 0 | G79: =+Adjustments!AW79 -> 0 | I79: =SUM($F$79:$H$79) -> 0 | L79: Utah | M79: =VLOOKUP($L79,$L$2:$N$7,2,FALSE)*I79 -> 0 | N79: =VLOOKUP($L79,$L$2:$N$7,3,FALSE)*I79 -> 0 | P79: G | Q79: =IF(P79="G",M79,IF(P79="PT",0,ERR)) -> 0 | R79: =IF(P79="PT",M79,IF(P79="G",0,ERR)) -> 0 | S79: G | T79: =IF(S79="G",N79,IF(S79="PT",0,ERR)) -> 0 | U79: =IF(S79="PT",N79,IF(S79="G",0,ERR)) -> 0 | W79: =HLOOKUP($W$9,'ROR-Model'!$Q$10:$U$1274,Y79) -> 0 | Y79: 70
E80: =+G80-Adjustments!H80 -> 0 | Y80: 71
C81: Supplier Non-Gas Revenue | E81: =+G81-Adjustments!H81 -> 0 | F81: =Revenue!$F$80 -> 0 | G81: =+Adjustments!AW81 -> 0 | I81: =SUM($F$81:$H$81) -> 0 | L81: Utah | M81: =VLOOKUP($L81,$L$2:$N$7,2,FALSE)*I81 -> 0 | N81: =VLOOKUP($L81,$L$2:$N$7,3,FALSE)*I81 -> 0 | P81: PT | Q81: =IF(P81="G",M81,IF(P81="PT",0,ERR)) -> 0 | R81: =IF(P81="PT",M81,IF(P81="G",0,ERR)) -> 0 | S81: PT | T81: =IF(S81="G",N81,IF(S81="PT",0,ERR)) -> 0 | U81: =IF(S81="PT",N81,IF(S81="G",0,ERR)) -> 0 | W81: =HLOOKUP($W$9,'ROR-Model'!$Q$10:$U$1274,Y81) -> 0 | Y81: 72
E82: =+G82-Adjustments!H82 -> 0 | Y82: 73
C83: Commodity Revenue | E83: =+G83-Adjustments!H83 -> 0 | F83: =Revenue!$F$82 -> 0 | G83: =+Adjustments!AW83 -> 0 | I83: =SUM($F$83:$H$83) -> 0 | L83: Utah | M83: =VLOOKUP($L83,$L$2:$N$7,2,FALSE)*I83 -> 0 | N83: =VLOOKUP($L83,$L$2:$N$7,3,FALSE)*I83 -> 0 | P83: PT | Q83: =IF(P83="G",M83,IF(P83="PT",0,ERR)) -> 0 | R83: =IF(P83="PT",M83,IF(P83="G",0,ERR)) -> 0 | S83: PT | T83: =IF(S83="G",N83,IF(S83="PT",0,ERR)) -> 0 | U83: =IF(S83="PT",N83,IF(S83="G",0,ERR)) -> 0 | W83: =HLOOKUP($W$9,'ROR-Model'!$Q$10:$U$1274,Y83) -> 0 | Y83: 74
C84: Total Revenue | E84: =+G84-Adjustments!H84 -> 0 | F84: =SUM(F79:F83) -> 0 | G84: =SUM(G79:G83) -> 0 | H84: =SUM(H79:H83) -> 0 | I84: =SUM(I79:I83) -> 0 | M84: =SUM(M79:M83) -> 0 | N84: =SUM(N79:N83) -> 0 | Q84: =SUM(Q79:Q83) -> 0 | R84: =SUM(R79:R83) -> 0 | T84: =SUM(T79:T83) -> 0 | U84: =SUM(U79:U83) -> 0 | W84: =HLOOKUP($W$9,'ROR-Model'!$Q$10:$U$1274,Y84) -> 0 | Y84: 75
E85: =+G85-Adjustments!H85 -> 0 | Y85: 76
C86: Total Dth | E86: =+G86-Adjustments!H86 -> 0 | F86: =Revenue!$F$85 -> 0 | G86: =+Adjustments!AW86 -> 0 | I86: =SUM($F$86:$H$86) -> 0 | L86: Utah | M86: =VLOOKUP($L86,$L$2:$N$7,2,FALSE)*I86 -> 0 | N86: =VLOOKUP($L86,$L$2:$N$7,3,FALSE)*I86 -> 0 | P86: G | Q86: =IF(P86="G",M86,IF(P86="PT",0,ERR)) -> 0 | R86: =IF(P86="PT",M86,IF(P86="G",0,ERR)) -> 0 | S86: G | T86: =IF(S86="G",N86,IF(S86="PT",0,ERR)) -> 0 | U86: =IF(S86="PT",N86,IF(S86="G",0,ERR)) -> 0 | W86: =HLOOKUP($W$9,'ROR-Model'!$Q$10:$U$1274,Y86) -> 0 | Y86: 77
E87: =+G87-Adjustments!H87 -> 0 | Y87: 78
B88: I-4 | C88: Distribution Non-Gas Rev | E88: =+G88-Adjustments!H88 -> 0 | F88: =Revenue!$F$87 -> 0 | G88: =+Adjustments!AW88 -> 0 | I88: =SUM($F$88:$H$88) -> 0 | L88: Utah | M88: =VLOOKUP($L88,$L$2:$N$7,2,FALSE)*I88 -> 0 | N88: =VLOOKUP($L88,$L$2:$N$7,3,FALSE)*I88 -> 0 | P88: G | Q88: =IF(P88="G",M88,IF(P88="PT",0,ERR)) -> 0 | R88: =IF(P88="PT",M88,IF(P88="G",0,ERR)) -> 0 | S88: G | T88: =IF(S88="G",N88,IF(S88="PT",0,ERR)) -> 0 | U88: =IF(S88="PT",N88,IF(S88="G",0,ERR)) -> 0 | W88: =HLOOKUP($W$9,'ROR-Model'!$Q$10:$U$1274,Y88) -> 0 | Y88: 79
E89: =+G89-Adjustments!H89 -> 0 | Y89: 80
C90: Supplier Non-Gas Revenue | E90: =+G90-Adjustments!H90 -> 0 | F90: =Revenue!$F$89 -> 0 | G90: =+Adjustments!AW90 -> 0 | I90: =SUM($F$90:$H$90) -> 0 | L90: Utah | M90: =VLOOKUP($L90,$L$2:$N$7,2,FALSE)*I90 -> 0 | N90: =VLOOKUP($L90,$L$2:$N$7,3,FALSE)*I90 -> 0 | P90: PT | Q90: =IF(P90="G",M90,IF(P90="PT",0,ERR)) -> 0 | R90: =IF(P90="PT",M90,IF(P90="G",0,ERR)) -> 0 | S90: PT | T90: =IF(S90="G",N90,IF(S90="PT",0,ERR)) -> 0 | U90: =IF(S90="PT",N90,IF(S90="G",0,ERR)) -> 0 | W90: =HLOOKUP($W$9,'ROR-Model'!$Q$10:$U$1274,Y90) -> 0 | Y90: 81
E91: =+G91-Adjustments!H91 -> 0 | Y91: 82
C92: Commodity Revenue | E92: =+G92-Adjustments!H92 -> 0 | F92: =Revenue!$F$91 -> 0 | G92: =+Adjustments!AW92 -> 0 | I92: =SUM($F$92:$H$92) -> 0 | L92: Utah | M92: =VLOOKUP($L92,$L$2:$N$7,2,FALSE)*I92 -> 0 | N92: =VLOOKUP($L92,$L$2:$N$7,3,FALSE)*I92 -> 0 | P92: PT | Q92: =IF(P92="G",M92,IF(P92="PT",0,ERR)) -> 0 | R92: =IF(P92="PT",M92,IF(P92="G",0,ERR)) -> 0 | S92: PT | T92: =IF(S92="G",N92,IF(S92="PT",0,ERR)) -> 0 | U92: =IF(S92="PT",N92,IF(S92="G",0,ERR)) -> 0 | W92: =HLOOKUP($W$9,'ROR-Model'!$Q$10:$U$1274,Y92) -> 0 | Y92: 83
C93: Total Revenue | E93: =+G93-Adjustments!H93 -> 0 | F93: =SUM(F88:F92) -> 0 | G93: =SUM(G88:G92) -> 0 | H93: =SUM(H88:H92) -> 0 | I93: =SUM(I88:I92) -> 0 | M93: =SUM(M88:M92) -> 0 | N93: =SUM(N88:N92) -> 0 | Q93: =SUM(Q88:Q92) -> 0 | R93: =SUM(R88:R92) -> 0 | T93: =SUM(T88:T92) -> 0 | U93: =SUM(U88:U92) -> 0 | W93: =HLOOKUP($W$9,'ROR-Model'!$Q$10:$U$1274,Y93) -> 0 | Y93: 84
E94: =+G94-Adjustments!H94 -> 0 | Y94: 85
C95: Total Dth | E95: =+G95-Adjustments!H95 -> 0 | F95: =Revenue!$F$94 -> 0 | G95: =+Adjustments!AW95 -> 0 | I95: =SUM($F$95:$H$95) -> 0 | L95: Utah | M95: =VLOOKUP($L95,$L$2:$N$7,2,FALSE)*I95 -> 0 | N95: =VLOOKUP($L95,$L$2:$N$7,3,FALSE)*I95 -> 0 | P95: G | Q95: =IF(P95="G",M95,IF(P95="PT",0,ERR)) -> 0 | R95: =IF(P95="PT",M95,IF(P95="G",0,ERR)) -> 0 | S95: G | T95: =IF(S95="G",N95,IF(S95="PT",0,ERR)) -> 0 | U95: =IF(S95="PT",N95,IF(S95="G",0,ERR)) -> 0 | W95: =HLOOKUP($W$9,'ROR-Model'!$Q$10:$U$1274,Y95) -> 0 | Y95: 86
E96: =+G96-Adjustments!H96 -> 0 | Y96: 87
B97: IS | C97: Distribution Non-Gas Rev | E97: =+G97-Adjustments!H97 -> 0 | F97: =Revenue!$F$96 -> 671557 | G97: =+Adjustments!AW97 -> -342255.458 | I97: =SUM($F$97:$H$97) -> 329301.542 | L97: Utah | M97: =VLOOKUP($L97,$L$2:$N$7,2,FALSE)*I97 -> 329301.542 | N97: =VLOOKUP($L97,$L$2:$N$7,3,FALSE)*I97 -> 0 | P97: G | Q97: =IF(P97="G",M97,IF(P97="PT",0,ERR)) -> 329301.542 | R97: =IF(P97="PT",M97,IF(P97="G",0,ERR)) -> 0 | S97: G | T97: =IF(S97="G",N97,IF(S97="PT",0,ERR)) -> 0 | U97: =IF(S97="PT",N97,IF(S97="G",0,ERR)) -> 0 | W97: =HLOOKUP($W$9,'ROR-Model'!$Q$10:$U$1274,Y97) -> 329301.542 | Y97: 88
E98: =+G98-Adjustments!H98 -> 0 | Y98: 89
C99: Supplier Non-Gas Revenue | E99: =+G99-Adjustments!H99 -> 0 | F99: =Revenue!$F$98 -> 282956 | G99: =+Adjustments!AW99 -> -178345.56 | I99: =SUM($F$99:$H$99) -> 104610.44 | L99: Utah | M99: =VLOOKUP($L99,$L$2:$N$7,2,FALSE)*I99 -> 104610.44 | N99: =VLOOKUP($L99,$L$2:$N$7,3,FALSE)*I99 -> 0 | P99: PT | Q99: =IF(P99="G",M99,IF(P99="PT",0,ERR)) -> 0 | R99: =IF(P99="PT",M99,IF(P99="G",0,ERR)) -> 104610.44 | S99: PT | T99: =IF(S99="G",N99,IF(S99="PT",0,ERR)) -> 0 | U99: =IF(S99="PT",N99,IF(S99="G",0,ERR)) -> 0 | W99: =HLOOKUP($W$9,'ROR-Model'!$Q$10:$U$1274,Y99) -> 0 | Y99: 90
E100: =+G100-Adjustments!H100 -> 0 | Y100: 91
C101: Commodity Revenue | E101: =+G101-Adjustments!H101 -> 0 | F101: =Revenue!$F$100 -> 7357734 | G101: =+Adjustments!AW101 -> -4963135.25 | I101: =SUM($F$101:$H$101) -> 2394598.75 | L101: Utah | M101: =VLOOKUP($L101,$L$2:$N$7,2,FALSE)*I101 -> 2394598.75 | N101: =VLOOKUP($L101,$L$2:$N$7,3,FALSE)*I101 -> 0 | P101: PT | Q101: =IF(P101="G",M101,IF(P101="PT",0,ERR)) -> 0 | R101: =IF(P101="PT",M101,IF(P101="G",0,ERR)) -> 2394598.75 | S101: PT | T101: =IF(S101="G",N101,IF(S101="PT",0,ERR)) -> 0 | U101: =IF(S101="PT",N101,IF(S101="G",0,ERR)) -> 0 | W101: =HLOOKUP($W$9,'ROR-Model'!$Q$10:$U$1274,Y101) -> 0 | Y101: 92
C102: Total Revenue | E102: =+G102-Adjustments!H102 -> 0 | F102: =SUM(F97:F101) -> 8312247 | G102: =SUM(G97:G101) -> -5483736.268 | H102: =SUM(H97:H101) -> 0 | I102: =SUM(I97:I101) -> 2828510.732 | M102: =SUM(M97:M101) -> 2828510.732 | N102: =SUM(N97:N101) -> 0 | Q102: =SUM(Q97:Q101) -> 329301.542 | R102: =SUM(R97:R101) -> 2499209.19 | T102: =SUM(T97:T101) -> 0 | U102: =SUM(U97:U101) -> 0 | W102: =HLOOKUP($W$9,'ROR-Model'!$Q$10:$U$1274,Y102) -> 329301.542 | Y102: 93
E103: =+G103-Adjustments!H103 -> 0 | Y103: 94
C104: Total Dth | E104: =+G104-Adjustments!H104 -> 0 | F104: =Revenue!$F$103 -> 1576685 | G104: =+Adjustments!AW104 -> -993247 | I104: =SUM($F$104:$H$104) -> 583438 | L104: Utah | M104: =VLOOKUP($L104,$L$2:$N$7,2,FALSE)*I104 -> 583438 | N104: =VLOOKUP($L104,$L$2:$N$7,3,FALSE)*I104 -> 0 | P104: G | Q104: =IF(P104="G",M104,IF(P104="PT",0,ERR)) -> 583438 | R104: =IF(P104="PT",M104,IF(P104="G",0,ERR)) -> 0 | S104: G | T104: =IF(S104="G",N104,IF(S104="PT",0,ERR)) -> 0 | U104: =IF(S104="PT",N104,IF(S104="G",0,ERR)) -> 0 | W104: =HLOOKUP($W$9,'ROR-Model'!$Q$10:$U$1274,Y104) -> 583438 | Y104: 95
E105: =+G105-Adjustments!H105 -> 0 | Y105: 96
B106: IS-4 | C106: Distribution Non-Gas Rev | E106: =+G106-Adjustments!H106 -> 0 | F106: =Revenue!$F$105 -> 0 | G106: =+Adjustments!AW106 -> 0 | I106: =SUM($F$106:$H$106) -> 0 | L106: Utah | M106: =VLOOKUP($L106,$L$2:$N$7,2,FALSE)*I106 -> 0 | N106: =VLOOKUP($L106,$L$2:$N$7,3,FALSE)*I106 -> 0 | P106: G | Q106: =IF(P106="G",M106,IF(P106="PT",0,ERR)) -> 0 | R106: =IF(P106="PT",M106,IF(P106="G",0,ERR)) -> 0 | S106: G | T106: =IF(S106="G",N106,IF(S106="PT",0,ERR)) -> 0 | U106: =IF(S106="PT",N106,IF(S106="G",0,ERR)) -> 0 | W106: =HLOOKUP($W$9,'ROR-Model'!$Q$10:$U$1274,Y106) -> 0 | Y106: 97
E107: =+G107-Adjustments!H107 -> 0 | Y107: 98
C108: Supplier Non-Gas Revenue | E108: =+G108-Adjustments!H108 -> 0 | F108: =Revenue!$F$107 -> 0 | G108: =+Adjustments!AW108 -> 0 | I108: =SUM($F$108:$H$108) -> 0 | L108: Utah | M108: =VLOOKUP($L108,$L$2:$N$7,2,FALSE)*I108 -> 0 | N108: =VLOOKUP($L108,$L$2:$N$7,3,FALSE)*I108 -> 0 | P108: PT | Q108: =IF(P108="G",M108,IF(P108="PT",0,ERR)) -> 0 | R108: =IF(P108="PT",M108,IF(P108="G",0,ERR)) -> 0 | S108: PT | T108: =IF(S108="G",N108,IF(S108="PT",0,ERR)) -> 0 | U108: =IF(S108="PT",N108,IF(S108="G",0,ERR)) -> 0 | W108: =HLOOKUP($W$9,'ROR-Model'!$Q$10:$U$1274,Y108) -> 0 | Y108: 99
E109: =+G109-Adjustments!H109 -> 0 | Y109: 100
C110: Commodity Revenue | E110: =+G110-Adjustments!H110 -> 0 | F110: =Revenue!$F$109 -> 0 | G110: =+Adjustments!AW110 -> 0 | I110: =SUM($F$110:$H$110) -> 0 | L110: Utah | M110: =VLOOKUP($L110,$L$2:$N$7,2,FALSE)*I110 -> 0 | N110: =VLOOKUP($L110,$L$2:$N$7,3,FALSE)*I110 -> 0 | P110: PT | Q110: =IF(P110="G",M110,IF(P110="PT",0,ERR)) -> 0 | R110: =IF(P110="PT",M110,IF(P110="G",0,ERR)) -> 0 | S110: PT | T110: =IF(S110="G",N110,IF(S110="PT",0,ERR)) -> 0 | U110: =IF(S110="PT",N110,IF(S110="G",0,ERR)) -> 0 | W110: =HLOOKUP($W$9,'ROR-Model'!$Q$10:$U$1274,Y110) -> 0 | Y110: 101
C111: Total Revenue | E111: =+G111-Adjustments!H111 -> 0 | F111: =SUM(F106:F110) -> 0 | G111: =SUM(G106:G110) -> 0 | H111: =SUM(H106:H110) -> 0 | I111: =SUM(I106:I110) -> 0 | M111: =SUM(M106:M110) -> 0 | N111: =SUM(N106:N110) -> 0 | Q111: =SUM(Q106:Q110) -> 0 | R111: =SUM(R106:R110) -> 0 | T111: =SUM(T106:T110) -> 0 | U111: =SUM(U106:U110) -> 0 | W111: =HLOOKUP($W$9,'ROR-Model'!$Q$10:$U$1274,Y111) -> 0 | Y111: 102
E112: =+G112-Adjustments!H112 -> 0 | Y112: 103
C113: Total Dth | E113: =+G113-Adjustments!H113 -> 0 | F113: =Revenue!$F$112 -> 0 | G113: =+Adjustments!AW113 -> 0 | I113: =SUM($F$113:$H$113) -> 0 | L113: Utah | M113: =VLOOKUP($L113,$L$2:$N$7,2,FALSE)*I113 -> 0 | N113: =VLOOKUP($L113,$L$2:$N$7,3,FALSE)*I113 -> 0 | P113: G | Q113: =IF(P113="G",M113,IF(P113="PT",0,ERR)) -> 0 | R113: =IF(P113="PT",M113,IF(P113="G",0,ERR)) -> 0 | S113: G | T113: =IF(S113="G",N113,IF(S113="PT",0,ERR)) -> 0 | U113: =IF(S113="PT",N113,IF(S113="G",0,ERR)) -> 0 | W113: =HLOOKUP($W$9,'ROR-Model'!$Q$10:$U$1274,Y113) -> 0 | Y113: 104
E114: =+G114-Adjustments!H114 -> 0 | Y114: 105
B115: FT1-L | C115: Distribution Non-Gas Rev | E115: =+G115-Adjustments!H115 -> 2624472 | F115: =Revenue!$F$114 -> 0 | G115: =+Adjustments!AW151 -> 2624472 | I115: =SUM($F$115:$H$115) -> 2624472 | L115: Utah | M115: =VLOOKUP($L115,$L$2:$N$7,2,FALSE)*I115 -> 2624472 | N115: =VLOOKUP($L115,$L$2:$N$7,3,FALSE)*I115 -> 0 | P115: G | Q115: =IF(P115="G",M115,IF(P115="PT",0,ERR)) -> 2624472 | R115: =IF(P115="PT",M115,IF(P115="G",0,ERR)) -> 0 | S115: G | T115: =IF(S115="G",N115,IF(S115="PT",0,ERR)) -> 0 | U115: =IF(S115="PT",N115,IF(S115="G",0,ERR)) -> 0 | W115: =HLOOKUP($W$9,'ROR-Model'!$Q$10:$U$1274,Y115) -> 2624472 | Y115: 106
E116: =+G116-Adjustments!H116 -> 0 | Y116: 107
C117: Supplier Non-Gas Revenue | E117: =+G117-Adjustments!H117 -> 0 | F117: =Revenue!$F$116 -> 0 | G117: =+Adjustments!AW117 -> 0 | I117: =SUM($F$117:$H$117) -> 0 | L117: Utah | M117: =VLOOKUP($L117,$L$2:$N$7,2,FALSE)*I117 -> 0 | N117: =VLOOKUP($L117,$L$2:$N$7,3,FALSE)*I117 -> 0 | P117: PT | Q117: =IF(P117="G",M117,IF(P117="PT",0,ERR)) -> 0 | R117: =IF(P117="PT",M117,IF(P117="G",0,ERR)) -> 0 | S117: PT | T117: =IF(S117="G",N117,IF(S117="PT",0,ERR)) -> 0 | U117: =IF(S117="PT",N117,IF(S117="G",0,ERR)) -> 0 | W117: =HLOOKUP($W$9,'ROR-Model'!$Q$10:$U$1274,Y117) -> 0 | Y117: 108
E118: =+G118-Adjustments!H118 -> 0 | Y118: 109
C119: Commodity Revenue | E119: =+G119-Adjustments!H119 -> 0 | F119: =Revenue!$F$118 -> 0 | G119: =+Adjustments!AW119 -> 0 | I119: =SUM($F$119:$H$119) -> 0 | L119: Utah | M119: =VLOOKUP($L119,$L$2:$N$7,2,FALSE)*I119 -> 0 | N119: =VLOOKUP($L119,$L$2:$N$7,3,FALSE)*I119 -> 0 | P119: PT | Q119: =IF(P119="G",M119,IF(P119="PT",0,ERR)) -> 0 | R119: =IF(P119="PT",M119,IF(P119="G",0,ERR)) -> 0 | S119: PT | T119: =IF(S119="G",N119,IF(S119="PT",0,ERR)) -> 0 | U119: =IF(S119="PT",N119,IF(S119="G",0,ERR)) -> 0 | W119: =HLOOKUP($W$9,'ROR-Model'!$Q$10:$U$1274,Y119) -> 0 | Y119: 110
C120: Total Revenue | E120: =+G120-Adjustments!H120 -> 2624472 | F120: =SUM(F115:F119) -> 0 | G120: =SUM(G115:G119) -> 2624472 | H120: =SUM(H115:H119) -> 0 | I120: =SUM(I115:I119) -> 2624472 | M120: =SUM(M115:M119) -> 2624472 | N120: =SUM(N115:N119) -> 0 | Q120: =SUM(Q115:Q119) -> 2624472 | R120: =SUM(R115:R119) -> 0 | T120: =SUM(T115:T119) -> 0 | U120: =SUM(U115:U119) -> 0 | W120: =HLOOKUP($W$9,'ROR-Model'!$Q$10:$U$1274,Y120) -> 2624472 | Y120: 111
E121: =+G121-Adjustments!H121 -> 0 | Y121: 112
C122: Total Dth | E122: =+G122-Adjustments!H122 -> 32698029 | F122: =Revenue!$F$121 -> 0 | G122: =+Adjustments!AW158 -> 32698029 | I122: =SUM($F$122:$H$122) -> 32698029 | L122: Utah | M122: =VLOOKUP($L122,$L$2:$N$7,2,FALSE)*I122 -> 32698029 | N122: =VLOOKUP($L122,$L$2:$N$7,3,FALSE)*I122 -> 0 | P122: G | Q122: =IF(P122="G",M122,IF(P122="PT",0,ERR)) -> 32698029 | R122: =IF(P122="PT",M122,IF(P122="G",0,ERR)) -> 0 | S122: G | T122: =IF(S122="G",N122,IF(S122="PT",0,ERR)) -> 0 | U122: =IF(S122="PT",N122,IF(S122="G",0,ERR)) -> 0 | W122: =HLOOKUP($W$9,'ROR-Model'!$Q$10:$U$1274,Y122) -> 32698029 | Y122: 113
E123: =+G123-Adjustments!H123 -> 0 | Y123: 114
B124: FT-1 | C124: Distribution Non-Gas Rev | E124: =+G124-Adjustments!H124 -> 0 | F124: =Revenue!$F$123 -> 6203341 | G124: =+Adjustments!AW124 -> -3951702.903 | I124: =SUM($F$124:$H$124) -> 2251638.097 | L124: Utah | M124: =VLOOKUP($L124,$L$2:$N$7,2,FALSE)*I124 -> 2251638.097 | N124: =VLOOKUP($L124,$L$2:$N$7,3,FALSE)*I124 -> 0 | P124: G | Q124: =IF(P124="G",M124,IF(P124="PT",0,ERR)) -> 2251638.097 | R124: =IF(P124="PT",M124,IF(P124="G",0,ERR)) -> 0 | S124: G | T124: =IF(S124="G",N124,IF(S124="PT",0,ERR)) -> 0 | U124: =IF(S124="PT",N124,IF(S124="G",0,ERR)) -> 0 | W124: =HLOOKUP($W$9,'ROR-Model'!$Q$10:$U$1274,Y124) -> 2251638.097 | Y124: 115
E125: =+G125-Adjustments!H125 -> 0 | Y125: 116
C126: Supplier Non-Gas Revenue | E126: =+G126-Adjustments!H126 -> 0 | F126: =Revenue!$F$125 -> 0 | G126: =+Adjustments!AW126 -> 0 | I126: =SUM($F$126:$H$126) -> 0 | L126: Utah | M126: =VLOOKUP($L126,$L$2:$N$7,2,FALSE)*I126 -> 0 | N126: =VLOOKUP($L126,$L$2:$N$7,3,FALSE)*I126 -> 0 | P126: PT | Q126: =IF(P126="G",M126,IF(P126="PT",0,ERR)) -> 0 | R126: =IF(P126="PT",M126,IF(P126="G",0,ERR)) -> 0 | S126: PT | T126: =IF(S126="G",N126,IF(S126="PT",0,ERR)) -> 0 | U126: =IF(S126="PT",N126,IF(S126="G",0,ERR)) -> 0 | W126: =HLOOKUP($W$9,'ROR-Model'!$Q$10:$U$1274,Y126) -> 0 | Y126: 117
E127: =+G127-Adjustments!H127 -> 0 | Y127: 118
C128: Commodity Revenue | E128: =+G128-Adjustments!H128 -> 0 | F128: =Revenue!$F$127 -> 0 | G128: =+Adjustments!AW128 -> 0 | I128: =SUM($F$128:$H$128) -> 0 | L128: Utah | M128: =VLOOKUP($L128,$L$2:$N$7,2,FALSE)*I128 -> 0 | N128: =VLOOKUP($L128,$L$2:$N$7,3,FALSE)*I128 -> 0 | P128: PT | Q128: =IF(P128="G",M128,IF(P128="PT",0,ERR)) -> 0 | R128: =IF(P128="PT",M128,IF(P128="G",0,ERR)) -> 0 | S128: PT | T128: =IF(S128="G",N128,IF(S128="PT",0,ERR)) -> 0 | U128: =IF(S128="PT",N128,IF(S128="G",0,ERR)) -> 0 | W128: =HLOOKUP($W$9,'ROR-Model'!$Q$10:$U$1274,Y128) -> 0 | Y128: 119
C129: Total Revenue | E129: =+G129-Adjustments!H129 -> 0 | F129: =SUM(F124:F128) -> 6203341 | G129: =SUM(G124:G128) -> -3951702.903 | H129: =SUM(H124:H128) -> 0 | I129: =SUM(I124:I128) -> 2251638.097 | M129: =SUM(M124:M128) -> 2251638.097 | N129: =SUM(N124:N128) -> 0 | Q129: =SUM(Q124:Q128) -> 2251638.097 | R129: =SUM(R124:R128) -> 0 | T129: =SUM(T124:T128) -> 0 | U129: =SUM(U124:U128) -> 0 | W129: =HLOOKUP($W$9,'ROR-Model'!$Q$10:$U$1274,Y129) -> 2251638.097 | Y129: 120
E130: =+G130-Adjustments!H130 -> 0 | Y130: 121
C131: Total Dth | E131: =+G131-Adjustments!H131 -> 0 | F131: =Revenue!$F$130 -> 38522404 | G131: =+Adjustments!AW131 -> -32671632 | I131: =SUM($F$131:$H$131) -> 5850772 | L131: Utah | M131: =VLOOKUP($L131,$L$2:$N$7,2,FALSE)*I131 -> 5850772 | N131: =VLOOKUP($L131,$L$2:$N$7,3,FALSE)*I131 -> 0 | P131: G | Q131: =IF(P131="G",M131,IF(P131="PT",0,ERR)) -> 5850772 | R131: =IF(P131="PT",M131,IF(P131="G",0,ERR)) -> 0 | S131: G | T131: =IF(S131="G",N131,IF(S131="PT",0,ERR)) -> 0 | U131: =IF(S131="PT",N131,IF(S131="G",0,ERR)) -> 0 | W131: =HLOOKUP($W$9,'ROR-Model'!$Q$10:$U$1274,Y131) -> 5850772 | Y131: 122
E132: =+G132-Adjustments!H132 -> 0 | Y132: 123
B133: FT-2 | C133: Distribution Non-Gas Rev | E133: =+G133-Adjustments!H133 -> 0 | F133: =Revenue!$F$132 -> 0 | G133: =+Adjustments!AW133 -> 0 | I133: =SUM($F$133:$H$133) -> 0 | L133: Utah | M133: =VLOOKUP($L133,$L$2:$N$7,2,FALSE)*I133 -> 0 | N133: =VLOOKUP($L133,$L$2:$N$7,3,FALSE)*I133 -> 0 | P133: G | Q133: =IF(P133="G",M133,IF(P133="PT",0,ERR)) -> 0 | R133: =IF(P133="PT",M133,IF(P133="G",0,ERR)) -> 0 | S133: G | T133: =IF(S133="G",N133,IF(S133="PT",0,ERR)) -> 0 | U133: =IF(S133="PT",N133,IF(S133="G",0,ERR)) -> 0 | W133: =HLOOKUP($W$9,'ROR-Model'!$Q$10:$U$1274,Y133) -> 0 | Y133: 124
E134: =+G134-Adjustments!H134 -> 0 | Y134: 125
C135: Supplier Non-Gas Revenue | E135: =+G135-Adjustments!H135 -> 0 | F135: =Revenue!$F$134 -> 0 | G135: =+Adjustments!AW135 -> 0 | I135: =SUM($F$135:$H$135) -> 0 | L135: Utah | M135: =VLOOKUP($L135,$L$2:$N$7,2,FALSE)*I135 -> 0 | N135: =VLOOKUP($L135,$L$2:$N$7,3,FALSE)*I135 -> 0 | P135: PT | Q135: =IF(P135="G",M135,IF(P135="PT",0,ERR)) -> 0 | R135: =IF(P135="PT",M135,IF(P135="G",0,ERR)) -> 0 | S135: PT | T135: =IF(S135="G",N135,IF(S135="PT",0,ERR)) -> 0 | U135: =IF(S135="PT",N135,IF(S135="G",0,ERR)) -> 0 | W135: =HLOOKUP($W$9,'ROR-Model'!$Q$10:$U$1274,Y135) -> 0 | Y135: 126
E136: =+G136-Adjustments!H136 -> 0 | Y136: 127
C137: Commodity Revenue | E137: =+G137-Adjustments!H137 -> 0 | F137: =Revenue!$F$136 -> 0 | G137: =+Adjustments!AW137 -> 0 | I137: =SUM($F$137:$H$137) -> 0 | L137: Utah | M137: =VLOOKUP($L137,$L$2:$N$7,2,FALSE)*I137 -> 0 | N137: =VLOOKUP($L137,$L$2:$N$7,3,FALSE)*I137 -> 0 | P137: PT | Q137: =IF(P137="G",M137,IF(P137="PT",0,ERR)) -> 0 | R137: =IF(P137="PT",M137,IF(P137="G",0,ERR)) -> 0 | S137: PT | T137: =IF(S137="G",N137,IF(S137="PT",0,ERR)) -> 0 | U137: =IF(S137="PT",N137,IF(S137="G",0,ERR)) -> 0 | W137: =HLOOKUP($W$9,'ROR-Model'!$Q$10:$U$1274,Y137) -> 0 | Y137: 128
C138: Total Revenue | E138: =+G138-Adjustments!H138 -> 0 | F138: =SUM(F133:F137) -> 0 | G138: =SUM(G133:G137) -> 0 | H138: =SUM(H133:H137) -> 0 | I138: =SUM(I133:I137) -> 0 | M138: =SUM(M133:M137) -> 0 | N138: =SUM(N133:N137) -> 0 | Q138: =SUM(Q133:Q137) -> 0 | R138: =SUM(R133:R137) -> 0 | T138: =SUM(T133:T137) -> 0 | U138: =SUM(U133:U137) -> 0 | W138: =HLOOKUP($W$9,'ROR-Model'!$Q$10:$U$1274,Y138) -> 0 | Y138: 129
E139: =+G139-Adjustments!H139 -> 0 | Y139: 130
C140: Total Dth | E140: =+G140-Adjustments!H140 -> 0 | F140: =Revenue!$F$139 -> 0 | G140: =+Adjustments!AW140 -> 0 | I140: =SUM($F$140:$H$140) -> 0 | L140: Utah | M140: =VLOOKUP($L140,$L$2:$N$7,2,FALSE)*I140 -> 0 | N140: =VLOOKUP($L140,$L$2:$N$7,3,FALSE)*I140 -> 0 | P140: G | Q140: =IF(P140="G",M140,IF(P140="PT",0,ERR)) -> 0 | R140: =IF(P140="PT",M140,IF(P140="G",0,ERR)) -> 0 | S140: G | T140: =IF(S140="G",N140,IF(S140="PT",0,ERR)) -> 0 | U140: =IF(S140="PT",N140,IF(S140="G",0,ERR)) -> 0 | W140: =HLOOKUP($W$9,'ROR-Model'!$Q$10:$U$1274,Y140) -> 0 | Y140: =Y139+1 -> 131
E141: =+G141-Adjustments!H141 -> 0 | Y141: 132
B142: MT | C142: Distribution Non-Gas Rev | E142: =+G142-Adjustments!H142 -> 0 | F142: =Revenue!$F$141 -> 41875 | G142: =+Adjustments!AW142 -> -9083.726978 | I142: =SUM($F$142:$H$142) -> 32791.27302 | L142: Utah | M142: =VLOOKUP($L142,$L$2:$N$7,2,FALSE)*I142 -> 32791.27302 | N142: =VLOOKUP($L142,$L$2:$N$7,3,FALSE)*I142 -> 0 | P142: G | Q142: =IF(P142="G",M142,IF(P142="PT",0,ERR)) -> 32791.27302 | R142: =IF(P142="PT",M142,IF(P142="G",0,ERR)) -> 0 | S142: G | T142: =IF(S142="G",N142,IF(S142="PT",0,ERR)) -> 0 | U142: =IF(S142="PT",N142,IF(S142="G",0,ERR)) -> 0 | W142: =HLOOKUP($W$9,'ROR-Model'!$Q$10:$U$1274,Y142) -> 32791.27302 | Y142: 133
E143: =+G143-Adjustments!H143 -> 0 | Y143: 134
C144: Supplier Non-Gas Revenue | E144: =+G144-Adjustments!H144 -> 0 | F144: =Revenue!$F$143 -> 1933 | G144: =+Adjustments!AW144 -> 14.06 | I144: =SUM($F$144:$H$144) -> 1947.06 | L144: Utah | M144: =VLOOKUP($L144,$L$2:$N$7,2,FALSE)*I144 -> 1947.06 | N144: =VLOOKUP($L144,$L$2:$N$7,3,FALSE)*I144 -> 0 | P144: PT | Q144: =IF(P144="G",M144,IF(P144="PT",0,ERR)) -> 0 | R144: =IF(P144="PT",M144,IF(P144="G",0,ERR)) -> 1947.06 | S144: PT | T144: =IF(S144="G",N144,IF(S144="PT",0,ERR)) -> 0 | U144: =IF(S144="PT",N144,IF(S144="G",0,ERR)) -> 0 | W144: =HLOOKUP($W$9,'ROR-Model'!$Q$10:$U$1274,Y144) -> 0 | Y144: 135
E145: =+G145-Adjustments!H145 -> 0 | Y145: 136
C146: Commodity Revenue | E146: =+G146-Adjustments!H146 -> 0 | F146: =Revenue!$F$145 -> 0 | G146: =+Adjustments!AW146 -> 0 | I146: =SUM($F$146:$H$146) -> 0 | L146: Utah | M146: =VLOOKUP($L146,$L$2:$N$7,2,FALSE)*I146 -> 0 | N146: =VLOOKUP($L146,$L$2:$N$7,3,FALSE)*I146 -> 0 | P146: PT | Q146: =IF(P146="G",M146,IF(P146="PT",0,ERR)) -> 0 | R146: =IF(P146="PT",M146,IF(P146="G",0,ERR)) -> 0 | S146: PT | T146: =IF(S146="G",N146,IF(S146="PT",0,ERR)) -> 0 | U146: =IF(S146="PT",N146,IF(S146="G",0,ERR)) -> 0 | W146: =HLOOKUP($W$9,'ROR-Model'!$Q$10:$U$1274,Y146) -> 0 | Y146: 137
C147: Total Revenue | E147: =+G147-Adjustments!H147 -> 0 | F147: =SUM(F142:F146) -> 43808 | G147: =SUM(G142:G146) -> -9069.666978 | H147: =SUM(H142:H146) -> 0 | I147: =SUM(I142:I146) -> 34738.33302 | M147: =SUM(M142:M146) -> 34738.33302 | N147: =SUM(N142:N146) -> 0 | Q147: =SUM(Q142:Q146) -> 32791.27302 | R147: =SUM(R142:R146) -> 1947.06 | T147: =SUM(T142:T146) -> 0 | U147: =SUM(U142:U146) -> 0 | W147: =HLOOKUP($W$9,'ROR-Model'!$Q$10:$U$1274,Y147) -> 32791.27302 | Y147: 138
E148: =+G148-Adjustments!H148 -> 0 | Y148: 139
C149: Total Dth | E149: =+G149-Adjustments!H149 -> 0 | F149: =Revenue!$F$148 -> 32228 | G149: =+Adjustments!AW149 -> 223 | I149: =SUM($F$149:$H$149) -> 32451 | L149: Utah | M149: =VLOOKUP($L149,$L$2:$N$7,2,FALSE)*I149 -> 32451 | N149: =VLOOKUP($L149,$L$2:$N$7,3,FALSE)*I149 -> 0 | P149: G | Q149: =IF(P149="G",M149,IF(P149="PT",0,ERR)) -> 32451 | R149: =IF(P149="PT",M149,IF(P149="G",0,ERR)) -> 0 | S149: G | T149: =IF(S149="G",N149,IF(S149="PT",0,ERR)) -> 0 | U149: =IF(S149="PT",N149,IF(S149="G",0,ERR)) -> 0 | W149: =HLOOKUP($W$9,'ROR-Model'!$Q$10:$U$1274,Y149) -> 32451 | Y149: 140
E150: =+G150-Adjustments!H150 -> 0 | Y150: 141
B151: Blank | C151: Distribution Non-Gas Rev | E151: =+G151-Adjustments!H151 -> -2624472 | F151: =Revenue!$F$150 -> 0 | G151: =+Adjustments!AW115 -> 0 | I151: =SUM($F$151:$H$151) -> 0 | L151: Utah | M151: =VLOOKUP($L151,$L$2:$N$7,2,FALSE)*I151 -> 0 | N151: =VLOOKUP($L151,$L$2:$N$7,3,FALSE)*I151 -> 0 | P151: G | Q151: =IF(P151="G",M151,IF(P151="PT",0,ERR)) -> 0 | R151: =IF(P151="PT",M151,IF(P151="G",0,ERR)) -> 0 | S151: G | T151: =IF(S151="G",N151,IF(S151="PT",0,ERR)) -> 0 | U151: =IF(S151="PT",N151,IF(S151="G",0,ERR)) -> 0 | W151: =HLOOKUP($W$9,'ROR-Model'!$Q$10:$U$1274,Y151) -> 0 | Y151: 142
E152: =+G152-Adjustments!H152 -> 0 | Y152: 143
C153: Supplier Non-Gas Revenue | E153: =+G153-Adjustments!H153 -> 0 | F153: =Revenue!$F$152 -> 0 | G153: =+Adjustments!AW153 -> 0 | I153: =SUM($F$153:$H$153) -> 0 | L153: Utah | M153: =VLOOKUP($L153,$L$2:$N$7,2,FALSE)*I153 -> 0 | N153: =VLOOKUP($L153,$L$2:$N$7,3,FALSE)*I153 -> 0 | P153: PT | Q153: =IF(P153="G",M153,IF(P153="PT",0,ERR)) -> 0 | R153: =IF(P153="PT",M153,IF(P153="G",0,ERR)) -> 0 | S153: PT | T153: =IF(S153="G",N153,IF(S153="PT",0,ERR)) -> 0 | U153: =IF(S153="PT",N153,IF(S153="G",0,ERR)) -> 0 | W153: =HLOOKUP($W$9,'ROR-Model'!$Q$10:$U$1274,Y153) -> 0 | Y153: 144
E154: =+G154-Adjustments!H154 -> 0 | Y154: 145
C155: Commodity Revenue | E155: =+G155-Adjustments!H155 -> 0 | F155: =Revenue!$F$154 -> 0 | G155: =+Adjustments!AW155 -> 0 | I155: =SUM($F$155:$H$155) -> 0 | L155: Utah | M155: =VLOOKUP($L155,$L$2:$N$7,2,FALSE)*I155 -> 0 | N155: =VLOOKUP($L155,$L$2:$N$7,3,FALSE)*I155 -> 0 | P155: PT | Q155: =IF(P155="G",M155,IF(P155="PT",0,ERR)) -> 0 | R155: =IF(P155="PT",M155,IF(P155="G",0,ERR)) -> 0 | S155: PT | T155: =IF(S155="G",N155,IF(S155="PT",0,ERR)) -> 0 | U155: =IF(S155="PT",N155,IF(S155="G",0,ERR)) -> 0 | W155: =HLOOKUP($W$9,'ROR-Model'!$Q$10:$U$1274,Y155) -> 0 | Y155: 146
C156: Total Revenue | E156: =+G156-Adjustments!H156 -> -2624472 | F156: =SUM(F151:F155) -> 0 | G156: =SUM(G151:G155) -> 0 | H156: =SUM(H151:H155) -> 0 | I156: =SUM(I151:I155) -> 0 | M156: =SUM(M151:M155) -> 0 | N156: =SUM(N151:N155) -> 0 | Q156: =SUM(Q151:Q155) -> 0 | R156: =SUM(R151:R155) -> 0 | T156: =SUM(T151:T155) -> 0 | U156: =SUM(U151:U155) -> 0 | W156: =HLOOKUP($W$9,'ROR-Model'!$Q$10:$U$1274,Y156) -> 0 | Y156: 147
E157: =+G157-Adjustments!H157 -> 0 | Y157: 148
C158: Total Dth | E158: =+G158-Adjustments!H158 -> -32698029 | F158: =Revenue!$F$157 -> 0 | G158: =+Adjustments!AW122 -> 0 | I158: =SUM($F$158:$H$158) -> 0 | L158: Utah | M158: =VLOOKUP($L158,$L$2:$N$7,2,FALSE)*I158 -> 0 | N158: =VLOOKUP($L158,$L$2:$N$7,3,FALSE)*I158 -> 0 | P158: G | Q158: =IF(P158="G",M158,IF(P158="PT",0,ERR)) -> 0 | R158: =IF(P158="PT",M158,IF(P158="G",0,ERR)) -> 0 | S158: G | T158: =IF(S158="G",N158,IF(S158="PT",0,ERR)) -> 0 | U158: =IF(S158="PT",N158,IF(S158="G",0,ERR)) -> 0 | W158: =HLOOKUP($W$9,'ROR-Model'!$Q$10:$U$1274,Y158) -> 0 | Y158: 149
E159: =+G159-Adjustments!H159 -> 0 | Y159: 150
B160: IT | C160: Distribution Non-Gas Rev | E160: =+G160-Adjustments!H160 -> 0 | F160: =Revenue!$F$159 -> 14819482 | G160: =+Adjustments!AW160 -> 4609134.302 | I160: =SUM($F$160:$H$160) -> 19428616.3 | L160: Utah | M160: =VLOOKUP($L160,$L$2:$N$7,2,FALSE)*I160 -> 19428616.3 | N160: =VLOOKUP($L160,$L$2:$N$7,3,FALSE)*I160 -> 0 | P160: G | Q160: =IF(P160="G",M160,IF(P160="PT",0,ERR)) -> 19428616.3 | R160: =IF(P160="PT",M160,IF(P160="G",0,ERR)) -> 0 | S160: G | T160: =IF(S160="G",N160,IF(S160="PT",0,ERR)) -> 0 | U160: =IF(S160="PT",N160,IF(S160="G",0,ERR)) -> 0 | W160: =HLOOKUP($W$9,'ROR-Model'!$Q$10:$U$1274,Y160) -> 19428616.3 | Y160: 151
E161: =+G161-Adjustments!H161 -> 0 | Y161: 152
C162: Supplier Non-Gas Revenue | E162: =+G162-Adjustments!H162 -> 0 | F162: =Revenue!$F$161 -> 1656 | G162: =+Adjustments!AW162 -> -1656 | I162: =SUM($F$162:$H$162) -> 0 | L162: Utah | M162: =VLOOKUP($L162,$L$2:$N$7,2,FALSE)*I162 -> 0 | N162: =VLOOKUP($L162,$L$2:$N$7,3,FALSE)*I162 -> 0 | P162: PT | Q162: =IF(P162="G",M162,IF(P162="PT",0,ERR)) -> 0 | R162: =IF(P162="PT",M162,IF(P162="G",0,ERR)) -> 0 | S162: PT | T162: =IF(S162="G",N162,IF(S162="PT",0,ERR)) -> 0 | U162: =IF(S162="PT",N162,IF(S162="G",0,ERR)) -> 0 | W162: =HLOOKUP($W$9,'ROR-Model'!$Q$10:$U$1274,Y162) -> 0 | Y162: 153
E163: =+G163-Adjustments!H163 -> 0 | Y163: 154
C164: Commodity Revenue | E164: =+G164-Adjustments!H164 -> 0 | F164: =Revenue!$F$163 -> 46565 | G164: =+Adjustments!AW164 -> -46565 | I164: =SUM($F$164:$H$164) -> 0 | L164: Utah | M164: =VLOOKUP($L164,$L$2:$N$7,2,FALSE)*I164 -> 0 | N164: =VLOOKUP($L164,$L$2:$N$7,3,FALSE)*I164 -> 0 | P164: PT | Q164: =IF(P164="G",M164,IF(P164="PT",0,ERR)) -> 0 | R164: =IF(P164="PT",M164,IF(P164="G",0,ERR)) -> 0 | S164: PT | T164: =IF(S164="G",N164,IF(S164="PT",0,ERR)) -> 0 | U164: =IF(S164="PT",N164,IF(S164="G",0,ERR)) -> 0 | W164: =HLOOKUP($W$9,'ROR-Model'!$Q$10:$U$1274,Y164) -> 0 | Y164: 155
C165: Total Revenue | E165: =+G165-Adjustments!H165 -> 0 | F165: =SUM(F160:F164) -> 14867703 | G165: =SUM(G160:G164) -> 4560913.302 | H165: =SUM(H160:H164) -> 0 | I165: =SUM(I160:I164) -> 19428616.3 | M165: =SUM(M160:M164) -> 19428616.3 | N165: =SUM(N160:N164) -> 0 | Q165: =SUM(Q160:Q164) -> 19428616.3 | R165: =SUM(R160:R164) -> 0 | T165: =SUM(T160:T164) -> 0 | U165: =SUM(U160:U164) -> 0 | W165: =HLOOKUP($W$9,'ROR-Model'!$Q$10:$U$1274,Y165) -> 19428616.3 | Y165: 156
E166: =+G166-Adjustments!H166 -> 0 | Y166: 157
C167: Total Dth | E167: =+G167-Adjustments!H167 -> 0 | F167: =Revenue!$F$166 -> 38123742 | G167: =+Adjustments!AW167 -> 3003584 | I167: =SUM($F$167:$H$167) -> 41127326 | L167: Utah | M167: =VLOOKUP($L167,$L$2:$N$7,2,FALSE)*I167 -> 41127326 | N167: =VLOOKUP($L167,$L$2:$N$7,3,FALSE)*I167 -> 0 | P167: G | Q167: =IF(P167="G",M167,IF(P167="PT",0,ERR)) -> 41127326 | R167: =IF(P167="PT",M167,IF(P167="G",0,ERR)) -> 0 | S167: G | T167: =IF(S167="G",N167,IF(S167="PT",0,ERR)) -> 0 | U167: =IF(S167="PT",N167,IF(S167="G",0,ERR)) -> 0 | W167: =HLOOKUP($W$9,'ROR-Model'!$Q$10:$U$1274,Y167) -> 41127326 | Y167: 158
E168: =+G168-Adjustments!H168 -> 0 | Y168: 159
B169: IT-S | C169: Distribution Non-Gas Rev | E169: =+G169-Adjustments!H169 -> 0 | F169: =Revenue!$F$168 -> 0 | G169: =+Adjustments!AW169 -> 0 | I169: =SUM($F$169:$H$169) -> 0 | L169: Utah | M169: =VLOOKUP($L169,$L$2:$N$7,2,FALSE)*I169 -> 0 | N169: =VLOOKUP($L169,$L$2:$N$7,3,FALSE)*I169 -> 0 | P169: G | Q169: =IF(P169="G",M169,IF(P169="PT",0,ERR)) -> 0 | R169: =IF(P169="PT",M169,IF(P169="G",0,ERR)) -> 0 | S169: G | T169: =IF(S169="G",N169,IF(S169="PT",0,ERR)) -> 0 | U169: =IF(S169="PT",N169,IF(S169="G",0,ERR)) -> 0 | W169: =HLOOKUP($W$9,'ROR-Model'!$Q$10:$U$1274,Y169) -> 0 | Y169: 160
E170: =+G170-Adjustments!H170 -> 0 | Y170: 161
C171: Supplier Non-Gas Revenue | E171: =+G171-Adjustments!H171 -> 0 | F171: =Revenue!$F$170 -> 0 | G171: =+Adjustments!AW171 -> 0 | I171: =SUM($F$171:$H$171) -> 0 | L171: Utah | M171: =VLOOKUP($L171,$L$2:$N$7,2,FALSE)*I171 -> 0 | N171: =VLOOKUP($L171,$L$2:$N$7,3,FALSE)*I171 -> 0 | P171: PT | Q171: =IF(P171="G",M171,IF(P171="PT",0,ERR)) -> 0 | R171: =IF(P171="PT",M171,IF(P171="G",0,ERR)) -> 0 | S171: PT | T171: =IF(S171="G",N171,IF(S171="PT",0,ERR)) -> 0 | U171: =IF(S171="PT",N171,IF(S171="G",0,ERR)) -> 0 | W171: =HLOOKUP($W$9,'ROR-Model'!$Q$10:$U$1274,Y171) -> 0 | Y171: 162
E172: =+G172-Adjustments!H172 -> 0 | Y172: 163
C173: Commodity Revenue | E173: =+G173-Adjustments!H173 -> 0 | F173: =Revenue!$F$172 -> 0 | G173: =+Adjustments!AW173 -> 0 | I173: =SUM($F$173:$H$173) -> 0 | L173: Utah | M173: =VLOOKUP($L173,$L$2:$N$7,2,FALSE)*I173 -> 0 | N173: =VLOOKUP($L173,$L$2:$N$7,3,FALSE)*I173 -> 0 | P173: PT | Q173: =IF(P173="G",M173,IF(P173="PT",0,ERR)) -> 0 | R173: =IF(P173="PT",M173,IF(P173="G",0,ERR)) -> 0 | S173: PT | T173: =IF(S173="G",N173,IF(S173="PT",0,ERR)) -> 0 | U173: =IF(S173="PT",N173,IF(S173="G",0,ERR)) -> 0 | W173: =HLOOKUP($W$9,'ROR-Model'!$Q$10:$U$1274,Y173) -> 0 | Y173: 164
C174: Total Revenue | E174: =+G174-Adjustments!H174 -> 0 | F174: =SUM(F169:F173) -> 0 | G174: =SUM(G169:G173) -> 0 | H174: =SUM(H169:H173) -> 0 | I174: =SUM(I169:I173) -> 0 | M174: =SUM(M169:M173) -> 0 | N174: =SUM(N169:N173) -> 0 | Q174: =SUM(Q169:Q173) -> 0 | R174: =SUM(R169:R173) -> 0 | T174: =SUM(T169:T173) -> 0 | U174: =SUM(U169:U173) -> 0 | W174: =HLOOKUP($W$9,'ROR-Model'!$Q$10:$U$1274,Y174) -> 0 | Y174: 165
E175: =+G175-Adjustments!H175 -> 0 | Y175: 166
C176: Total Dth | E176: =+G176-Adjustments!H176 -> 0 | F176: =Revenue!$F$175 -> 0 | G176: =+Adjustments!AW176 -> 0 | I176: =SUM($F$176:$H$176) -> 0 | L176: Utah | M176: =VLOOKUP($L176,$L$2:$N$7,2,FALSE)*I176 -> 0 | N176: =VLOOKUP($L176,$L$2:$N$7,3,FALSE)*I176 -> 0 | P176: G | Q176: =IF(P176="G",M176,IF(P176="PT",0,ERR)) -> 0 | R176: =IF(P176="PT",M176,IF(P176="G",0,ERR)) -> 0 | S176: G | T176: =IF(S176="G",N176,IF(S176="PT",0,ERR)) -> 0 | U176: =IF(S176="PT",N176,IF(S176="G",0,ERR)) -> 0 | W176: =HLOOKUP($W$9,'ROR-Model'!$Q$10:$U$1274,Y176) -> 0 | Y176: 167
E177: =+G177-Adjustments!H177 -> 0 | Y177: 168
B178: FT-2C | C178: Distribution Non-Gas Rev | E178: =+G178-Adjustments!H178 -> 0 | F178: =Revenue!$F$177 -> 0 | G178: =+Adjustments!AW178 -> 0 | I178: =SUM($F$178:$H$178) -> 0 | L178: Utah | M178: =VLOOKUP($L178,$L$2:$N$7,2,FALSE)*I178 -> 0 | N178: =VLOOKUP($L178,$L$2:$N$7,3,FALSE)*I178 -> 0 | P178: G | Q178: =IF(P178="G",M178,IF(P178="PT",0,ERR)) -> 0 | R178: =IF(P178="PT",M178,IF(P178="G",0,ERR)) -> 0 | S178: G | T178: =IF(S178="G",N178,IF(S178="PT",0,ERR)) -> 0 | U178: =IF(S178="PT",N178,IF(S178="G",0,ERR)) -> 0 | W178: =HLOOKUP($W$9,'ROR-Model'!$Q$10:$U$1274,Y178) -> 0 | Y178: 169
E179: =+G179-Adjustments!H179 -> 0 | Y179: 170
C180: Supplier Non-Gas Revenue | E180: =+G180-Adjustments!H180 -> 0 | F180: =Revenue!$F$179 -> 0 | G180: =+Adjustments!AW180 -> 0 | I180: =SUM($F$180:$H$180) -> 0 | L180: Utah | M180: =VLOOKUP($L180,$L$2:$N$7,2,FALSE)*I180 -> 0 | N180: =VLOOKUP($L180,$L$2:$N$7,3,FALSE)*I180 -> 0 | P180: PT | Q180: =IF(P180="G",M180,IF(P180="PT",0,ERR)) -> 0 | R180: =IF(P180="PT",M180,IF(P180="G",0,ERR)) -> 0 | S180: PT | T180: =IF(S180="G",N180,IF(S180="PT",0,ERR)) -> 0 | U180: =IF(S180="PT",N180,IF(S180="G",0,ERR)) -> 0 | W180: =HLOOKUP($W$9,'ROR-Model'!$Q$10:$U$1274,Y180) -> 0 | Y180: 171
E181: =+G181-Adjustments!H181 -> 0 | Y181: 172
C182: Commodity Revenue | E182: =+G182-Adjustments!H182 -> 0 | F182: =Revenue!$F$181 -> 0 | G182: =+Adjustments!AW182 -> 0 | I182: =SUM($F$182:$H$182) -> 0 | L182: Utah | M182: =VLOOKUP($L182,$L$2:$N$7,2,FALSE)*I182 -> 0 | N182: =VLOOKUP($L182,$L$2:$N$7,3,FALSE)*I182 -> 0 | P182: PT | Q182: =IF(P182="G",M182,IF(P182="PT",0,ERR)) -> 0 | R182: =IF(P182="PT",M182,IF(P182="G",0,ERR)) -> 0 | S182: PT | T182: =IF(S182="G",N182,IF(S182="PT",0,ERR)) -> 0 | U182: =IF(S182="PT",N182,IF(S182="G",0,ERR)) -> 0 | W182: =HLOOKUP($W$9,'ROR-Model'!$Q$10:$U$1274,Y182) -> 0 | Y182: 173
C183: Total Revenue | E183: =+G183-Adjustments!H183 -> 0 | F183: =SUM(F178:F182) -> 0 | G183: =SUM(G178:G182) -> 0 | H183: =SUM(H178:H182) -> 0 | I183: =SUM(I178:I182) -> 0 | M183: =SUM(M178:M182) -> 0 | N183: =SUM(N178:N182) -> 0 | Q183: =SUM(Q178:Q182) -> 0 | R183: =SUM(R178:R182) -> 0 | T183: =SUM(T178:T182) -> 0 | U183: =SUM(U178:U182) -> 0 | W183: =HLOOKUP($W$9,'ROR-Model'!$Q$10:$U$1274,Y183) -> 0 | Y183: 174
E184: =+G184-Adjustments!H184 -> 0 | Y184: 175
C185: Total Dth | E185: =+G185-Adjustments!H185 -> 0 | F185: =Revenue!$F$184 -> 0 | G185: =+Adjustments!AW185 -> 0 | I185: =SUM($F$185:$H$185) -> 0 | L185: Utah | M185: =VLOOKUP($L185,$L$2:$N$7,2,FALSE)*I185 -> 0 | N185: =VLOOKUP($L185,$L$2:$N$7,3,FALSE)*I185 -> 0 | P185: G | Q185: =IF(P185="G",M185,IF(P185="PT",0,ERR)) -> 0 | R185: =IF(P185="PT",M185,IF(P185="G",0,ERR)) -> 0 | S185: G | T185: =IF(S185="G",N185,IF(S185="PT",0,ERR)) -> 0 | U185: =IF(S185="PT",N185,IF(S185="G",0,ERR)) -> 0 | W185: =HLOOKUP($W$9,'ROR-Model'!$Q$10:$U$1274,Y185) -> 0 | Y185: 176
E186: =+G186-Adjustments!H186 -> 0 | Y186: 177
B187: Blank | C187: Distribution Non-Gas Rev | E187: =+G187-Adjustments!H187 -> 0 | F187: =Revenue!$F$186 -> 0 | G187: =+Adjustments!AW187 -> 0 | I187: =SUM($F$187:$H$187) -> 0 | L187: Utah | M187: =VLOOKUP($L187,$L$2:$N$7,2,FALSE)*I187 -> 0 | N187: =VLOOKUP($L187,$L$2:$N$7,3,FALSE)*I187 -> 0 | P187: G | Q187: =IF(P187="G",M187,IF(P187="PT",0,ERR)) -> 0 | R187: =IF(P187="PT",M187,IF(P187="G",0,ERR)) -> 0 | S187: G | T187: =IF(S187="G",N187,IF(S187="PT",0,ERR)) -> 0 | U187: =IF(S187="PT",N187,IF(S187="G",0,ERR)) -> 0 | W187: =HLOOKUP($W$9,'ROR-Model'!$Q$10:$U$1274,Y187) -> 0 | Y187: 178
E188: =+G188-Adjustments!H188 -> 0 | Y188: 179
C189: Supplier Non-Gas Revenue | E189: =+G189-Adjustments!H189 -> 0 | F189: =Revenue!$F$188 -> 0 | G189: =+Adjustments!AW189 -> 0 | I189: =SUM($F$189:$H$189) -> 0 | L189: Utah | M189: =VLOOKUP($L189,$L$2:$N$7,2,FALSE)*I189 -> 0 | N189: =VLOOKUP($L189,$L$2:$N$7,3,FALSE)*I189 -> 0 | P189: PT | Q189: =IF(P189="G",M189,IF(P189="PT",0,ERR)) -> 0 | R189: =IF(P189="PT",M189,IF(P189="G",0,ERR)) -> 0 | S189: PT | T189: =IF(S189="G",N189,IF(S189="PT",0,ERR)) -> 0 | U189: =IF(S189="PT",N189,IF(S189="G",0,ERR)) -> 0 | W189: =HLOOKUP($W$9,'ROR-Model'!$Q$10:$U$1274,Y189) -> 0 | Y189: 180
E190: =+G190-Adjustments!H190 -> 0 | Y190: 181
C191: Commodity Revenue | E191: =+G191-Adjustments!H191 -> 0 | F191: =Revenue!$F$190 -> 0 | G191: =+Adjustments!AW191 -> 0 | I191: =SUM($F$191:$H$191) -> 0 | L191: Utah | M191: =VLOOKUP($L191,$L$2:$N$7,2,FALSE)*I191 -> 0 | N191: =VLOOKUP($L191,$L$2:$N$7,3,FALSE)*I191 -> 0 | P191: PT | Q191: =IF(P191="G",M191,IF(P191="PT",0,ERR)) -> 0 | R191: =IF(P191="PT",M191,IF(P191="G",0,ERR)) -> 0 | S191: PT | T191: =IF(S191="G",N191,IF(S191="PT",0,ERR)) -> 0 | U191: =IF(S191="PT",N191,IF(S191="G",0,ERR)) -> 0 | W191: =HLOOKUP($W$9,'ROR-Model'!$Q$10:$U$1274,Y191) -> 0 | Y191: 182
C192: Total Revenue | E192: =+G192-Adjustments!H192 -> 0 | F192: =SUM(F187:F191) -> 0 | G192: =SUM(G187:G191) -> 0 | H192: =SUM(H187:H191) -> 0 | I192: =SUM(I187:I191) -> 0 | M192: =SUM(M187:M191) -> 0 | N192: =SUM(N187:N191) -> 0 | Q192: =SUM(Q187:Q191) -> 0 | R192: =SUM(R187:R191) -> 0 | T192: =SUM(T187:T191) -> 0 | U192: =SUM(U187:U191) -> 0 | W192: =HLOOKUP($W$9,'ROR-Model'!$Q$10:$U$1274,Y192) -> 0 | Y192: 183
E193: =+G193-Adjustments!H193 -> 0 | Y193: 184
C194: Total Dth | E194: =+G194-Adjustments!H194 -> 0 | F194: =Revenue!$F$193 -> 0 | G194: =+Adjustments!AW194 -> 0 | I194: =SUM($F$194:$H$194) -> 0 | L194: Utah | M194: =VLOOKUP($L194,$L$2:$N$7,2,FALSE)*I194 -> 0 | N194: =VLOOKUP($L194,$L$2:$N$7,3,FALSE)*I194 -> 0 | P194: G | Q194: =IF(P194="G",M194,IF(P194="PT",0,ERR)) -> 0 | R194: =IF(P194="PT",M194,IF(P194="G",0,ERR)) -> 0 | S194: G | T194: =IF(S194="G",N194,IF(S194="PT",0,ERR)) -> 0 | U194: =IF(S194="PT",N194,IF(S194="G",0,ERR)) -> 0 | W194: =HLOOKUP($W$9,'ROR-Model'!$Q$10:$U$1274,Y194) -> 0 | Y194: 185
E195: =+G195-Adjustments!H195 -> 0 | Y195: 186
B196: CET | C196: Distribution Non-Gas Revenue | E196: =+G196-Adjustments!H196 -> 0 | F196: =Revenue!$F$195 -> 9415507 | G196: =+Adjustments!AW196 -> -9415507 | I196: =SUM($F$196:$H$196) -> 0 | L196: Utah | M196: =VLOOKUP($L196,$L$2:$N$7,2,FALSE)*I196 -> 0 | N196: =VLOOKUP($L196,$L$2:$N$7,3,FALSE)*I196 -> 0 | P196: G | Q196: =IF(P196="G",M196,IF(P196="PT",0,ERR)) -> 0 | R196: =IF(P196="PT",M196,IF(P196="G",0,ERR)) -> 0 | S196: G | T196: =IF(S196="G",N196,IF(S196="PT",0,ERR)) -> 0 | U196: =IF(S196="PT",N196,IF(S196="G",0,ERR)) -> 0 | W196: =HLOOKUP($W$9,'ROR-Model'!$Q$10:$U$1274,Y196) -> 0 | Y196: 187
B197: DSM | C197: Distribution Non-Gas Revenue | E197: =+G197-Adjustments!H197 -> 0 | F197: =Revenue!$F$196 -> 23365638 | G197: =+Adjustments!AW197 -> -23365638 | I197: =SUM($F$197:$H$197) -> 0 | L197: Utah | M197: =VLOOKUP($L197,$L$2:$N$7,2,FALSE)*I197 -> 0 | N197: =VLOOKUP($L197,$L$2:$N$7,3,FALSE)*I197 -> 0 | P197: G | Q197: =IF(P197="G",M197,IF(P197="PT",0,ERR)) -> 0 | R197: =IF(P197="PT",M197,IF(P197="G",0,ERR)) -> 0 | S197: G | T197: =IF(S197="G",N197,IF(S197="PT",0,ERR)) -> 0 | U197: =IF(S197="PT",N197,IF(S197="G",0,ERR)) -> 0 | W197: =HLOOKUP($W$9,'ROR-Model'!$Q$10:$U$1274,Y197) -> 0 | Y197: 188
B198: Utah Totals | E198: =+G198-Adjustments!H198 -> 0 | Y198: 189
E199: =+G199-Adjustments!H199 -> 0 | Y199: 190
C200: Distribution Non-Gas Rev | E200: =+G200-Adjustments!H200 -> 0 | F200: =+F16+F34+F43+F52+F61+F70+F79+F88+F97+F106+F115+F124+F133+F142+F151+F160+F169+F178+F187+F25+F196+F197 -> 341212924.3 | G200: =+G16+G34+G43+G52+G61+G70+G79+G88+G97+G106+G115+G124+G133+G142+G151+G160+G169+G178+G187+G25+G196+G197 -> -2284951.245 | H200: =+H16+H34+H43+H52+H61+H70+H79+H88+H97+H106+H115+H124+H133+H142+H151+H160+H169+H178+H187+H25+H196+H197 -> 0 | I200: =+I16+I34+I43+I52+I61+I70+I79+I88+I97+I106+I115+I124+I133+I142+I151+I160+I169+I178+I187+I25+I196+I197 -> 338927973.1 | M200: =+M16+M34+M43+M52+M61+M70+M79+M88+M97+M106+M115+M124+M133+M142+M151+M160+M169+M178+M187+M25+M196+M197 -> 338927973.1 | N200: =+N16+N34+N43+N52+N61+N70+N79+N88+N97+N106+N115+N124+N133+N142+N151+N160+N169+N178+N187+N25+N196+N197 -> 0 | Q200: =+Q16+Q34+Q43+Q52+Q61+Q70+Q79+Q88+Q97+Q106+Q115+Q124+Q133+Q142+Q151+Q160+Q169+Q178+Q187+Q25+Q196+Q197 -> 338927973.1 | R200: =+R16+R34+R43+R52+R61+R70+R79+R88+R97+R106+R115+R124+R133+R142+R151+R160+R169+R178+R187+R25+R196 -> 0 | T200: =+T16+T34+T43+T52+T61+T70+T79+T88+T97+T106+T115+T124+T133+T142+T151+T160+T169+T178+T187+T25+T196 -> 0 | U200: =+U16+U34+U43+U52+U61+U70+U79+U88+U97+U106+U115+U124+U133+U142+U151+U160+U169+U178+U187+U25+U196 -> 0 | W200: =HLOOKUP($W$9,'ROR-Model'!$Q$10:$U$1274,Y200) -> 338927973.1 | Y200: 191
... 1074 more rows

Sheet Summaries
A1: =+'Control Panel'!$B$1 -> Questar Gas Company
A2: =+'Control Panel'!$B$2 -> Utah - DEC 2017 Adjusted Avg Results
A3: =+'Control Panel'!$B$3 -> 12 Months Ended : Dec-2017
G4: =+Adjustments!F6 -> 1 | H4: =+Adjustments!G6 -> 2 | I4: =+Adjustments!H6 -> 3 | J4: =+Adjustments!I6 -> 4 | K4: =+Adjustments!J6 -> 5 | L4: =+Adjustments!K6 -> 6 | M4: =+Adjustments!L6 -> 7 | N4: =+Adjustments!M6 -> 8 | O4: =+Adjustments!N6 -> 9 | P4: =+Adjustments!O6 -> 10 | Q4: =+Adjustments!P6 -> 11 | R4: =+Adjustments!Q6 -> 12 | S4: =+Adjustments!R6 -> 13 | T4: =+Adjustments!#REF! ->  | U4: =+Adjustments!#REF! ->  | V4: =+Adjustments!S6 -> 14 | W4: =+Adjustments!T6 -> 15 | X4: =+Adjustments!U6 -> 16 | Y4: =+Adjustments!V6 -> 17
G5: =+Adjustments!F8 -> Y | H5: =+Adjustments!G8 -> Y | I5: =+Adjustments!H8 -> Y | J5: =+Adjustments!I8 -> Y | K5: =+Adjustments!J8 -> Y | L5: =+Adjustments!K8 -> Y | M5: =+Adjustments!L8 -> Y | N5: =+Adjustments!M8 -> Y | O5: =+Adjustments!N8 -> Y | P5: =+Adjustments!O8 -> Y | Q5: =+Adjustments!P8 -> Y | R5: =+Adjustments!Q8 -> Y | S5: =+Adjustments!R8 -> Y | T5: =+Adjustments!#REF! ->  | U5: =+Adjustments!#REF! ->  | V5: =+Adjustments!S8 -> Y | W5: =+Adjustments!T8 -> Y | X5: =+Adjustments!U8 -> Y | Y5: =+Adjustments!V8 -> Y
G6: =Adjustments!F9 -> AVG RB DEC 2017 | H6: =Adjustments!G9 -> QGC Expense Dec 2017 | I6: =Adjustments!H9 -> AVG Projected Rev 2017 | J6: =Adjustments!I9 -> Underground Storage | K6: =Adjustments!J9 -> Wexpro | L6: =Adjustments!K9 -> Energy Efficiency 2017 | M6: =Adjustments!L9 -> Utah Bad Debt 2017 | N6: =Adjustments!M9 -> QGC Incentives 2017 | O6: =Adjustments!N9 -> Sporting Events DEC 2017 | P6: =Adjustments!O9 -> Advertising DEC 2017 | Q6: =Adjustments!P9 -> QGC Don & Membership DEC 2017 | R6: =Adjustments!Q9 -> Reserve Accrual Dec 2017 | S6: =Adjustments!R9 -> Pipeline Integrity 2017 | T6: =Adjustments!#REF! ->  | U6: =Adjustments!#REF! ->  | V6: =Adjustments!S9 -> Optional Adjustment 1 | W6: =Adjustments!T9 -> Optional Adjustment 2 | X6: =Adjustments!U9 -> Optional Adjustment 3 | Y6: =Adjustments!V9 -> Optional Adjustment 4 | Z6: =Adjustments!AU9 -> TOTAL QGC ADJUSTMENTS | AA6: =Adjustments!AW9 -> RESULTING TOTAL | AB6: =Adjustments!AX9 -> CHECKS MUST BE (0)
A8: 1 | B8: NET INCOME SUMMARY
A10: =+A8+1 -> 2 | B10: Utility Operating Revenue
A11: =+A10+1 -> 3 | D11: System Distribution Non-Gas Revenue | G11: =Adjustments!F363+Adjustments!F365 -> 0 | H11: =Adjustments!G363+Adjustments!G365 -> 0 | I11: =Adjustments!H363+Adjustments!H365 -> -14990887.63 | J11: =Adjustments!I363+Adjustments!I365 -> 0 | K11: =Adjustments!J363+Adjustments!J365 -> 0 | L11: =Adjustments!K363+Adjustments!K365 -> 0 | M11: =Adjustments!L363+Adjustments!L365 -> 0 | N11: =Adjustments!M363+Adjustments!M365 -> 0 | O11: =Adjustments!N363+Adjustments!N365 -> 0 | P11: =Adjustments!O363+Adjustments!O365 -> 0 | Q11: =Adjustments!P363+Adjustments!P365 -> 0 | R11: =Adjustments!Q363+Adjustments!Q365 -> 0 | S11: =Adjustments!R363+Adjustments!R365 -> 0 | T11: =Adjustments!#REF!+Adjustments!#REF! ->  | U11: =Adjustments!#REF!+Adjustments!#REF! ->  | V11: =Adjustments!S363+Adjustments!S365 -> 0 | W11: =Adjustments!T363+Adjustments!T365 -> 0 | X11: =Adjustments!U363+Adjustments!U365 -> 0 | Y11: =Adjustments!V363+Adjustments!V365 -> 0 | Z11: =Adjustments!AU363+Adjustments!AU365 -> -14990887.63 | AA11: =SUM(G11:Y11) ->  | AB11: =+Z11-AA11 -> 
A12: 4 | D12: System Supplier Non-Gas Revenue | G12: =Adjustments!F364 -> 0 | H12: =Adjustments!G364 -> 0 | I12: =Adjustments!H364 -> 26769867.36 | J12: =Adjustments!I364 -> 0 | K12: =Adjustments!J364 -> 0 | L12: =Adjustments!K364 -> 0 | M12: =Adjustments!L364 -> 0 | N12: =Adjustments!M364 -> 0 | O12: =Adjustments!N364 -> 0 | P12: =Adjustments!O364 -> 0 | Q12: =Adjustments!P364 -> 0 | R12: =Adjustments!Q364 -> 0 | S12: =Adjustments!R364 -> 0 | T12: =Adjustments!#REF! ->  | U12: =Adjustments!#REF! ->  | V12: =Adjustments!S364 -> 0 | W12: =Adjustments!T364 -> 0 | X12: =Adjustments!U364 -> 0 | Y12: =Adjustments!V364 -> 0 | Z12: =Adjustments!AU364 -> 26769867.36 | AA12: =SUM(G12:Y12) ->  | AB12: =+Z12-AA12 -> 
A13: 5 | D13: System Commodity Revenue | G13: =Adjustments!F366 -> 0 | H13: =Adjustments!G366 -> 0 | I13: =Adjustments!H366 -> -8339684.045 | J13: =Adjustments!I366 -> 0 | K13: =Adjustments!J366 -> 0 | L13: =Adjustments!K366 -> 0 | M13: =Adjustments!L366 -> 0 | N13: =Adjustments!M366 -> 0 | O13: =Adjustments!N366 -> 0 | P13: =Adjustments!O366 -> 0 | Q13: =Adjustments!P366 -> 0 | R13: =Adjustments!Q366 -> 0 | S13: =Adjustments!R366 -> 0 | T13: =Adjustments!#REF! ->  | U13: =Adjustments!#REF! ->  | V13: =Adjustments!S366 -> 0 | W13: =Adjustments!T366 -> 0 | X13: =Adjustments!U366 -> 0 | Y13: =Adjustments!V366 -> 0 | Z13: =Adjustments!AU366 -> -8339684.045
A14: 6 | D14: Pass-Through Related Other Revenue | G14: =Adjustments!F501+Adjustments!F505 -> 0 | H14: =Adjustments!G501+Adjustments!G505 -> 0 | I14: =Adjustments!H501+Adjustments!H505 -> 0 | J14: =Adjustments!I501+Adjustments!I505 -> 0 | K14: =Adjustments!J501+Adjustments!J505 -> 0 | L14: =Adjustments!K501+Adjustments!K505 -> 0 | M14: =Adjustments!L501+Adjustments!L505 -> 0 | N14: =Adjustments!M501+Adjustments!M505 -> 0 | O14: =Adjustments!N501+Adjustments!N505 -> 0 | P14: =Adjustments!O501+Adjustments!O505 -> 0 | Q14: =Adjustments!P501+Adjustments!P505 -> 0 | R14: =Adjustments!Q501+Adjustments!Q505 -> 0 | S14: =Adjustments!R501+Adjustments!R505 -> 0 | T14: =Adjustments!#REF!+Adjustments!#REF! ->  | U14: =Adjustments!#REF!+Adjustments!#REF! ->  | V14: =Adjustments!S501+Adjustments!S505 -> 0 | W14: =Adjustments!T501+Adjustments!T505 -> 0 | X14: =Adjustments!U501+Adjustments!U505 -> 0 | Y14: =Adjustments!V501+Adjustments!V505 -> 0 | Z14: =Adjustments!AU501+Adjustments!AU505 -> 0
A15: 7 | D15: General Related Other Revenue | G15: =Adjustments!F502+Adjustments!F506 -> 0 | H15: =Adjustments!G502+Adjustments!G506 -> 0 | I15: =Adjustments!H502+Adjustments!H506 -> 0 | J15: =Adjustments!I502+Adjustments!I506 -> 0 | K15: =Adjustments!J502+Adjustments!J506 -> 0 | L15: =Adjustments!K502+Adjustments!K506 -> 0 | M15: =Adjustments!L502+Adjustments!L506 -> 0 | N15: =Adjustments!M502+Adjustments!M506 -> 0 | O15: =Adjustments!N502+Adjustments!N506 -> 0 | P15: =Adjustments!O502+Adjustments!O506 -> 0 | Q15: =Adjustments!P502+Adjustments!P506 -> 0 | R15: =Adjustments!Q502+Adjustments!Q506 -> 0 | S15: =Adjustments!R502+Adjustments!R506 -> 0 | T15: =Adjustments!#REF!+Adjustments!#REF! ->  | U15: =Adjustments!#REF!+Adjustments!#REF! ->  | V15: =Adjustments!S502+Adjustments!S506 -> 0 | W15: =Adjustments!T502+Adjustments!T506 -> 0 | X15: =Adjustments!U502+Adjustments!U506 -> 0 | Y15: =Adjustments!V502+Adjustments!V506 -> 0 | Z15: =Adjustments!AU502+Adjustments!AU506 -> 0 | AA15: =SUM(G15:Y15) -> 
A16: 8 | C16: Total Utility Operating Revenue | G16: =SUM(G11:G15) -> 0 | H16: =SUM(H11:H15) -> 0 | I16: 3439295.688 | J16: 0 | K16: 0 | L16: 0 | M16: 0 | N16: 0 | O16: 0 | P16: 0 | Q16: 0 | R16: =SUM(R11:R15) -> 0 | S16: =SUM(S11:S15) -> 0 | T16: =SUM(T11:T15) ->  | U16: =SUM(U11:U15) ->  | V16: =SUM(V11:V15) -> 0 | W16: =SUM(W11:W15) -> 0 | X16: =SUM(X11:X15) -> 0 | Y16: =SUM(Y11:Y15) -> 0 | Z16: =SUM(Z11:Z15) -> 3439295.688
A18: =+A16+1 -> 9 | B18: Utility Operating Expenses
A19: =+A18+1 -> 10 | C19: Gas Purchase Expenses
A20: =+A19+1 -> 11 | D20: Utah Gas Purchase Exp | G20: =Adjustments!F632+Adjustments!F635 -> 0 | H20: =Adjustments!G632+Adjustments!G635 -> 0 | I20: =Adjustments!H632+Adjustments!H635 -> 37225015.58 | J20: =Adjustments!I632+Adjustments!I635 -> 0 | K20: =Adjustments!J632+Adjustments!J635 -> 0 | L20: =Adjustments!K632+Adjustments!K635 -> 0 | M20: =Adjustments!L632+Adjustments!L635 -> 0 | N20: =Adjustments!M632+Adjustments!M635 -> 0 | O20: =Adjustments!N632+Adjustments!N635 -> 0 | P20: =Adjustments!O632+Adjustments!O635 -> 0 | Q20: =Adjustments!P632+Adjustments!P635 -> 0 | R20: =Adjustments!Q632+Adjustments!Q635 -> 0 | S20: =Adjustments!R632+Adjustments!R635 -> 0 | T20: =Adjustments!#REF!+Adjustments!#REF! ->  | U20: =Adjustments!#REF!+Adjustments!#REF! ->  | V20: =Adjustments!S632+Adjustments!S635 -> 0 | W20: =Adjustments!T632+Adjustments!T635 -> 0 | X20: =Adjustments!U632+Adjustments!U635 -> 0 | Y20: =Adjustments!V632+Adjustments!V635 -> 0 | Z20: =Adjustments!AU632+Adjustments!AU635 -> 37225015.58 | AA20: =SUM(G20:Y20) ->  | AB20: =+Z20-AA20 -> 
A21: =+A20+1 -> 12 | D21: Wyoming Gas Purchase Exp | G21: =Adjustments!F634+Adjustments!F636 -> 0 | H21: =Adjustments!G634+Adjustments!G636 -> 0 | I21: =Adjustments!H634+Adjustments!H636 -> -18794832.26 | J21: =Adjustments!I634+Adjustments!I636 -> 0 | K21: =Adjustments!J634+Adjustments!J636 -> 0 | L21: =Adjustments!K634+Adjustments!K636 -> 0 | M21: =Adjustments!L634+Adjustments!L636 -> 0 | N21: =Adjustments!M634+Adjustments!M636 -> 0 | O21: =Adjustments!N634+Adjustments!N636 -> 0 | P21: =Adjustments!O634+Adjustments!O636 -> 0 | Q21: =Adjustments!P634+Adjustments!P636 -> 0 | R21: =Adjustments!Q634+Adjustments!Q636 -> 0 | S21: =Adjustments!R634+Adjustments!R636 -> 0 | T21: =Adjustments!#REF!+Adjustments!#REF! ->  | U21: =Adjustments!#REF!+Adjustments!#REF! ->  | V21: =Adjustments!S634+Adjustments!S636 -> 0 | W21: =Adjustments!T634+Adjustments!T636 -> 0 | X21: =Adjustments!U634+Adjustments!U636 -> 0 | Y21: =Adjustments!V634+Adjustments!V636 -> 0 | Z21: =Adjustments!AU634+Adjustments!AU636 -> -18794832.26 | AB21: =+Z21-AA21 -> 
A22: =+A21+1 -> 13 | D22: Total Gas Purchase Expenses | G22: =SUM(G20:G21) -> 0 | H22: =SUM(H20:H21) -> 0 | I22: 18430183.32 | J22: 0 | K22: 0 | L22: 0 | M22: 0 | N22: 0 | O22: 0 | P22: 0 | Q22: 0 | R22: =SUM(R20:R21) -> 0 | S22: =SUM(S20:S21) -> 0 | T22: =SUM(T20:T21) ->  | U22: =SUM(U20:U21) ->  | V22: =SUM(V20:V21) -> 0 | W22: =SUM(W20:W21) -> 0 | X22: =SUM(X20:X21) -> 0 | Y22: =SUM(Y20:Y21) -> 0 | Z22: =SUM(Z20:Z21) -> 18430183.32
A24: =+A22+1 -> 14 | D24: Utah Gathering & CO2 | G24: =Adjustments!F631 -> 0 | H24: =Adjustments!G631 -> 0 | I24: =Adjustments!H631 -> 0 | J24: =Adjustments!I631 -> 0 | K24: =Adjustments!J631 -> 0 | L24: =Adjustments!K631 -> 0 | M24: =Adjustments!L631 -> 0 | N24: =Adjustments!M631 -> 0 | O24: =Adjustments!N631 -> 0 | P24: =Adjustments!O631 -> 0 | Q24: =Adjustments!P631 -> 0 | R24: =Adjustments!Q631 -> 0 | S24: =Adjustments!R631 -> 0 | T24: =Adjustments!#REF! ->  | U24: =Adjustments!#REF! ->  | V24: =Adjustments!S631 -> 0 | W24: =Adjustments!T631 -> 0 | X24: =Adjustments!U631 -> 0 | Y24: =Adjustments!V631 -> 0 | Z24: =Adjustments!AU631 -> 0 | AA24: =SUM(G24:Y24) ->  | AB24: =+Z24-AA24 -> 
A25: =+A24+1 -> 15 | D25: Wyoming Gathering & CO2 | G25: =Adjustments!F633 -> 0 | H25: =Adjustments!G633 -> 0 | I25: =Adjustments!H633 -> 0 | J25: =Adjustments!I633 -> 0 | K25: =Adjustments!J633 -> 0 | L25: =Adjustments!K633 -> 0 | M25: =Adjustments!L633 -> 0 | N25: =Adjustments!M633 -> 0 | O25: =Adjustments!N633 -> 0 | P25: =Adjustments!O633 -> 0 | Q25: =Adjustments!P633 -> 0 | R25: =Adjustments!Q633 -> 0 | S25: =Adjustments!R633 -> 0 | T25: =Adjustments!#REF! ->  | U25: =Adjustments!#REF! ->  | V25: =Adjustments!S633 -> 0 | W25: =Adjustments!T633 -> 0 | X25: =Adjustments!U633 -> 0 | Y25: =Adjustments!V633 -> 0 | Z25: =Adjustments!AU633 -> 0
A26: =+A25+1 -> 16 | D26: Total Gathering & CO2 | G26: =SUM(G24:G25) -> 0 | H26: =SUM(H24:H25) -> 0 | I26: 0 | J26: 0 | K26: 0 | L26: 0 | M26: 0 | N26: 0 | O26: 0 | P26: 0 | Q26: 0 | R26: =SUM(R24:R25) -> 0 | S26: =SUM(S24:S25) -> 0 | T26: =SUM(T24:T25) ->  | U26: =SUM(U24:U25) ->  | V26: =SUM(V24:V25) -> 0 | W26: =SUM(W24:W25) -> 0 | X26: =SUM(X24:X25) -> 0 | Y26: =SUM(Y24:Y25) -> 0 | Z26: =SUM(Z24:Z25) -> 0
A28: =+A26+1 -> 17 | C28: O&M Expenses
A29: =+A28+1 -> 18 | D29: Production | G29: =Adjustments!F649 -> 0 | H29: =Adjustments!G649 -> 75508.91615 | I29: =Adjustments!H649 -> 0 | J29: =Adjustments!I649 -> 0 | K29: =Adjustments!J649 -> 0 | L29: =Adjustments!K649 -> 0 | M29: =Adjustments!L649 -> 0 | N29: =Adjustments!M649 -> 0 | O29: =Adjustments!N649 -> 0 | P29: =Adjustments!O649 -> 0 | Q29: =Adjustments!P649 -> 0 | R29: =Adjustments!Q649 -> 0 | S29: =Adjustments!R649 -> 0 | T29: =Adjustments!#REF! ->  | U29: =Adjustments!#REF! ->  | V29: =Adjustments!S649 -> 0 | W29: =Adjustments!T649 -> 0 | X29: =Adjustments!U649 -> 0 | Y29: =Adjustments!V649 -> 0 | Z29: =Adjustments!AU649 -> 75508.91615 | AA29: =SUM(G29:Y29) ->  | AB29: =+Z29-AA29 -> 
A30: 19 | D30: Distribution | G30: =Adjustments!F752 -> 0 | H30: =Adjustments!G752 -> 2253301.477 | I30: =Adjustments!H752 -> 0 | J30: =Adjustments!I752 -> 0 | K30: =Adjustments!J752 -> 0 | L30: =Adjustments!K752 -> 0 | M30: =Adjustments!L752 -> 0 | N30: =Adjustments!M752 -> 0 | O30: =Adjustments!N752 -> 0 | P30: =Adjustments!O752 -> 0 | Q30: =Adjustments!P752 -> 0 | R30: =Adjustments!Q752 -> 0 | S30: =Adjustments!R752 -> 0 | T30: =Adjustments!#REF! ->  | U30: =Adjustments!#REF! ->  | V30: =Adjustments!S752 -> 0 | W30: =Adjustments!T752 -> 0 | X30: =Adjustments!U752 -> 0 | Y30: =Adjustments!V752 -> 0 | Z30: =Adjustments!AU752 -> 2253301.477
A31: 20 | D31: Customer Accounts | G31: =Adjustments!F805 -> 0 | H31: =Adjustments!G805 -> 1212226.128 | I31: =Adjustments!H805 -> 0 | J31: =Adjustments!I805 -> 0 | K31: =Adjustments!J805 -> 0 | L31: =Adjustments!K805 -> 0 | M31: =Adjustments!L805 -> -1534493.554 | N31: =Adjustments!M805 -> 0 | O31: =Adjustments!N805 -> 0 | P31: =Adjustments!O805 -> 0 | Q31: =Adjustments!P805 -> 0 | R31: =Adjustments!Q805 -> 0 | S31: =Adjustments!R805 -> 0 | T31: =Adjustments!#REF! ->  | U31: =Adjustments!#REF! ->  | V31: =Adjustments!S805 -> 0 | W31: =Adjustments!T805 -> 0 | X31: =Adjustments!U805 -> 0 | Y31: =Adjustments!V805 -> 0 | Z31: =Adjustments!AU805 -> -322267.4264
A32: 21 | D32: Customer Service & Information | G32: =Adjustments!F833 -> 0 | H32: =Adjustments!G833 -> 2447654.248 | I32: =Adjustments!H833 -> 0 | J32: =Adjustments!I833 -> 0 | K32: =Adjustments!J833 -> 0 | L32: =Adjustments!K833 -> -25646407.39 | M32: =Adjustments!L833 -> 0 | N32: =Adjustments!M833 -> 0 | O32: =Adjustments!N833 -> 0 | P32: =Adjustments!O833 -> -4605.248131 | Q32: =Adjustments!P833 -> 0 | R32: =Adjustments!Q833 -> 0 | S32: =Adjustments!R833 -> 0 | T32: =Adjustments!#REF! ->  | U32: =Adjustments!#REF! ->  | V32: =Adjustments!S833 -> 0 | W32: =Adjustments!T833 -> 0 | X32: =Adjustments!U833 -> 0 | Y32: =Adjustments!V833 -> 0 | Z32: =Adjustments!AU833 -> -23203358.39
A33: 22 | D33: Administrative & General | G33: =Adjustments!F889 -> 0 | H33: =Adjustments!G889 -> 1720796.465 | I33: =Adjustments!H889 -> 0 | J33: =Adjustments!I889 -> 0 | K33: =Adjustments!J889 -> 0 | L33: =Adjustments!K889 -> 0 | M33: =Adjustments!L889 -> 0 | N33: =Adjustments!M889 -> -2950022.667 | O33: =Adjustments!N889 -> -32343.89274 | P33: =Adjustments!O889 -> 0 | Q33: =Adjustments!P889 -> -209017.2552 | R33: =Adjustments!Q889 -> -328779.2246 | S33: =Adjustments!R889 -> 0 | T33: =Adjustments!#REF! ->  | U33: =Adjustments!#REF! ->  | V33: =Adjustments!S889 -> 0 | W33: =Adjustments!T889 -> 0 | X33: =Adjustments!U889 -> 0 | Y33: =Adjustments!V889 -> 0 | Z33: =Adjustments!AU889 -> -1799366.575
A34: 23 | D34: Total O&M Expense | G34: =SUM(G29:G33) -> 0 | H34: =SUM(H29:H33) -> 7709487.233 | I34: 0 | J34: 0 | K34: 0 | L34: -25646407.39 | M34: -1534493.554 | N34: -2950022.667 | O34: -32343.89274 | P34: -4605.248131 | Q34: -209017.2552 | R34: =SUM(R29:R33) -> -328779.2246 | S34: =SUM(S29:S33) -> 0 | T34: =SUM(T29:T33) ->  | U34: =SUM(U29:U33) ->  | V34: =SUM(V29:V33) -> 0 | W34: =SUM(W29:W33) -> 0 | X34: =SUM(X29:X33) -> 0 | Y34: =SUM(Y29:Y33) -> 0 | Z34: =SUM(Z29:Z33) -> -22996182
A36: =+A34+1 -> 24 | C36: Other Operating Expenses
A37: =+A36+1 -> 25 | D37: Depreciation, Deplection, Amortization | G37: =Adjustments!F913 -> 0 | H37: =Adjustments!G913 -> 14944654.83 | I37: =Adjustments!H913 -> 0 | J37: =Adjustments!I913 -> 0 | K37: =Adjustments!J913 -> 0 | L37: =Adjustments!K913 -> 0 | M37: =Adjustments!L913 -> 0 | N37: =Adjustments!M913 -> 0 | O37: =Adjustments!N913 -> 0 | P37: =Adjustments!O913 -> 0 | Q37: =Adjustments!P913 -> 0 | R37: =Adjustments!Q913 -> 0 | S37: =Adjustments!R913 -> 0 | T37: =Adjustments!#REF! ->  | U37: =Adjustments!#REF! ->  | V37: =Adjustments!S913 -> 0 | W37: =Adjustments!T913 -> 0 | X37: =Adjustments!U913 -> 0 | Y37: =Adjustments!V913 -> 0 | Z37: =Adjustments!AU913 -> 14944654.83 | AA37: =SUM(G37:Y37) ->  | AB37: =+Z37-AA37 -> 
A38: =+A37+1 -> 26 | D38: Taxes Other Than Income Taxes | G38: =Adjustments!F921 -> 0 | H38: =Adjustments!G921 -> 3691395.46 | I38: =Adjustments!H921 -> 0 | J38: =Adjustments!I921 -> 0 | K38: =Adjustments!J921 -> 0 | L38: =Adjustments!K921 -> 0 | M38: =Adjustments!L921 -> 0 | N38: =Adjustments!M921 -> 0 | O38: =Adjustments!N921 -> 0 | P38: =Adjustments!O921 -> 0 | Q38: =Adjustments!P921 -> 0 | R38: =Adjustments!Q921 -> 0 | S38: =Adjustments!R921 -> 0 | T38: =Adjustments!#REF! ->  | U38: =Adjustments!#REF! ->  | V38: =Adjustments!S921 -> 0 | W38: =Adjustments!T921 -> 0 | X38: =Adjustments!U921 -> 0 | Y38: =Adjustments!V921 -> 0 | Z38: =Adjustments!AU921 -> 3691395.46
A39: =+A38+1 -> 27 | D39: Income Taxes | G39: =Adjustments!F923+Adjustments!F925+Adjustments!F927+Adjustments!F929 -> 0 | H39: =Adjustments!G923+Adjustments!G925+Adjustments!G927+Adjustments!G929 -> -10031156.02 | I39: =Adjustments!H923+Adjustments!H925+Adjustments!H927+Adjustments!H929 -> -5707833.158 | J39: =Adjustments!I923+Adjustments!I925+Adjustments!I927+Adjustments!I929 -> 0 | K39: =Adjustments!J923+Adjustments!J925+Adjustments!J927+Adjustments!J929 -> 0 | L39: =Adjustments!K923+Adjustments!K925+Adjustments!K927+Adjustments!K929 -> 9764959.761 | M39: =Adjustments!L923+Adjustments!L925+Adjustments!L927+Adjustments!L929 -> 584263.8144 | N39: =Adjustments!M923+Adjustments!M925+Adjustments!M927+Adjustments!M929 -> 1123231.5 | O39: =Adjustments!N923+Adjustments!N925+Adjustments!N927+Adjustments!N929 -> 12315.05085 | P39: =Adjustments!O923+Adjustments!O925+Adjustments!O927+Adjustments!O929 -> 1753.464413 | Q39: =Adjustments!P923+Adjustments!P925+Adjustments!P927+Adjustments!P929 -> 79584.0546 | R39: =Adjustments!Q923+Adjustments!Q925+Adjustments!Q927+Adjustments!Q929 -> 125183.8454 | S39: =Adjustments!R923+Adjustments!R925+Adjustments!R927+Adjustments!R929 -> 0 | T39: =Adjustments!#REF!+Adjustments!#REF!+Adjustments!#REF!+Adjustments!#REF! ->  | U39: =Adjustments!#REF!+Adjustments!#REF!+Adjustments!#REF!+Adjustments!#REF! ->  | V39: =Adjustments!S923+Adjustments!S925+Adjustments!S927+Adjustments!S929 -> 0 | W39: =Adjustments!T923+Adjustments!T925+Adjustments!T927+Adjustments!T929 -> 0 | X39: =Adjustments!U923+Adjustments!U925+Adjustments!U927+Adjustments!U929 -> 0 | Y39: =Adjustments!V923+Adjustments!V925+Adjustments!V927+Adjustments!V929 -> 0 | Z39: =Adjustments!AU923+Adjustments!AU925+Adjustments!AU927+Adjustments!AU929 -> -4047697.685
A40: =+A39+1 -> 28 | D40: Total Other Operating Expenses | G40: =SUM(G37:G39) -> 0 | H40: =SUM(H37:H39) -> 8604894.274 | I40: -5707833.158 | J40: 0 | K40: 0 | L40: 9764959.761 | M40: 584263.8144 | N40: 1123231.5 | O40: 12315.05085 | P40: 1753.464413 | Q40: 79584.0546 | R40: =SUM(R37:R39) -> 125183.8454 | S40: =SUM(S37:S39) -> 0 | T40: =SUM(T37:T39) ->  | U40: =SUM(U37:U39) ->  | V40: =SUM(V37:V39) -> 0 | W40: =SUM(W37:W39) -> 0 | X40: =SUM(X37:X39) -> 0 | Y40: =SUM(Y37:Y39) -> 0 | Z40: =SUM(Z37:Z39) -> 14588352.61
A43: =+A40+1 -> 29 | C43: Total Utility Operating Expenses | G43: =+G22+G26+G34+G40 -> 0 | H43: =+H22+H26+H34+H40 -> 16314381.51 | I43: 12722350.16 | J43: 0 | K43: 0 | L43: -15881447.63 | M43: -950229.7395 | N43: -1826791.167 | O43: -20028.84189 | P43: -2851.783717 | Q43: -129433.2006 | R43: =+R22+R26+R34+R40 -> -203595.3791 | S43: =+S22+S26+S34+S40 -> 0 | V43: 0 | W43: 0 | X43: 0 | Y43: =+Y22+Y26+Y34+Y40 -> 0 | Z43: =+Z22+Z26+Z34+Z40 -> 10022353.93
A46: =+A43+1 -> 30 | B46: NET OPERATING INCOME | G46: =+G16-G43 -> 0 | H46: =+H16-H43 -> -16314381.51 | I46: -9283054.472 | J46: 0 | K46: 0 | L46: 15881447.63 | M46: 950229.7395 | N46: 1826791.167 | O46: 20028.84189 | P46: 2851.783717 | Q46: 129433.2006 | R46: =+R16-R43 -> 203595.3791 | S46: =+S16-S43 -> 0 | V46: 0 | W46: 0 | X46: 0 | Y46: =+Y16-Y43 -> 0 | Z46: =+Z16-Z43 -> -6583058.238
A49: =+A46+1 -> 31 | B49: RATE BASE SUMMARY
A51: =+A49+1 -> 32 | B51: Net Utility Plant
A52: =+A51+1 -> 33 | C52: 101 | D52: Gas Plant In Service | G52: =Adjustments!F1095 -> 302298360.7 | H52: =Adjustments!G1095 -> 0 | I52: =Adjustments!H1095 -> 0 | J52: =Adjustments!I1095 -> 0 | K52: =Adjustments!J1095 -> -5037992.568 | L52: =Adjustments!K1095 -> 0 | M52: =Adjustments!L1095 -> 0 | N52: =Adjustments!M1095 -> 0 | O52: =Adjustments!N1095 -> 0 | P52: =Adjustments!O1095 -> 0 | Q52: =Adjustments!P1095 -> 0 | R52: =Adjustments!Q1095 -> 0 | S52: =Adjustments!R1095 -> 0 | T52: =Adjustments!#REF! ->  | U52: =Adjustments!#REF! ->  | V52: =Adjustments!S1095 -> 0 | W52: =Adjustments!T1095 -> 0 | X52: =Adjustments!U1095 -> 0 | Y52: =Adjustments!V1095 -> 0 | Z52: =Adjustments!AU1095 -> 297260368.1 | AA52: =SUM(G52:Y52) ->  | AB52: =+Z52-AA52 -> 
A53: 34 | C53: 105 | D53: Gas Plant Held For Future Use | G53: =Adjustments!F1099 -> 0 | H53: =Adjustments!G1099 -> 0 | I53: =Adjustments!H1099 -> 0 | J53: =Adjustments!I1099 -> 0 | K53: =Adjustments!J1099 -> 0 | L53: =Adjustments!K1099 -> 0 | M53: =Adjustments!L1099 -> 0 | N53: =Adjustments!M1099 -> 0 | O53: =Adjustments!N1099 -> 0 | P53: =Adjustments!O1099 -> 0 | Q53: =Adjustments!P1099 -> 0 | R53: =Adjustments!Q1099 -> 0 | S53: =Adjustments!R1099 -> 0 | T53: =Adjustments!#REF! ->  | U53: =Adjustments!#REF! ->  | V53: =Adjustments!S1099 -> 0 | W53: =Adjustments!T1099 -> 0 | X53: =Adjustments!U1099 -> 0 | Y53: =Adjustments!V1099 -> 0 | Z53: =Adjustments!AU1099 -> 0
A54: 35 | C54: 106 | D54: Completed Construction Not Classified | G54: =Adjustments!F1106 -> -11515347.99 | H54: =Adjustments!G1106 -> 0 | I54: =Adjustments!H1106 -> 0 | J54: =Adjustments!I1106 -> 0 | K54: =Adjustments!J1106 -> 0 | L54: =Adjustments!K1106 -> 0 | M54: =Adjustments!L1106 -> 0 | N54: =Adjustments!M1106 -> 0 | O54: =Adjustments!N1106 -> 0 | P54: =Adjustments!O1106 -> 0 | Q54: =Adjustments!P1106 -> 0 | R54: =Adjustments!Q1106 -> 0 | S54: =Adjustments!R1106 -> 0 | T54: =Adjustments!#REF! ->  | U54: =Adjustments!#REF! ->  | V54: =Adjustments!S1106 -> 0 | W54: =Adjustments!T1106 -> 0 | X54: =Adjustments!U1106 -> 0 | Y54: =Adjustments!V1106 -> 0 | Z54: =Adjustments!AU1106 -> -11515347.99
A55: 36 | C55: 108 | D55: Accumulated Depreciation | G55: =Adjustments!F1113 -> -65101580.13 | H55: =Adjustments!G1113 -> 0 | I55: =Adjustments!H1113 -> 0 | J55: =Adjustments!I1113 -> 0 | K55: =Adjustments!J1113 -> 4606238.265 | L55: =Adjustments!K1113 -> 0 | M55: =Adjustments!L1113 -> 0 | N55: =Adjustments!M1113 -> 0 | O55: =Adjustments!N1113 -> 0 | P55: =Adjustments!O1113 -> 0 | Q55: =Adjustments!P1113 -> 0 | R55: =Adjustments!Q1113 -> 0 | S55: =Adjustments!R1113 -> 0 | T55: =Adjustments!#REF! ->  | U55: =Adjustments!#REF! ->  | V55: =Adjustments!S1113 -> 0 | W55: =Adjustments!T1113 -> 0 | X55: =Adjustments!U1113 -> 0 | Y55: =Adjustments!V1113 -> 0 | Z55: =Adjustments!AU1113 -> -60495341.87
A56: 37 | C56: 111 | D56: Accumulated Amort & Depletion | G56: =Adjustments!F1120 -> 7.821654435e-10 | H56: =Adjustments!G1120 -> 0 | I56: =Adjustments!H1120 -> 0 | J56: =Adjustments!I1120 -> 0 | K56: =Adjustments!J1120 -> 385040.6714 | L56: =Adjustments!K1120 -> 0 | M56: =Adjustments!L1120 -> 0 | N56: =Adjustments!M1120 -> 0 | O56: =Adjustments!N1120 -> 0 | P56: =Adjustments!O1120 -> 0 | Q56: =Adjustments!P1120 -> 0 | R56: =Adjustments!Q1120 -> 0 | S56: =Adjustments!R1120 -> 0 | T56: =Adjustments!#REF! ->  | U56: =Adjustments!#REF! ->  | V56: =Adjustments!S1120 -> 0 | W56: =Adjustments!T1120 -> 0 | X56: =Adjustments!U1120 -> 0 | Y56: =Adjustments!V1120 -> 0 | Z56: =Adjustments!AU1120 -> 385040.6714
A57: 38 | C57: 254 | D57: Other Regulatory Liabilities ARC | G57: =Adjustments!F1127 -> -10692165.6 | H57: =Adjustments!G1127 -> 0 | I57: =Adjustments!H1127 -> 0 | J57: =Adjustments!I1127 -> 0 | K57: =Adjustments!J1127 -> 0 | L57: =Adjustments!K1127 -> 0 | M57: =Adjustments!L1127 -> 0 | N57: =Adjustments!M1127 -> 0 | O57: =Adjustments!N1127 -> 0 | P57: =Adjustments!O1127 -> 0 | Q57: =Adjustments!P1127 -> 0 | R57: =Adjustments!Q1127 -> 0 | S57: =Adjustments!R1127 -> 0 | T57: =Adjustments!#REF! ->  | U57: =Adjustments!#REF! ->  | V57: =Adjustments!S1127 -> 0 | W57: =Adjustments!T1127 -> 0 | X57: =Adjustments!U1127 -> 0 | Y57: =Adjustments!V1127 -> 0 | Z57: =Adjustments!AU1127 -> -10692165.6 | AA57: =Adjustments!X1127 -> 0 | AB57: =Adjustments!Y1127 -> 0
A58: 39 | C58: Total Net Utility Plant | G58: =SUM(G52:G57) -> 214989266.9 | H58: 0 | I58: 0 | J58: 0 | K58: -46713.63158 | L58: 0 | M58: 0 | N58: 0 | O58: 0 | P58: 0 | Q58: 0 | R58: 0 | S58: 0 | V58: 0 | W58: 0 | X58: 0 | Y58: 0 | Z58: =SUM(Z52:Z57) -> 214942553.3 | AA58: =SUM(AA52:AA56) -> 
A60: =+A58+1 -> 40 | B60: Other Rate Base Accounts
A61: =+A60+1 -> 41 | C61: 154 | D61: Materials & Supplies | G61: =Adjustments!F1145 -> 2334417.665 | H61: =Adjustments!G1145 -> 0 | I61: =Adjustments!H1145 -> 0 | J61: =Adjustments!I1145 -> 0 | K61: =Adjustments!J1145 -> 0 | L61: =Adjustments!K1145 -> 0 | M61: =Adjustments!L1145 -> 0 | N61: =Adjustments!M1145 -> 0 | O61: =Adjustments!N1145 -> 0 | P61: =Adjustments!O1145 -> 0 | Q61: =Adjustments!P1145 -> 0 | R61: =Adjustments!Q1145 -> 0 | S61: =Adjustments!R1145 -> 0 | T61: =Adjustments!#REF! ->  | U61: =Adjustments!#REF! ->  | V61: =Adjustments!S1145 -> 0 | W61: =Adjustments!T1145 -> 0 | X61: =Adjustments!U1145 -> 0 | Y61: =Adjustments!V1145 -> 0 | Z61: =Adjustments!AU1145 -> 2334417.665 | AA61: =SUM(G61:Y61) ->  | AB61: =+Z61-AA61 -> 
A62: 42 | C62: 164-1 | D62: Gas Stored Underground | G62: =Adjustments!F1149 -> 0 | H62: =Adjustments!G1149 -> 0 | I62: =Adjustments!H1149 -> 0 | J62: =Adjustments!I1149 -> -43864860.97 | K62: =Adjustments!J1149 -> 0 | L62: =Adjustments!K1149 -> 0 | M62: =Adjustments!L1149 -> 0 | N62: =Adjustments!M1149 -> 0 | O62: =Adjustments!N1149 -> 0 | P62: =Adjustments!O1149 -> 0 | Q62: =Adjustments!P1149 -> 0 | R62: =Adjustments!Q1149 -> 0 | S62: =Adjustments!R1149 -> 0 | T62: =Adjustments!#REF! ->  | U62: =Adjustments!#REF! ->  | V62: =Adjustments!S1149 -> 0 | W62: =Adjustments!T1149 -> 0 | X62: =Adjustments!U1149 -> 0 | Y62: =Adjustments!V1149 -> 0 | Z62: =Adjustments!AU1149 -> -43864860.97
A63: 43 | C63: 165 | D63: Prepayments | G63: =Adjustments!F1153 -> -719205.2058 | H63: =Adjustments!G1153 -> 0 | I63: =Adjustments!H1153 -> 0 | J63: =Adjustments!I1153 -> 0 | K63: =Adjustments!J1153 -> 0 | L63: =Adjustments!K1153 -> 0 | M63: =Adjustments!L1153 -> 0 | N63: =Adjustments!M1153 -> 0 | O63: =Adjustments!N1153 -> 0 | P63: =Adjustments!O1153 -> 0 | Q63: =Adjustments!P1153 -> 0 | R63: =Adjustments!Q1153 -> 0 | S63: =Adjustments!R1153 -> 0 | T63: =Adjustments!#REF! ->  | U63: =Adjustments!#REF! ->  | V63: =Adjustments!S1153 -> 0 | W63: =Adjustments!T1153 -> 0 | X63: =Adjustments!U1153 -> 0 | Y63: =Adjustments!V1153 -> 0 | Z63: =Adjustments!AU1153 -> -719205.2058
A64: 44 | C64: 190 | D64: Accum Deferred Income Taxes | G64: =Adjustments!F1160+Adjustments!F1167 -> 0 | H64: =Adjustments!G1160+Adjustments!G1167 -> 0 | I64: =Adjustments!H1160+Adjustments!H1167 -> 0 | J64: =Adjustments!I1160+Adjustments!I1167 -> 0 | K64: =Adjustments!J1160+Adjustments!J1167 -> 0 | L64: =Adjustments!K1160+Adjustments!K1167 -> 0 | M64: =Adjustments!L1160+Adjustments!L1167 -> 0 | N64: =Adjustments!M1160+Adjustments!M1167 -> 0 | O64: =Adjustments!N1160+Adjustments!N1167 -> 0 | P64: =Adjustments!O1160+Adjustments!O1167 -> 0 | Q64: =Adjustments!P1160+Adjustments!P1167 -> 0 | R64: =Adjustments!Q1160+Adjustments!Q1167 -> 0 | S64: =Adjustments!R1160+Adjustments!R1167 -> 0 | T64: =Adjustments!#REF!+Adjustments!#REF! ->  | U64: =Adjustments!#REF!+Adjustments!#REF! ->  | V64: =Adjustments!S1160+Adjustments!S1167 -> 0 | W64: =Adjustments!T1160+Adjustments!T1167 -> 0 | X64: =Adjustments!U1160+Adjustments!U1167 -> 0 | Y64: =Adjustments!V1160+Adjustments!V1167 -> 0 | Z64: =Adjustments!AU1160+Adjustments!AU1167 -> 0
A65: 45 | C65: 235-1 | D65: Customer Deposits | G65: =Adjustments!F1172 -> 220139.33 | H65: =Adjustments!G1172 -> 0 | I65: =Adjustments!H1172 -> 0 | J65: =Adjustments!I1172 -> 0 | K65: =Adjustments!J1172 -> 0 | L65: =Adjustments!K1172 -> 0 | M65: =Adjustments!L1172 -> 0 | N65: =Adjustments!M1172 -> 0 | O65: =Adjustments!N1172 -> 0 | P65: =Adjustments!O1172 -> 0 | Q65: =Adjustments!P1172 -> 0 | R65: =Adjustments!Q1172 -> 0 | S65: =Adjustments!R1172 -> 0 | T65: =Adjustments!#REF! ->  | U65: =Adjustments!#REF! ->  | V65: =Adjustments!S1172 -> 0 | W65: =Adjustments!T1172 -> 0 | X65: =Adjustments!U1172 -> 0 | Y65: =Adjustments!V1172 -> 0 | Z65: =Adjustments!AU1172 -> 220139.33
A66: 46 | C66: 252 | D66: Misc Customer Credits | G66: =Adjustments!F1177 -> 8851746.247 | H66: =Adjustments!G1177 -> 0 | I66: =Adjustments!H1177 -> 0 | J66: =Adjustments!I1177 -> 0 | K66: =Adjustments!J1177 -> 0 | L66: =Adjustments!K1177 -> 0 | M66: =Adjustments!L1177 -> 0 | N66: =Adjustments!M1177 -> 0 | O66: =Adjustments!N1177 -> 0 | P66: =Adjustments!O1177 -> 0 | Q66: =Adjustments!P1177 -> 0 | R66: =Adjustments!Q1177 -> 0 | S66: =Adjustments!R1177 -> 0 | T66: =Adjustments!#REF! ->  | U66: =Adjustments!#REF! ->  | V66: =Adjustments!S1177 -> 0 | W66: =Adjustments!T1177 -> 0 | X66: =Adjustments!U1177 -> 0 | Y66: =Adjustments!V1177 -> 0 | Z66: =Adjustments!AU1177 -> 8851746.247
A67: 47 | C67: 253-1 | D67: Unclaimed Customer Deposits | G67: =Adjustments!F1181 -> -473.0608333 | H67: =Adjustments!G1181 -> 0 | I67: =Adjustments!H1181 -> 0 | J67: =Adjustments!I1181 -> 0 | K67: =Adjustments!J1181 -> 0 | L67: =Adjustments!K1181 -> 0 | M67: =Adjustments!L1181 -> 0 | N67: =Adjustments!M1181 -> 0 | O67: =Adjustments!N1181 -> 0 | P67: =Adjustments!O1181 -> 0 | Q67: =Adjustments!P1181 -> 0 | R67: =Adjustments!Q1181 -> 0 | S67: =Adjustments!R1181 -> 0 | T67: =Adjustments!#REF! ->  | U67: =Adjustments!#REF! ->  | V67: =Adjustments!S1181 -> 0 | W67: =Adjustments!T1181 -> 0 | X67: =Adjustments!U1181 -> 0 | Y67: =Adjustments!V1181 -> 0 | Z67: =Adjustments!AU1181 -> -473.0608333
A68: 48 | C68: 255 | D68: Deferred Investment Tax Credits | G68: =Adjustments!F1188 -> 149021.4889 | H68: =Adjustments!G1188 -> 0 | I68: =Adjustments!H1188 -> 0 | J68: =Adjustments!I1188 -> 0 | K68: =Adjustments!J1188 -> 0 | L68: =Adjustments!K1188 -> 0 | M68: =Adjustments!L1188 -> 0 | N68: =Adjustments!M1188 -> 0 | O68: =Adjustments!N1188 -> 0 | P68: =Adjustments!O1188 -> 0 | Q68: =Adjustments!P1188 -> 0 | R68: =Adjustments!Q1188 -> 0 | S68: =Adjustments!R1188 -> 0 | T68: =Adjustments!#REF! ->  | U68: =Adjustments!#REF! ->  | V68: =Adjustments!S1188 -> 0 | W68: =Adjustments!T1188 -> 0 | X68: =Adjustments!U1188 -> 0 | Y68: =Adjustments!V1188 -> 0 | Z68: =Adjustments!AU1188 -> 149021.4889
A69: 49 | C69: 282 | D69: Accum Deferred Income Taxes | G69: =(Adjustments!F1195+Adjustments!F1202+Adjustments!F1206) -> -46529577.26 | H69: =(Adjustments!G1195+Adjustments!G1202+Adjustments!G1206) -> 0 | I69: =(Adjustments!H1195+Adjustments!H1202+Adjustments!H1206) -> 0 | J69: =(Adjustments!I1195+Adjustments!I1202+Adjustments!I1206) -> 0 | K69: =(Adjustments!J1195+Adjustments!J1202+Adjustments!J1206) -> 0 | L69: =(Adjustments!K1195+Adjustments!K1202+Adjustments!K1206) -> 0 | M69: =(Adjustments!L1195+Adjustments!L1202+Adjustments!L1206) -> 0 | N69: =(Adjustments!M1195+Adjustments!M1202+Adjustments!M1206) -> 0 | O69: =(Adjustments!N1195+Adjustments!N1202+Adjustments!N1206) -> 0 | P69: =(Adjustments!O1195+Adjustments!O1202+Adjustments!O1206) -> 0 | Q69: =(Adjustments!P1195+Adjustments!P1202+Adjustments!P1206) -> 0 | R69: =(Adjustments!Q1195+Adjustments!Q1202+Adjustments!Q1206) -> 0 | S69: =(Adjustments!R1195+Adjustments!R1202+Adjustments!R1206) -> 0 | T69: =(Adjustments!#REF!+Adjustments!#REF!+Adjustments!#REF!) ->  | U69: =(Adjustments!#REF!+Adjustments!#REF!+Adjustments!#REF!) ->  | V69: =(Adjustments!S1195+Adjustments!S1202+Adjustments!S1206) -> 0 | W69: =(Adjustments!T1195+Adjustments!T1202+Adjustments!T1206) -> 0 | X69: =(Adjustments!U1195+Adjustments!U1202+Adjustments!U1206) -> 0 | Y69: =(Adjustments!V1195+Adjustments!V1202+Adjustments!V1206) -> 0 | Z69: =(Adjustments!AU1195+Adjustments!AU1202+Adjustments!AU1206) -> -46529577.26
A70: 50 | D70: Working Capital - Cash | G70: =Adjustments!F1244 -> 0 | H70: =Adjustments!G1244 -> 6608.462131 | I70: =Adjustments!H1244 -> 61380.98256 | J70: =Adjustments!I1244 -> 0 | K70: =Adjustments!J1244 -> 0 | L70: =Adjustments!K1244 -> -76622.54596 | M70: =Adjustments!L1244 -> -4584.533072 | N70: =Adjustments!M1244 -> -8813.641769 | O70: =Adjustments!N1244 -> -96.63230293 | P70: =Adjustments!O1244 -> -13.7588798 | Q70: =Adjustments!P1244 -> -624.4708663 | R70: =Adjustments!Q1244 -> -982.2779799 | S70: =Adjustments!R1244 -> 0 | T70: =Adjustments!#REF! ->  | U70: =Adjustments!#REF! ->  | V70: =Adjustments!S1244 -> 0 | W70: =Adjustments!T1244 -> 0 | X70: =Adjustments!U1244 -> 0 | Y70: =Adjustments!V1244 -> 0 | Z70: =Adjustments!AU1244 -> -23748.41614
A71: 51 | C71: Total Other Rate Base Accounts | G71: =SUM(G61:G70) -> -35693930.8 | H71: =SUM(H61:H70) -> 6608.462131 | I71: 61380.98256 | J71: -43864860.97 | K71: 0 | L71: -76622.54596 | M71: -4584.533072 | N71: -8813.641769 | O71: -96.63230293 | P71: -13.7588798 | Q71: -624.4708663 | R71: =SUM(R61:R70) -> -982.2779799 | S71: =SUM(S61:S70) -> 0 | T71: =SUM(T61:T70) ->  | U71: =SUM(U61:U70) ->  | V71: =SUM(V61:V70) -> 0 | W71: =SUM(W61:W70) -> 0 | X71: =SUM(X61:X70) -> 0 | Y71: =SUM(Y61:Y70) -> 0 | Z71: =SUM(Z61:Z70) -> -79582540.18
A74: =+A71+1 -> 52 | B74: TOTAL RATE BASE | G74: =+G58+G71 -> 179295336.1 | H74: =+H58+H71 -> 6608.462131 | I74: 61380.98256 | J74: -43864860.97 | K74: -46713.63158 | L74: -76622.54596 | M74: -4584.533072 | N74: -8813.641769 | O74: -96.63230293 | P74: -13.7588798 | Q74: -624.4708663 | R74: =+R58+R71 -> -982.2779799 | S74: =+S58+S71 -> 0 | V74: 0 | W74: 0 | X74: 0 | Y74: =+Y58+Y71 -> 0 | Z74: =+Z58+Z71 -> 135360013.1 | AA74: =+AA58+AA71 -> 

Sheet Adjustments
A1: ='Control Panel'!$B$1 -> Questar Gas Company | F1: =IF(F8="Y",1,0) -> 1 | G1: =IF(G8="Y",1,0) -> 1 | H1: =IF(H8="Y",1,0) -> 1 | I1: 1 | J1: 1 | K1: 1 | L1: 1 | M1: 1 | N1: 1 | O1: 1 | P1: 1 | Q1: 1 | R1: =IF(R8="Y",1,0) -> 1 | S1: 1 | T1: =IF(T8="Y",1,0) -> 1 | U1: 1 | V1: 1 | W1: 1 | X1: 1 | Y1: 1 | Z1: 1 | AA1: 1 | AB1: 1 | AC1: 1 | AD1: 1 | AE1: 1 | AF1: 1 | AG1: 1 | AH1: =IF(AH8="Y",1,0) -> 1 | AI1: 1 | AJ1: 1 | AK1: 1 | AL1: =IF(AL8="Y",1,0) -> 1 | AM1: 1 | AN1: 1 | AO1: 1 | AP1: 1 | AQ1: =IF(AQ8="Y",1,0) -> 1 | AR1: 1 | AS1: 1 | AT1: 0
A2: ='Control Panel'!$B$2 -> Utah - DEC 2017 Adjusted Avg Results
A3: ='Control Panel'!$B$3 -> 12 Months Ended : Dec-2017
A4: FILLED AND EXTERNAL PARTY ADJUSTMENTS
F6: 1 | G6: =+F6+1 -> 2 | H6: =+G6+1 -> 3 | I6: =+H6+1 -> 4 | J6: =+I6+1 -> 5 | K6: =+J6+1 -> 6 | L6: 7 | M6: 8 | N6: 9 | O6: 10 | P6: 11 | Q6: 12 | R6: 13 | S6: 14 | T6: =+S6+1 -> 15 | U6: =+T6+1 -> 16 | V6: =+U6+1 -> 17 | W6: =+V6+1 -> 18 | X6: =+W6+1 -> 19 | Y6: =+X6+1 -> 20 | Z6: =+Y6+1 -> 21 | AA6: =+Z6+1 -> 22 | AB6: =+AA6+1 -> 23 | AC6: =+AB6+1 -> 24 | AD6: =+AC6+1 -> 25 | AE6: =+AD6+1 -> 26 | AF6: =+AE6+1 -> 27 | AG6: =+AF6+1 -> 28 | AH6: 29 | AI6: 30 | AJ6: 31 | AK6: 32 | AL6: 33 | AM6: 34 | AN6: 35 | AO6: 36 | AP6: 37 | AQ6: =+AP6+1 -> 38 | AR6: =+AQ6+1 -> 39 | AS6: =+AR6+1 -> 40 | AT6: =+AS6+1 -> 41
F8: =VLOOKUP(F$6,'Control Panel'!$A$8:$F$84,5) -> Y | G8: =VLOOKUP(G$6,'Control Panel'!$A$8:$F$84,5) -> Y | H8: =VLOOKUP(H$6,'Control Panel'!$A$8:$F$84,5) -> Y | I8: =VLOOKUP(I$6,'Control Panel'!$A$8:$F$84,5) -> Y | J8: =VLOOKUP(J$6,'Control Panel'!$A$8:$F$84,5) -> Y | K8: =VLOOKUP(K$6,'Control Panel'!$A$8:$F$84,5) -> Y | L8: =VLOOKUP(L$6,'Control Panel'!$A$8:$F$84,5) -> Y | M8: =VLOOKUP(M$6,'Control Panel'!$A$8:$F$84,5) -> Y | N8: =VLOOKUP(N$6,'Control Panel'!$A$8:$F$84,5) -> Y | O8: =VLOOKUP(O$6,'Control Panel'!$A$8:$F$84,5) -> Y | P8: =VLOOKUP(P$6,'Control Panel'!$A$8:$F$84,5) -> Y | Q8: =VLOOKUP(Q$6,'Control Panel'!$A$8:$F$84,5) -> Y | R8: =VLOOKUP(R$6,'Control Panel'!$A$8:$F$84,5) -> Y | S8: =VLOOKUP(S$6,'Control Panel'!$A$8:$F$84,5) -> Y | T8: =VLOOKUP(T$6,'Control Panel'!$A$8:$F$84,5) -> Y | U8: =VLOOKUP(U$6,'Control Panel'!$A$8:$F$84,5) -> Y | V8: =VLOOKUP(V$6,'Control Panel'!$A$8:$F$84,5) -> Y | W8: =VLOOKUP(W$6,'Control Panel'!$A$8:$F$84,5) -> Y | X8: =VLOOKUP(X$6,'Control Panel'!$A$8:$F$84,5) -> Y | Y8: =VLOOKUP(Y$6,'Control Panel'!$A$8:$F$84,5) -> Y | Z8: =VLOOKUP(Z$6,'Control Panel'!$A$8:$F$84,5) -> Y | AA8: =VLOOKUP(AA$6,'Control Panel'!$A$8:$F$84,5) -> Y | AB8: =VLOOKUP(AB$6,'Control Panel'!$A$8:$F$84,5) -> Y | AC8: =VLOOKUP(AC$6,'Control Panel'!$A$8:$F$84,5) -> Y | AD8: =VLOOKUP(AD$6,'Control Panel'!$A$8:$F$84,5) -> Y | AE8: =VLOOKUP(AE$6,'Control Panel'!$A$8:$F$84,5) -> Y | AF8: =VLOOKUP(AF$6,'Control Panel'!$A$8:$F$84,5) -> Y | AG8: =VLOOKUP(AG$6,'Control Panel'!$A$8:$F$84,5) -> Y | AH8: =VLOOKUP(AH$6,'Control Panel'!$A$8:$F$84,5) -> Y | AI8: =VLOOKUP(AI$6,'Control Panel'!$A$8:$F$84,5) -> Y | AJ8: =VLOOKUP(AJ$6,'Control Panel'!$A$8:$F$84,5) -> Y | AK8: =VLOOKUP(AK$6,'Control Panel'!$A$8:$F$84,5) -> Y | AL8: =VLOOKUP(AL$6,'Control Panel'!$A$8:$F$84,5) -> Y | AM8: =VLOOKUP(AM$6,'Control Panel'!$A$8:$F$84,5) -> Y | AN8: =VLOOKUP(AN$6,'Control Panel'!$A$8:$F$84,5) -> Y | AO8: =VLOOKUP(AO$6,'Control Panel'!$A$8:$F$84,5) -> Y | AP8: =VLOOKUP(AP$6,'Control Panel'!$A$8:$F$84,5) -> Y | AQ8: =VLOOKUP(AQ$6,'Control Panel'!$A$8:$F$84,5) -> Y | AR8: =VLOOKUP(AR$6,'Control Panel'!$A$8:$F$84,5) -> Y | AS8: =VLOOKUP(AS$6,'Control Panel'!$A$8:$F$84,5) -> Y | AT8: =VLOOKUP(AT$6,'Control Panel'!$A$8:$F$84,5) -> N
A9: FERC Acct | C9: Description | F9: =VLOOKUP(F$6,Adjustments,2) -> AVG RB DEC 2017 | G9: QGC Expense Dec 2017 | H9: AVG Projected Rev 2017 | I9: Underground Storage | J9: Wexpro | K9: Energy Efficiency 2017 | L9: Utah Bad Debt 2017 | M9: QGC Incentives 2017 | N9: Sporting Events DEC 2017 | O9: Advertising DEC 2017 | P9: QGC Don & Membership DEC 2017 | Q9: Reserve Accrual Dec 2017 | R9: Pipeline Integrity 2017 | S9: Optional Adjustment 1 | T9: Optional Adjustment 2 | U9: Optional Adjustment 3 | V9: Optional Adjustment 4 | W9: Optional Adjustment 5 | X9: Optional Adjustment 6 | Y9: Optional Adjustment 7 | Z9: Optional Adjustment 8 | AA9: Optional Adjustment 9 | AB9: Optional Adjustment 10 | AC9: Optional Adjustment 11 | AD9: Optional Adjustment 12 | AE9: Optional Adjustment 13 | AF9: Optional Adjustment 14 | AG9: Optional Adjustment 15 | AH9: Optional Adjustment 16 | AI9: Optional Adjustment 17 | AJ9: Optional Adjustment 18 | AK9: Optional Adjustment 19 | AL9: Optional Adjustment 20 | AM9: Optional Adjustment 21 | AN9: Optional Adjustment 22 | AO9: Optional Adjustment 23 | AP9: Optional Adjustment 24 | AQ9: Optional Adjustment 25 | AR9: Optional Adjustment 26 | AS9: Optional Adjustment 27 | AT9: Labor Adjustment-ROO | AU9: TOTAL QGC ADJUSTMENTS | AW9: RESULTING TOTAL | AX9: CHECKS MUST BE (0)
A10: UTILITY OPERATING REVENUE
A11: TARIFF DTH SALES AND REVENUE
A15: Utah
B16: GS-R | C16: Distribution Non-Gas Rev | H16: =H1*Revenue!$Q$15 -> 29621253.51 | K16: 0 | S16: ='Optional Adjustment 1'!G16*$S$1 -> 0 | T16: ='Optional Adjustment 2'!G16*$T$1 -> 0 | U16: ='Optional Adjustment 3'!G16*$U$1 -> 0 | V16: ='Optional Adjustment 4'!G16*$V$1 -> 0 | W16: ='Optional Adjustment 5'!G16*$W$1 -> 0 | X16: ='Optional Adjustment 6'!G16*$X$1 -> 0 | Y16: ='Optional Adjustment 7'!G16*$Y$1 -> 0 | Z16: ='Optional Adjustment 8'!G16*$Z$1 -> 0 | AA16: ='Optional Adjustment 9'!G16*$AA$1 -> 0 | AB16: ='Optional Adjustment 10'!G16*$AB$1 -> 0 | AC16: ='Optional Adjustment 11'!G16*$AC$1 -> 0 | AD16: ='Optional Adjustment 12'!G16*$AD$1 -> 0 | AE16: ='Optional Adjustment 13'!G16*$AE$1 -> 0 | AF16: ='Optional Adjustment 14'!G16*$AF$1 -> 0 | AG16: ='Optional Adjustment 15'!G16*$AG$1 -> 0 | AH16: ='Optional Adjustment 16'!G16*$AH$1 -> 0 | AI16: ='Optional Adjustment 17'!G16*$AI$1 -> 0 | AJ16: ='Optional Adjustment 18'!G16*$AJ$1 -> 0 | AK16: ='Optional Adjustment 19'!G16*$AK$1 -> 0 | AL16: ='Optional Adjustment 20'!G16*$AL$1 -> 0 | AM16: ='Optional Adjustment 21'!G16*$AM$1 -> 0 | AN16: ='Optional Adjustment 22'!G16*$AN$1 -> 0 | AO16: ='Optional Adjustment 23'!G16*$AO$1 -> 0 | AP16: ='Optional Adjustment 24'!G16*$AP$1 -> 0 | AQ16: ='Optional Adjustment 25'!G16*$AQ$1 -> 0 | AR16: ='Optional Adjustment 26'!G16*$AR$1 -> 0 | AS16: ='Optional Adjustment 27'!G16*$AS$1 -> 0 | AU16: =SUM(F16:AT16) -> 29621253.51 | AW16: =SUM(AU16:AU16) -> 29621253.51 | AX16: =+AW16-'ROR-Model'!G16 -> 0
AX17: =+AW17-'ROR-Model'!G17 -> 0
C18: Supplier Non-Gas Revenue | H18: =H1*Revenue!$Q$17 -> 26765634.56 | S18: ='Optional Adjustment 1'!G18*$S$1 -> 0 | T18: ='Optional Adjustment 2'!G18*$T$1 -> 0 | U18: ='Optional Adjustment 3'!G18*$U$1 -> 0 | V18: ='Optional Adjustment 4'!G18*$V$1 -> 0 | W18: ='Optional Adjustment 5'!G18*$W$1 -> 0 | X18: ='Optional Adjustment 6'!G18*$X$1 -> 0 | Y18: ='Optional Adjustment 7'!G18*$Y$1 -> 0 | Z18: ='Optional Adjustment 8'!G18*$Z$1 -> 0 | AA18: ='Optional Adjustment 9'!G18*$AA$1 -> 0 | AB18: ='Optional Adjustment 10'!G18*$AB$1 -> 0 | AC18: ='Optional Adjustment 11'!G18*$AC$1 -> 0 | AD18: ='Optional Adjustment 12'!G18*$AD$1 -> 0 | AE18: ='Optional Adjustment 13'!G18*$AE$1 -> 0 | AF18: ='Optional Adjustment 14'!G18*$AF$1 -> 0 | AG18: ='Optional Adjustment 15'!G18*$AG$1 -> 0 | AH18: ='Optional Adjustment 16'!G18*$AH$1 -> 0 | AI18: ='Optional Adjustment 17'!G18*$AI$1 -> 0 | AJ18: ='Optional Adjustment 18'!G18*$AJ$1 -> 0 | AK18: ='Optional Adjustment 19'!G18*$AK$1 -> 0 | AL18: ='Optional Adjustment 20'!G18*$AL$1 -> 0 | AM18: ='Optional Adjustment 21'!G18*$AM$1 -> 0 | AN18: ='Optional Adjustment 22'!G18*$AN$1 -> 0 | AO18: ='Optional Adjustment 23'!G18*$AO$1 -> 0 | AP18: ='Optional Adjustment 24'!G18*$AP$1 -> 0 | AQ18: ='Optional Adjustment 25'!G18*$AQ$1 -> 0 | AR18: ='Optional Adjustment 26'!G18*$AR$1 -> 0 | AS18: ='Optional Adjustment 27'!G18*$AS$1 -> 0 | AU18: =SUM(F18:AT18) -> 26765634.56 | AW18: =SUM(AU18:AU18) -> 26765634.56 | AX18: =+AW18-'ROR-Model'!G18 -> 0
AX19: =+AW19-'ROR-Model'!G19 -> 0
C20: Commodity Revenue | H20: =H1*Revenue!$Q$19 -> 19565900.55 | S20: ='Optional Adjustment 1'!G20*$S$1 -> 0 | T20: ='Optional Adjustment 2'!G20*$T$1 -> 0 | U20: ='Optional Adjustment 3'!G20*$U$1 -> 0 | V20: ='Optional Adjustment 4'!G20*$V$1 -> 0 | W20: ='Optional Adjustment 5'!G20*$W$1 -> 0 | X20: ='Optional Adjustment 6'!G20*$X$1 -> 0 | Y20: ='Optional Adjustment 7'!G20*$Y$1 -> 0 | Z20: ='Optional Adjustment 8'!G20*$Z$1 -> 0 | AA20: ='Optional Adjustment 9'!G20*$AA$1 -> 0 | AB20: ='Optional Adjustment 10'!G20*$AB$1 -> 0 | AC20: ='Optional Adjustment 11'!G20*$AC$1 -> 0 | AD20: ='Optional Adjustment 12'!G20*$AD$1 -> 0 | AE20: ='Optional Adjustment 13'!G20*$AE$1 -> 0 | AF20: ='Optional Adjustment 14'!G20*$AF$1 -> 0 | AG20: ='Optional Adjustment 15'!G20*$AG$1 -> 0 | AH20: ='Optional Adjustment 16'!G20*$AH$1 -> 0 | AI20: ='Optional Adjustment 17'!G20*$AI$1 -> 0 | AJ20: ='Optional Adjustment 18'!G20*$AJ$1 -> 0 | AK20: ='Optional Adjustment 19'!G20*$AK$1 -> 0 | AL20: ='Optional Adjustment 20'!G20*$AL$1 -> 0 | AM20: ='Optional Adjustment 21'!G20*$AM$1 -> 0 | AN20: ='Optional Adjustment 22'!G20*$AN$1 -> 0 | AO20: ='Optional Adjustment 23'!G20*$AO$1 -> 0 | AP20: ='Optional Adjustment 24'!G20*$AP$1 -> 0 | AQ20: ='Optional Adjustment 25'!G20*$AQ$1 -> 0 | AR20: ='Optional Adjustment 26'!G20*$AR$1 -> 0 | AS20: ='Optional Adjustment 27'!G20*$AS$1 -> 0 | AU20: =SUM(F20:AT20) -> 19565900.55 | AW20: =SUM(AU20:AU20) -> 19565900.55 | AX20: =+AW20-'ROR-Model'!G20 -> 0
C21: Total Revenue | F21: =SUM(F16:F20) -> 0 | H21: =H1*SUM(H16:H20) -> 75952788.62 | I21: =SUM(I16:I20) -> 0 | J21: =SUM(J16:J20) -> 0 | K21: 0 | L21: 0 | M21: 0 | N21: 0 | O21: 0 | P21: 0 | Q21: =SUM(Q16:Q20) -> 0 | R21: 0 | S21: 0 | T21: 0 | U21: 0 | V21: 0 | W21: 0 | X21: =SUM(X16:X20) -> 0 | Y21: 0 | Z21: 0 | AA21: 0 | AB21: 0 | AC21: 0 | AD21: 0 | AE21: 0 | AF21: 0 | AG21: 0 | AH21: =SUM(AH16:AH20) -> 0 | AI21: 0 | AJ21: 0 | AK21: 0 | AL21: =SUM(AL16:AL20) -> 0 | AM21: 0 | AN21: 0 | AO21: 0 | AP21: 0 | AQ21: =SUM(AQ16:AQ20) -> 0 | AR21: 0 | AS21: 0 | AU21: =SUM(F21:AT21) -> 75952788.62 | AW21: =SUM(AU21:AU21) -> 75952788.62 | AX21: =+AW21-'ROR-Model'!G21 -> 0
AX22: =+AW22-'ROR-Model'!G22 -> 0
C23: Total Dth | H23: =H1*Revenue!$Q$22 -> 15379977 | AU23: =SUM(F23:AT23) -> 15379977 | AW23: =SUM(AU23:AU23) -> 15379977 | AX23: =+AW23-'ROR-Model'!G23 -> 0
AX24: =+AW24-'ROR-Model'!G24 -> 0
B25: GS-C | C25: Distribution Non-Gas Rev | H25: =H1*Revenue!$Q$24 -> 0 | S25: ='Optional Adjustment 1'!G25*$S$1 -> 0 | T25: ='Optional Adjustment 2'!G25*$T$1 -> 0 | U25: ='Optional Adjustment 3'!G25*$U$1 -> 0 | V25: ='Optional Adjustment 4'!G25*$V$1 -> 0 | W25: ='Optional Adjustment 5'!G25*$W$1 -> 0 | X25: ='Optional Adjustment 6'!G25*$X$1 -> 0 | Y25: ='Optional Adjustment 7'!G25*$Y$1 -> 0 | Z25: ='Optional Adjustment 8'!G25*$Z$1 -> 0 | AA25: ='Optional Adjustment 9'!G25*$AA$1 -> 0 | AB25: ='Optional Adjustment 10'!G25*$AB$1 -> 0 | AC25: ='Optional Adjustment 11'!G25*$AC$1 -> 0 | AD25: ='Optional Adjustment 12'!G25*$AD$1 -> 0 | AE25: ='Optional Adjustment 13'!G25*$AE$1 -> 0 | AF25: ='Optional Adjustment 14'!G25*$AF$1 -> 0 | AG25: ='Optional Adjustment 15'!G25*$AG$1 -> 0 | AH25: ='Optional Adjustment 16'!G25*$AH$1 -> 0 | AI25: ='Optional Adjustment 17'!G25*$AI$1 -> 0 | AJ25: ='Optional Adjustment 18'!G25*$AJ$1 -> 0 | AK25: ='Optional Adjustment 19'!G25*$AK$1 -> 0 | AL25: ='Optional Adjustment 20'!G25*$AL$1 -> 0 | AM25: ='Optional Adjustment 21'!G25*$AM$1 -> 0 | AN25: ='Optional Adjustment 22'!G25*$AN$1 -> 0 | AO25: ='Optional Adjustment 23'!G25*$AO$1 -> 0 | AP25: ='Optional Adjustment 24'!G25*$AP$1 -> 0 | AQ25: ='Optional Adjustment 25'!G25*$AQ$1 -> 0 | AR25: ='Optional Adjustment 26'!G25*$AR$1 -> 0 | AS25: ='Optional Adjustment 27'!G25*$AS$1 -> 0 | AU25: =SUM(F25:AT25) -> 0 | AW25: =SUM(AU25:AU25) -> 0 | AX25: =+AW25-'ROR-Model'!G25 -> 0
AX26: =+AW26-'ROR-Model'!G26 -> 0
C27: Supplier Non-Gas Revenue | H27: =H1*Revenue!$Q$26 -> 0 | S27: ='Optional Adjustment 1'!G27*$S$1 -> 0 | T27: ='Optional Adjustment 2'!G27*$T$1 -> 0 | U27: ='Optional Adjustment 3'!G27*$U$1 -> 0 | V27: ='Optional Adjustment 4'!G27*$V$1 -> 0 | W27: ='Optional Adjustment 5'!G27*$W$1 -> 0 | X27: ='Optional Adjustment 6'!G27*$X$1 -> 0 | Y27: ='Optional Adjustment 7'!G27*$Y$1 -> 0 | Z27: ='Optional Adjustment 8'!G27*$Z$1 -> 0 | AA27: ='Optional Adjustment 9'!G27*$AA$1 -> 0 | AB27: ='Optional Adjustment 10'!G27*$AB$1 -> 0 | AC27: ='Optional Adjustment 11'!G27*$AC$1 -> 0 | AD27: ='Optional Adjustment 12'!G27*$AD$1 -> 0 | AE27: ='Optional Adjustment 13'!G27*$AE$1 -> 0 | AF27: ='Optional Adjustment 14'!G27*$AF$1 -> 0 | AG27: ='Optional Adjustment 15'!G27*$AG$1 -> 0 | AH27: ='Optional Adjustment 16'!G27*$AH$1 -> 0 | AI27: ='Optional Adjustment 17'!G27*$AI$1 -> 0 | AJ27: ='Optional Adjustment 18'!G27*$AJ$1 -> 0 | AK27: ='Optional Adjustment 19'!G27*$AK$1 -> 0 | AL27: ='Optional Adjustment 20'!G27*$AL$1 -> 0 | AM27: ='Optional Adjustment 21'!G27*$AM$1 -> 0 | AN27: ='Optional Adjustment 22'!G27*$AN$1 -> 0 | AO27: ='Optional Adjustment 23'!G27*$AO$1 -> 0 | AP27: ='Optional Adjustment 24'!G27*$AP$1 -> 0 | AQ27: ='Optional Adjustment 25'!G27*$AQ$1 -> 0 | AR27: ='Optional Adjustment 26'!G27*$AR$1 -> 0 | AS27: ='Optional Adjustment 27'!G27*$AS$1 -> 0 | AU27: =SUM(F27:AT27) -> 0 | AW27: =SUM(AU27:AU27) -> 0 | AX27: =+AW27-'ROR-Model'!G27 -> 0
AX28: =+AW28-'ROR-Model'!G28 -> 0
C29: Commodity Revenue | H29: =H1*Revenue!$Q$28 -> 0 | S29: ='Optional Adjustment 1'!G29*$S$1 -> 0 | T29: ='Optional Adjustment 2'!G29*$T$1 -> 0 | U29: ='Optional Adjustment 3'!G29*$U$1 -> 0 | V29: ='Optional Adjustment 4'!G29*$V$1 -> 0 | W29: ='Optional Adjustment 5'!G29*$W$1 -> 0 | X29: ='Optional Adjustment 6'!G29*$X$1 -> 0 | Y29: ='Optional Adjustment 7'!G29*$Y$1 -> 0 | Z29: ='Optional Adjustment 8'!G29*$Z$1 -> 0 | AA29: ='Optional Adjustment 9'!G29*$AA$1 -> 0 | AB29: ='Optional Adjustment 10'!G29*$AB$1 -> 0 | AC29: ='Optional Adjustment 11'!G29*$AC$1 -> 0 | AD29: ='Optional Adjustment 12'!G29*$AD$1 -> 0 | AE29: ='Optional Adjustment 13'!G29*$AE$1 -> 0 | AF29: ='Optional Adjustment 14'!G29*$AF$1 -> 0 | AG29: ='Optional Adjustment 15'!G29*$AG$1 -> 0 | AH29: ='Optional Adjustment 16'!G29*$AH$1 -> 0 | AI29: ='Optional Adjustment 17'!G29*$AI$1 -> 0 | AJ29: ='Optional Adjustment 18'!G29*$AJ$1 -> 0 | AK29: ='Optional Adjustment 19'!G29*$AK$1 -> 0 | AL29: ='Optional Adjustment 20'!G29*$AL$1 -> 0 | AM29: ='Optional Adjustment 21'!G29*$AM$1 -> 0 | AN29: ='Optional Adjustment 22'!G29*$AN$1 -> 0 | AO29: ='Optional Adjustment 23'!G29*$AO$1 -> 0 | AP29: ='Optional Adjustment 24'!G29*$AP$1 -> 0 | AQ29: ='Optional Adjustment 25'!G29*$AQ$1 -> 0 | AR29: ='Optional Adjustment 26'!G29*$AR$1 -> 0 | AS29: ='Optional Adjustment 27'!G29*$AS$1 -> 0 | AU29: =SUM(F29:AT29) -> 0 | AW29: =SUM(AU29:AU29) -> 0 | AX29: =+AW29-'ROR-Model'!G29 -> 0
C30: Total Revenue | F30: =SUM(F25:F29) -> 0 | H30: =H1*SUM(H25:H29) -> 0 | I30: =SUM(I25:I29) -> 0 | J30: =SUM(J25:J29) -> 0 | K30: 0 | L30: 0 | M30: 0 | N30: 0 | O30: 0 | P30: 0 | Q30: =SUM(Q25:Q29) -> 0 | R30: 0 | S30: 0 | T30: 0 | U30: 0 | V30: 0 | W30: 0 | X30: =SUM(X25:X29) -> 0 | Y30: 0 | Z30: 0 | AA30: 0 | AB30: 0 | AC30: 0 | AD30: 0 | AE30: 0 | AF30: 0 | AG30: 0 | AH30: =SUM(AH25:AH29) -> 0 | AI30: 0 | AJ30: 0 | AK30: 0 | AL30: =SUM(AL25:AL29) -> 0 | AM30: 0 | AN30: 0 | AO30: 0 | AP30: 0 | AQ30: =SUM(AQ25:AQ29) -> 0 | AR30: 0 | AS30: 0 | AU30: =SUM(F30:AT30) -> 0 | AW30: =SUM(AU30:AU30) -> 0 | AX30: =+AW30-'ROR-Model'!G30 -> 0
AX31: =+AW31-'ROR-Model'!G31 -> 0
C32: Total Dth | H32: =H1*Revenue!$Q$31 -> 0 | AU32: =SUM(F32:AT32) -> 0 | AW32: =SUM(AU32:AU32) -> 0 | AX32: =+AW32-'ROR-Model'!G32 -> 0
AX33: =+AW33-'ROR-Model'!G33 -> 0
B34: GSS | C34: Distribution Non-Gas Rev | H34: =H1*Revenue!$Q$33 -> 0 | S34: ='Optional Adjustment 1'!G34*$S$1 -> 0 | T34: ='Optional Adjustment 2'!G34*$T$1 -> 0 | U34: ='Optional Adjustment 3'!G34*$U$1 -> 0 | V34: ='Optional Adjustment 4'!G34*$V$1 -> 0 | W34: ='Optional Adjustment 5'!G34*$W$1 -> 0 | X34: ='Optional Adjustment 6'!G34*$X$1 -> 0 | Y34: ='Optional Adjustment 7'!G34*$Y$1 -> 0 | Z34: ='Optional Adjustment 8'!G34*$Z$1 -> 0 | AA34: ='Optional Adjustment 9'!G34*$AA$1 -> 0 | AB34: ='Optional Adjustment 10'!G34*$AB$1 -> 0 | AC34: ='Optional Adjustment 11'!G34*$AC$1 -> 0 | AD34: ='Optional Adjustment 12'!G34*$AD$1 -> 0 | AE34: ='Optional Adjustment 13'!G34*$AE$1 -> 0 | AF34: ='Optional Adjustment 14'!G34*$AF$1 -> 0 | AG34: ='Optional Adjustment 15'!G34*$AG$1 -> 0 | AH34: ='Optional Adjustment 16'!G34*$AH$1 -> 0 | AI34: ='Optional Adjustment 17'!G34*$AI$1 -> 0 | AJ34: ='Optional Adjustment 18'!G34*$AJ$1 -> 0 | AK34: ='Optional Adjustment 19'!G34*$AK$1 -> 0 | AL34: ='Optional Adjustment 20'!G34*$AL$1 -> 0 | AM34: ='Optional Adjustment 21'!G34*$AM$1 -> 0 | AN34: ='Optional Adjustment 22'!G34*$AN$1 -> 0 | AO34: ='Optional Adjustment 23'!G34*$AO$1 -> 0 | AP34: ='Optional Adjustment 24'!G34*$AP$1 -> 0 | AQ34: ='Optional Adjustment 25'!G34*$AQ$1 -> 0 | AR34: ='Optional Adjustment 26'!G34*$AR$1 -> 0 | AS34: ='Optional Adjustment 27'!G34*$AS$1 -> 0 | AU34: =SUM(F34:AT34) -> 0 | AW34: =SUM(AU34:AU34) -> 0 | AX34: =+AW34-'ROR-Model'!G34 -> 0
AX35: =+AW35-'ROR-Model'!G35 -> 0
C36: Supplier Non-Gas Revenue | H36: =H1*Revenue!$Q$35 -> 0 | S36: ='Optional Adjustment 1'!G36*$S$1 -> 0 | T36: ='Optional Adjustment 2'!G36*$T$1 -> 0 | U36: ='Optional Adjustment 3'!G36*$U$1 -> 0 | V36: ='Optional Adjustment 4'!G36*$V$1 -> 0 | W36: ='Optional Adjustment 5'!G36*$W$1 -> 0 | X36: ='Optional Adjustment 6'!G36*$X$1 -> 0 | Y36: ='Optional Adjustment 7'!G36*$Y$1 -> 0 | Z36: ='Optional Adjustment 8'!G36*$Z$1 -> 0 | AA36: ='Optional Adjustment 9'!G36*$AA$1 -> 0 | AB36: ='Optional Adjustment 10'!G36*$AB$1 -> 0 | AC36: ='Optional Adjustment 11'!G36*$AC$1 -> 0 | AD36: ='Optional Adjustment 12'!G36*$AD$1 -> 0 | AE36: ='Optional Adjustment 13'!G36*$AE$1 -> 0 | AF36: ='Optional Adjustment 14'!G36*$AF$1 -> 0 | AG36: ='Optional Adjustment 15'!G36*$AG$1 -> 0 | AH36: ='Optional Adjustment 16'!G36*$AH$1 -> 0 | AI36: ='Optional Adjustment 17'!G36*$AI$1 -> 0 | AJ36: ='Optional Adjustment 18'!G36*$AJ$1 -> 0 | AK36: ='Optional Adjustment 19'!G36*$AK$1 -> 0 | AL36: ='Optional Adjustment 20'!G36*$AL$1 -> 0 | AM36: ='Optional Adjustment 21'!G36*$AM$1 -> 0 | AN36: ='Optional Adjustment 22'!G36*$AN$1 -> 0 | AO36: ='Optional Adjustment 23'!G36*$AO$1 -> 0 | AP36: ='Optional Adjustment 24'!G36*$AP$1 -> 0 | AQ36: ='Optional Adjustment 25'!G36*$AQ$1 -> 0 | AR36: ='Optional Adjustment 26'!G36*$AR$1 -> 0 | AS36: ='Optional Adjustment 27'!G36*$AS$1 -> 0 | AU36: =SUM(F36:AT36) -> 0 | AW36: =SUM(AU36:AU36) -> 0 | AX36: =+AW36-'ROR-Model'!G36 -> 0
AX37: =+AW37-'ROR-Model'!G37 -> 0
C38: Commodity Revenue | H38: =H1*Revenue!$Q$37 -> 0 | S38: ='Optional Adjustment 1'!G38*$S$1 -> 0 | T38: ='Optional Adjustment 2'!G38*$T$1 -> 0 | U38: ='Optional Adjustment 3'!G38*$U$1 -> 0 | V38: ='Optional Adjustment 4'!G38*$V$1 -> 0 | W38: ='Optional Adjustment 5'!G38*$W$1 -> 0 | X38: ='Optional Adjustment 6'!G38*$X$1 -> 0 | Y38: ='Optional Adjustment 7'!G38*$Y$1 -> 0 | Z38: ='Optional Adjustment 8'!G38*$Z$1 -> 0 | AA38: ='Optional Adjustment 9'!G38*$AA$1 -> 0 | AB38: ='Optional Adjustment 10'!G38*$AB$1 -> 0 | AC38: ='Optional Adjustment 11'!G38*$AC$1 -> 0 | AD38: ='Optional Adjustment 12'!G38*$AD$1 -> 0 | AE38: ='Optional Adjustment 13'!G38*$AE$1 -> 0 | AF38: ='Optional Adjustment 14'!G38*$AF$1 -> 0 | AG38: ='Optional Adjustment 15'!G38*$AG$1 -> 0 | AH38: ='Optional Adjustment 16'!G38*$AH$1 -> 0 | AI38: ='Optional Adjustment 17'!G38*$AI$1 -> 0 | AJ38: ='Optional Adjustment 18'!G38*$AJ$1 -> 0 | AK38: ='Optional Adjustment 19'!G38*$AK$1 -> 0 | AL38: ='Optional Adjustment 20'!G38*$AL$1 -> 0 | AM38: ='Optional Adjustment 21'!G38*$AM$1 -> 0 | AN38: ='Optional Adjustment 22'!G38*$AN$1 -> 0 | AO38: ='Optional Adjustment 23'!G38*$AO$1 -> 0 | AP38: ='Optional Adjustment 24'!G38*$AP$1 -> 0 | AQ38: ='Optional Adjustment 25'!G38*$AQ$1 -> 0 | AR38: ='Optional Adjustment 26'!G38*$AR$1 -> 0 | AS38: ='Optional Adjustment 27'!G38*$AS$1 -> 0 | AU38: =SUM(F38:AT38) -> 0 | AW38: =SUM(AU38:AU38) -> 0 | AX38: =+AW38-'ROR-Model'!G38 -> 0
C39: Total Revenue | F39: =SUM(F34:F38) -> 0 | H39: =H1*SUM(H34:H38) -> 0 | I39: =SUM(I34:I38) -> 0 | J39: =SUM(J34:J38) -> 0 | K39: 0 | L39: 0 | M39: 0 | N39: 0 | O39: 0 | P39: 0 | Q39: =SUM(Q34:Q38) -> 0 | R39: 0 | S39: 0 | T39: 0 | U39: 0 | V39: 0 | W39: 0 | X39: =SUM(X34:X38) -> 0 | Y39: 0 | Z39: 0 | AA39: 0 | AB39: 0 | AC39: 0 | AD39: 0 | AE39: 0 | AF39: 0 | AG39: 0 | AH39: =SUM(AH34:AH38) -> 0 | AI39: 0 | AJ39: 0 | AK39: 0 | AL39: =SUM(AL34:AL38) -> 0 | AM39: 0 | AN39: 0 | AO39: 0 | AP39: 0 | AQ39: =SUM(AQ34:AQ38) -> 0 | AR39: 0 | AS39: 0 | AU39: =SUM(F39:AT39) -> 0 | AW39: =SUM(AU39:AU39) -> 0 | AX39: =+AW39-'ROR-Model'!G39 -> 0
AX40: =+AW40-'ROR-Model'!G40 -> 0
C41: Total Dth | H41: =H1*Revenue!$Q$40 -> 0 | AU41: =SUM(F41:AT41) -> 0 | AW41: =SUM(AU41:AU41) -> 0 | AX41: =+AW41-'ROR-Model'!G41 -> 0
AX42: =+AW42-'ROR-Model'!G42 -> 0
B43: F1_FS_F1A_F1B | C43: Distribution Non-Gas Rev | H43: =H1*Revenue!$Q$42 -> -224162.9433 | S43: ='Optional Adjustment 1'!G43*$S$1 -> 0 | T43: ='Optional Adjustment 2'!G43*$T$1 -> 0 | U43: ='Optional Adjustment 3'!G43*$U$1 -> 0 | V43: ='Optional Adjustment 4'!G43*$V$1 -> 0 | W43: ='Optional Adjustment 5'!G43*$W$1 -> 0 | X43: ='Optional Adjustment 6'!G43*$X$1 -> 0 | Y43: ='Optional Adjustment 7'!G43*$Y$1 -> 0 | Z43: ='Optional Adjustment 8'!G43*$Z$1 -> 0 | AA43: ='Optional Adjustment 9'!G43*$AA$1 -> 0 | AB43: ='Optional Adjustment 10'!G43*$AB$1 -> 0 | AC43: ='Optional Adjustment 11'!G43*$AC$1 -> 0 | AD43: ='Optional Adjustment 12'!G43*$AD$1 -> 0 | AE43: ='Optional Adjustment 13'!G43*$AE$1 -> 0 | AF43: ='Optional Adjustment 14'!G43*$AF$1 -> 0 | AG43: ='Optional Adjustment 15'!G43*$AG$1 -> 0 | AH43: ='Optional Adjustment 16'!G43*$AH$1 -> 0 | AI43: ='Optional Adjustment 17'!G43*$AI$1 -> 0 | AJ43: ='Optional Adjustment 18'!G43*$AJ$1 -> 0 | AK43: ='Optional Adjustment 19'!G43*$AK$1 -> 0 | AL43: ='Optional Adjustment 20'!G43*$AL$1 -> 0 | AM43: ='Optional Adjustment 21'!G43*$AM$1 -> 0 | AN43: ='Optional Adjustment 22'!G43*$AN$1 -> 0 | AO43: ='Optional Adjustment 23'!G43*$AO$1 -> 0 | AP43: ='Optional Adjustment 24'!G43*$AP$1 -> 0 | AQ43: ='Optional Adjustment 25'!G43*$AQ$1 -> 0 | AR43: ='Optional Adjustment 26'!G43*$AR$1 -> 0 | AS43: ='Optional Adjustment 27'!G43*$AS$1 -> 0 | AU43: =SUM(F43:AT43) -> -224162.9433 | AW43: =SUM(AU43:AU43) -> -224162.9433 | AX43: =+AW43-'ROR-Model'!G43 -> 0
AX44: =+AW44-'ROR-Model'!G44 -> 0
C45: Supplier Non-Gas Revenue | H45: =H1*Revenue!$Q$44 -> 142512.73 | S45: ='Optional Adjustment 1'!G45*$S$1 -> 0 | T45: ='Optional Adjustment 2'!G45*$T$1 -> 0 | U45: ='Optional Adjustment 3'!G45*$U$1 -> 0 | V45: ='Optional Adjustment 4'!G45*$V$1 -> 0 | W45: ='Optional Adjustment 5'!G45*$W$1 -> 0 | X45: ='Optional Adjustment 6'!G45*$X$1 -> 0 | Y45: ='Optional Adjustment 7'!G45*$Y$1 -> 0 | Z45: ='Optional Adjustment 8'!G45*$Z$1 -> 0 | AA45: ='Optional Adjustment 9'!G45*$AA$1 -> 0 | AB45: ='Optional Adjustment 10'!G45*$AB$1 -> 0 | AC45: ='Optional Adjustment 11'!G45*$AC$1 -> 0 | AD45: ='Optional Adjustment 12'!G45*$AD$1 -> 0 | AE45: ='Optional Adjustment 13'!G45*$AE$1 -> 0 | AF45: ='Optional Adjustment 14'!G45*$AF$1 -> 0 | AG45: ='Optional Adjustment 15'!G45*$AG$1 -> 0 | AH45: ='Optional Adjustment 16'!G45*$AH$1 -> 0 | AI45: ='Optional Adjustment 17'!G45*$AI$1 -> 0 | AJ45: ='Optional Adjustment 18'!G45*$AJ$1 -> 0 | AK45: ='Optional Adjustment 19'!G45*$AK$1 -> 0 | AL45: ='Optional Adjustment 20'!G45*$AL$1 -> 0 | AM45: ='Optional Adjustment 21'!G45*$AM$1 -> 0 | AN45: ='Optional Adjustment 22'!G45*$AN$1 -> 0 | AO45: ='Optional Adjustment 23'!G45*$AO$1 -> 0 | AP45: ='Optional Adjustment 24'!G45*$AP$1 -> 0 | AQ45: ='Optional Adjustment 25'!G45*$AQ$1 -> 0 | AR45: ='Optional Adjustment 26'!G45*$AR$1 -> 0 | AS45: ='Optional Adjustment 27'!G45*$AS$1 -> 0 | AU45: =SUM(F45:AT45) -> 142512.73 | AW45: =SUM(AU45:AU45) -> 142512.73 | AX45: =+AW45-'ROR-Model'!G45 -> 0
AX46: =+AW46-'ROR-Model'!G46 -> 0
C47: Commodity Revenue | H47: =H1*Revenue!$Q$46 -> -3872054.8 | S47: ='Optional Adjustment 1'!G47*$S$1 -> 0 | T47: ='Optional Adjustment 2'!G47*$T$1 -> 0 | U47: ='Optional Adjustment 3'!G47*$U$1 -> 0 | V47: ='Optional Adjustment 4'!G47*$V$1 -> 0 | W47: ='Optional Adjustment 5'!G47*$W$1 -> 0 | X47: ='Optional Adjustment 6'!G47*$X$1 -> 0 | Y47: ='Optional Adjustment 7'!G47*$Y$1 -> 0 | Z47: ='Optional Adjustment 8'!G47*$Z$1 -> 0 | AA47: ='Optional Adjustment 9'!G47*$AA$1 -> 0 | AB47: ='Optional Adjustment 10'!G47*$AB$1 -> 0 | AC47: ='Optional Adjustment 11'!G47*$AC$1 -> 0 | AD47: ='Optional Adjustment 12'!G47*$AD$1 -> 0 | AE47: ='Optional Adjustment 13'!G47*$AE$1 -> 0 | AF47: ='Optional Adjustment 14'!G47*$AF$1 -> 0 | AG47: ='Optional Adjustment 15'!G47*$AG$1 -> 0 | AH47: ='Optional Adjustment 16'!G47*$AH$1 -> 0 | AI47: ='Optional Adjustment 17'!G47*$AI$1 -> 0 | AJ47: ='Optional Adjustment 18'!G47*$AJ$1 -> 0 | AK47: ='Optional Adjustment 19'!G47*$AK$1 -> 0 | AL47: ='Optional Adjustment 20'!G47*$AL$1 -> 0 | AM47: ='Optional Adjustment 21'!G47*$AM$1 -> 0 | AN47: ='Optional Adjustment 22'!G47*$AN$1 -> 0 | AO47: ='Optional Adjustment 23'!G47*$AO$1 -> 0 | AP47: ='Optional Adjustment 24'!G47*$AP$1 -> 0 | AQ47: ='Optional Adjustment 25'!G47*$AQ$1 -> 0 | AR47: ='Optional Adjustment 26'!G47*$AR$1 -> 0 | AS47: ='Optional Adjustment 27'!G47*$AS$1 -> 0 | AU47: =SUM(F47:AT47) -> -3872054.8 | AW47: =SUM(AU47:AU47) -> -3872054.8 | AX47: =+AW47-'ROR-Model'!G47 -> 0
C48: Total Revenue | F48: =SUM(F43:F47) -> 0 | H48: =H1*SUM(H43:H47) -> -3953705.013 | I48: =SUM(I43:I47) -> 0 | J48: =SUM(J43:J47) -> 0 | K48: 0 | L48: 0 | M48: 0 | N48: 0 | O48: 0 | P48: 0 | Q48: =SUM(Q43:Q47) -> 0 | R48: 0 | S48: 0 | T48: 0 | U48: 0 | V48: 0 | W48: 0 | X48: =SUM(X43:X47) -> 0 | Y48: 0 | Z48: 0 | AA48: 0 | AB48: 0 | AC48: 0 | AD48: 0 | AE48: 0 | AF48: 0 | AG48: 0 | AH48: =SUM(AH43:AH47) -> 0 | AI48: 0 | AJ48: 0 | AK48: 0 | AL48: =SUM(AL43:AL47) -> 0 | AM48: 0 | AN48: 0 | AO48: 0 | AP48: 0 | AQ48: =SUM(AQ43:AQ47) -> 0 | AR48: 0 | AS48: 0 | AU48: =SUM(AU43:AU47) -> -3953705.013 | AW48: =SUM(AW43:AW47) -> -3953705.013 | AX48: =+AW48-'ROR-Model'!G48 -> 0
AX49: =+AW49-'ROR-Model'!G49 -> 0
C50: Total Dth | H50: =H1*Revenue!$Q$49 -> -384868 | AU50: =SUM(F50:AT50) -> -384868 | AW50: =SUM(AU50:AU50) -> -384868 | AX50: =+AW50-'ROR-Model'!G50 -> 0
AX51: =+AW51-'ROR-Model'!G51 -> 0
B52: F-3 | C52: Distribution Non-Gas Rev | H52: =H1*Revenue!$Q$51 -> 0 | S52: ='Optional Adjustment 1'!G52*$S$1 -> 0 | T52: ='Optional Adjustment 2'!G52*$T$1 -> 0 | U52: ='Optional Adjustment 3'!G52*$U$1 -> 0 | V52: ='Optional Adjustment 4'!G52*$V$1 -> 0 | W52: ='Optional Adjustment 5'!G52*$W$1 -> 0 | X52: ='Optional Adjustment 6'!G52*$X$1 -> 0 | Y52: ='Optional Adjustment 7'!G52*$Y$1 -> 0 | Z52: ='Optional Adjustment 8'!G52*$Z$1 -> 0 | AA52: ='Optional Adjustment 9'!G52*$AA$1 -> 0 | AB52: ='Optional Adjustment 10'!G52*$AB$1 -> 0 | AC52: ='Optional Adjustment 11'!G52*$AC$1 -> 0 | AD52: ='Optional Adjustment 12'!G52*$AD$1 -> 0 | AE52: ='Optional Adjustment 13'!G52*$AE$1 -> 0 | AF52: ='Optional Adjustment 14'!G52*$AF$1 -> 0 | AG52: ='Optional Adjustment 15'!G52*$AG$1 -> 0 | AH52: ='Optional Adjustment 16'!G52*$AH$1 -> 0 | AI52: ='Optional Adjustment 17'!G52*$AI$1 -> 0 | AJ52: ='Optional Adjustment 18'!G52*$AJ$1 -> 0 | AK52: ='Optional Adjustment 19'!G52*$AK$1 -> 0 | AL52: ='Optional Adjustment 20'!G52*$AL$1 -> 0 | AM52: ='Optional Adjustment 21'!G52*$AM$1 -> 0 | AN52: ='Optional Adjustment 22'!G52*$AN$1 -> 0 | AO52: ='Optional Adjustment 23'!G52*$AO$1 -> 0 | AP52: ='Optional Adjustment 24'!G52*$AP$1 -> 0 | AQ52: ='Optional Adjustment 25'!G52*$AQ$1 -> 0 | AR52: ='Optional Adjustment 26'!G52*$AR$1 -> 0 | AS52: ='Optional Adjustment 27'!G52*$AS$1 -> 0 | AU52: =SUM(F52:AT52) -> 0 | AW52: =SUM(AU52:AU52) -> 0 | AX52: =+AW52-'ROR-Model'!G52 -> 0
C53: Supplier Non-Gas Revenue | S53: ='Optional Adjustment 1'!G53*$S$1 -> 0 | T53: ='Optional Adjustment 2'!G53*$T$1 -> 0 | U53: ='Optional Adjustment 3'!G53*$U$1 -> 0 | V53: ='Optional Adjustment 4'!G53*$V$1 -> 0 | W53: ='Optional Adjustment 5'!G53*$W$1 -> 0 | X53: ='Optional Adjustment 6'!G53*$X$1 -> 0 | Y53: ='Optional Adjustment 7'!G53*$Y$1 -> 0 | Z53: ='Optional Adjustment 8'!G53*$Z$1 -> 0 | AA53: ='Optional Adjustment 9'!G53*$AA$1 -> 0 | AB53: ='Optional Adjustment 10'!G53*$AB$1 -> 0 | AC53: ='Optional Adjustment 11'!G53*$AC$1 -> 0 | AD53: ='Optional Adjustment 12'!G53*$AD$1 -> 0 | AE53: ='Optional Adjustment 13'!G53*$AE$1 -> 0 | AF53: ='Optional Adjustment 14'!G53*$AF$1 -> 0 | AG53: ='Optional Adjustment 15'!G53*$AG$1 -> 0 | AH53: ='Optional Adjustment 16'!G53*$AH$1 -> 0 | AI53: ='Optional Adjustment 17'!G53*$AI$1 -> 0 | AJ53: ='Optional Adjustment 18'!G53*$AJ$1 -> 0 | AK53: ='Optional Adjustment 19'!G53*$AK$1 -> 0 | AL53: ='Optional Adjustment 20'!G53*$AL$1 -> 0 | AM53: ='Optional Adjustment 21'!G53*$AM$1 -> 0 | AN53: ='Optional Adjustment 22'!G53*$AN$1 -> 0 | AO53: ='Optional Adjustment 23'!G53*$AO$1 -> 0 | AP53: ='Optional Adjustment 24'!G53*$AP$1 -> 0 | AQ53: ='Optional Adjustment 25'!G53*$AQ$1 -> 0 | AR53: ='Optional Adjustment 26'!G53*$AR$1 -> 0 | AS53: ='Optional Adjustment 27'!G53*$AS$1 -> 0 | AU53: =SUM(F53:AT53) -> 0 | AW53: =SUM(AU53:AU53) -> 0 | AX53: =+AW53-'ROR-Model'!G53 -> 0
C54: Supplier Non-Gas Demand Revenue | H54: =H1*Revenue!$Q$53 -> 0 | S54: ='Optional Adjustment 1'!G54*$S$1 -> 0 | T54: ='Optional Adjustment 2'!G54*$T$1 -> 0 | U54: ='Optional Adjustment 3'!G54*$U$1 -> 0 | V54: ='Optional Adjustment 4'!G54*$V$1 -> 0 | W54: ='Optional Adjustment 5'!G54*$W$1 -> 0 | X54: ='Optional Adjustment 6'!G54*$X$1 -> 0 | Y54: ='Optional Adjustment 7'!G54*$Y$1 -> 0 | Z54: ='Optional Adjustment 8'!G54*$Z$1 -> 0 | AA54: ='Optional Adjustment 9'!G54*$AA$1 -> 0 | AB54: ='Optional Adjustment 10'!G54*$AB$1 -> 0 | AC54: ='Optional Adjustment 11'!G54*$AC$1 -> 0 | AD54: ='Optional Adjustment 12'!G54*$AD$1 -> 0 | AE54: ='Optional Adjustment 13'!G54*$AE$1 -> 0 | AF54: ='Optional Adjustment 14'!G54*$AF$1 -> 0 | AG54: ='Optional Adjustment 15'!G54*$AG$1 -> 0 | AH54: ='Optional Adjustment 16'!G54*$AH$1 -> 0 | AI54: ='Optional Adjustment 17'!G54*$AI$1 -> 0 | AJ54: ='Optional Adjustment 18'!G54*$AJ$1 -> 0 | AK54: ='Optional Adjustment 19'!G54*$AK$1 -> 0 | AL54: ='Optional Adjustment 20'!G54*$AL$1 -> 0 | AM54: ='Optional Adjustment 21'!G54*$AM$1 -> 0 | AN54: ='Optional Adjustment 22'!G54*$AN$1 -> 0 | AO54: ='Optional Adjustment 23'!G54*$AO$1 -> 0 | AP54: ='Optional Adjustment 24'!G54*$AP$1 -> 0 | AQ54: ='Optional Adjustment 25'!G54*$AQ$1 -> 0 | AR54: ='Optional Adjustment 26'!G54*$AR$1 -> 0 | AS54: ='Optional Adjustment 27'!G54*$AS$1 -> 0 | AU54: =SUM(F54:AT54) -> 0 | AW54: =SUM(AU54:AU54) -> 0 | AX54: =+AW54-'ROR-Model'!G54 -> 0
C55: Commodity Tariff Revenue | S55: ='Optional Adjustment 1'!G55*$S$1 -> 0 | T55: ='Optional Adjustment 2'!G55*$T$1 -> 0 | U55: ='Optional Adjustment 3'!G55*$U$1 -> 0 | V55: ='Optional Adjustment 4'!G55*$V$1 -> 0 | W55: ='Optional Adjustment 5'!G55*$W$1 -> 0 | X55: ='Optional Adjustment 6'!G55*$X$1 -> 0 | Y55: ='Optional Adjustment 7'!G55*$Y$1 -> 0 | Z55: ='Optional Adjustment 8'!G55*$Z$1 -> 0 | AA55: ='Optional Adjustment 9'!G55*$AA$1 -> 0 | AB55: ='Optional Adjustment 10'!G55*$AB$1 -> 0 | AC55: ='Optional Adjustment 11'!G55*$AC$1 -> 0 | AD55: ='Optional Adjustment 12'!G55*$AD$1 -> 0 | AE55: ='Optional Adjustment 13'!G55*$AE$1 -> 0 | AF55: ='Optional Adjustment 14'!G55*$AF$1 -> 0 | AG55: ='Optional Adjustment 15'!G55*$AG$1 -> 0 | AH55: ='Optional Adjustment 16'!G55*$AH$1 -> 0 | AI55: ='Optional Adjustment 17'!G55*$AI$1 -> 0 | AJ55: ='Optional Adjustment 18'!G55*$AJ$1 -> 0 | AK55: ='Optional Adjustment 19'!G55*$AK$1 -> 0 | AL55: ='Optional Adjustment 20'!G55*$AL$1 -> 0 | AM55: ='Optional Adjustment 21'!G55*$AM$1 -> 0 | AN55: ='Optional Adjustment 22'!G55*$AN$1 -> 0 | AO55: ='Optional Adjustment 23'!G55*$AO$1 -> 0 | AP55: ='Optional Adjustment 24'!G55*$AP$1 -> 0 | AQ55: ='Optional Adjustment 25'!G55*$AQ$1 -> 0 | AR55: ='Optional Adjustment 26'!G55*$AR$1 -> 0 | AS55: ='Optional Adjustment 27'!G55*$AS$1 -> 0 | AU55: =SUM(F55:AT55) -> 0 | AW55: =SUM(AU55:AU55) -> 0 | AX55: =+AW55-'ROR-Model'!G55 -> 0
C56: Commodity Demand Revenue | H56: =H1*Revenue!$Q$55 -> 0 | S56: ='Optional Adjustment 1'!G56*$S$1 -> 0 | T56: ='Optional Adjustment 2'!G56*$T$1 -> 0 | U56: ='Optional Adjustment 3'!G56*$U$1 -> 0 | V56: ='Optional Adjustment 4'!G56*$V$1 -> 0 | W56: ='Optional Adjustment 5'!G56*$W$1 -> 0 | X56: ='Optional Adjustment 6'!G56*$X$1 -> 0 | Y56: ='Optional Adjustment 7'!G56*$Y$1 -> 0 | Z56: ='Optional Adjustment 8'!G56*$Z$1 -> 0 | AA56: ='Optional Adjustment 9'!G56*$AA$1 -> 0 | AB56: ='Optional Adjustment 10'!G56*$AB$1 -> 0 | AC56: ='Optional Adjustment 11'!G56*$AC$1 -> 0 | AD56: ='Optional Adjustment 12'!G56*$AD$1 -> 0 | AE56: ='Optional Adjustment 13'!G56*$AE$1 -> 0 | AF56: ='Optional Adjustment 14'!G56*$AF$1 -> 0 | AG56: ='Optional Adjustment 15'!G56*$AG$1 -> 0 | AH56: ='Optional Adjustment 16'!G56*$AH$1 -> 0 | AI56: ='Optional Adjustment 17'!G56*$AI$1 -> 0 | AJ56: ='Optional Adjustment 18'!G56*$AJ$1 -> 0 | AK56: ='Optional Adjustment 19'!G56*$AK$1 -> 0 | AL56: ='Optional Adjustment 20'!G56*$AL$1 -> 0 | AM56: ='Optional Adjustment 21'!G56*$AM$1 -> 0 | AN56: ='Optional Adjustment 22'!G56*$AN$1 -> 0 | AO56: ='Optional Adjustment 23'!G56*$AO$1 -> 0 | AP56: ='Optional Adjustment 24'!G56*$AP$1 -> 0 | AQ56: ='Optional Adjustment 25'!G56*$AQ$1 -> 0 | AR56: ='Optional Adjustment 26'!G56*$AR$1 -> 0 | AS56: ='Optional Adjustment 27'!G56*$AS$1 -> 0 | AU56: =SUM(F56:AT56) -> 0 | AW56: =SUM(AU56:AU56) -> 0 | AX56: =+AW56-'ROR-Model'!G56 -> 0
C57: Total Revenue | F57: =SUM(F52:F56) -> 0 | H57: =H1*SUM(H52:H56) -> 0 | I57: =SUM(I52:I56) -> 0 | J57: =SUM(J52:J56) -> 0 | K57: 0 | L57: 0 | M57: 0 | N57: 0 | O57: 0 | P57: 0 | Q57: =SUM(Q52:Q56) -> 0 | R57: 0 | S57: 0 | T57: 0 | U57: 0 | V57: 0 | W57: 0 | X57: =SUM(X52:X56) -> 0 | Y57: 0 | Z57: 0 | AA57: 0 | AB57: 0 | AC57: 0 | AD57: 0 | AE57: 0 | AF57: 0 | AG57: 0 | AH57: =SUM(AH52:AH56) -> 0 | AI57: 0 | AJ57: 0 | AK57: 0 | AL57: =SUM(AL52:AL56) -> 0 | AM57: 0 | AN57: 0 | AO57: 0 | AP57: 0 | AQ57: =SUM(AQ52:AQ56) -> 0 | AR57: 0 | AS57: 0 | AU57: =SUM(AU52:AU56) -> 0 | AW57: =SUM(AW52:AW56) -> 0 | AX57: =+AW57-'ROR-Model'!G57 -> 0
AX58: =+AW58-'ROR-Model'!G58 -> 0
C59: Total Sales Dth | H59: =H1*Revenue!$Q$58 -> 0 | AU59: =SUM(F59:AT59) -> 0 | AW59: =SUM(AU59:AU59) -> 0 | AX59: =+AW59-'ROR-Model'!G59 -> 0
AX60: =+AW60-'ROR-Model'!G60 -> 0
B61: NGV | C61: Distribution Non-Gas Rev | H61: =H1*Revenue!$Q$60 -> -1831461.029 | S61: ='Optional Adjustment 1'!G61*$S$1 -> 0 | T61: ='Optional Adjustment 2'!G61*$T$1 -> 0 | U61: ='Optional Adjustment 3'!G61*$U$1 -> 0 | V61: ='Optional Adjustment 4'!G61*$V$1 -> 0 | W61: ='Optional Adjustment 5'!G61*$W$1 -> 0 | X61: ='Optional Adjustment 6'!G61*$X$1 -> 0 | Y61: ='Optional Adjustment 7'!G61*$Y$1 -> 0 | Z61: ='Optional Adjustment 8'!G61*$Z$1 -> 0 | AA61: ='Optional Adjustment 9'!G61*$AA$1 -> 0 | AB61: ='Optional Adjustment 10'!G61*$AB$1 -> 0 | AC61: ='Optional Adjustment 11'!G61*$AC$1 -> 0 | AD61: ='Optional Adjustment 12'!G61*$AD$1 -> 0 | AE61: ='Optional Adjustment 13'!G61*$AE$1 -> 0 | AF61: ='Optional Adjustment 14'!G61*$AF$1 -> 0 | AG61: ='Optional Adjustment 15'!G61*$AG$1 -> 0 | AH61: ='Optional Adjustment 16'!G61*$AH$1 -> 0 | AI61: ='Optional Adjustment 17'!G61*$AI$1 -> 0 | AJ61: ='Optional Adjustment 18'!G61*$AJ$1 -> 0 | AK61: ='Optional Adjustment 19'!G61*$AK$1 -> 0 | AL61: ='Optional Adjustment 20'!G61*$AL$1 -> 0 | AM61: ='Optional Adjustment 21'!G61*$AM$1 -> 0 | AN61: ='Optional Adjustment 22'!G61*$AN$1 -> 0 | AO61: ='Optional Adjustment 23'!G61*$AO$1 -> 0 | AP61: ='Optional Adjustment 24'!G61*$AP$1 -> 0 | AQ61: ='Optional Adjustment 25'!G61*$AQ$1 -> 0 | AR61: ='Optional Adjustment 26'!G61*$AR$1 -> 0 | AS61: ='Optional Adjustment 27'!G61*$AS$1 -> 0 | AU61: =SUM(F61:AT61) -> -1831461.029 | AW61: =SUM(AU61:AU61) -> -1831461.029 | AX61: =+AW61-'ROR-Model'!G61 -> 0
AX62: =+AW62-'ROR-Model'!G62 -> 0
C63: Supplier Non-Gas Revenue | H63: =H1*Revenue!$Q$62 -> 41189.57454 | S63: ='Optional Adjustment 1'!G63*$S$1 -> 0 | T63: ='Optional Adjustment 2'!G63*$T$1 -> 0 | U63: ='Optional Adjustment 3'!G63*$U$1 -> 0 | V63: ='Optional Adjustment 4'!G63*$V$1 -> 0 | W63: ='Optional Adjustment 5'!G63*$W$1 -> 0 | X63: ='Optional Adjustment 6'!G63*$X$1 -> 0 | Y63: ='Optional Adjustment 7'!G63*$Y$1 -> 0 | Z63: ='Optional Adjustment 8'!G63*$Z$1 -> 0 | AA63: ='Optional Adjustment 9'!G63*$AA$1 -> 0 | AB63: ='Optional Adjustment 10'!G63*$AB$1 -> 0 | AC63: ='Optional Adjustment 11'!G63*$AC$1 -> 0 | AD63: ='Optional Adjustment 12'!G63*$AD$1 -> 0 | AE63: ='Optional Adjustment 13'!G63*$AE$1 -> 0 | AF63: ='Optional Adjustment 14'!G63*$AF$1 -> 0 | AG63: ='Optional Adjustment 15'!G63*$AG$1 -> 0 | AH63: ='Optional Adjustment 16'!G63*$AH$1 -> 0 | AI63: ='Optional Adjustment 17'!G63*$AI$1 -> 0 | AJ63: ='Optional Adjustment 18'!G63*$AJ$1 -> 0 | AK63: ='Optional Adjustment 19'!G63*$AK$1 -> 0 | AL63: ='Optional Adjustment 20'!G63*$AL$1 -> 0 | AM63: ='Optional Adjustment 21'!G63*$AM$1 -> 0 | AN63: ='Optional Adjustment 22'!G63*$AN$1 -> 0 | AO63: ='Optional Adjustment 23'!G63*$AO$1 -> 0 | AP63: ='Optional Adjustment 24'!G63*$AP$1 -> 0 | AQ63: ='Optional Adjustment 25'!G63*$AQ$1 -> 0 | AR63: ='Optional Adjustment 26'!G63*$AR$1 -> 0 | AS63: ='Optional Adjustment 27'!G63*$AS$1 -> 0 | AU63: =SUM(F63:AT63) -> 41189.57454 | AW63: =SUM(AU63:AU63) -> 41189.57454 | AX63: =+AW63-'ROR-Model'!G63 -> 0
AX64: =+AW64-'ROR-Model'!G64 -> 0
C65: Commodity Revenue | H65: =H1*Revenue!$Q$64 -> -228479.2813 | S65: ='Optional Adjustment 1'!G65*$S$1 -> 0 | T65: ='Optional Adjustment 2'!G65*$T$1 -> 0 | U65: ='Optional Adjustment 3'!G65*$U$1 -> 0 | V65: ='Optional Adjustment 4'!G65*$V$1 -> 0 | W65: ='Optional Adjustment 5'!G65*$W$1 -> 0 | X65: ='Optional Adjustment 6'!G65*$X$1 -> 0 | Y65: ='Optional Adjustment 7'!G65*$Y$1 -> 0 | Z65: ='Optional Adjustment 8'!G65*$Z$1 -> 0 | AA65: ='Optional Adjustment 9'!G65*$AA$1 -> 0 | AB65: ='Optional Adjustment 10'!G65*$AB$1 -> 0 | AC65: ='Optional Adjustment 11'!G65*$AC$1 -> 0 | AD65: ='Optional Adjustment 12'!G65*$AD$1 -> 0 | AE65: ='Optional Adjustment 13'!G65*$AE$1 -> 0 | AF65: ='Optional Adjustment 14'!G65*$AF$1 -> 0 | AG65: ='Optional Adjustment 15'!G65*$AG$1 -> 0 | AH65: ='Optional Adjustment 16'!G65*$AH$1 -> 0 | AI65: ='Optional Adjustment 17'!G65*$AI$1 -> 0 | AJ65: ='Optional Adjustment 18'!G65*$AJ$1 -> 0 | AK65: ='Optional Adjustment 19'!G65*$AK$1 -> 0 | AL65: ='Optional Adjustment 20'!G65*$AL$1 -> 0 | AM65: ='Optional Adjustment 21'!G65*$AM$1 -> 0 | AN65: ='Optional Adjustment 22'!G65*$AN$1 -> 0 | AO65: ='Optional Adjustment 23'!G65*$AO$1 -> 0 | AP65: ='Optional Adjustment 24'!G65*$AP$1 -> 0 | AQ65: ='Optional Adjustment 25'!G65*$AQ$1 -> 0 | AR65: ='Optional Adjustment 26'!G65*$AR$1 -> 0 | AS65: ='Optional Adjustment 27'!G65*$AS$1 -> 0 | AU65: =SUM(F65:AT65) -> -228479.2813 | AW65: =SUM(AU65:AU65) -> -228479.2813 | AX65: =+AW65-'ROR-Model'!G65 -> 0
C66: Total Revenue | F66: =SUM(F61:F65) -> 0 | H66: =H1*SUM(H61:H65) -> -2018750.736 | I66: =SUM(I61:I65) -> 0 | J66: =SUM(J61:J65) -> 0 | K66: 0 | L66: 0 | M66: 0 | N66: 0 | O66: 0 | P66: 0 | Q66: =SUM(Q61:Q65) -> 0 | R66: 0 | S66: 0 | T66: 0 | U66: 0 | V66: 0 | W66: 0 | X66: =SUM(X61:X65) -> 0 | Y66: 0 | Z66: 0 | AA66: 0 | AB66: 0 | AC66: 0 | AD66: 0 | AE66: 0 | AF66: 0 | AG66: 0 | AH66: =SUM(AH61:AH65) -> 0 | AI66: 0 | AJ66: 0 | AK66: 0 | AL66: =SUM(AL61:AL65) -> 0 | AM66: 0 | AN66: 0 | AO66: 0 | AP66: 0 | AQ66: =SUM(AQ61:AQ65) -> 0 | AR66: 0 | AS66: 0 | AU66: =SUM(AU61:AU65) -> -2018750.736 | AW66: =SUM(AW61:AW65) -> -2018750.736 | AX66: =+AW66-'ROR-Model'!G66 -> 0
AX67: =+AW67-'ROR-Model'!G67 -> 0
C68: Total Dth | H68: =H1*Revenue!$Q$67 -> -1.23 | AU68: =SUM(F68:AT68) -> -1.23 | AW68: =SUM(AU68:AU68) -> -1.23 | AX68: =+AW68-'ROR-Model'!G68 -> 0
AX69: =+AW69-'ROR-Model'!G69 -> 0
B70: F-4 | C70: Distribution Non-Gas Rev | S70: ='Optional Adjustment 1'!G70*$S$1 -> 0 | T70: ='Optional Adjustment 2'!G70*$T$1 -> 0 | U70: ='Optional Adjustment 3'!G70*$U$1 -> 0 | V70: ='Optional Adjustment 4'!G70*$V$1 -> 0 | W70: ='Optional Adjustment 5'!G70*$W$1 -> 0 | X70: ='Optional Adjustment 6'!G70*$X$1 -> 0 | Y70: ='Optional Adjustment 7'!G70*$Y$1 -> 0 | Z70: ='Optional Adjustment 8'!G70*$Z$1 -> 0 | AA70: ='Optional Adjustment 9'!G70*$AA$1 -> 0 | AB70: ='Optional Adjustment 10'!G70*$AB$1 -> 0 | AC70: ='Optional Adjustment 11'!G70*$AC$1 -> 0 | AD70: ='Optional Adjustment 12'!G70*$AD$1 -> 0 | AE70: ='Optional Adjustment 13'!G70*$AE$1 -> 0 | AF70: ='Optional Adjustment 14'!G70*$AF$1 -> 0 | AG70: ='Optional Adjustment 15'!G70*$AG$1 -> 0 | AH70: ='Optional Adjustment 16'!G70*$AH$1 -> 0 | AI70: ='Optional Adjustment 17'!G70*$AI$1 -> 0 | AJ70: ='Optional Adjustment 18'!G70*$AJ$1 -> 0 | AK70: ='Optional Adjustment 19'!G70*$AK$1 -> 0 | AL70: ='Optional Adjustment 20'!G70*$AL$1 -> 0 | AM70: ='Optional Adjustment 21'!G70*$AM$1 -> 0 | AN70: ='Optional Adjustment 22'!G70*$AN$1 -> 0 | AO70: ='Optional Adjustment 23'!G70*$AO$1 -> 0 | AP70: ='Optional Adjustment 24'!G70*$AP$1 -> 0 | AQ70: ='Optional Adjustment 25'!G70*$AQ$1 -> 0 | AR70: ='Optional Adjustment 26'!G70*$AR$1 -> 0 | AS70: ='Optional Adjustment 27'!G70*$AS$1 -> 0 | AU70: =SUM(F70:AT70) -> 0 | AW70: =SUM(AU70:AU70) -> 0 | AX70: =+AW70-'ROR-Model'!G70 -> 0
AX71: =+AW71-'ROR-Model'!G71 -> 0
C72: Supplier Non-Gas Revenue | S72: ='Optional Adjustment 1'!G72*$S$1 -> 0 | T72: ='Optional Adjustment 2'!G72*$T$1 -> 0 | U72: ='Optional Adjustment 3'!G72*$U$1 -> 0 | V72: ='Optional Adjustment 4'!G72*$V$1 -> 0 | W72: ='Optional Adjustment 5'!G72*$W$1 -> 0 | X72: ='Optional Adjustment 6'!G72*$X$1 -> 0 | Y72: ='Optional Adjustment 7'!G72*$Y$1 -> 0 | Z72: ='Optional Adjustment 8'!G72*$Z$1 -> 0 | AA72: ='Optional Adjustment 9'!G72*$AA$1 -> 0 | AB72: ='Optional Adjustment 10'!G72*$AB$1 -> 0 | AC72: ='Optional Adjustment 11'!G72*$AC$1 -> 0 | AD72: ='Optional Adjustment 12'!G72*$AD$1 -> 0 | AE72: ='Optional Adjustment 13'!G72*$AE$1 -> 0 | AF72: ='Optional Adjustment 14'!G72*$AF$1 -> 0 | AG72: ='Optional Adjustment 15'!G72*$AG$1 -> 0 | AH72: ='Optional Adjustment 16'!G72*$AH$1 -> 0 | AI72: ='Optional Adjustment 17'!G72*$AI$1 -> 0 | AJ72: ='Optional Adjustment 18'!G72*$AJ$1 -> 0 | AK72: ='Optional Adjustment 19'!G72*$AK$1 -> 0 | AL72: ='Optional Adjustment 20'!G72*$AL$1 -> 0 | AM72: ='Optional Adjustment 21'!G72*$AM$1 -> 0 | AN72: ='Optional Adjustment 22'!G72*$AN$1 -> 0 | AO72: ='Optional Adjustment 23'!G72*$AO$1 -> 0 | AP72: ='Optional Adjustment 24'!G72*$AP$1 -> 0 | AQ72: ='Optional Adjustment 25'!G72*$AQ$1 -> 0 | AR72: ='Optional Adjustment 26'!G72*$AR$1 -> 0 | AS72: ='Optional Adjustment 27'!G72*$AS$1 -> 0 | AU72: =SUM(F72:AT72) -> 0 | AW72: =SUM(AU72:AU72) -> 0 | AX72: =+AW72-'ROR-Model'!G72 -> 0
AX73: =+AW73-'ROR-Model'!G73 -> 0
C74: Commodity Revenue | S74: ='Optional Adjustment 1'!G74*$S$1 -> 0 | T74: ='Optional Adjustment 2'!G74*$T$1 -> 0 | U74: ='Optional Adjustment 3'!G74*$U$1 -> 0 | V74: ='Optional Adjustment 4'!G74*$V$1 -> 0 | W74: ='Optional Adjustment 5'!G74*$W$1 -> 0 | X74: ='Optional Adjustment 6'!G74*$X$1 -> 0 | Y74: ='Optional Adjustment 7'!G74*$Y$1 -> 0 | Z74: ='Optional Adjustment 8'!G74*$Z$1 -> 0 | AA74: ='Optional Adjustment 9'!G74*$AA$1 -> 0 | AB74: ='Optional Adjustment 10'!G74*$AB$1 -> 0 | AC74: ='Optional Adjustment 11'!G74*$AC$1 -> 0 | AD74: ='Optional Adjustment 12'!G74*$AD$1 -> 0 | AE74: ='Optional Adjustment 13'!G74*$AE$1 -> 0 | AF74: ='Optional Adjustment 14'!G74*$AF$1 -> 0 | AG74: ='Optional Adjustment 15'!G74*$AG$1 -> 0 | AH74: ='Optional Adjustment 16'!G74*$AH$1 -> 0 | AI74: ='Optional Adjustment 17'!G74*$AI$1 -> 0 | AJ74: ='Optional Adjustment 18'!G74*$AJ$1 -> 0 | AK74: ='Optional Adjustment 19'!G74*$AK$1 -> 0 | AL74: ='Optional Adjustment 20'!G74*$AL$1 -> 0 | AM74: ='Optional Adjustment 21'!G74*$AM$1 -> 0 | AN74: ='Optional Adjustment 22'!G74*$AN$1 -> 0 | AO74: ='Optional Adjustment 23'!G74*$AO$1 -> 0 | AP74: ='Optional Adjustment 24'!G74*$AP$1 -> 0 | AQ74: ='Optional Adjustment 25'!G74*$AQ$1 -> 0 | AR74: ='Optional Adjustment 26'!G74*$AR$1 -> 0 | AS74: ='Optional Adjustment 27'!G74*$AS$1 -> 0 | AU74: =SUM(F74:AT74) -> 0 | AW74: =SUM(AU74:AU74) -> 0 | AX74: =+AW74-'ROR-Model'!G74 -> 0
C75: Total Revenue | F75: =SUM(F70:F74) -> 0 | H75: =H1*SUM(H70:H74) -> 0 | I75: =SUM(I70:I74) -> 0 | J75: =SUM(J70:J74) -> 0 | K75: 0 | L75: 0 | M75: 0 | N75: 0 | O75: 0 | P75: 0 | Q75: =SUM(Q70:Q74) -> 0 | R75: 0 | S75: 0 | T75: 0 | U75: 0 | V75: 0 | W75: 0 | X75: =SUM(X70:X74) -> 0 | Y75: 0 | Z75: 0 | AA75: 0 | AB75: 0 | AC75: 0 | AD75: 0 | AE75: 0 | AF75: 0 | AG75: 0 | AH75: =SUM(AH70:AH74) -> 0 | AI75: 0 | AJ75: 0 | AK75: 0 | AL75: =SUM(AL70:AL74) -> 0 | AM75: 0 | AN75: 0 | AO75: 0 | AP75: 0 | AQ75: =SUM(AQ70:AQ74) -> 0 | AR75: 0 | AS75: 0 | AU75: =SUM(AU70:AU74) -> 0 | AW75: =SUM(AW70:AW74) -> 0 | AX75: =+AW75-'ROR-Model'!G75 -> 0
AX76: =+AW76-'ROR-Model'!G76 -> 0
C77: Total Dth | H77: =H1*Revenue!$Q$76 -> 0 | AU77: =SUM(F77:AT77) -> 0 | AW77: =SUM(AU77:AU77) -> 0 | AX77: =+AW77-'ROR-Model'!G77 -> 0
AX78: =+AW78-'ROR-Model'!G78 -> 0
B79: I-2 | C79: Distribution Non-Gas Rev | H79: =H1*Revenue!$Q$78 -> 0 | S79: ='Optional Adjustment 1'!G79*$S$1 -> 0 | T79: ='Optional Adjustment 2'!G79*$T$1 -> 0 | U79: ='Optional Adjustment 3'!G79*$U$1 -> 0 | V79: ='Optional Adjustment 4'!G79*$V$1 -> 0 | W79: ='Optional Adjustment 5'!G79*$W$1 -> 0 | X79: ='Optional Adjustment 6'!G79*$X$1 -> 0 | Y79: ='Optional Adjustment 7'!G79*$Y$1 -> 0 | Z79: ='Optional Adjustment 8'!G79*$Z$1 -> 0 | AA79: ='Optional Adjustment 9'!G79*$AA$1 -> 0 | AB79: ='Optional Adjustment 10'!G79*$AB$1 -> 0 | AC79: ='Optional Adjustment 11'!G79*$AC$1 -> 0 | AD79: ='Optional Adjustment 12'!G79*$AD$1 -> 0 | AE79: ='Optional Adjustment 13'!G79*$AE$1 -> 0 | AF79: ='Optional Adjustment 14'!G79*$AF$1 -> 0 | AG79: ='Optional Adjustment 15'!G79*$AG$1 -> 0 | AH79: ='Optional Adjustment 16'!G79*$AH$1 -> 0 | AI79: ='Optional Adjustment 17'!G79*$AI$1 -> 0 | AJ79: ='Optional Adjustment 18'!G79*$AJ$1 -> 0 | AK79: ='Optional Adjustment 19'!G79*$AK$1 -> 0 | AL79: ='Optional Adjustment 20'!G79*$AL$1 -> 0 | AM79: ='Optional Adjustment 21'!G79*$AM$1 -> 0 | AN79: ='Optional Adjustment 22'!G79*$AN$1 -> 0 | AO79: ='Optional Adjustment 23'!G79*$AO$1 -> 0 | AP79: ='Optional Adjustment 24'!G79*$AP$1 -> 0 | AQ79: ='Optional Adjustment 25'!G79*$AQ$1 -> 0 | AR79: ='Optional Adjustment 26'!G79*$AR$1 -> 0 | AS79: ='Optional Adjustment 27'!G79*$AS$1 -> 0 | AU79: =SUM(F79:AT79) -> 0 | AW79: =SUM(AU79:AU79) -> 0 | AX79: =+AW79-'ROR-Model'!G79 -> 0
AX80: =+AW80-'ROR-Model'!G80 -> 0
C81: Supplier Non-Gas Revenue | H81: =H1*Revenue!$Q$80 -> 0 | S81: ='Optional Adjustment 1'!G81*$S$1 -> 0 | T81: ='Optional Adjustment 2'!G81*$T$1 -> 0 | U81: ='Optional Adjustment 3'!G81*$U$1 -> 0 | V81: ='Optional Adjustment 4'!G81*$V$1 -> 0 | W81: ='Optional Adjustment 5'!G81*$W$1 -> 0 | X81: ='Optional Adjustment 6'!G81*$X$1 -> 0 | Y81: ='Optional Adjustment 7'!G81*$Y$1 -> 0 | Z81: ='Optional Adjustment 8'!G81*$Z$1 -> 0 | AA81: ='Optional Adjustment 9'!G81*$AA$1 -> 0 | AB81: ='Optional Adjustment 10'!G81*$AB$1 -> 0 | AC81: ='Optional Adjustment 11'!G81*$AC$1 -> 0 | AD81: ='Optional Adjustment 12'!G81*$AD$1 -> 0 | AE81: ='Optional Adjustment 13'!G81*$AE$1 -> 0 | AF81: ='Optional Adjustment 14'!G81*$AF$1 -> 0 | AG81: ='Optional Adjustment 15'!G81*$AG$1 -> 0 | AH81: ='Optional Adjustment 16'!G81*$AH$1 -> 0 | AI81: ='Optional Adjustment 17'!G81*$AI$1 -> 0 | AJ81: ='Optional Adjustment 18'!G81*$AJ$1 -> 0 | AK81: ='Optional Adjustment 19'!G81*$AK$1 -> 0 | AL81: ='Optional Adjustment 20'!G81*$AL$1 -> 0 | AM81: ='Optional Adjustment 21'!G81*$AM$1 -> 0 | AN81: ='Optional Adjustment 22'!G81*$AN$1 -> 0 | AO81: ='Optional Adjustment 23'!G81*$AO$1 -> 0 | AP81: ='Optional Adjustment 24'!G81*$AP$1 -> 0 | AQ81: ='Optional Adjustment 25'!G81*$AQ$1 -> 0 | AR81: ='Optional Adjustment 26'!G81*$AR$1 -> 0 | AS81: ='Optional Adjustment 27'!G81*$AS$1 -> 0 | AU81: =SUM(F81:AT81) -> 0 | AW81: =SUM(AU81:AU81) -> 0 | AX81: =+AW81-'ROR-Model'!G81 -> 0
AX82: =+AW82-'ROR-Model'!G82 -> 0
C83: Commodity Revenue | H83: =H1*Revenue!$Q$82 -> 0 | S83: ='Optional Adjustment 1'!G83*$S$1 -> 0 | T83: ='Optional Adjustment 2'!G83*$T$1 -> 0 | U83: ='Optional Adjustment 3'!G83*$U$1 -> 0 | V83: ='Optional Adjustment 4'!G83*$V$1 -> 0 | W83: ='Optional Adjustment 5'!G83*$W$1 -> 0 | X83: ='Optional Adjustment 6'!G83*$X$1 -> 0 | Y83: ='Optional Adjustment 7'!G83*$Y$1 -> 0 | Z83: ='Optional Adjustment 8'!G83*$Z$1 -> 0 | AA83: ='Optional Adjustment 9'!G83*$AA$1 -> 0 | AB83: ='Optional Adjustment 10'!G83*$AB$1 -> 0 | AC83: ='Optional Adjustment 11'!G83*$AC$1 -> 0 | AD83: ='Optional Adjustment 12'!G83*$AD$1 -> 0 | AE83: ='Optional Adjustment 13'!G83*$AE$1 -> 0 | AF83: ='Optional Adjustment 14'!G83*$AF$1 -> 0 | AG83: ='Optional Adjustment 15'!G83*$AG$1 -> 0 | AH83: ='Optional Adjustment 16'!G83*$AH$1 -> 0 | AI83: ='Optional Adjustment 17'!G83*$AI$1 -> 0 | AJ83: ='Optional Adjustment 18'!G83*$AJ$1 -> 0 | AK83: ='Optional Adjustment 19'!G83*$AK$1 -> 0 | AL83: ='Optional Adjustment 20'!G83*$AL$1 -> 0 | AM83: ='Optional Adjustment 21'!G83*$AM$1 -> 0 | AN83: ='Optional Adjustment 22'!G83*$AN$1 -> 0 | AO83: ='Optional Adjustment 23'!G83*$AO$1 -> 0 | AP83: ='Optional Adjustment 24'!G83*$AP$1 -> 0 | AQ83: ='Optional Adjustment 25'!G83*$AQ$1 -> 0 | AR83: ='Optional Adjustment 26'!G83*$AR$1 -> 0 | AS83: ='Optional Adjustment 27'!G83*$AS$1 -> 0 | AU83: =SUM(F83:AT83) -> 0 | AW83: =SUM(AU83:AU83) -> 0 | AX83: =+AW83-'ROR-Model'!G83 -> 0
C84: Total Revenue | F84: =SUM(F79:F83) -> 0 | H84: =H1*SUM(H79:H83) -> 0 | I84: =SUM(I79:I83) -> 0 | J84: =SUM(J79:J83) -> 0 | K84: 0 | L84: 0 | M84: 0 | N84: 0 | O84: 0 | P84: 0 | Q84: =SUM(Q79:Q83) -> 0 | R84: 0 | S84: 0 | T84: 0 | U84: 0 | V84: 0 | W84: 0 | X84: =SUM(X79:X83) -> 0 | Y84: 0 | Z84: 0 | AA84: 0 | AB84: 0 | AC84: 0 | AD84: 0 | AE84: 0 | AF84: 0 | AG84: 0 | AH84: =SUM(AH79:AH83) -> 0 | AI84: 0 | AJ84: 0 | AK84: 0 | AL84: =SUM(AL79:AL83) -> 0 | AM84: 0 | AN84: 0 | AO84: 0 | AP84: 0 | AQ84: =SUM(AQ79:AQ83) -> 0 | AR84: 0 | AS84: 0 | AU84: =SUM(AU79:AU83) -> 0 | AW84: =SUM(AW79:AW83) -> 0 | AX84: =+AW84-'ROR-Model'!G84 -> 0
AX85: =+AW85-'ROR-Model'!G85 -> 0
C86: Total Dth | H86: =H1*Revenue!$Q$85 -> 0 | AU86: =SUM(F86:AT86) -> 0 | AW86: =SUM(AU86:AU86) -> 0 | AX86: =+AW86-'ROR-Model'!G86 -> 0
AX87: =+AW87-'ROR-Model'!G87 -> 0
B88: I-4 | C88: Distribution Non-Gas Rev | H88: =H1*Revenue!$Q$87 -> 0 | S88: ='Optional Adjustment 1'!G88*$S$1 -> 0 | T88: ='Optional Adjustment 2'!G88*$T$1 -> 0 | U88: ='Optional Adjustment 3'!G88*$U$1 -> 0 | V88: ='Optional Adjustment 4'!G88*$V$1 -> 0 | W88: ='Optional Adjustment 5'!G88*$W$1 -> 0 | X88: ='Optional Adjustment 6'!G88*$X$1 -> 0 | Y88: ='Optional Adjustment 7'!G88*$Y$1 -> 0 | Z88: ='Optional Adjustment 8'!G88*$Z$1 -> 0 | AA88: ='Optional Adjustment 9'!G88*$AA$1 -> 0 | AB88: ='Optional Adjustment 10'!G88*$AB$1 -> 0 | AC88: ='Optional Adjustment 11'!G88*$AC$1 -> 0 | AD88: ='Optional Adjustment 12'!G88*$AD$1 -> 0 | AE88: ='Optional Adjustment 13'!G88*$AE$1 -> 0 | AF88: ='Optional Adjustment 14'!G88*$AF$1 -> 0 | AG88: ='Optional Adjustment 15'!G88*$AG$1 -> 0 | AH88: ='Optional Adjustment 16'!G88*$AH$1 -> 0 | AI88: ='Optional Adjustment 17'!G88*$AI$1 -> 0 | AJ88: ='Optional Adjustment 18'!G88*$AJ$1 -> 0 | AK88: ='Optional Adjustment 19'!G88*$AK$1 -> 0 | AL88: ='Optional Adjustment 20'!G88*$AL$1 -> 0 | AM88: ='Optional Adjustment 21'!G88*$AM$1 -> 0 | AN88: ='Optional Adjustment 22'!G88*$AN$1 -> 0 | AO88: ='Optional Adjustment 23'!G88*$AO$1 -> 0 | AP88: ='Optional Adjustment 24'!G88*$AP$1 -> 0 | AQ88: ='Optional Adjustment 25'!G88*$AQ$1 -> 0 | AR88: ='Optional Adjustment 26'!G88*$AR$1 -> 0 | AS88: ='Optional Adjustment 27'!G88*$AS$1 -> 0 | AU88: =SUM(F88:AT88) -> 0 | AW88: =SUM(AU88:AU88) -> 0 | AX88: =+AW88-'ROR-Model'!G88 -> 0
AX89: =+AW89-'ROR-Model'!G89 -> 0
C90: Supplier Non-Gas Revenue | H90: =H1*Revenue!$Q$89 -> 0 | S90: ='Optional Adjustment 1'!G90*$S$1 -> 0 | T90: ='Optional Adjustment 2'!G90*$T$1 -> 0 | U90: ='Optional Adjustment 3'!G90*$U$1 -> 0 | V90: ='Optional Adjustment 4'!G90*$V$1 -> 0 | W90: ='Optional Adjustment 5'!G90*$W$1 -> 0 | X90: ='Optional Adjustment 6'!G90*$X$1 -> 0 | Y90: ='Optional Adjustment 7'!G90*$Y$1 -> 0 | Z90: ='Optional Adjustment 8'!G90*$Z$1 -> 0 | AA90: ='Optional Adjustment 9'!G90*$AA$1 -> 0 | AB90: ='Optional Adjustment 10'!G90*$AB$1 -> 0 | AC90: ='Optional Adjustment 11'!G90*$AC$1 -> 0 | AD90: ='Optional Adjustment 12'!G90*$AD$1 -> 0 | AE90: ='Optional Adjustment 13'!G90*$AE$1 -> 0 | AF90: ='Optional Adjustment 14'!G90*$AF$1 -> 0 | AG90: ='Optional Adjustment 15'!G90*$AG$1 -> 0 | AH90: ='Optional Adjustment 16'!G90*$AH$1 -> 0 | AI90: ='Optional Adjustment 17'!G90*$AI$1 -> 0 | AJ90: ='Optional Adjustment 18'!G90*$AJ$1 -> 0 | AK90: ='Optional Adjustment 19'!G90*$AK$1 -> 0 | AL90: ='Optional Adjustment 20'!G90*$AL$1 -> 0 | AM90: ='Optional Adjustment 21'!G90*$AM$1 -> 0 | AN90: ='Optional Adjustment 22'!G90*$AN$1 -> 0 | AO90: ='Optional Adjustment 23'!G90*$AO$1 -> 0 | AP90: ='Optional Adjustment 24'!G90*$AP$1 -> 0 | AQ90: ='Optional Adjustment 25'!G90*$AQ$1 -> 0 | AR90: ='Optional Adjustment 26'!G90*$AR$1 -> 0 | AS90: ='Optional Adjustment 27'!G90*$AS$1 -> 0 | AU90: =SUM(F90:AT90) -> 0 | AW90: =SUM(AU90:AU90) -> 0 | AX90: =+AW90-'ROR-Model'!G90 -> 0
AX91: =+AW91-'ROR-Model'!G91 -> 0
C92: Commodity Revenue | H92: =H1*Revenue!$Q$91 -> 0 | S92: ='Optional Adjustment 1'!G92*$S$1 -> 0 | T92: ='Optional Adjustment 2'!G92*$T$1 -> 0 | U92: ='Optional Adjustment 3'!G92*$U$1 -> 0 | V92: ='Optional Adjustment 4'!G92*$V$1 -> 0 | W92: ='Optional Adjustment 5'!G92*$W$1 -> 0 | X92: ='Optional Adjustment 6'!G92*$X$1 -> 0 | Y92: ='Optional Adjustment 7'!G92*$Y$1 -> 0 | Z92: ='Optional Adjustment 8'!G92*$Z$1 -> 0 | AA92: ='Optional Adjustment 9'!G92*$AA$1 -> 0 | AB92: ='Optional Adjustment 10'!G92*$AB$1 -> 0 | AC92: ='Optional Adjustment 11'!G92*$AC$1 -> 0 | AD92: ='Optional Adjustment 12'!G92*$AD$1 -> 0 | AE92: ='Optional Adjustment 13'!G92*$AE$1 -> 0 | AF92: ='Optional Adjustment 14'!G92*$AF$1 -> 0 | AG92: ='Optional Adjustment 15'!G92*$AG$1 -> 0 | AH92: ='Optional Adjustment 16'!G92*$AH$1 -> 0 | AI92: ='Optional Adjustment 17'!G92*$AI$1 -> 0 | AJ92: ='Optional Adjustment 18'!G92*$AJ$1 -> 0 | AK92: ='Optional Adjustment 19'!G92*$AK$1 -> 0 | AL92: ='Optional Adjustment 20'!G92*$AL$1 -> 0 | AM92: ='Optional Adjustment 21'!G92*$AM$1 -> 0 | AN92: ='Optional Adjustment 22'!G92*$AN$1 -> 0 | AO92: ='Optional Adjustment 23'!G92*$AO$1 -> 0 | AP92: ='Optional Adjustment 24'!G92*$AP$1 -> 0 | AQ92: ='Optional Adjustment 25'!G92*$AQ$1 -> 0 | AR92: ='Optional Adjustment 26'!G92*$AR$1 -> 0 | AS92: ='Optional Adjustment 27'!G92*$AS$1 -> 0 | AU92: =SUM(F92:AT92) -> 0 | AW92: =SUM(AU92:AU92) -> 0 | AX92: =+AW92-'ROR-Model'!G92 -> 0
C93: Total Revenue | F93: =SUM(F88:F92) -> 0 | H93: =H1*SUM(H88:H92) -> 0 | I93: =SUM(I88:I92) -> 0 | J93: =SUM(J88:J92) -> 0 | K93: 0 | L93: 0 | M93: 0 | N93: 0 | O93: 0 | P93: 0 | Q93: =SUM(Q88:Q92) -> 0 | R93: 0 | S93: 0 | T93: 0 | U93: 0 | V93: 0 | W93: 0 | X93: =SUM(X88:X92) -> 0 | Y93: 0 | Z93: 0 | AA93: 0 | AB93: 0 | AC93: 0 | AD93: 0 | AE93: 0 | AF93: 0 | AG93: 0 | AH93: =SUM(AH88:AH92) -> 0 | AI93: 0 | AJ93: 0 | AK93: 0 | AL93: =SUM(AL88:AL92) -> 0 | AM93: 0 | AN93: 0 | AO93: 0 | AP93: 0 | AQ93: =SUM(AQ88:AQ92) -> 0 | AR93: 0 | AS93: 0 | AU93: =SUM(AU88:AU92) -> 0 | AW93: =SUM(AW88:AW92) -> 0 | AX93: =+AW93-'ROR-Model'!G93 -> 0
AX94: =+AW94-'ROR-Model'!G94 -> 0
C95: Total Dth | H95: =H1*Revenue!$Q$94 -> 0 | AU95: =SUM(F95:AT95) -> 0 | AW95: =SUM(AU95:AU95) -> 0 | AX95: =+AW95-'ROR-Model'!G95 -> 0
AX96: =+AW96-'ROR-Model'!G96 -> 0
B97: IS_IS-2 | C97: Distribution Non-Gas Rev | H97: =H1*Revenue!$Q$96 -> -342255.458 | S97: ='Optional Adjustment 1'!G97*$S$1 -> 0 | T97: ='Optional Adjustment 2'!G97*$T$1 -> 0 | U97: ='Optional Adjustment 3'!G97*$U$1 -> 0 | V97: ='Optional Adjustment 4'!G97*$V$1 -> 0 | W97: ='Optional Adjustment 5'!G97*$W$1 -> 0 | X97: ='Optional Adjustment 6'!G97*$X$1 -> 0 | Y97: ='Optional Adjustment 7'!G97*$Y$1 -> 0 | Z97: ='Optional Adjustment 8'!G97*$Z$1 -> 0 | AA97: ='Optional Adjustment 9'!G97*$AA$1 -> 0 | AB97: ='Optional Adjustment 10'!G97*$AB$1 -> 0 | AC97: ='Optional Adjustment 11'!G97*$AC$1 -> 0 | AD97: ='Optional Adjustment 12'!G97*$AD$1 -> 0 | AE97: ='Optional Adjustment 13'!G97*$AE$1 -> 0 | AF97: ='Optional Adjustment 14'!G97*$AF$1 -> 0 | AG97: ='Optional Adjustment 15'!G97*$AG$1 -> 0 | AH97: ='Optional Adjustment 16'!G97*$AH$1 -> 0 | AI97: ='Optional Adjustment 17'!G97*$AI$1 -> 0 | AJ97: ='Optional Adjustment 18'!G97*$AJ$1 -> 0 | AK97: ='Optional Adjustment 19'!G97*$AK$1 -> 0 | AL97: ='Optional Adjustment 20'!G97*$AL$1 -> 0 | AM97: ='Optional Adjustment 21'!G97*$AM$1 -> 0 | AN97: ='Optional Adjustment 22'!G97*$AN$1 -> 0 | AO97: ='Optional Adjustment 23'!G97*$AO$1 -> 0 | AP97: ='Optional Adjustment 24'!G97*$AP$1 -> 0 | AQ97: ='Optional Adjustment 25'!G97*$AQ$1 -> 0 | AR97: ='Optional Adjustment 26'!G97*$AR$1 -> 0 | AS97: ='Optional Adjustment 27'!G97*$AS$1 -> 0 | AU97: =SUM(F97:AT97) -> -342255.458 | AW97: =SUM(AU97:AU97) -> -342255.458 | AX97: =+AW97-'ROR-Model'!G97 -> 0
AX98: =+AW98-'ROR-Model'!G98 -> 0
C99: Supplier Non-Gas Revenue | H99: =H1*Revenue!$Q$98 -> -178345.56 | S99: ='Optional Adjustment 1'!G99*$S$1 -> 0 | T99: ='Optional Adjustment 2'!G99*$T$1 -> 0 | U99: ='Optional Adjustment 3'!G99*$U$1 -> 0 | V99: ='Optional Adjustment 4'!G99*$V$1 -> 0 | W99: ='Optional Adjustment 5'!G99*$W$1 -> 0 | X99: ='Optional Adjustment 6'!G99*$X$1 -> 0 | Y99: ='Optional Adjustment 7'!G99*$Y$1 -> 0 | Z99: ='Optional Adjustment 8'!G99*$Z$1 -> 0 | AA99: ='Optional Adjustment 9'!G99*$AA$1 -> 0 | AB99: ='Optional Adjustment 10'!G99*$AB$1 -> 0 | AC99: ='Optional Adjustment 11'!G99*$AC$1 -> 0 | AD99: ='Optional Adjustment 12'!G99*$AD$1 -> 0 | AE99: ='Optional Adjustment 13'!G99*$AE$1 -> 0 | AF99: ='Optional Adjustment 14'!G99*$AF$1 -> 0 | AG99: ='Optional Adjustment 15'!G99*$AG$1 -> 0 | AH99: ='Optional Adjustment 16'!G99*$AH$1 -> 0 | AI99: ='Optional Adjustment 17'!G99*$AI$1 -> 0 | AJ99: ='Optional Adjustment 18'!G99*$AJ$1 -> 0 | AK99: ='Optional Adjustment 19'!G99*$AK$1 -> 0 | AL99: ='Optional Adjustment 20'!G99*$AL$1 -> 0 | AM99: ='Optional Adjustment 21'!G99*$AM$1 -> 0 | AN99: ='Optional Adjustment 22'!G99*$AN$1 -> 0 | AO99: ='Optional Adjustment 23'!G99*$AO$1 -> 0 | AP99: ='Optional Adjustment 24'!G99*$AP$1 -> 0 | AQ99: ='Optional Adjustment 25'!G99*$AQ$1 -> 0 | AR99: ='Optional Adjustment 26'!G99*$AR$1 -> 0 | AS99: ='Optional Adjustment 27'!G99*$AS$1 -> 0 | AU99: =SUM(F99:AT99) -> -178345.56 | AW99: =SUM(AU99:AU99) -> -178345.56 | AX99: =+AW99-'ROR-Model'!G99 -> 0
AX100: =+AW100-'ROR-Model'!G100 -> 0
C101: Commodity Revenue | H101: =H1*Revenue!$Q$100 -> -4963135.25 | S101: ='Optional Adjustment 1'!G101*$S$1 -> 0 | T101: ='Optional Adjustment 2'!G101*$T$1 -> 0 | U101: ='Optional Adjustment 3'!G101*$U$1 -> 0 | V101: ='Optional Adjustment 4'!G101*$V$1 -> 0 | W101: ='Optional Adjustment 5'!G101*$W$1 -> 0 | X101: ='Optional Adjustment 6'!G101*$X$1 -> 0 | Y101: ='Optional Adjustment 7'!G101*$Y$1 -> 0 | Z101: ='Optional Adjustment 8'!G101*$Z$1 -> 0 | AA101: ='Optional Adjustment 9'!G101*$AA$1 -> 0 | AB101: ='Optional Adjustment 10'!G101*$AB$1 -> 0 | AC101: ='Optional Adjustment 11'!G101*$AC$1 -> 0 | AD101: ='Optional Adjustment 12'!G101*$AD$1 -> 0 | AE101: ='Optional Adjustment 13'!G101*$AE$1 -> 0 | AF101: ='Optional Adjustment 14'!G101*$AF$1 -> 0 | AG101: ='Optional Adjustment 15'!G101*$AG$1 -> 0 | AH101: ='Optional Adjustment 16'!G101*$AH$1 -> 0 | AI101: ='Optional Adjustment 17'!G101*$AI$1 -> 0 | AJ101: ='Optional Adjustment 18'!G101*$AJ$1 -> 0 | AK101: ='Optional Adjustment 19'!G101*$AK$1 -> 0 | AL101: ='Optional Adjustment 20'!G101*$AL$1 -> 0 | AM101: ='Optional Adjustment 21'!G101*$AM$1 -> 0 | AN101: ='Optional Adjustment 22'!G101*$AN$1 -> 0 | AO101: ='Optional Adjustment 23'!G101*$AO$1 -> 0 | AP101: ='Optional Adjustment 24'!G101*$AP$1 -> 0 | AQ101: ='Optional Adjustment 25'!G101*$AQ$1 -> 0 | AR101: ='Optional Adjustment 26'!G101*$AR$1 -> 0 | AS101: ='Optional Adjustment 27'!G101*$AS$1 -> 0 | AU101: =SUM(F101:AT101) -> -4963135.25 | AW101: =SUM(AU101:AU101) -> -4963135.25 | AX101: =+AW101-'ROR-Model'!G101 -> 0
C102: Total Revenue | F102: =SUM(F97:F101) -> 0 | H102: =H1*SUM(H97:H101) -> -5483736.268 | I102: =SUM(I97:I101) -> 0 | J102: =SUM(J97:J101) -> 0 | K102: 0 | L102: 0 | M102: 0 | N102: 0 | O102: 0 | P102: 0 | Q102: =SUM(Q97:Q101) -> 0 | R102: 0 | S102: 0 | T102: 0 | U102: 0 | V102: 0 | W102: 0 | X102: =SUM(X97:X101) -> 0 | Y102: 0 | Z102: 0 | AA102: 0 | AB102: 0 | AC102: 0 | AD102: 0 | AE102: 0 | AF102: 0 | AG102: 0 | AH102: =SUM(AH97:AH101) -> 0 | AI102: 0 | AJ102: 0 | AK102: 0 | AL102: =SUM(AL97:AL101) -> 0 | AM102: 0 | AN102: 0 | AO102: 0 | AP102: 0 | AQ102: =SUM(AQ97:AQ101) -> 0 | AR102: 0 | AS102: 0 | AU102: =SUM(AU97:AU101) -> -5483736.268 | AW102: =SUM(AW97:AW101) -> -5483736.268 | AX102: =+AW102-'ROR-Model'!G102 -> 0
AX103: =+AW103-'ROR-Model'!G103 -> 0
C104: Total Dth | H104: =H1*Revenue!$Q$103 -> -993247 | AU104: =SUM(F104:AT104) -> -993247 | AW104: =SUM(AU104:AU104) -> -993247 | AX104: =+AW104-'ROR-Model'!G104 -> 0
AX105: =+AW105-'ROR-Model'!G105 -> 0
B106: IS-4 | C106: Distribution Non-Gas Rev | H106: =H1*Revenue!$Q$105 -> 0 | S106: ='Optional Adjustment 1'!G106*$S$1 -> 0 | T106: ='Optional Adjustment 2'!G106*$T$1 -> 0 | U106: ='Optional Adjustment 3'!G106*$U$1 -> 0 | V106: ='Optional Adjustment 4'!G106*$V$1 -> 0 | W106: ='Optional Adjustment 5'!G106*$W$1 -> 0 | X106: ='Optional Adjustment 6'!G106*$X$1 -> 0 | Y106: ='Optional Adjustment 7'!G106*$Y$1 -> 0 | Z106: ='Optional Adjustment 8'!G106*$Z$1 -> 0 | AA106: ='Optional Adjustment 9'!G106*$AA$1 -> 0 | AB106: ='Optional Adjustment 10'!G106*$AB$1 -> 0 | AC106: ='Optional Adjustment 11'!G106*$AC$1 -> 0 | AD106: ='Optional Adjustment 12'!G106*$AD$1 -> 0 | AE106: ='Optional Adjustment 13'!G106*$AE$1 -> 0 | AF106: ='Optional Adjustment 14'!G106*$AF$1 -> 0 | AG106: ='Optional Adjustment 15'!G106*$AG$1 -> 0 | AH106: ='Optional Adjustment 16'!G106*$AH$1 -> 0 | AI106: ='Optional Adjustment 17'!G106*$AI$1 -> 0 | AJ106: ='Optional Adjustment 18'!G106*$AJ$1 -> 0 | AK106: ='Optional Adjustment 19'!G106*$AK$1 -> 0 | AL106: ='Optional Adjustment 20'!G106*$AL$1 -> 0 | AM106: ='Optional Adjustment 21'!G106*$AM$1 -> 0 | AN106: ='Optional Adjustment 22'!G106*$AN$1 -> 0 | AO106: ='Optional Adjustment 23'!G106*$AO$1 -> 0 | AP106: ='Optional Adjustment 24'!G106*$AP$1 -> 0 | AQ106: ='Optional Adjustment 25'!G106*$AQ$1 -> 0 | AR106: ='Optional Adjustment 26'!G106*$AR$1 -> 0 | AS106: ='Optional Adjustment 27'!G106*$AS$1 -> 0 | AU106: =SUM(F106:AT106) -> 0 | AW106: =SUM(AU106:AU106) -> 0 | AX106: =+AW106-'ROR-Model'!G106 -> 0
AX107: =+AW107-'ROR-Model'!G107 -> 0
C108: Supplier Non-Gas Revenue | H108: =H1*Revenue!$Q$107 -> 0 | S108: ='Optional Adjustment 1'!G108*$S$1 -> 0 | T108: ='Optional Adjustment 2'!G108*$T$1 -> 0 | U108: ='Optional Adjustment 3'!G108*$U$1 -> 0 | V108: ='Optional Adjustment 4'!G108*$V$1 -> 0 | W108: ='Optional Adjustment 5'!G108*$W$1 -> 0 | X108: ='Optional Adjustment 6'!G108*$X$1 -> 0 | Y108: ='Optional Adjustment 7'!G108*$Y$1 -> 0 | Z108: ='Optional Adjustment 8'!G108*$Z$1 -> 0 | AA108: ='Optional Adjustment 9'!G108*$AA$1 -> 0 | AB108: ='Optional Adjustment 10'!G108*$AB$1 -> 0 | AC108: ='Optional Adjustment 11'!G108*$AC$1 -> 0 | AD108: ='Optional Adjustment 12'!G108*$AD$1 -> 0 | AE108: ='Optional Adjustment 13'!G108*$AE$1 -> 0 | AF108: ='Optional Adjustment 14'!G108*$AF$1 -> 0 | AG108: ='Optional Adjustment 15'!G108*$AG$1 -> 0 | AH108: ='Optional Adjustment 16'!G108*$AH$1 -> 0 | AI108: ='Optional Adjustment 17'!G108*$AI$1 -> 0 | AJ108: ='Optional Adjustment 18'!G108*$AJ$1 -> 0 | AK108: ='Optional Adjustment 19'!G108*$AK$1 -> 0 | AL108: ='Optional Adjustment 20'!G108*$AL$1 -> 0 | AM108: ='Optional Adjustment 21'!G108*$AM$1 -> 0 | AN108: ='Optional Adjustment 22'!G108*$AN$1 -> 0 | AO108: ='Optional Adjustment 23'!G108*$AO$1 -> 0 | AP108: ='Optional Adjustment 24'!G108*$AP$1 -> 0 | AQ108: ='Optional Adjustment 25'!G108*$AQ$1 -> 0 | AR108: ='Optional Adjustment 26'!G108*$AR$1 -> 0 | AS108: ='Optional Adjustment 27'!G108*$AS$1 -> 0 | AU108: =SUM(F108:AT108) -> 0 | AW108: =SUM(AU108:AU108) -> 0 | AX108: =+AW108-'ROR-Model'!G108 -> 0
AX109: =+AW109-'ROR-Model'!G109 -> 0
C110: Commodity Revenue | H110: =H1*Revenue!$Q$109 -> 0 | S110: ='Optional Adjustment 1'!G110*$S$1 -> 0 | T110: ='Optional Adjustment 2'!G110*$T$1 -> 0 | U110: ='Optional Adjustment 3'!G110*$U$1 -> 0 | V110: ='Optional Adjustment 4'!G110*$V$1 -> 0 | W110: ='Optional Adjustment 5'!G110*$W$1 -> 0 | X110: ='Optional Adjustment 6'!G110*$X$1 -> 0 | Y110: ='Optional Adjustment 7'!G110*$Y$1 -> 0 | Z110: ='Optional Adjustment 8'!G110*$Z$1 -> 0 | AA110: ='Optional Adjustment 9'!G110*$AA$1 -> 0 | AB110: ='Optional Adjustment 10'!G110*$AB$1 -> 0 | AC110: ='Optional Adjustment 11'!G110*$AC$1 -> 0 | AD110: ='Optional Adjustment 12'!G110*$AD$1 -> 0 | AE110: ='Optional Adjustment 13'!G110*$AE$1 -> 0 | AF110: ='Optional Adjustment 14'!G110*$AF$1 -> 0 | AG110: ='Optional Adjustment 15'!G110*$AG$1 -> 0 | AH110: ='Optional Adjustment 16'!G110*$AH$1 -> 0 | AI110: ='Optional Adjustment 17'!G110*$AI$1 -> 0 | AJ110: ='Optional Adjustment 18'!G110*$AJ$1 -> 0 | AK110: ='Optional Adjustment 19'!G110*$AK$1 -> 0 | AL110: ='Optional Adjustment 20'!G110*$AL$1 -> 0 | AM110: ='Optional Adjustment 21'!G110*$AM$1 -> 0 | AN110: ='Optional Adjustment 22'!G110*$AN$1 -> 0 | AO110: ='Optional Adjustment 23'!G110*$AO$1 -> 0 | AP110: ='Optional Adjustment 24'!G110*$AP$1 -> 0 | AQ110: ='Optional Adjustment 25'!G110*$AQ$1 -> 0 | AR110: ='Optional Adjustment 26'!G110*$AR$1 -> 0 | AS110: ='Optional Adjustment 27'!G110*$AS$1 -> 0 | AU110: =SUM(F110:AT110) -> 0 | AW110: =SUM(AU110:AU110) -> 0 | AX110: =+AW110-'ROR-Model'!G110 -> 0
C111: Total Revenue | F111: =SUM(F106:F110) -> 0 | H111: =H1*SUM(H106:H110) -> 0 | I111: =SUM(I106:I110) -> 0 | J111: =SUM(J106:J110) -> 0 | K111: 0 | L111: 0 | M111: 0 | N111: 0 | O111: 0 | P111: 0 | Q111: =SUM(Q106:Q110) -> 0 | R111: 0 | S111: 0 | T111: 0 | U111: 0 | V111: 0 | W111: 0 | X111: =SUM(X106:X110) -> 0 | Y111: 0 | Z111: 0 | AA111: 0 | AB111: 0 | AC111: 0 | AD111: 0 | AE111: 0 | AF111: 0 | AG111: 0 | AH111: =SUM(AH106:AH110) -> 0 | AI111: 0 | AJ111: 0 | AK111: 0 | AL111: =SUM(AL106:AL110) -> 0 | AM111: 0 | AN111: 0 | AO111: 0 | AP111: 0 | AQ111: =SUM(AQ106:AQ110) -> 0 | AR111: 0 | AS111: 0 | AU111: =SUM(AU106:AU110) -> 0 | AW111: =SUM(AW106:AW110) -> 0 | AX111: =+AW111-'ROR-Model'!G111 -> 0
AX112: =+AW112-'ROR-Model'!G112 -> 0
C113: Total Dth | H113: =H1*Revenue!$Q$112 -> 0 | AU113: =SUM(F113:AT113) -> 0 | AW113: =SUM(AU113:AU113) -> 0 | AX113: =+AW113-'ROR-Model'!G113 -> 0
AX114: =+AW114-'ROR-Model'!G114 -> 0
B115: FT1-L | C115: Distribution Non-Gas Rev | H115: =H1*Revenue!$Q$114 -> 0 | S115: ='Optional Adjustment 1'!G115*$S$1 -> 0 | T115: ='Optional Adjustment 2'!G115*$T$1 -> 0 | U115: ='Optional Adjustment 3'!G115*$U$1 -> 0 | V115: ='Optional Adjustment 4'!G115*$V$1 -> 0 | W115: ='Optional Adjustment 5'!G115*$W$1 -> 0 | X115: ='Optional Adjustment 6'!G115*$X$1 -> 0 | Y115: ='Optional Adjustment 7'!G115*$Y$1 -> 0 | Z115: ='Optional Adjustment 8'!G115*$Z$1 -> 0 | AA115: ='Optional Adjustment 9'!G115*$AA$1 -> 0 | AB115: ='Optional Adjustment 10'!G115*$AB$1 -> 0 | AC115: ='Optional Adjustment 11'!G115*$AC$1 -> 0 | AD115: ='Optional Adjustment 12'!G115*$AD$1 -> 0 | AE115: ='Optional Adjustment 13'!G115*$AE$1 -> 0 | AF115: ='Optional Adjustment 14'!G115*$AF$1 -> 0 | AG115: ='Optional Adjustment 15'!G115*$AG$1 -> 0 | AH115: ='Optional Adjustment 16'!G115*$AH$1 -> 0 | AI115: ='Optional Adjustment 17'!G115*$AI$1 -> 0 | AJ115: ='Optional Adjustment 18'!G115*$AJ$1 -> 0 | AK115: ='Optional Adjustment 19'!G115*$AK$1 -> 0 | AL115: ='Optional Adjustment 20'!G115*$AL$1 -> 0 | AM115: ='Optional Adjustment 21'!G115*$AM$1 -> 0 | AN115: ='Optional Adjustment 22'!G115*$AN$1 -> 0 | AO115: ='Optional Adjustment 23'!G115*$AO$1 -> 0 | AP115: ='Optional Adjustment 24'!G115*$AP$1 -> 0 | AQ115: ='Optional Adjustment 25'!G115*$AQ$1 -> 0 | AR115: ='Optional Adjustment 26'!G115*$AR$1 -> 0 | AS115: ='Optional Adjustment 27'!G115*$AS$1 -> 0 | AU115: =SUM(F115:AT115) -> 0 | AW115: =SUM(AU115:AU115) -> 0 | AX115: =+AW115-'ROR-Model'!G115 -> -2624472
AX116: =+AW116-'ROR-Model'!G116 -> 0
C117: Supplier Non-Gas Revenue | H117: =H1*Revenue!$Q$116 -> 0 | S117: ='Optional Adjustment 1'!G117*$S$1 -> 0 | T117: ='Optional Adjustment 2'!G117*$T$1 -> 0 | U117: ='Optional Adjustment 3'!G117*$U$1 -> 0 | V117: ='Optional Adjustment 4'!G117*$V$1 -> 0 | W117: ='Optional Adjustment 5'!G117*$W$1 -> 0 | X117: ='Optional Adjustment 6'!G117*$X$1 -> 0 | Y117: ='Optional Adjustment 7'!G117*$Y$1 -> 0 | Z117: ='Optional Adjustment 8'!G117*$Z$1 -> 0 | AA117: ='Optional Adjustment 9'!G117*$AA$1 -> 0 | AB117: ='Optional Adjustment 10'!G117*$AB$1 -> 0 | AC117: ='Optional Adjustment 11'!G117*$AC$1 -> 0 | AD117: ='Optional Adjustment 12'!G117*$AD$1 -> 0 | AE117: ='Optional Adjustment 13'!G117*$AE$1 -> 0 | AF117: ='Optional Adjustment 14'!G117*$AF$1 -> 0 | AG117: ='Optional Adjustment 15'!G117*$AG$1 -> 0 | AH117: ='Optional Adjustment 16'!G117*$AH$1 -> 0 | AI117: ='Optional Adjustment 17'!G117*$AI$1 -> 0 | AJ117: ='Optional Adjustment 18'!G117*$AJ$1 -> 0 | AK117: ='Optional Adjustment 19'!G117*$AK$1 -> 0 | AL117: ='Optional Adjustment 20'!G117*$AL$1 -> 0 | AM117: ='Optional Adjustment 21'!G117*$AM$1 -> 0 | AN117: ='Optional Adjustment 22'!G117*$AN$1 -> 0 | AO117: ='Optional Adjustment 23'!G117*$AO$1 -> 0 | AP117: ='Optional Adjustment 24'!G117*$AP$1 -> 0 | AQ117: ='Optional Adjustment 25'!G117*$AQ$1 -> 0 | AR117: ='Optional Adjustment 26'!G117*$AR$1 -> 0 | AS117: ='Optional Adjustment 27'!G117*$AS$1 -> 0 | AU117: =SUM(F117:AT117) -> 0 | AW117: =SUM(AU117:AU117) -> 0 | AX117: =+AW117-'ROR-Model'!G117 -> 0
AX118: =+AW118-'ROR-Model'!G118 -> 0
C119: Commodity Revenue | H119: =H1*Revenue!$Q$118 -> 0 | S119: ='Optional Adjustment 1'!G119*$S$1 -> 0 | T119: ='Optional Adjustment 2'!G119*$T$1 -> 0 | U119: ='Optional Adjustment 3'!G119*$U$1 -> 0 | V119: ='Optional Adjustment 4'!G119*$V$1 -> 0 | W119: ='Optional Adjustment 5'!G119*$W$1 -> 0 | X119: ='Optional Adjustment 6'!G119*$X$1 -> 0 | Y119: ='Optional Adjustment 7'!G119*$Y$1 -> 0 | Z119: ='Optional Adjustment 8'!G119*$Z$1 -> 0 | AA119: ='Optional Adjustment 9'!G119*$AA$1 -> 0 | AB119: ='Optional Adjustment 10'!G119*$AB$1 -> 0 | AC119: ='Optional Adjustment 11'!G119*$AC$1 -> 0 | AD119: ='Optional Adjustment 12'!G119*$AD$1 -> 0 | AE119: ='Optional Adjustment 13'!G119*$AE$1 -> 0 | AF119: ='Optional Adjustment 14'!G119*$AF$1 -> 0 | AG119: ='Optional Adjustment 15'!G119*$AG$1 -> 0 | AH119: ='Optional Adjustment 16'!G119*$AH$1 -> 0 | AI119: ='Optional Adjustment 17'!G119*$AI$1 -> 0 | AJ119: ='Optional Adjustment 18'!G119*$AJ$1 -> 0 | AK119: ='Optional Adjustment 19'!G119*$AK$1 -> 0 | AL119: ='Optional Adjustment 20'!G119*$AL$1 -> 0 | AM119: ='Optional Adjustment 21'!G119*$AM$1 -> 0 | AN119: ='Optional Adjustment 22'!G119*$AN$1 -> 0 | AO119: ='Optional Adjustment 23'!G119*$AO$1 -> 0 | AP119: ='Optional Adjustment 24'!G119*$AP$1 -> 0 | AQ119: ='Optional Adjustment 25'!G119*$AQ$1 -> 0 | AR119: ='Optional Adjustment 26'!G119*$AR$1 -> 0 | AS119: ='Optional Adjustment 27'!G119*$AS$1 -> 0 | AU119: =SUM(F119:AT119) -> 0 | AW119: =SUM(AU119:AU119) -> 0 | AX119: =+AW119-'ROR-Model'!G119 -> 0
C120: Total Revenue | F120: =SUM(F115:F119) -> 0 | H120: =H1*SUM(H115:H119) -> 0 | I120: =SUM(I115:I119) -> 0 | J120: =SUM(J115:J119) -> 0 | K120: 0 | L120: 0 | M120: 0 | N120: 0 | O120: 0 | P120: 0 | Q120: =SUM(Q115:Q119) -> 0 | R120: 0 | S120: 0 | T120: 0 | U120: 0 | V120: 0 | W120: 0 | X120: =SUM(X115:X119) -> 0 | Y120: 0 | Z120: 0 | AA120: 0 | AB120: 0 | AC120: 0 | AD120: 0 | AE120: 0 | AF120: 0 | AG120: 0 | AH120: =SUM(AH115:AH119) -> 0 | AI120: 0 | AJ120: 0 | AK120: 0 | AL120: =SUM(AL115:AL119) -> 0 | AM120: 0 | AN120: 0 | AO120: 0 | AP120: 0 | AQ120: =SUM(AQ115:AQ119) -> 0 | AR120: 0 | AS120: 0 | AU120: =SUM(AU115:AU119) -> 0 | AW120: =SUM(AW115:AW119) -> 0 | AX120: =+AW120-'ROR-Model'!G120 -> -2624472
AX121: =+AW121-'ROR-Model'!G121 -> 0
C122: Total Dth | H122: =H1*Revenue!$Q$121 -> 0 | AU122: =SUM(F122:AT122) -> 0 | AW122: =SUM(AU122:AU122) -> 0 | AX122: =+AW122-'ROR-Model'!G122 -> -32698029
AX123: =+AW123-'ROR-Model'!G123 -> 0
B124: FT_FT-1 | C124: Distribution Non-Gas Rev | H124: =H1*Revenue!$Q$123 -> -3951702.903 | S124: ='Optional Adjustment 1'!G124*$S$1 -> 0 | T124: ='Optional Adjustment 2'!G124*$T$1 -> 0 | U124: ='Optional Adjustment 3'!G124*$U$1 -> 0 | V124: ='Optional Adjustment 4'!G124*$V$1 -> 0 | W124: ='Optional Adjustment 5'!G124*$W$1 -> 0 | X124: ='Optional Adjustment 6'!G124*$X$1 -> 0 | Y124: ='Optional Adjustment 7'!G124*$Y$1 -> 0 | Z124: ='Optional Adjustment 8'!G124*$Z$1 -> 0 | AA124: ='Optional Adjustment 9'!G124*$AA$1 -> 0 | AB124: ='Optional Adjustment 10'!G124*$AB$1 -> 0 | AC124: ='Optional Adjustment 11'!G124*$AC$1 -> 0 | AD124: ='Optional Adjustment 12'!G124*$AD$1 -> 0 | AE124: ='Optional Adjustment 13'!G124*$AE$1 -> 0 | AF124: ='Optional Adjustment 14'!G124*$AF$1 -> 0 | AG124: ='Optional Adjustment 15'!G124*$AG$1 -> 0 | AH124: ='Optional Adjustment 16'!G124*$AH$1 -> 0 | AI124: ='Optional Adjustment 17'!G124*$AI$1 -> 0 | AJ124: ='Optional Adjustment 18'!G124*$AJ$1 -> 0 | AK124: ='Optional Adjustment 19'!G124*$AK$1 -> 0 | AL124: ='Optional Adjustment 20'!G124*$AL$1 -> 0 | AM124: ='Optional Adjustment 21'!G124*$AM$1 -> 0 | AN124: ='Optional Adjustment 22'!G124*$AN$1 -> 0 | AO124: ='Optional Adjustment 23'!G124*$AO$1 -> 0 | AP124: ='Optional Adjustment 24'!G124*$AP$1 -> 0 | AQ124: ='Optional Adjustment 25'!G124*$AQ$1 -> 0 | AR124: ='Optional Adjustment 26'!G124*$AR$1 -> 0 | AS124: ='Optional Adjustment 27'!G124*$AS$1 -> 0 | AU124: =SUM(F124:AT124) -> -3951702.903 | AW124: =SUM(AU124:AU124) -> -3951702.903 | AX124: =+AW124-'ROR-Model'!G124 -> 0
AX125: =+AW125-'ROR-Model'!G125 -> 0
C126: Supplier Non-Gas Revenue | H126: =H1*Revenue!$Q$125 -> 0 | S126: ='Optional Adjustment 1'!G126*$S$1 -> 0 | T126: ='Optional Adjustment 2'!G126*$T$1 -> 0 | U126: ='Optional Adjustment 3'!G126*$U$1 -> 0 | V126: ='Optional Adjustment 4'!G126*$V$1 -> 0 | W126: ='Optional Adjustment 5'!G126*$W$1 -> 0 | X126: ='Optional Adjustment 6'!G126*$X$1 -> 0 | Y126: ='Optional Adjustment 7'!G126*$Y$1 -> 0 | Z126: ='Optional Adjustment 8'!G126*$Z$1 -> 0 | AA126: ='Optional Adjustment 9'!G126*$AA$1 -> 0 | AB126: ='Optional Adjustment 10'!G126*$AB$1 -> 0 | AC126: ='Optional Adjustment 11'!G126*$AC$1 -> 0 | AD126: ='Optional Adjustment 12'!G126*$AD$1 -> 0 | AE126: ='Optional Adjustment 13'!G126*$AE$1 -> 0 | AF126: ='Optional Adjustment 14'!G126*$AF$1 -> 0 | AG126: ='Optional Adjustment 15'!G126*$AG$1 -> 0 | AH126: ='Optional Adjustment 16'!G126*$AH$1 -> 0 | AI126: ='Optional Adjustment 17'!G126*$AI$1 -> 0 | AJ126: ='Optional Adjustment 18'!G126*$AJ$1 -> 0 | AK126: ='Optional Adjustment 19'!G126*$AK$1 -> 0 | AL126: ='Optional Adjustment 20'!G126*$AL$1 -> 0 | AM126: ='Optional Adjustment 21'!G126*$AM$1 -> 0 | AN126: ='Optional Adjustment 22'!G126*$AN$1 -> 0 | AO126: ='Optional Adjustment 23'!G126*$AO$1 -> 0 | AP126: ='Optional Adjustment 24'!G126*$AP$1 -> 0 | AQ126: ='Optional Adjustment 25'!G126*$AQ$1 -> 0 | AR126: ='Optional Adjustment 26'!G126*$AR$1 -> 0 | AS126: ='Optional Adjustment 27'!G126*$AS$1 -> 0 | AU126: =SUM(F126:AT126) -> 0 | AW126: =SUM(AU126:AU126) -> 0 | AX126: =+AW126-'ROR-Model'!G126 -> 0
AX127: =+AW127-'ROR-Model'!G127 -> 0
C128: Commodity Revenue | H128: =H1*Revenue!$Q$127 -> 0 | S128: ='Optional Adjustment 1'!G128*$S$1 -> 0 | T128: ='Optional Adjustment 2'!G128*$T$1 -> 0 | U128: ='Optional Adjustment 3'!G128*$U$1 -> 0 | V128: ='Optional Adjustment 4'!G128*$V$1 -> 0 | W128: ='Optional Adjustment 5'!G128*$W$1 -> 0 | X128: ='Optional Adjustment 6'!G128*$X$1 -> 0 | Y128: ='Optional Adjustment 7'!G128*$Y$1 -> 0 | Z128: ='Optional Adjustment 8'!G128*$Z$1 -> 0 | AA128: ='Optional Adjustment 9'!G128*$AA$1 -> 0 | AB128: ='Optional Adjustment 10'!G128*$AB$1 -> 0 | AC128: ='Optional Adjustment 11'!G128*$AC$1 -> 0 | AD128: ='Optional Adjustment 12'!G128*$AD$1 -> 0 | AE128: ='Optional Adjustment 13'!G128*$AE$1 -> 0 | AF128: ='Optional Adjustment 14'!G128*$AF$1 -> 0 | AG128: ='Optional Adjustment 15'!G128*$AG$1 -> 0 | AH128: ='Optional Adjustment 16'!G128*$AH$1 -> 0 | AI128: ='Optional Adjustment 17'!G128*$AI$1 -> 0 | AJ128: ='Optional Adjustment 18'!G128*$AJ$1 -> 0 | AK128: ='Optional Adjustment 19'!G128*$AK$1 -> 0 | AL128: ='Optional Adjustment 20'!G128*$AL$1 -> 0 | AM128: ='Optional Adjustment 21'!G128*$AM$1 -> 0 | AN128: ='Optional Adjustment 22'!G128*$AN$1 -> 0 | AO128: ='Optional Adjustment 23'!G128*$AO$1 -> 0 | AP128: ='Optional Adjustment 24'!G128*$AP$1 -> 0 | AQ128: ='Optional Adjustment 25'!G128*$AQ$1 -> 0 | AR128: ='Optional Adjustment 26'!G128*$AR$1 -> 0 | AS128: ='Optional Adjustment 27'!G128*$AS$1 -> 0 | AU128: =SUM(F128:AT128) -> 0 | AW128: =SUM(AU128:AU128) -> 0 | AX128: =+AW128-'ROR-Model'!G128 -> 0
C129: Total Revenue | F129: =SUM(F124:F128) -> 0 | H129: =H1*SUM(H124:H128) -> -3951702.903 | I129: =SUM(I124:I128) -> 0 | J129: =SUM(J124:J128) -> 0 | K129: 0 | L129: 0 | M129: 0 | N129: 0 | O129: 0 | P129: 0 | Q129: =SUM(Q124:Q128) -> 0 | R129: 0 | S129: 0 | T129: 0 | U129: 0 | V129: 0 | W129: 0 | X129: =SUM(X124:X128) -> 0 | Y129: 0 | Z129: 0 | AA129: 0 | AB129: 0 | AC129: 0 | AD129: 0 | AE129: 0 | AF129: 0 | AG129: 0 | AH129: =SUM(AH124:AH128) -> 0 | AI129: 0 | AJ129: 0 | AK129: 0 | AL129: =SUM(AL124:AL128) -> 0 | AM129: 0 | AN129: 0 | AO129: 0 | AP129: 0 | AQ129: =SUM(AQ124:AQ128) -> 0 | AR129: 0 | AS129: 0 | AU129: =SUM(AU124:AU128) -> -3951702.903 | AW129: =SUM(AW124:AW128) -> -3951702.903 | AX129: =+AW129-'ROR-Model'!G129 -> 0
AX130: =+AW130-'ROR-Model'!G130 -> 0
C131: Total Dth | H131: =H1*Revenue!$Q$130 -> -32671632 | AU131: =SUM(F131:AT131) -> -32671632 | AW131: =SUM(AU131:AU131) -> -32671632 | AX131: =+AW131-'ROR-Model'!G131 -> 0
AX132: =+AW132-'ROR-Model'!G132 -> 0
B133: FT-2 | C133: Distribution Non-Gas Rev | H133: =H1*Revenue!$Q$132 -> 0 | S133: ='Optional Adjustment 1'!G133*$S$1 -> 0 | T133: ='Optional Adjustment 2'!G133*$T$1 -> 0 | U133: ='Optional Adjustment 3'!G133*$U$1 -> 0 | V133: ='Optional Adjustment 4'!G133*$V$1 -> 0 | W133: ='Optional Adjustment 5'!G133*$W$1 -> 0 | X133: ='Optional Adjustment 6'!G133*$X$1 -> 0 | Y133: ='Optional Adjustment 7'!G133*$Y$1 -> 0 | Z133: ='Optional Adjustment 8'!G133*$Z$1 -> 0 | AA133: ='Optional Adjustment 9'!G133*$AA$1 -> 0 | AB133: ='Optional Adjustment 10'!G133*$AB$1 -> 0 | AC133: ='Optional Adjustment 11'!G133*$AC$1 -> 0 | AD133: ='Optional Adjustment 12'!G133*$AD$1 -> 0 | AE133: ='Optional Adjustment 13'!G133*$AE$1 -> 0 | AF133: ='Optional Adjustment 14'!G133*$AF$1 -> 0 | AG133: ='Optional Adjustment 15'!G133*$AG$1 -> 0 | AH133: ='Optional Adjustment 16'!G133*$AH$1 -> 0 | AI133: ='Optional Adjustment 17'!G133*$AI$1 -> 0 | AJ133: ='Optional Adjustment 18'!G133*$AJ$1 -> 0 | AK133: ='Optional Adjustment 19'!G133*$AK$1 -> 0 | AL133: ='Optional Adjustment 20'!G133*$AL$1 -> 0 | AM133: ='Optional Adjustment 21'!G133*$AM$1 -> 0 | AN133: ='Optional Adjustment 22'!G133*$AN$1 -> 0 | AO133: ='Optional Adjustment 23'!G133*$AO$1 -> 0 | AP133: ='Optional Adjustment 24'!G133*$AP$1 -> 0 | AQ133: ='Optional Adjustment 25'!G133*$AQ$1 -> 0 | AR133: ='Optional Adjustment 26'!G133*$AR$1 -> 0 | AS133: ='Optional Adjustment 27'!G133*$AS$1 -> 0 | AU133: =SUM(F133:AT133) -> 0 | AW133: =SUM(AU133:AU133) -> 0 | AX133: =+AW133-'ROR-Model'!G133 -> 0
AX134: =+AW134-'ROR-Model'!G134 -> 0
C135: Supplier Non-Gas Revenue | H135: =H1*Revenue!$Q$134 -> 0 | S135: ='Optional Adjustment 1'!G135*$S$1 -> 0 | T135: ='Optional Adjustment 2'!G135*$T$1 -> 0 | U135: ='Optional Adjustment 3'!G135*$U$1 -> 0 | V135: ='Optional Adjustment 4'!G135*$V$1 -> 0 | W135: ='Optional Adjustment 5'!G135*$W$1 -> 0 | X135: ='Optional Adjustment 6'!G135*$X$1 -> 0 | Y135: ='Optional Adjustment 7'!G135*$Y$1 -> 0 | Z135: ='Optional Adjustment 8'!G135*$Z$1 -> 0 | AA135: ='Optional Adjustment 9'!G135*$AA$1 -> 0 | AB135: ='Optional Adjustment 10'!G135*$AB$1 -> 0 | AC135: ='Optional Adjustment 11'!G135*$AC$1 -> 0 | AD135: ='Optional Adjustment 12'!G135*$AD$1 -> 0 | AE135: ='Optional Adjustment 13'!G135*$AE$1 -> 0 | AF135: ='Optional Adjustment 14'!G135*$AF$1 -> 0 | AG135: ='Optional Adjustment 15'!G135*$AG$1 -> 0 | AH135: ='Optional Adjustment 16'!G135*$AH$1 -> 0 | AI135: ='Optional Adjustment 17'!G135*$AI$1 -> 0 | AJ135: ='Optional Adjustment 18'!G135*$AJ$1 -> 0 | AK135: ='Optional Adjustment 19'!G135*$AK$1 -> 0 | AL135: ='Optional Adjustment 20'!G135*$AL$1 -> 0 | AM135: ='Optional Adjustment 21'!G135*$AM$1 -> 0 | AN135: ='Optional Adjustment 22'!G135*$AN$1 -> 0 | AO135: ='Optional Adjustment 23'!G135*$AO$1 -> 0 | AP135: ='Optional Adjustment 24'!G135*$AP$1 -> 0 | AQ135: ='Optional Adjustment 25'!G135*$AQ$1 -> 0 | AR135: ='Optional Adjustment 26'!G135*$AR$1 -> 0 | AS135: ='Optional Adjustment 27'!G135*$AS$1 -> 0 | AU135: =SUM(F135:AT135) -> 0 | AW135: =SUM(AU135:AU135) -> 0 | AX135: =+AW135-'ROR-Model'!G135 -> 0
AX136: =+AW136-'ROR-Model'!G136 -> 0
C137: Commodity Revenue | H137: =H1*Revenue!$Q$136 -> 0 | S137: ='Optional Adjustment 1'!G137*$S$1 -> 0 | T137: ='Optional Adjustment 2'!G137*$T$1 -> 0 | U137: ='Optional Adjustment 3'!G137*$U$1 -> 0 | V137: ='Optional Adjustment 4'!G137*$V$1 -> 0 | W137: ='Optional Adjustment 5'!G137*$W$1 -> 0 | X137: ='Optional Adjustment 6'!G137*$X$1 -> 0 | Y137: ='Optional Adjustment 7'!G137*$Y$1 -> 0 | Z137: ='Optional Adjustment 8'!G137*$Z$1 -> 0 | AA137: ='Optional Adjustment 9'!G137*$AA$1 -> 0 | AB137: ='Optional Adjustment 10'!G137*$AB$1 -> 0 | AC137: ='Optional Adjustment 11'!G137*$AC$1 -> 0 | AD137: ='Optional Adjustment 12'!G137*$AD$1 -> 0 | AE137: ='Optional Adjustment 13'!G137*$AE$1 -> 0 | AF137: ='Optional Adjustment 14'!G137*$AF$1 -> 0 | AG137: ='Optional Adjustment 15'!G137*$AG$1 -> 0 | AH137: ='Optional Adjustment 16'!G137*$AH$1 -> 0 | AI137: ='Optional Adjustment 17'!G137*$AI$1 -> 0 | AJ137: ='Optional Adjustment 18'!G137*$AJ$1 -> 0 | AK137: ='Optional Adjustment 19'!G137*$AK$1 -> 0 | AL137: ='Optional Adjustment 20'!G137*$AL$1 -> 0 | AM137: ='Optional Adjustment 21'!G137*$AM$1 -> 0 | AN137: ='Optional Adjustment 22'!G137*$AN$1 -> 0 | AO137: ='Optional Adjustment 23'!G137*$AO$1 -> 0 | AP137: ='Optional Adjustment 24'!G137*$AP$1 -> 0 | AQ137: ='Optional Adjustment 25'!G137*$AQ$1 -> 0 | AR137: ='Optional Adjustment 26'!G137*$AR$1 -> 0 | AS137: ='Optional Adjustment 27'!G137*$AS$1 -> 0 | AU137: =SUM(F137:AT137) -> 0 | AW137: =SUM(AU137:AU137) -> 0 | AX137: =+AW137-'ROR-Model'!G137 -> 0
C138: Total Revenue | F138: =SUM(F133:F137) -> 0 | H138: =H1*SUM(H133:H137) -> 0 | I138: =SUM(I133:I137) -> 0 | J138: =SUM(J133:J137) -> 0 | K138: 0 | L138: 0 | M138: 0 | N138: 0 | O138: 0 | P138: 0 | Q138: =SUM(Q133:Q137) -> 0 | R138: 0 | S138: 0 | T138: 0 | U138: 0 | V138: 0 | W138: 0 | X138: =SUM(X133:X137) -> 0 | Y138: 0 | Z138: 0 | AA138: 0 | AB138: 0 | AC138: 0 | AD138: 0 | AE138: 0 | AF138: 0 | AG138: 0 | AH138: =SUM(AH133:AH137) -> 0 | AI138: 0 | AJ138: 0 | AK138: 0 | AL138: =SUM(AL133:AL137) -> 0 | AM138: 0 | AN138: 0 | AO138: 0 | AP138: 0 | AQ138: =SUM(AQ133:AQ137) -> 0 | AR138: 0 | AS138: 0 | AU138: =SUM(AU133:AU137) -> 0 | AW138: =SUM(AW133:AW137) -> 0 | AX138: =+AW138-'ROR-Model'!G138 -> 0
AX139: =+AW139-'ROR-Model'!G139 -> 0
C140: Total Dth | H140: =H1*Revenue!$Q$139 -> 0 | AU140: =SUM(F140:AT140) -> 0 | AW140: =SUM(AU140:AU140) -> 0 | AX140: =+AW140-'ROR-Model'!G140 -> 0
AX141: =+AW141-'ROR-Model'!G141 -> 0
B142: MT | C142: Distribution Non-Gas Rev | H142: =H1*Revenue!$Q$141 -> -9083.726978 | S142: ='Optional Adjustment 1'!G142*$S$1 -> 0 | T142: ='Optional Adjustment 2'!G142*$T$1 -> 0 | U142: ='Optional Adjustment 3'!G142*$U$1 -> 0 | V142: ='Optional Adjustment 4'!G142*$V$1 -> 0 | W142: ='Optional Adjustment 5'!G142*$W$1 -> 0 | X142: ='Optional Adjustment 6'!G142*$X$1 -> 0 | Y142: ='Optional Adjustment 7'!G142*$Y$1 -> 0 | Z142: ='Optional Adjustment 8'!G142*$Z$1 -> 0 | AA142: ='Optional Adjustment 9'!G142*$AA$1 -> 0 | AB142: ='Optional Adjustment 10'!G142*$AB$1 -> 0 | AC142: ='Optional Adjustment 11'!G142*$AC$1 -> 0 | AD142: ='Optional Adjustment 12'!G142*$AD$1 -> 0 | AE142: ='Optional Adjustment 13'!G142*$AE$1 -> 0 | AF142: ='Optional Adjustment 14'!G142*$AF$1 -> 0 | AG142: ='Optional Adjustment 15'!G142*$AG$1 -> 0 | AH142: ='Optional Adjustment 16'!G142*$AH$1 -> 0 | AI142: ='Optional Adjustment 17'!G142*$AI$1 -> 0 | AJ142: ='Optional Adjustment 18'!G142*$AJ$1 -> 0 | AK142: ='Optional Adjustment 19'!G142*$AK$1 -> 0 | AL142: ='Optional Adjustment 20'!G142*$AL$1 -> 0 | AM142: ='Optional Adjustment 21'!G142*$AM$1 -> 0 | AN142: ='Optional Adjustment 22'!G142*$AN$1 -> 0 | AO142: ='Optional Adjustment 23'!G142*$AO$1 -> 0 | AP142: ='Optional Adjustment 24'!G142*$AP$1 -> 0 | AQ142: ='Optional Adjustment 25'!G142*$AQ$1 -> 0 | AR142: ='Optional Adjustment 26'!G142*$AR$1 -> 0 | AS142: ='Optional Adjustment 27'!G142*$AS$1 -> 0 | AU142: =SUM(F142:AT142) -> -9083.726978 | AW142: =SUM(AU142:AU142) -> -9083.726978 | AX142: =+AW142-'ROR-Model'!G142 -> 0
AX143: =+AW143-'ROR-Model'!G143 -> 0
C144: Supplier Non-Gas Revenue | H144: =H1*Revenue!$Q$143 -> 14.06 | S144: ='Optional Adjustment 1'!G144*$S$1 -> 0 | T144: ='Optional Adjustment 2'!G144*$T$1 -> 0 | U144: ='Optional Adjustment 3'!G144*$U$1 -> 0 | V144: ='Optional Adjustment 4'!G144*$V$1 -> 0 | W144: ='Optional Adjustment 5'!G144*$W$1 -> 0 | X144: ='Optional Adjustment 6'!G144*$X$1 -> 0 | Y144: ='Optional Adjustment 7'!G144*$Y$1 -> 0 | Z144: ='Optional Adjustment 8'!G144*$Z$1 -> 0 | AA144: ='Optional Adjustment 9'!G144*$AA$1 -> 0 | AB144: ='Optional Adjustment 10'!G144*$AB$1 -> 0 | AC144: ='Optional Adjustment 11'!G144*$AC$1 -> 0 | AD144: ='Optional Adjustment 12'!G144*$AD$1 -> 0 | AE144: ='Optional Adjustment 13'!G144*$AE$1 -> 0 | AF144: ='Optional Adjustment 14'!G144*$AF$1 -> 0 | AG144: ='Optional Adjustment 15'!G144*$AG$1 -> 0 | AH144: ='Optional Adjustment 16'!G144*$AH$1 -> 0 | AI144: ='Optional Adjustment 17'!G144*$AI$1 -> 0 | AJ144: ='Optional Adjustment 18'!G144*$AJ$1 -> 0 | AK144: ='Optional Adjustment 19'!G144*$AK$1 -> 0 | AL144: ='Optional Adjustment 20'!G144*$AL$1 -> 0 | AM144: ='Optional Adjustment 21'!G144*$AM$1 -> 0 | AN144: ='Optional Adjustment 22'!G144*$AN$1 -> 0 | AO144: ='Optional Adjustment 23'!G144*$AO$1 -> 0 | AP144: ='Optional Adjustment 24'!G144*$AP$1 -> 0 | AQ144: ='Optional Adjustment 25'!G144*$AQ$1 -> 0 | AR144: ='Optional Adjustment 26'!G144*$AR$1 -> 0 | AS144: ='Optional Adjustment 27'!G144*$AS$1 -> 0 | AU144: =SUM(F144:AT144) -> 14.06 | AW144: =SUM(AU144:AU144) -> 14.06 | AX144: =+AW144-'ROR-Model'!G144 -> 0
AX145: =+AW145-'ROR-Model'!G145 -> 0
C146: Commodity Revenue | H146: =H1*Revenue!$Q$145 -> 0 | S146: ='Optional Adjustment 1'!G146*$S$1 -> 0 | T146: ='Optional Adjustment 2'!G146*$T$1 -> 0 | U146: ='Optional Adjustment 3'!G146*$U$1 -> 0 | V146: ='Optional Adjustment 4'!G146*$V$1 -> 0 | W146: ='Optional Adjustment 5'!G146*$W$1 -> 0 | X146: ='Optional Adjustment 6'!G146*$X$1 -> 0 | Y146: ='Optional Adjustment 7'!G146*$Y$1 -> 0 | Z146: ='Optional Adjustment 8'!G146*$Z$1 -> 0 | AA146: ='Optional Adjustment 9'!G146*$AA$1 -> 0 | AB146: ='Optional Adjustment 10'!G146*$AB$1 -> 0 | AC146: ='Optional Adjustment 11'!G146*$AC$1 -> 0 | AD146: ='Optional Adjustment 12'!G146*$AD$1 -> 0 | AE146: ='Optional Adjustment 13'!G146*$AE$1 -> 0 | AF146: ='Optional Adjustment 14'!G146*$AF$1 -> 0 | AG146: ='Optional Adjustment 15'!G146*$AG$1 -> 0 | AH146: ='Optional Adjustment 16'!G146*$AH$1 -> 0 | AI146: ='Optional Adjustment 17'!G146*$AI$1 -> 0 | AJ146: ='Optional Adjustment 18'!G146*$AJ$1 -> 0 | AK146: ='Optional Adjustment 19'!G146*$AK$1 -> 0 | AL146: ='Optional Adjustment 20'!G146*$AL$1 -> 0 | AM146: ='Optional Adjustment 21'!G146*$AM$1 -> 0 | AN146: ='Optional Adjustment 22'!G146*$AN$1 -> 0 | AO146: ='Optional Adjustment 23'!G146*$AO$1 -> 0 | AP146: ='Optional Adjustment 24'!G146*$AP$1 -> 0 | AQ146: ='Optional Adjustment 25'!G146*$AQ$1 -> 0 | AR146: ='Optional Adjustment 26'!G146*$AR$1 -> 0 | AS146: ='Optional Adjustment 27'!G146*$AS$1 -> 0 | AU146: =SUM(F146:AT146) -> 0 | AW146: =SUM(AU146:AU146) -> 0 | AX146: =+AW146-'ROR-Model'!G146 -> 0
C147: Total Revenue | F147: =SUM(F142:F146) -> 0 | H147: =H1*SUM(H142:H146) -> -9069.666978 | I147: =SUM(I142:I146) -> 0 | J147: =SUM(J142:J146) -> 0 | K147: 0 | L147: 0 | M147: 0 | N147: 0 | O147: 0 | P147: 0 | Q147: =SUM(Q142:Q146) -> 0 | R147: 0 | S147: 0 | T147: 0 | U147: 0 | V147: 0 | W147: 0 | X147: =SUM(X142:X146) -> 0 | Y147: 0 | Z147: 0 | AA147: 0 | AB147: 0 | AC147: 0 | AD147: 0 | AE147: 0 | AF147: 0 | AG147: 0 | AH147: =SUM(AH142:AH146) -> 0 | AI147: 0 | AJ147: 0 | AK147: 0 | AL147: =SUM(AL142:AL146) -> 0 | AM147: 0 | AN147: 0 | AO147: 0 | AP147: 0 | AQ147: =SUM(AQ142:AQ146) -> 0 | AR147: 0 | AS147: 0 | AU147: =SUM(AU142:AU146) -> -9069.666978 | AW147: =SUM(AW142:AW146) -> -9069.666978 | AX147: =+AW147-'ROR-Model'!G147 -> 0
AX148: =+AW148-'ROR-Model'!G148 -> 0
C149: Total Dth | H149: =H1*Revenue!$Q$148 -> 223 | AU149: =SUM(F149:AT149) -> 223 | AW149: =SUM(AU149:AU149) -> 223 | AX149: =+AW149-'ROR-Model'!G149 -> 0
AX150: =+AW150-'ROR-Model'!G150 -> 0
B151: FT-E | C151: Distribution Non-Gas Rev | H151: =H1*Revenue!$Q$150 -> 2624472 | S151: ='Optional Adjustment 1'!G151*$S$1 -> 0 | T151: ='Optional Adjustment 2'!G151*$T$1 -> 0 | U151: ='Optional Adjustment 3'!G151*$U$1 -> 0 | V151: ='Optional Adjustment 4'!G151*$V$1 -> 0 | W151: ='Optional Adjustment 5'!G151*$W$1 -> 0 | X151: ='Optional Adjustment 6'!G151*$X$1 -> 0 | Y151: ='Optional Adjustment 7'!G151*$Y$1 -> 0 | Z151: ='Optional Adjustment 8'!G151*$Z$1 -> 0 | AA151: ='Optional Adjustment 9'!G151*$AA$1 -> 0 | AB151: ='Optional Adjustment 10'!G151*$AB$1 -> 0 | AC151: ='Optional Adjustment 11'!G151*$AC$1 -> 0 | AD151: ='Optional Adjustment 12'!G151*$AD$1 -> 0 | AE151: ='Optional Adjustment 13'!G151*$AE$1 -> 0 | AF151: ='Optional Adjustment 14'!G151*$AF$1 -> 0 | AG151: ='Optional Adjustment 15'!G151*$AG$1 -> 0 | AH151: ='Optional Adjustment 16'!G151*$AH$1 -> 0 | AI151: ='Optional Adjustment 17'!G151*$AI$1 -> 0 | AJ151: ='Optional Adjustment 18'!G151*$AJ$1 -> 0 | AK151: ='Optional Adjustment 19'!G151*$AK$1 -> 0 | AL151: ='Optional Adjustment 20'!G151*$AL$1 -> 0 | AM151: ='Optional Adjustment 21'!G151*$AM$1 -> 0 | AN151: ='Optional Adjustment 22'!G151*$AN$1 -> 0 | AO151: ='Optional Adjustment 23'!G151*$AO$1 -> 0 | AP151: ='Optional Adjustment 24'!G151*$AP$1 -> 0 | AQ151: ='Optional Adjustment 25'!G151*$AQ$1 -> 0 | AR151: ='Optional Adjustment 26'!G151*$AR$1 -> 0 | AS151: ='Optional Adjustment 27'!G151*$AS$1 -> 0 | AU151: =SUM(F151:AT151) -> 2624472 | AW151: =SUM(AU151:AU151) -> 2624472 | AX151: =+AW151-'ROR-Model'!G151 -> 2624472
AX152: =+AW152-'ROR-Model'!G152 -> 0
C153: Supplier Non-Gas Revenue | H153: =H1*Revenue!$Q$152 -> 0 | S153: ='Optional Adjustment 1'!G153*$S$1 -> 0 | T153: ='Optional Adjustment 2'!G153*$T$1 -> 0 | U153: ='Optional Adjustment 3'!G153*$U$1 -> 0 | V153: ='Optional Adjustment 4'!G153*$V$1 -> 0 | W153: ='Optional Adjustment 5'!G153*$W$1 -> 0 | X153: ='Optional Adjustment 6'!G153*$X$1 -> 0 | Y153: ='Optional Adjustment 7'!G153*$Y$1 -> 0 | Z153: ='Optional Adjustment 8'!G153*$Z$1 -> 0 | AA153: ='Optional Adjustment 9'!G153*$AA$1 -> 0 | AB153: ='Optional Adjustment 10'!G153*$AB$1 -> 0 | AC153: ='Optional Adjustment 11'!G153*$AC$1 -> 0 | AD153: ='Optional Adjustment 12'!G153*$AD$1 -> 0 | AE153: ='Optional Adjustment 13'!G153*$AE$1 -> 0 | AF153: ='Optional Adjustment 14'!G153*$AF$1 -> 0 | AG153: ='Optional Adjustment 15'!G153*$AG$1 -> 0 | AH153: ='Optional Adjustment 16'!G153*$AH$1 -> 0 | AI153: ='Optional Adjustment 17'!G153*$AI$1 -> 0 | AJ153: ='Optional Adjustment 18'!G153*$AJ$1 -> 0 | AK153: ='Optional Adjustment 19'!G153*$AK$1 -> 0 | AL153: ='Optional Adjustment 20'!G153*$AL$1 -> 0 | AM153: ='Optional Adjustment 21'!G153*$AM$1 -> 0 | AN153: ='Optional Adjustment 22'!G153*$AN$1 -> 0 | AO153: ='Optional Adjustment 23'!G153*$AO$1 -> 0 | AP153: ='Optional Adjustment 24'!G153*$AP$1 -> 0 | AQ153: ='Optional Adjustment 25'!G153*$AQ$1 -> 0 | AR153: ='Optional Adjustment 26'!G153*$AR$1 -> 0 | AS153: ='Optional Adjustment 27'!G153*$AS$1 -> 0 | AU153: =SUM(F153:AT153) -> 0 | AW153: =SUM(AU153:AU153) -> 0 | AX153: =+AW153-'ROR-Model'!G153 -> 0
AX154: =+AW154-'ROR-Model'!G154 -> 0
C155: Commodity Revenue | H155: =H1*Revenue!$Q$154 -> 0 | S155: ='Optional Adjustment 1'!G155*$S$1 -> 0 | T155: ='Optional Adjustment 2'!G155*$T$1 -> 0 | U155: ='Optional Adjustment 3'!G155*$U$1 -> 0 | V155: ='Optional Adjustment 4'!G155*$V$1 -> 0 | W155: ='Optional Adjustment 5'!G155*$W$1 -> 0 | X155: ='Optional Adjustment 6'!G155*$X$1 -> 0 | Y155: ='Optional Adjustment 7'!G155*$Y$1 -> 0 | Z155: ='Optional Adjustment 8'!G155*$Z$1 -> 0 | AA155: ='Optional Adjustment 9'!G155*$AA$1 -> 0 | AB155: ='Optional Adjustment 10'!G155*$AB$1 -> 0 | AC155: ='Optional Adjustment 11'!G155*$AC$1 -> 0 | AD155: ='Optional Adjustment 12'!G155*$AD$1 -> 0 | AE155: ='Optional Adjustment 13'!G155*$AE$1 -> 0 | AF155: ='Optional Adjustment 14'!G155*$AF$1 -> 0 | AG155: ='Optional Adjustment 15'!G155*$AG$1 -> 0 | AH155: ='Optional Adjustment 16'!G155*$AH$1 -> 0 | AI155: ='Optional Adjustment 17'!G155*$AI$1 -> 0 | AJ155: ='Optional Adjustment 18'!G155*$AJ$1 -> 0 | AK155: ='Optional Adjustment 19'!G155*$AK$1 -> 0 | AL155: ='Optional Adjustment 20'!G155*$AL$1 -> 0 | AM155: ='Optional Adjustment 21'!G155*$AM$1 -> 0 | AN155: ='Optional Adjustment 22'!G155*$AN$1 -> 0 | AO155: ='Optional Adjustment 23'!G155*$AO$1 -> 0 | AP155: ='Optional Adjustment 24'!G155*$AP$1 -> 0 | AQ155: ='Optional Adjustment 25'!G155*$AQ$1 -> 0 | AR155: ='Optional Adjustment 26'!G155*$AR$1 -> 0 | AS155: ='Optional Adjustment 27'!G155*$AS$1 -> 0 | AU155: =SUM(F155:AT155) -> 0 | AW155: =SUM(AU155:AU155) -> 0 | AX155: =+AW155-'ROR-Model'!G155 -> 0
C156: Total Revenue | F156: =SUM(F151:F155) -> 0 | H156: =H1*SUM(H151:H155) -> 2624472 | I156: =SUM(I151:I155) -> 0 | J156: =SUM(J151:J155) -> 0 | K156: 0 | L156: 0 | M156: 0 | N156: 0 | O156: 0 | P156: 0 | Q156: =SUM(Q151:Q155) -> 0 | R156: 0 | S156: 0 | T156: 0 | U156: 0 | V156: 0 | W156: 0 | X156: =SUM(X151:X155) -> 0 | Y156: 0 | Z156: 0 | AA156: 0 | AB156: 0 | AC156: 0 | AD156: 0 | AE156: 0 | AF156: 0 | AG156: 0 | AH156: =SUM(AH151:AH155) -> 0 | AI156: 0 | AJ156: 0 | AK156: 0 | AL156: =SUM(AL151:AL155) -> 0 | AM156: 0 | AN156: 0 | AO156: 0 | AP156: 0 | AQ156: =SUM(AQ151:AQ155) -> 0 | AR156: 0 | AS156: 0 | AU156: =SUM(AU151:AU155) -> 2624472 | AW156: =SUM(AW151:AW155) -> 2624472 | AX156: =+AW156-'ROR-Model'!G156 -> 2624472
AX157: =+AW157-'ROR-Model'!G157 -> 0
C158: Total Dth | H158: =H1*Revenue!$Q$157 -> 32698029 | AU158: =SUM(F158:AT158) -> 32698029 | AW158: =SUM(AU158:AU158) -> 32698029 | AX158: =+AW158-'ROR-Model'!G158 -> 32698029
AX159: =+AW159-'ROR-Model'!G159 -> 0
B160: IT_TS_ITA_ITB | C160: Distribution Non-Gas Rev | H160: =H1*Revenue!$Q$159 -> 4609134.302 | S160: ='Optional Adjustment 1'!G160*$S$1 -> 0 | T160: ='Optional Adjustment 2'!G160*$T$1 -> 0 | U160: ='Optional Adjustment 3'!G160*$U$1 -> 0 | V160: ='Optional Adjustment 4'!G160*$V$1 -> 0 | W160: ='Optional Adjustment 5'!G160*$W$1 -> 0 | X160: ='Optional Adjustment 6'!G160*$X$1 -> 0 | Y160: ='Optional Adjustment 7'!G160*$Y$1 -> 0 | Z160: ='Optional Adjustment 8'!G160*$Z$1 -> 0 | AA160: ='Optional Adjustment 9'!G160*$AA$1 -> 0 | AB160: ='Optional Adjustment 10'!G160*$AB$1 -> 0 | AC160: ='Optional Adjustment 11'!G160*$AC$1 -> 0 | AD160: ='Optional Adjustment 12'!G160*$AD$1 -> 0 | AE160: ='Optional Adjustment 13'!G160*$AE$1 -> 0 | AF160: ='Optional Adjustment 14'!G160*$AF$1 -> 0 | AG160: ='Optional Adjustment 15'!G160*$AG$1 -> 0 | AH160: ='Optional Adjustment 16'!G160*$AH$1 -> 0 | AI160: ='Optional Adjustment 17'!G160*$AI$1 -> 0 | AJ160: ='Optional Adjustment 18'!G160*$AJ$1 -> 0 | AK160: ='Optional Adjustment 19'!G160*$AK$1 -> 0 | AL160: ='Optional Adjustment 20'!G160*$AL$1 -> 0 | AM160: ='Optional Adjustment 21'!G160*$AM$1 -> 0 | AN160: ='Optional Adjustment 22'!G160*$AN$1 -> 0 | AO160: ='Optional Adjustment 23'!G160*$AO$1 -> 0 | AP160: ='Optional Adjustment 24'!G160*$AP$1 -> 0 | AQ160: ='Optional Adjustment 25'!G160*$AQ$1 -> 0 | AR160: ='Optional Adjustment 26'!G160*$AR$1 -> 0 | AS160: ='Optional Adjustment 27'!G160*$AS$1 -> 0 | AU160: =SUM(F160:AT160) -> 4609134.302 | AW160: =SUM(AU160:AU160) -> 4609134.302 | AX160: =+AW160-'ROR-Model'!G160 -> 0
AX161: =+AW161-'ROR-Model'!G161 -> 0
C162: Supplier Non-Gas Revenue | H162: =H1*Revenue!$Q$161 -> -1656 | S162: ='Optional Adjustment 1'!G162*$S$1 -> 0 | T162: ='Optional Adjustment 2'!G162*$T$1 -> 0 | U162: ='Optional Adjustment 3'!G162*$U$1 -> 0 | V162: ='Optional Adjustment 4'!G162*$V$1 -> 0 | W162: ='Optional Adjustment 5'!G162*$W$1 -> 0 | X162: ='Optional Adjustment 6'!G162*$X$1 -> 0 | Y162: ='Optional Adjustment 7'!G162*$Y$1 -> 0 | Z162: ='Optional Adjustment 8'!G162*$Z$1 -> 0 | AA162: ='Optional Adjustment 9'!G162*$AA$1 -> 0 | AB162: ='Optional Adjustment 10'!G162*$AB$1 -> 0 | AC162: ='Optional Adjustment 11'!G162*$AC$1 -> 0 | AD162: ='Optional Adjustment 12'!G162*$AD$1 -> 0 | AE162: ='Optional Adjustment 13'!G162*$AE$1 -> 0 | AF162: ='Optional Adjustment 14'!G162*$AF$1 -> 0 | AG162: ='Optional Adjustment 15'!G162*$AG$1 -> 0 | AH162: ='Optional Adjustment 16'!G162*$AH$1 -> 0 | AI162: ='Optional Adjustment 17'!G162*$AI$1 -> 0 | AJ162: ='Optional Adjustment 18'!G162*$AJ$1 -> 0 | AK162: ='Optional Adjustment 19'!G162*$AK$1 -> 0 | AL162: ='Optional Adjustment 20'!G162*$AL$1 -> 0 | AM162: ='Optional Adjustment 21'!G162*$AM$1 -> 0 | AN162: ='Optional Adjustment 22'!G162*$AN$1 -> 0 | AO162: ='Optional Adjustment 23'!G162*$AO$1 -> 0 | AP162: ='Optional Adjustment 24'!G162*$AP$1 -> 0 | AQ162: ='Optional Adjustment 25'!G162*$AQ$1 -> 0 | AR162: ='Optional Adjustment 26'!G162*$AR$1 -> 0 | AS162: ='Optional Adjustment 27'!G162*$AS$1 -> 0 | AU162: =SUM(F162:AT162) -> -1656 | AW162: =SUM(AU162:AU162) -> -1656 | AX162: =+AW162-'ROR-Model'!G162 -> 0
AX163: =+AW163-'ROR-Model'!G163 -> 0
C164: Commodity Revenue | H164: =H1*Revenue!$Q$163 -> -46565 | S164: ='Optional Adjustment 1'!G164*$S$1 -> 0 | T164: ='Optional Adjustment 2'!G164*$T$1 -> 0 | U164: ='Optional Adjustment 3'!G164*$U$1 -> 0 | V164: ='Optional Adjustment 4'!G164*$V$1 -> 0 | W164: ='Optional Adjustment 5'!G164*$W$1 -> 0 | X164: ='Optional Adjustment 6'!G164*$X$1 -> 0 | Y164: ='Optional Adjustment 7'!G164*$Y$1 -> 0 | Z164: ='Optional Adjustment 8'!G164*$Z$1 -> 0 | AA164: ='Optional Adjustment 9'!G164*$AA$1 -> 0 | AB164: ='Optional Adjustment 10'!G164*$AB$1 -> 0 | AC164: ='Optional Adjustment 11'!G164*$AC$1 -> 0 | AD164: ='Optional Adjustment 12'!G164*$AD$1 -> 0 | AE164: ='Optional Adjustment 13'!G164*$AE$1 -> 0 | AF164: ='Optional Adjustment 14'!G164*$AF$1 -> 0 | AG164: ='Optional Adjustment 15'!G164*$AG$1 -> 0 | AH164: ='Optional Adjustment 16'!G164*$AH$1 -> 0 | AI164: ='Optional Adjustment 17'!G164*$AI$1 -> 0 | AJ164: ='Optional Adjustment 18'!G164*$AJ$1 -> 0 | AK164: ='Optional Adjustment 19'!G164*$AK$1 -> 0 | AL164: ='Optional Adjustment 20'!G164*$AL$1 -> 0 | AM164: ='Optional Adjustment 21'!G164*$AM$1 -> 0 | AN164: ='Optional Adjustment 22'!G164*$AN$1 -> 0 | AO164: ='Optional Adjustment 23'!G164*$AO$1 -> 0 | AP164: ='Optional Adjustment 24'!G164*$AP$1 -> 0 | AQ164: ='Optional Adjustment 25'!G164*$AQ$1 -> 0 | AR164: ='Optional Adjustment 26'!G164*$AR$1 -> 0 | AS164: ='Optional Adjustment 27'!G164*$AS$1 -> 0 | AU164: =SUM(F164:AT164) -> -46565 | AW164: =SUM(AU164:AU164) -> -46565 | AX164: =+AW164-'ROR-Model'!G164 -> 0
C165: Total Revenue | F165: =SUM(F160:F164) -> 0 | H165: =H1*SUM(H160:H164) -> 4560913.302 | I165: =SUM(I160:I164) -> 0 | J165: =SUM(J160:J164) -> 0 | K165: 0 | L165: 0 | M165: 0 | N165: 0 | O165: 0 | P165: 0 | Q165: =SUM(Q160:Q164) -> 0 | R165: 0 | S165: 0 | T165: 0 | U165: 0 | V165: 0 | W165: 0 | X165: =SUM(X160:X164) -> 0 | Y165: 0 | Z165: 0 | AA165: 0 | AB165: 0 | AC165: 0 | AD165: 0 | AE165: 0 | AF165: 0 | AG165: 0 | AH165: =SUM(AH160:AH164) -> 0 | AI165: 0 | AJ165: 0 | AK165: 0 | AL165: =SUM(AL160:AL164) -> 0 | AM165: 0 | AN165: 0 | AO165: 0 | AP165: 0 | AQ165: =SUM(AQ160:AQ164) -> 0 | AR165: 0 | AS165: 0 | AU165: =SUM(AU160:AU164) -> 4560913.302 | AW165: =SUM(AW160:AW164) -> 4560913.302 | AX165: =+AW165-'ROR-Model'!G165 -> 0
AX166: =+AW166-'ROR-Model'!G166 -> 0
C167: Total Dth | H167: =H1*Revenue!$Q$166 -> 3003584 | AU167: =SUM(F167:AT167) -> 3003584 | AW167: =SUM(AU167:AU167) -> 3003584 | AX167: =+AW167-'ROR-Model'!G167 -> 0
AX168: =+AW168-'ROR-Model'!G168 -> 0
B169: IT-S | C169: Distribution Non-Gas Rev | H169: =H1*Revenue!$Q$168 -> 0 | S169: ='Optional Adjustment 1'!G169*$S$1 -> 0 | T169: ='Optional Adjustment 2'!G169*$T$1 -> 0 | U169: ='Optional Adjustment 3'!G169*$U$1 -> 0 | V169: ='Optional Adjustment 4'!G169*$V$1 -> 0 | W169: ='Optional Adjustment 5'!G169*$W$1 -> 0 | X169: ='Optional Adjustment 6'!G169*$X$1 -> 0 | Y169: ='Optional Adjustment 7'!G169*$Y$1 -> 0 | Z169: ='Optional Adjustment 8'!G169*$Z$1 -> 0 | AA169: ='Optional Adjustment 9'!G169*$AA$1 -> 0 | AB169: ='Optional Adjustment 10'!G169*$AB$1 -> 0 | AC169: ='Optional Adjustment 11'!G169*$AC$1 -> 0 | AD169: ='Optional Adjustment 12'!G169*$AD$1 -> 0 | AE169: ='Optional Adjustment 13'!G169*$AE$1 -> 0 | AF169: ='Optional Adjustment 14'!G169*$AF$1 -> 0 | AG169: ='Optional Adjustment 15'!G169*$AG$1 -> 0 | AH169: ='Optional Adjustment 16'!G169*$AH$1 -> 0 | AI169: ='Optional Adjustment 17'!G169*$AI$1 -> 0 | AJ169: ='Optional Adjustment 18'!G169*$AJ$1 -> 0 | AK169: ='Optional Adjustment 19'!G169*$AK$1 -> 0 | AL169: ='Optional Adjustment 20'!G169*$AL$1 -> 0 | AM169: ='Optional Adjustment 21'!G169*$AM$1 -> 0 | AN169: ='Optional Adjustment 22'!G169*$AN$1 -> 0 | AO169: ='Optional Adjustment 23'!G169*$AO$1 -> 0 | AP169: ='Optional Adjustment 24'!G169*$AP$1 -> 0 | AQ169: ='Optional Adjustment 25'!G169*$AQ$1 -> 0 | AR169: ='Optional Adjustment 26'!G169*$AR$1 -> 0 | AS169: ='Optional Adjustment 27'!G169*$AS$1 -> 0 | AU169: =SUM(F169:AT169) -> 0 | AW169: =SUM(AU169:AU169) -> 0 | AX169: =+AW169-'ROR-Model'!G169 -> 0
AX170: =+AW170-'ROR-Model'!G170 -> 0
C171: Supplier Non-Gas Revenue | H171: =H1*Revenue!$Q$170 -> 0 | S171: ='Optional Adjustment 1'!G171*$S$1 -> 0 | T171: ='Optional Adjustment 2'!G171*$T$1 -> 0 | U171: ='Optional Adjustment 3'!G171*$U$1 -> 0 | V171: ='Optional Adjustment 4'!G171*$V$1 -> 0 | W171: ='Optional Adjustment 5'!G171*$W$1 -> 0 | X171: ='Optional Adjustment 6'!G171*$X$1 -> 0 | Y171: ='Optional Adjustment 7'!G171*$Y$1 -> 0 | Z171: ='Optional Adjustment 8'!G171*$Z$1 -> 0 | AA171: ='Optional Adjustment 9'!G171*$AA$1 -> 0 | AB171: ='Optional Adjustment 10'!G171*$AB$1 -> 0 | AC171: ='Optional Adjustment 11'!G171*$AC$1 -> 0 | AD171: ='Optional Adjustment 12'!G171*$AD$1 -> 0 | AE171: ='Optional Adjustment 13'!G171*$AE$1 -> 0 | AF171: ='Optional Adjustment 14'!G171*$AF$1 -> 0 | AG171: ='Optional Adjustment 15'!G171*$AG$1 -> 0 | AH171: ='Optional Adjustment 16'!G171*$AH$1 -> 0 | AI171: ='Optional Adjustment 17'!G171*$AI$1 -> 0 | AJ171: ='Optional Adjustment 18'!G171*$AJ$1 -> 0 | AK171: ='Optional Adjustment 19'!G171*$AK$1 -> 0 | AL171: ='Optional Adjustment 20'!G171*$AL$1 -> 0 | AM171: ='Optional Adjustment 21'!G171*$AM$1 -> 0 | AN171: ='Optional Adjustment 22'!G171*$AN$1 -> 0 | AO171: ='Optional Adjustment 23'!G171*$AO$1 -> 0 | AP171: ='Optional Adjustment 24'!G171*$AP$1 -> 0 | AQ171: ='Optional Adjustment 25'!G171*$AQ$1 -> 0 | AR171: ='Optional Adjustment 26'!G171*$AR$1 -> 0 | AS171: ='Optional Adjustment 27'!G171*$AS$1 -> 0 | AU171: =SUM(F171:AT171) -> 0 | AW171: =SUM(AU171:AU171) -> 0 | AX171: =+AW171-'ROR-Model'!G171 -> 0
AX172: =+AW172-'ROR-Model'!G172 -> 0
C173: Commodity Revenue | H173: =H1*Revenue!$Q$172 -> 0 | S173: ='Optional Adjustment 1'!G173*$S$1 -> 0 | T173: ='Optional Adjustment 2'!G173*$T$1 -> 0 | U173: ='Optional Adjustment 3'!G173*$U$1 -> 0 | V173: ='Optional Adjustment 4'!G173*$V$1 -> 0 | W173: ='Optional Adjustment 5'!G173*$W$1 -> 0 | X173: ='Optional Adjustment 6'!G173*$X$1 -> 0 | Y173: ='Optional Adjustment 7'!G173*$Y$1 -> 0 | Z173: ='Optional Adjustment 8'!G173*$Z$1 -> 0 | AA173: ='Optional Adjustment 9'!G173*$AA$1 -> 0 | AB173: ='Optional Adjustment 10'!G173*$AB$1 -> 0 | AC173: ='Optional Adjustment 11'!G173*$AC$1 -> 0 | AD173: ='Optional Adjustment 12'!G173*$AD$1 -> 0 | AE173: ='Optional Adjustment 13'!G173*$AE$1 -> 0 | AF173: ='Optional Adjustment 14'!G173*$AF$1 -> 0 | AG173: ='Optional Adjustment 15'!G173*$AG$1 -> 0 | AH173: ='Optional Adjustment 16'!G173*$AH$1 -> 0 | AI173: ='Optional Adjustment 17'!G173*$AI$1 -> 0 | AJ173: ='Optional Adjustment 18'!G173*$AJ$1 -> 0 | AK173: ='Optional Adjustment 19'!G173*$AK$1 -> 0 | AL173: ='Optional Adjustment 20'!G173*$AL$1 -> 0 | AM173: ='Optional Adjustment 21'!G173*$AM$1 -> 0 | AN173: ='Optional Adjustment 22'!G173*$AN$1 -> 0 | AO173: ='Optional Adjustment 23'!G173*$AO$1 -> 0 | AP173: ='Optional Adjustment 24'!G173*$AP$1 -> 0 | AQ173: ='Optional Adjustment 25'!G173*$AQ$1 -> 0 | AR173: ='Optional Adjustment 26'!G173*$AR$1 -> 0 | AS173: ='Optional Adjustment 27'!G173*$AS$1 -> 0 | AU173: =SUM(F173:AT173) -> 0 | AW173: =SUM(AU173:AU173) -> 0 | AX173: =+AW173-'ROR-Model'!G173 -> 0
C174: Total Revenue | F174: =SUM(F169:F173) -> 0 | H174: =H1*SUM(H169:H173) -> 0 | I174: =SUM(I169:I173) -> 0 | J174: =SUM(J169:J173) -> 0 | K174: 0 | L174: 0 | M174: 0 | N174: 0 | O174: 0 | P174: 0 | Q174: =SUM(Q169:Q173) -> 0 | R174: 0 | S174: 0 | T174: 0 | U174: 0 | V174: 0 | W174: 0 | X174: =SUM(X169:X173) -> 0 | Y174: 0 | Z174: 0 | AA174: 0 | AB174: 0 | AC174: 0 | AD174: 0 | AE174: 0 | AF174: 0 | AG174: 0 | AH174: =SUM(AH169:AH173) -> 0 | AI174: 0 | AJ174: 0 | AK174: 0 | AL174: =SUM(AL169:AL173) -> 0 | AM174: 0 | AN174: 0 | AO174: 0 | AP174: 0 | AQ174: =SUM(AQ169:AQ173) -> 0 | AR174: 0 | AS174: 0 | AU174: =SUM(AU169:AU173) -> 0 | AW174: =SUM(AW169:AW173) -> 0 | AX174: =+AW174-'ROR-Model'!G174 -> 0
AX175: =+AW175-'ROR-Model'!G175 -> 0
C176: Total Dth | H176: =H1*Revenue!$Q$175 -> 0 | AU176: =SUM(F176:AT176) -> 0 | AW176: =SUM(AU176:AU176) -> 0 | AX176: =+AW176-'ROR-Model'!G176 -> 0
AX177: =+AW177-'ROR-Model'!G177 -> 0
B178: FT-2C | C178: Distribution Non-Gas Rev | H178: =H1*Revenue!$Q$177 -> 0 | S178: ='Optional Adjustment 1'!G178*$S$1 -> 0 | T178: ='Optional Adjustment 2'!G178*$T$1 -> 0 | U178: ='Optional Adjustment 3'!G178*$U$1 -> 0 | V178: ='Optional Adjustment 4'!G178*$V$1 -> 0 | W178: ='Optional Adjustment 5'!G178*$W$1 -> 0 | X178: ='Optional Adjustment 6'!G178*$X$1 -> 0 | Y178: ='Optional Adjustment 7'!G178*$Y$1 -> 0 | Z178: ='Optional Adjustment 8'!G178*$Z$1 -> 0 | AA178: ='Optional Adjustment 9'!G178*$AA$1 -> 0 | AB178: ='Optional Adjustment 10'!G178*$AB$1 -> 0 | AC178: ='Optional Adjustment 11'!G178*$AC$1 -> 0 | AD178: ='Optional Adjustment 12'!G178*$AD$1 -> 0 | AE178: ='Optional Adjustment 13'!G178*$AE$1 -> 0 | AF178: ='Optional Adjustment 14'!G178*$AF$1 -> 0 | AG178: ='Optional Adjustment 15'!G178*$AG$1 -> 0 | AH178: ='Optional Adjustment 16'!G178*$AH$1 -> 0 | AI178: ='Optional Adjustment 17'!G178*$AI$1 -> 0 | AJ178: ='Optional Adjustment 18'!G178*$AJ$1 -> 0 | AK178: ='Optional Adjustment 19'!G178*$AK$1 -> 0 | AL178: ='Optional Adjustment 20'!G178*$AL$1 -> 0 | AM178: ='Optional Adjustment 21'!G178*$AM$1 -> 0 | AN178: ='Optional Adjustment 22'!G178*$AN$1 -> 0 | AO178: ='Optional Adjustment 23'!G178*$AO$1 -> 0 | AP178: ='Optional Adjustment 24'!G178*$AP$1 -> 0 | AQ178: ='Optional Adjustment 25'!G178*$AQ$1 -> 0 | AR178: ='Optional Adjustment 26'!G178*$AR$1 -> 0 | AS178: ='Optional Adjustment 27'!G178*$AS$1 -> 0 | AU178: =SUM(F178:AT178) -> 0 | AW178: =SUM(AU178:AU178) -> 0 | AX178: =+AW178-'ROR-Model'!G178 -> 0
AX179: =+AW179-'ROR-Model'!G179 -> 0
C180: Supplier Non-Gas Revenue | H180: =H1*Revenue!$Q$179 -> 0 | S180: ='Optional Adjustment 1'!G180*$S$1 -> 0 | T180: ='Optional Adjustment 2'!G180*$T$1 -> 0 | U180: ='Optional Adjustment 3'!G180*$U$1 -> 0 | V180: ='Optional Adjustment 4'!G180*$V$1 -> 0 | W180: ='Optional Adjustment 5'!G180*$W$1 -> 0 | X180: ='Optional Adjustment 6'!G180*$X$1 -> 0 | Y180: ='Optional Adjustment 7'!G180*$Y$1 -> 0 | Z180: ='Optional Adjustment 8'!G180*$Z$1 -> 0 | AA180: ='Optional Adjustment 9'!G180*$AA$1 -> 0 | AB180: ='Optional Adjustment 10'!G180*$AB$1 -> 0 | AC180: ='Optional Adjustment 11'!G180*$AC$1 -> 0 | AD180: ='Optional Adjustment 12'!G180*$AD$1 -> 0 | AE180: ='Optional Adjustment 13'!G180*$AE$1 -> 0 | AF180: ='Optional Adjustment 14'!G180*$AF$1 -> 0 | AG180: ='Optional Adjustment 15'!G180*$AG$1 -> 0 | AH180: ='Optional Adjustment 16'!G180*$AH$1 -> 0 | AI180: ='Optional Adjustment 17'!G180*$AI$1 -> 0 | AJ180: ='Optional Adjustment 18'!G180*$AJ$1 -> 0 | AK180: ='Optional Adjustment 19'!G180*$AK$1 -> 0 | AL180: ='Optional Adjustment 20'!G180*$AL$1 -> 0 | AM180: ='Optional Adjustment 21'!G180*$AM$1 -> 0 | AN180: ='Optional Adjustment 22'!G180*$AN$1 -> 0 | AO180: ='Optional Adjustment 23'!G180*$AO$1 -> 0 | AP180: ='Optional Adjustment 24'!G180*$AP$1 -> 0 | AQ180: ='Optional Adjustment 25'!G180*$AQ$1 -> 0 | AR180: ='Optional Adjustment 26'!G180*$AR$1 -> 0 | AS180: ='Optional Adjustment 27'!G180*$AS$1 -> 0 | AU180: =SUM(F180:AT180) -> 0 | AW180: =SUM(AU180:AU180) -> 0 | AX180: =+AW180-'ROR-Model'!G180 -> 0
AX181: =+AW181-'ROR-Model'!G181 -> 0
C182: Commodity Revenue | H182: =H1*Revenue!$Q$181 -> 0 | S182: ='Optional Adjustment 1'!G182*$S$1 -> 0 | T182: ='Optional Adjustment 2'!G182*$T$1 -> 0 | U182: ='Optional Adjustment 3'!G182*$U$1 -> 0 | V182: ='Optional Adjustment 4'!G182*$V$1 -> 0 | W182: ='Optional Adjustment 5'!G182*$W$1 -> 0 | X182: ='Optional Adjustment 6'!G182*$X$1 -> 0 | Y182: ='Optional Adjustment 7'!G182*$Y$1 -> 0 | Z182: ='Optional Adjustment 8'!G182*$Z$1 -> 0 | AA182: ='Optional Adjustment 9'!G182*$AA$1 -> 0 | AB182: ='Optional Adjustment 10'!G182*$AB$1 -> 0 | AC182: ='Optional Adjustment 11'!G182*$AC$1 -> 0 | AD182: ='Optional Adjustment 12'!G182*$AD$1 -> 0 | AE182: ='Optional Adjustment 13'!G182*$AE$1 -> 0 | AF182: ='Optional Adjustment 14'!G182*$AF$1 -> 0 | AG182: ='Optional Adjustment 15'!G182*$AG$1 -> 0 | AH182: ='Optional Adjustment 16'!G182*$AH$1 -> 0 | AI182: ='Optional Adjustment 17'!G182*$AI$1 -> 0 | AJ182: ='Optional Adjustment 18'!G182*$AJ$1 -> 0 | AK182: ='Optional Adjustment 19'!G182*$AK$1 -> 0 | AL182: ='Optional Adjustment 20'!G182*$AL$1 -> 0 | AM182: ='Optional Adjustment 21'!G182*$AM$1 -> 0 | AN182: ='Optional Adjustment 22'!G182*$AN$1 -> 0 | AO182: ='Optional Adjustment 23'!G182*$AO$1 -> 0 | AP182: ='Optional Adjustment 24'!G182*$AP$1 -> 0 | AQ182: ='Optional Adjustment 25'!G182*$AQ$1 -> 0 | AR182: ='Optional Adjustment 26'!G182*$AR$1 -> 0 | AS182: ='Optional Adjustment 27'!G182*$AS$1 -> 0 | AU182: =SUM(F182:AT182) -> 0 | AW182: =SUM(AU182:AU182) -> 0 | AX182: =+AW182-'ROR-Model'!G182 -> 0
C183: Total Revenue | F183: =SUM(F178:F182) -> 0 | H183: =H1*SUM(H178:H182) -> 0 | I183: =SUM(I178:I182) -> 0 | J183: =SUM(J178:J182) -> 0 | K183: 0 | L183: 0 | M183: 0 | N183: 0 | O183: 0 | P183: 0 | Q183: =SUM(Q178:Q182) -> 0 | R183: 0 | S183: 0 | T183: 0 | U183: 0 | V183: 0 | W183: 0 | X183: =SUM(X178:X182) -> 0 | Y183: 0 | Z183: 0 | AA183: 0 | AB183: 0 | AC183: 0 | AD183: 0 | AE183: 0 | AF183: 0 | AG183: 0 | AH183: =SUM(AH178:AH182) -> 0 | AI183: 0 | AJ183: 0 | AK183: 0 | AL183: =SUM(AL178:AL182) -> 0 | AM183: 0 | AN183: 0 | AO183: 0 | AP183: 0 | AQ183: =SUM(AQ178:AQ182) -> 0 | AR183: 0 | AS183: 0 | AU183: =SUM(AU178:AU182) -> 0 | AW183: =SUM(AW178:AW182) -> 0 | AX183: =+AW183-'ROR-Model'!G183 -> 0
AX184: =+AW184-'ROR-Model'!G184 -> 0
C185: Total Dth | H185: =H1*Revenue!$Q$184 -> 0 | AU185: =SUM(F185:AT185) -> 0 | AW185: =SUM(AU185:AU185) -> 0 | AX185: =+AW185-'ROR-Model'!G185 -> 0
AX186: =+AW186-'ROR-Model'!G186 -> 0
B187: E-1 | C187: Distribution Non-Gas Rev | H187: =H1*Revenue!$Q$186 -> 0 | S187: ='Optional Adjustment 1'!G187*$S$1 -> 0 | T187: ='Optional Adjustment 2'!G187*$T$1 -> 0 | U187: ='Optional Adjustment 3'!G187*$U$1 -> 0 | V187: ='Optional Adjustment 4'!G187*$V$1 -> 0 | W187: ='Optional Adjustment 5'!G187*$W$1 -> 0 | X187: ='Optional Adjustment 6'!G187*$X$1 -> 0 | Y187: ='Optional Adjustment 7'!G187*$Y$1 -> 0 | Z187: ='Optional Adjustment 8'!G187*$Z$1 -> 0 | AA187: ='Optional Adjustment 9'!G187*$AA$1 -> 0 | AB187: ='Optional Adjustment 10'!G187*$AB$1 -> 0 | AC187: ='Optional Adjustment 11'!G187*$AC$1 -> 0 | AD187: ='Optional Adjustment 12'!G187*$AD$1 -> 0 | AE187: ='Optional Adjustment 13'!G187*$AE$1 -> 0 | AF187: ='Optional Adjustment 14'!G187*$AF$1 -> 0 | AG187: ='Optional Adjustment 15'!G187*$AG$1 -> 0 | AH187: ='Optional Adjustment 16'!G187*$AH$1 -> 0 | AI187: ='Optional Adjustment 17'!G187*$AI$1 -> 0 | AJ187: ='Optional Adjustment 18'!G187*$AJ$1 -> 0 | AK187: ='Optional Adjustment 19'!G187*$AK$1 -> 0 | AL187: ='Optional Adjustment 20'!G187*$AL$1 -> 0 | AM187: ='Optional Adjustment 21'!G187*$AM$1 -> 0 | AN187: ='Optional Adjustment 22'!G187*$AN$1 -> 0 | AO187: ='Optional Adjustment 23'!G187*$AO$1 -> 0 | AP187: ='Optional Adjustment 24'!G187*$AP$1 -> 0 | AQ187: ='Optional Adjustment 25'!G187*$AQ$1 -> 0 | AR187: ='Optional Adjustment 26'!G187*$AR$1 -> 0 | AS187: ='Optional Adjustment 27'!G187*$AS$1 -> 0 | AU187: =SUM(F187:AT187) -> 0 | AW187: =SUM(AU187:AU187) -> 0 | AX187: =+AW187-'ROR-Model'!G187 -> 0
AX188: =+AW188-'ROR-Model'!G188 -> 0
C189: Supplier Non-Gas Revenue | H189: =H1*Revenue!$Q$188 -> 0 | S189: ='Optional Adjustment 1'!G189*$S$1 -> 0 | T189: ='Optional Adjustment 2'!G189*$T$1 -> 0 | U189: ='Optional Adjustment 3'!G189*$U$1 -> 0 | V189: ='Optional Adjustment 4'!G189*$V$1 -> 0 | W189: ='Optional Adjustment 5'!G189*$W$1 -> 0 | X189: ='Optional Adjustment 6'!G189*$X$1 -> 0 | Y189: ='Optional Adjustment 7'!G189*$Y$1 -> 0 | Z189: ='Optional Adjustment 8'!G189*$Z$1 -> 0 | AA189: ='Optional Adjustment 9'!G189*$AA$1 -> 0 | AB189: ='Optional Adjustment 10'!G189*$AB$1 -> 0 | AC189: ='Optional Adjustment 11'!G189*$AC$1 -> 0 | AD189: ='Optional Adjustment 12'!G189*$AD$1 -> 0 | AE189: ='Optional Adjustment 13'!G189*$AE$1 -> 0 | AF189: ='Optional Adjustment 14'!G189*$AF$1 -> 0 | AG189: ='Optional Adjustment 15'!G189*$AG$1 -> 0 | AH189: ='Optional Adjustment 16'!G189*$AH$1 -> 0 | AI189: ='Optional Adjustment 17'!G189*$AI$1 -> 0 | AJ189: ='Optional Adjustment 18'!G189*$AJ$1 -> 0 | AK189: ='Optional Adjustment 19'!G189*$AK$1 -> 0 | AL189: ='Optional Adjustment 20'!G189*$AL$1 -> 0 | AM189: ='Optional Adjustment 21'!G189*$AM$1 -> 0 | AN189: ='Optional Adjustment 22'!G189*$AN$1 -> 0 | AO189: ='Optional Adjustment 23'!G189*$AO$1 -> 0 | AP189: ='Optional Adjustment 24'!G189*$AP$1 -> 0 | AQ189: ='Optional Adjustment 25'!G189*$AQ$1 -> 0 | AR189: ='Optional Adjustment 26'!G189*$AR$1 -> 0 | AS189: ='Optional Adjustment 27'!G189*$AS$1 -> 0 | AU189: =SUM(F189:AT189) -> 0 | AW189: =SUM(AU189:AU189) -> 0 | AX189: =+AW189-'ROR-Model'!G189 -> 0
AX190: =+AW190-'ROR-Model'!G190 -> 0
C191: Commodity Revenue | H191: =H1*Revenue!$Q$190 -> 0 | S191: ='Optional Adjustment 1'!G191*$S$1 -> 0 | T191: ='Optional Adjustment 2'!G191*$T$1 -> 0 | U191: ='Optional Adjustment 3'!G191*$U$1 -> 0 | V191: ='Optional Adjustment 4'!G191*$V$1 -> 0 | W191: ='Optional Adjustment 5'!G191*$W$1 -> 0 | X191: ='Optional Adjustment 6'!G191*$X$1 -> 0 | Y191: ='Optional Adjustment 7'!G191*$Y$1 -> 0 | Z191: ='Optional Adjustment 8'!G191*$Z$1 -> 0 | AA191: ='Optional Adjustment 9'!G191*$AA$1 -> 0 | AB191: ='Optional Adjustment 10'!G191*$AB$1 -> 0 | AC191: ='Optional Adjustment 11'!G191*$AC$1 -> 0 | AD191: ='Optional Adjustment 12'!G191*$AD$1 -> 0 | AE191: ='Optional Adjustment 13'!G191*$AE$1 -> 0 | AF191: ='Optional Adjustment 14'!G191*$AF$1 -> 0 | AG191: ='Optional Adjustment 15'!G191*$AG$1 -> 0 | AH191: ='Optional Adjustment 16'!G191*$AH$1 -> 0 | AI191: ='Optional Adjustment 17'!G191*$AI$1 -> 0 | AJ191: ='Optional Adjustment 18'!G191*$AJ$1 -> 0 | AK191: ='Optional Adjustment 19'!G191*$AK$1 -> 0 | AL191: ='Optional Adjustment 20'!G191*$AL$1 -> 0 | AM191: ='Optional Adjustment 21'!G191*$AM$1 -> 0 | AN191: ='Optional Adjustment 22'!G191*$AN$1 -> 0 | AO191: ='Optional Adjustment 23'!G191*$AO$1 -> 0 | AP191: ='Optional Adjustment 24'!G191*$AP$1 -> 0 | AQ191: ='Optional Adjustment 25'!G191*$AQ$1 -> 0 | AR191: ='Optional Adjustment 26'!G191*$AR$1 -> 0 | AS191: ='Optional Adjustment 27'!G191*$AS$1 -> 0 | AU191: =SUM(F191:AT191) -> 0 | AW191: =SUM(AU191:AU191) -> 0 | AX191: =+AW191-'ROR-Model'!G191 -> 0
C192: Total Revenue | F192: =SUM(F187:F191) -> 0 | H192: =H1*SUM(H187:H191) -> 0 | I192: =SUM(I187:I191) -> 0 | J192: =SUM(J187:J191) -> 0 | K192: 0 | L192: 0 | M192: 0 | N192: 0 | O192: 0 | P192: 0 | Q192: =SUM(Q187:Q191) -> 0 | R192: 0 | S192: 0 | T192: 0 | U192: 0 | V192: 0 | W192: 0 | X192: =SUM(X187:X191) -> 0 | Y192: 0 | Z192: 0 | AA192: 0 | AB192: 0 | AC192: 0 | AD192: 0 | AE192: 0 | AF192: 0 | AG192: 0 | AH192: =SUM(AH187:AH191) -> 0 | AI192: 0 | AJ192: 0 | AK192: 0 | AL192: =SUM(AL187:AL191) -> 0 | AM192: 0 | AN192: 0 | AO192: 0 | AP192: 0 | AQ192: =SUM(AQ187:AQ191) -> 0 | AR192: 0 | AS192: 0 | AU192: =SUM(AU187:AU191) -> 0 | AW192: =SUM(AW187:AW191) -> 0 | AX192: =+AW192-'ROR-Model'!G192 -> 0
AX193: =+AW193-'ROR-Model'!G193 -> 0
C194: Total Dth | H194: =H1*Revenue!$Q$193 -> 0 | AU194: =SUM(F194:AT194) -> 0 | AW194: =SUM(AU194:AU194) -> 0 | AX194: =+AW194-'ROR-Model'!G194 -> 0
AX195: =+AW195-'ROR-Model'!G195 -> 0
B196: CET | C196: Distribution Non-Gas Revenue | F196: 0 | H196: =H1*Revenue!$Q$195 -> -9415507 | I196: 0 | J196: 0 | K196: 0 | L196: 0 | M196: 0 | N196: 0 | O196: 0 | P196: 0 | Q196: 0 | R196: 0 | S196: ='Optional Adjustment 1'!G196*$S$1 -> 0 | T196: ='Optional Adjustment 2'!G196*$T$1 -> 0 | U196: ='Optional Adjustment 3'!G196*$U$1 -> 0 | V196: ='Optional Adjustment 4'!G196*$V$1 -> 0 | W196: ='Optional Adjustment 5'!G196*$W$1 -> 0 | X196: ='Optional Adjustment 6'!G196*$X$1 -> 0 | Y196: ='Optional Adjustment 7'!G196*$Y$1 -> 0 | Z196: ='Optional Adjustment 8'!G196*$Z$1 -> 0 | AA196: ='Optional Adjustment 9'!G196*$AA$1 -> 0 | AB196: ='Optional Adjustment 10'!G196*$AB$1 -> 0 | AC196: ='Optional Adjustment 11'!G196*$AC$1 -> 0 | AD196: ='Optional Adjustment 12'!G196*$AD$1 -> 0 | AE196: ='Optional Adjustment 13'!G196*$AE$1 -> 0 | AF196: ='Optional Adjustment 14'!G196*$AF$1 -> 0 | AG196: ='Optional Adjustment 15'!G196*$AG$1 -> 0 | AH196: ='Optional Adjustment 16'!G196*$AH$1 -> 0 | AI196: ='Optional Adjustment 17'!G196*$AI$1 -> 0 | AJ196: ='Optional Adjustment 18'!G196*$AJ$1 -> 0 | AK196: ='Optional Adjustment 19'!G196*$AK$1 -> 0 | AL196: ='Optional Adjustment 20'!G196*$AL$1 -> 0 | AM196: ='Optional Adjustment 21'!G196*$AM$1 -> 0 | AN196: ='Optional Adjustment 22'!G196*$AN$1 -> 0 | AO196: ='Optional Adjustment 23'!G196*$AO$1 -> 0 | AP196: ='Optional Adjustment 24'!G196*$AP$1 -> 0 | AQ196: ='Optional Adjustment 25'!G196*$AQ$1 -> 0 | AR196: ='Optional Adjustment 26'!G196*$AR$1 -> 0 | AS196: ='Optional Adjustment 27'!G196*$AS$1 -> 0 | AU196: =SUM(F196:AT196) -> -9415507 | AW196: =SUM(AU196:AU196) -> -9415507 | AX196: =+AW196-'ROR-Model'!G196 -> 0
B197: DSM | C197: Distribution Non-Gas Revenue | F197: 0 | H197: =H1*Revenue!$Q$196 -> -23365638 | I197: 0 | J197: 0 | K197: =K1*'ENERGY EFFICIENCY SERVICES ADJ'!H12 -> 0 | L197: 0 | M197: 0 | N197: 0 | O197: 0 | P197: 0 | Q197: 0 | R197: 0 | S197: ='Optional Adjustment 1'!G197*$S$1 -> 0 | T197: ='Optional Adjustment 2'!G197*$T$1 -> 0 | U197: ='Optional Adjustment 3'!G197*$U$1 -> 0 | V197: ='Optional Adjustment 4'!G197*$V$1 -> 0 | W197: ='Optional Adjustment 5'!G197*$W$1 -> 0 | X197: ='Optional Adjustment 6'!G197*$X$1 -> 0 | Y197: ='Optional Adjustment 7'!G197*$Y$1 -> 0 | Z197: ='Optional Adjustment 8'!G197*$Z$1 -> 0 | AA197: ='Optional Adjustment 9'!G197*$AA$1 -> 0 | AB197: ='Optional Adjustment 10'!G197*$AB$1 -> 0 | AC197: ='Optional Adjustment 11'!G197*$AC$1 -> 0 | AD197: ='Optional Adjustment 12'!G197*$AD$1 -> 0 | AE197: ='Optional Adjustment 13'!G197*$AE$1 -> 0 | AF197: ='Optional Adjustment 14'!G197*$AF$1 -> 0 | AG197: ='Optional Adjustment 15'!G197*$AG$1 -> 0 | AH197: ='Optional Adjustment 16'!G197*$AH$1 -> 0 | AI197: ='Optional Adjustment 17'!G197*$AI$1 -> 0 | AJ197: ='Optional Adjustment 18'!G197*$AJ$1 -> 0 | AK197: ='Optional Adjustment 19'!G197*$AK$1 -> 0 | AL197: ='Optional Adjustment 20'!G197*$AL$1 -> 0 | AM197: ='Optional Adjustment 21'!G197*$AM$1 -> 0 | AN197: ='Optional Adjustment 22'!G197*$AN$1 -> 0 | AO197: ='Optional Adjustment 23'!G197*$AO$1 -> 0 | AP197: ='Optional Adjustment 24'!G197*$AP$1 -> 0 | AQ197: ='Optional Adjustment 25'!G197*$AQ$1 -> 0 | AR197: ='Optional Adjustment 26'!G197*$AR$1 -> 0 | AS197: ='Optional Adjustment 27'!G197*$AS$1 -> 0 | AU197: =SUM(F197:AT197) -> -23365638 | AW197: =SUM(AU197:AU197) -> -23365638 | AX197: =+AW197-'ROR-Model'!G197 -> 0
B198: Utah Totals | AX198: =+AW198-'ROR-Model'!G198 -> 0
AX199: =+AW199-'ROR-Model'!G199 -> 0
C200: Distribution Non-Gas Rev | F200: =+F16+F34+F43+F52+F61+F70+F79+F88+F97+F106+F115+F124+F133+F142+F151+F160+F169+F178+F187+F25+F196+F197 -> 0 | H200: =+H16+H34+H43+H52+H61+H70+H79+H88+H97+H106+H115+H124+H133+H142+H151+H160+H169+H178+H187+H25+H196+H197 -> -2284951.245 | I200: =+I16+I34+I43+I52+I61+I70+I79+I88+I97+I106+I115+I124+I133+I142+I151+I160+I169+I178+I187+I25+I196+I197 -> 0 | J200: 0 | K200: =+K16+K34+K43+K52+K61+K70+K79+K88+K97+K106+K115+K124+K133+K142+K151+K160+K169+K178+K187+K25+K196+K197 -> 0 | L200: 0 | M200: 0 | N200: 0 | O200: 0 | P200: 0 | Q200: 0 | R200: =+R16+R34+R43+R52+R61+R70+R79+R88+R97+R106+R115+R124+R133+R142+R151+R160+R169+R178+R187+R25+R196+R197 -> 0 | S200: ='Optional Adjustment 1'!G200*$S$1 -> 0 | T200: ='Optional Adjustment 2'!G200*$T$1 -> 0 | U200: ='Optional Adjustment 3'!G200*$U$1 -> 0 | V200: ='Optional Adjustment 4'!G200*$V$1 -> 0 | W200: ='Optional Adjustment 5'!G200*$W$1 -> 0 | X200: ='Optional Adjustment 6'!G200*$X$1 -> 0 | Y200: ='Optional Adjustment 7'!G200*$Y$1 -> 0 | Z200: ='Optional Adjustment 8'!G200*$Z$1 -> 0 | AA200: ='Optional Adjustment 9'!G200*$AA$1 -> 0 | AB200: ='Optional Adjustment 10'!G200*$AB$1 -> 0 | AC200: ='Optional Adjustment 11'!G200*$AC$1 -> 0 | AD200: ='Optional Adjustment 12'!G200*$AD$1 -> 0 | AE200: ='Optional Adjustment 13'!G200*$AE$1 -> 0 | AF200: ='Optional Adjustment 14'!G200*$AF$1 -> 0 | AG200: ='Optional Adjustment 15'!G200*$AG$1 -> 0 | AH200: ='Optional Adjustment 16'!G200*$AH$1 -> 0 | AI200: ='Optional Adjustment 17'!G200*$AI$1 -> 0 | AJ200: ='Optional Adjustment 18'!G200*$AJ$1 -> 0 | AK200: ='Optional Adjustment 19'!G200*$AK$1 -> 0 | AL200: ='Optional Adjustment 20'!G200*$AL$1 -> 0 | AM200: ='Optional Adjustment 21'!G200*$AM$1 -> 0 | AN200: ='Optional Adjustment 22'!G200*$AN$1 -> 0 | AO200: ='Optional Adjustment 23'!G200*$AO$1 -> 0 | AP200: ='Optional Adjustment 24'!G200*$AP$1 -> 0 | AQ200: ='Optional Adjustment 25'!G200*$AQ$1 -> 0 | AR200: ='Optional Adjustment 26'!G200*$AR$1 -> 0 | AS200: ='Optional Adjustment 27'!G200*$AS$1 -> 0 | AU200: =+AU16+AU34+AU43+AU52+AU61+AU70+AU79+AU88+AU97+AU106+AU115+AU124+AU133+AU142+AU151+AU160+AU169+AU178+AU187+AU25+AU196+AU197 -> -2284951.245 | AW200: =+AW16+AW34+AW43+AW52+AW61+AW70+AW79+AW88+AW97+AW106+AW115+AW124+AW133+AW142+AW151+AW160+AW169+AW178+AW187+AW25+AW196+AW197 -> -2284951.245 | AX200: =+AW200-'ROR-Model'!G200 -> 0
C201: Supplier Non-Gas Revenue | F201: =F1*+F18+F36+F45+F54+F62+F63+F72+F81+F90+F99+F108+F117+F126+F135+F144+F153+F162+F171+F180+F189+F27 -> 0 | H201: =H1*+H18+H36+H45+H54+H62+H63+H72+H81+H90+H99+H108+H117+H126+H135+H144+H153+H162+H171+H180+H189+H27 -> 26769349.36 | I201: =I1*+I18+I36+I45+I54+I62+I63+I72+I81+I90+I99+I108+I117+I126+I135+I144+I153+I162+I171+I180+I189+I27 -> 0 | J201: =J1*+J18+J36+J45+J54+J62+J63+J72+J81+J90+J99+J108+J117+J126+J135+J144+J153+J162+J171+J180+J189+J27 -> 0 | K201: 0 | L201: 0 | M201: 0 | N201: 0 | O201: 0 | P201: 0 | Q201: 0 | R201: =R1*+R18+R36+R45+R54+R62+R63+R72+R81+R90+R99+R108+R117+R126+R135+R144+R153+R162+R171+R180+R189+R27 -> 0 | S201: ='Optional Adjustment 1'!G201*$S$1 -> 0 | T201: ='Optional Adjustment 2'!G201*$T$1 -> 0 | U201: ='Optional Adjustment 3'!G201*$U$1 -> 0 | V201: ='Optional Adjustment 4'!G201*$V$1 -> 0 | W201: ='Optional Adjustment 5'!G201*$W$1 -> 0 | X201: ='Optional Adjustment 6'!G201*$X$1 -> 0 | Y201: ='Optional Adjustment 7'!G201*$Y$1 -> 0 | Z201: ='Optional Adjustment 8'!G201*$Z$1 -> 0 | AA201: ='Optional Adjustment 9'!G201*$AA$1 -> 0 | AB201: ='Optional Adjustment 10'!G201*$AB$1 -> 0 | AC201: ='Optional Adjustment 11'!G201*$AC$1 -> 0 | AD201: ='Optional Adjustment 12'!G201*$AD$1 -> 0 | AE201: ='Optional Adjustment 13'!G201*$AE$1 -> 0 | AF201: ='Optional Adjustment 14'!G201*$AF$1 -> 0 | AG201: ='Optional Adjustment 15'!G201*$AG$1 -> 0 | AH201: ='Optional Adjustment 16'!G201*$AH$1 -> 0 | AI201: ='Optional Adjustment 17'!G201*$AI$1 -> 0 | AJ201: ='Optional Adjustment 18'!G201*$AJ$1 -> 0 | AK201: ='Optional Adjustment 19'!G201*$AK$1 -> 0 | AL201: ='Optional Adjustment 20'!G201*$AL$1 -> 0 | AM201: ='Optional Adjustment 21'!G201*$AM$1 -> 0 | AN201: ='Optional Adjustment 22'!G201*$AN$1 -> 0 | AO201: ='Optional Adjustment 23'!G201*$AO$1 -> 0 | AP201: ='Optional Adjustment 24'!G201*$AP$1 -> 0 | AQ201: ='Optional Adjustment 25'!G201*$AQ$1 -> 0 | AR201: ='Optional Adjustment 26'!G201*$AR$1 -> 0 | AS201: ='Optional Adjustment 27'!G201*$AS$1 -> 0 | AU201: =+AU18+AU36+AU45+AU54+AU62+AU63+AU72+AU81+AU90+AU99+AU108+AU117+AU126+AU135+AU144+AU153+AU162+AU171+AU180+AU189+AU27 -> 26769349.36 | AW201: =+AW18+AW36+AW45+AW54+AW62+AW63+AW72+AW81+AW90+AW99+AW108+AW117+AW126+AW135+AW144+AW153+AW162+AW171+AW180+AW189+AW27 -> 26769349.36 | AX201: =+AW201-'ROR-Model'!G201 -> 0
C202: Commodity Revenue | F202: =F1*+F20+F38+F47+F56+F64+F65+F74+F83+F92+F101+F110+F119+F128+F137+F146+F155+F164+F173+F182+F191+F29 -> 0 | H202: =H1*+H20+H38+H47+H56+H64+H65+H74+H83+H92+H101+H110+H119+H128+H137+H146+H155+H164+H173+H182+H191+H29 -> 10455666.22 | I202: =I1*+I20+I38+I47+I56+I64+I65+I74+I83+I92+I101+I110+I119+I128+I137+I146+I155+I164+I173+I182+I191+I29 -> 0 | J202: =J1*+J20+J38+J47+J56+J64+J65+J74+J83+J92+J101+J110+J119+J128+J137+J146+J155+J164+J173+J182+J191+J29 -> 0 | K202: 0 | L202: 0 | M202: 0 | N202: 0 | O202: 0 | P202: 0 | Q202: 0 | R202: =R1*+R20+R38+R47+R56+R64+R65+R74+R83+R92+R101+R110+R119+R128+R137+R146+R155+R164+R173+R182+R191+R29 -> 0 | S202: ='Optional Adjustment 1'!G202*$S$1 -> 0 | T202: ='Optional Adjustment 2'!G202*$T$1 -> 0 | U202: ='Optional Adjustment 3'!G202*$U$1 -> 0 | V202: ='Optional Adjustment 4'!G202*$V$1 -> 0 | W202: ='Optional Adjustment 5'!G202*$W$1 -> 0 | X202: ='Optional Adjustment 6'!G202*$X$1 -> 0 | Y202: ='Optional Adjustment 7'!G202*$Y$1 -> 0 | Z202: ='Optional Adjustment 8'!G202*$Z$1 -> 0 | AA202: ='Optional Adjustment 9'!G202*$AA$1 -> 0 | AB202: ='Optional Adjustment 10'!G202*$AB$1 -> 0 | AC202: ='Optional Adjustment 11'!G202*$AC$1 -> 0 | AD202: ='Optional Adjustment 12'!G202*$AD$1 -> 0 | AE202: ='Optional Adjustment 13'!G202*$AE$1 -> 0 | AF202: ='Optional Adjustment 14'!G202*$AF$1 -> 0 | AG202: ='Optional Adjustment 15'!G202*$AG$1 -> 0 | AH202: ='Optional Adjustment 16'!G202*$AH$1 -> 0 | AI202: ='Optional Adjustment 17'!G202*$AI$1 -> 0 | AJ202: ='Optional Adjustment 18'!G202*$AJ$1 -> 0 | AK202: ='Optional Adjustment 19'!G202*$AK$1 -> 0 | AL202: ='Optional Adjustment 20'!G202*$AL$1 -> 0 | AM202: ='Optional Adjustment 21'!G202*$AM$1 -> 0 | AN202: ='Optional Adjustment 22'!G202*$AN$1 -> 0 | AO202: ='Optional Adjustment 23'!G202*$AO$1 -> 0 | AP202: ='Optional Adjustment 24'!G202*$AP$1 -> 0 | AQ202: ='Optional Adjustment 25'!G202*$AQ$1 -> 0 | AR202: ='Optional Adjustment 26'!G202*$AR$1 -> 0 | AS202: ='Optional Adjustment 27'!G202*$AS$1 -> 0 | AU202: =+AU20+AU38+AU47+AU56+AU64+AU65+AU74+AU83+AU92+AU101+AU110+AU119+AU128+AU137+AU146+AU155+AU164+AU173+AU182+AU191+AU29 -> 10455666.22 | AW202: =+AW20+AW38+AW47+AW56+AW64+AW65+AW74+AW83+AW92+AW101+AW110+AW119+AW128+AW137+AW146+AW155+AW164+AW173+AW182+AW191+AW29 -> 10455666.22 | AX202: =+AW202-'ROR-Model'!G202 -> 0
C203: Total Utah Revenue | F203: =+F21+F39+F48+F57+F66+F75+F84+F93+F102+F111+F120+F129+F138+F147+F156+F165+F174+F183+F192+F30+F196+F197 -> 0 | H203: =+H21+H39+H48+H57+H66+H75+H84+H93+H102+H111+H120+H129+H138+H147+H156+H165+H174+H183+H192+H30+H196+H197 -> 34940064.34 | I203: =+I21+I39+I48+I57+I66+I75+I84+I93+I102+I111+I120+I129+I138+I147+I156+I165+I174+I183+I192+I30+I196+I197 -> 0 | J203: 0 | K203: =+K21+K39+K48+K57+K66+K75+K84+K93+K102+K111+K120+K129+K138+K147+K156+K165+K174+K183+K192+K30+K196+K197 -> 0 | L203: 0 | M203: 0 | N203: 0 | O203: =+O21+O39+O48+O57+O66+O75+O84+O93+O102+O111+O120+O129+O138+O147+O156+O165+O174+O183+O192+O30+O196+O197 -> 0 | P203: =+P21+P39+P48+P57+P66+P75+P84+P93+P102+P111+P120+P129+P138+P147+P156+P165+P174+P183+P192+P30+P196+P197 -> 0 | Q203: 0 | R203: =+R21+R39+R48+R57+R66+R75+R84+R93+R102+R111+R120+R129+R138+R147+R156+R165+R174+R183+R192+R30+R196+R197 -> 0 | S203: =+S21+S39+S48+S57+S66+S75+S84+S93+S102+S111+S120+S129+S138+S147+S156+S165+S174+S183+S192+S30+S196+S197 -> 0 | T203: 0 | U203: 0 | V203: 0 | W203: 0 | X203: 0 | Y203: 0 | Z203: 0 | AA203: 0 | AB203: 0 | AC203: 0 | AD203: 0 | AE203: 0 | AF203: 0 | AG203: 0 | AH203: =+AH21+AH39+AH48+AH57+AH66+AH75+AH84+AH93+AH102+AH111+AH120+AH129+AH138+AH147+AH156+AH165+AH174+AH183+AH192+AH30+AH196+AH197 -> 0 | AI203: 0 | AJ203: 0 | AK203: 0 | AL203: =+AL21+AL39+AL48+AL57+AL66+AL75+AL84+AL93+AL102+AL111+AL120+AL129+AL138+AL147+AL156+AL165+AL174+AL183+AL192+AL30+AL196+AL197 -> 0 | AM203: 0 | AN203: 0 | AO203: 0 | AP203: 0 | AQ203: =+AQ21+AQ39+AQ48+AQ57+AQ66+AQ75+AQ84+AQ93+AQ102+AQ111+AQ120+AQ129+AQ138+AQ147+AQ156+AQ165+AQ174+AQ183+AQ192+AQ30+AQ196+AQ197 -> 0 | AR203: 0 | AS203: 0 | AU203: 34940064.34 | AW203: 34940064.34
AX204: =+AW204-'ROR-Model'!G204 -> 0
C205: Sales Dth | F205: =F1*F23+F41+F50+F59+F68+F77+F86+F95+F104+F113+F194+F32 -> 0 | H205: =H1*H23+H41+H50+H59+H68+H77+H86+H95+H104+H113+H194+H32 -> 14001860.77 | I205: =I1*I23+I41+I50+I59+I68+I77+I86+I95+I104+I113+I194+I32 -> 0 | J205: =J1*J23+J41+J50+J59+J68+J77+J86+J95+J104+J113+J194+J32 -> 0 | K205: 0 | L205: 0 | M205: 0 | N205: 0 | O205: 0 | P205: 0 | Q205: 0 | R205: =R1*R23+R41+R50+R59+R68+R77+R86+R95+R104+R113+R194+R32 -> 0 | S205: =S1*S23+S41+S50+S59+S68+S77+S86+S95+S104+S113+S194+S32 -> 0 | T205: 0 | U205: 0 | V205: 0 | W205: 0 | X205: =X1*X23+X41+X50+X59+X68+X77+X86+X95+X104+X113+X194+X32 -> 0 | Y205: 0 | Z205: 0 | AA205: 0 | AB205: 0 | AC205: 0 | AD205: 0 | AE205: 0 | AF205: 0 | AG205: 0 | AH205: =AH1*AH23+AH41+AH50+AH59+AH68+AH77+AH86+AH95+AH104+AH113+AH194+AH32 -> 0 | AI205: 0 | AJ205: 0 | AK205: 0 | AL205: =AL1*AL23+AL41+AL50+AL59+AL68+AL77+AL86+AL95+AL104+AL113+AL194+AL32 -> 0 | AM205: 0 | AN205: 0 | AO205: 0 | AP205: 0 | AQ205: =AQ1*AQ23+AQ41+AQ50+AQ59+AQ68+AQ77+AQ86+AQ95+AQ104+AQ113+AQ194+AQ32 -> 0 | AR205: 0 | AS205: 0 | AU205: =AU23+AU32+AU41+AU50+AU59+AU68+AU77+AU86+AU95+AU104+AU113+AU194 -> 14001860.77 | AW205: =AW23+AW32+AW41+AW50+AW59+AW68+AW77+AW86+AW95+AW104+AW113+AW194 -> 14001860.77 | AX205: =+AW205-'ROR-Model'!G205 -> 0
... 1030 more rows

Sheet Rate Base
B1: Rate Base
B2: ='Control Panel'!$B$1 -> Questar Gas Company | AU2: Rate Base | AY2: A | AZ2: B | BA2: (A - B)
B3: ='Control Panel'!$B$2 -> Utah - DEC 2017 Adjusted Avg Results | AU3: ='Control Panel'!$B$1 -> Questar Gas Company
B4: ='Control Panel'!$B$3 -> 12 Months Ended : Dec-2017 | AU4: ='Control Panel'!$B$2 -> Utah - DEC 2017 Adjusted Avg Results
AG5: 13 Month | AU5: ='Control Panel'!$B$3 -> 12 Months Ended : Dec-2017
AG6: Average | AZ6: 13 Month
AG7: All Accounts | AQ7: HOT | AZ7: Average | BA7: 13 Month
AG8: =+AE9 -> 2015-12-01 | AI8: YE RB DEC 2015 | AJ8: AVG RB DEC 2015 | AK8: AVG RB DEC 2016 | AL8: YE RB DEC 2016 | AM8: AVG RB DEC 2017 | AN8: YE RB DEC 2017 | AP8: =+'Control Panel'!B27 -> AVG RB DEC 2017 | AR8: 1 | AS8: 1 | AY8: Balance | AZ8: All Accounts | BA8: Average
B9: FERC Acct | D9: Description | H9: 2014-01-01 | I9: 2014-02-01 | J9: 2014-03-01 | K9: 2014-04-01 | L9: 2014-05-01 | M9: 2014-06-01 | N9: 2014-07-01 | O9: 2014-08-01 | P9: 2014-09-01 | Q9: 2014-10-01 | R9: 2014-11-01 | S9: 2014-12-01 | T9: 2015-01-01 | U9: 2015-02-01 | V9: 2015-03-01 | W9: 2015-04-01 | X9: 2015-05-01 | Y9: 2015-06-01 | Z9: 2015-07-01 | AA9: 2015-08-01 | AB9: 2015-09-01 | AC9: 2015-10-01 | AD9: 2015-11-01 | AE9: 2015-12-01 | AQ9: Adjustment | AR9: =+AR8+1 -> 2 | AS9: =+AS8+1 -> 2 | AU9: FERC Acct | AW9: Description | AY9: =AE9 -> 2015-12-01 | AZ9: =+'Control Panel'!B27 -> AVG RB DEC 2017 | BA9: Adjustment
A10: 939 | B10: UTILITy RATE BASE | AR10: 3 | AS10: 3 | AU10: UTILITY RATE BASE
A11: =+A10+1 -> 940 | B11: NET UTILITy PLANT | AR11: =+AR10+1 -> 4 | AS11: 4 | AU11: NET UTILITY PLANT
A12: =+A11+1 -> 941 | B12: Gas Plant In Seryice | AR12: 5 | AS12: 5 | AU12: Gas Plant In Seryice
A13: 942 | C13: Intangible Plant | AR13: 6 | AS13: 6 | AV13: Intangible Plant
A14: 943 | B14: 302 | C14: Franchises & Consents | AR14: 7 | AS14: 7 | AU14: 302 | AV14: Franchises & Consents
A15: 944 | C15: Distribution - Wyoming | H15: 10883.08 | I15: 10883.08 | J15: 10883.08 | K15: 10883.08 | L15: 10883.08 | M15: 10883.08 | N15: 10883.08 | O15: 10883.08 | P15: 10883.08 | Q15: 10883.08 | R15: 10883.08 | S15: 10883.08 | T15: 10883.08 | U15: 10883.08 | V15: 10883.08 | W15: 10883.08 | X15: 10883.08 | Y15: 10883.08 | Z15: 10883.08 | AA15: 10883.08 | AB15: 10883.08 | AC15: 10883.08 | AD15: 10883.08 | AE15: 10883.08 | AG15: =(SUM(T15:AD15)+(0.5*AE15)+(0.5*S15))/12 -> 10883.08 | AI15: =AE15 -> 10883.08 | AJ15: =AG15 -> 10883.08 | AK15: =+'RB FORECAST'!AJ17 -> 10883.08 | AL15: =+'RB FORECAST'!AG17 -> 10883.08 | AM15: =+'RB FORECAST'!BA17 -> 10883.08 | AN15: =+'RB FORECAST'!AW17 -> 10883.08 | AP15: =HLOOKUP($AP$8,RateBaseScenarios,AR15,FALSE) -> 10883.08 | AQ15: =AP15-AE15 -> 0 | AR15: 8 | AS15: 3 | AV15: Distribution - Wyoming | AY15: =+AE15 -> 10883.08 | AZ15: =AP15 -> 10883.08 | BA15: =AZ15-AY15 -> 0
A16: 945 | C16: Distribution - Utah | H16: 58742.88 | I16: 58742.88 | J16: 58742.88 | K16: 58742.88 | L16: 58742.88 | M16: 58742.88 | N16: 58742.88 | O16: 58742.88 | P16: 58742.88 | Q16: 58742.88 | R16: 58742.88 | S16: 58742.88 | T16: 58742.88 | U16: 58742.88 | V16: 58742.88 | W16: 58742.88 | X16: 58742.88 | Y16: 58742.88 | Z16: 58742.88 | AA16: 58742.88 | AB16: 58742.88 | AC16: 58742.88 | AD16: 58742.88 | AE16: 58742.88 | AG16: =(SUM(T16:AD16)+(0.5*AE16)+(0.5*S16))/12 -> 58742.88 | AI16: =AE16 -> 58742.88 | AJ16: =AG16 -> 58742.88 | AK16: =+'RB FORECAST'!AJ18 -> 58742.88 | AL16: =+'RB FORECAST'!AG18 -> 58742.88 | AM16: =+'RB FORECAST'!BA18 -> 58742.88 | AN16: =+'RB FORECAST'!AW18 -> 58742.88 | AP16: =HLOOKUP($AP$8,RateBaseScenarios,AR16,FALSE) -> 58742.88 | AQ16: =AP16-AE16 -> 0 | AR16: 9 | AS16: 4 | AV16: Distribution - Utah | AY16: =+AE16 -> 58742.88 | AZ16: =AP16 -> 58742.88 | BA16: =AZ16-AY16 -> 0
A17: 946 | AR17: 10 | AS17: 5
A18: 947 | C18: Total Intangible Plant | H18: 69625.96 | I18: 69625.96 | J18: 69625.96 | K18: 69625.96 | L18: 69625.96 | M18: 69625.96 | N18: 69625.96 | O18: 69625.96 | P18: 69625.96 | Q18: 69625.96 | R18: 69625.96 | S18: 69625.96 | T18: =SUM(T15:T17) -> 69625.96 | U18: 69625.96 | V18: 69625.96 | W18: 69625.96 | X18: 69625.96 | Y18: 69625.96 | Z18: 69625.96 | AA18: 69625.96 | AB18: 69625.96 | AC18: 69625.96 | AD18: 69625.96 | AE18: 69625.96 | AG18: =SUM(AG15:AG16) -> 69625.96 | AI18: =AE18 -> 69625.96 | AJ18: =AG18 -> 69625.96 | AK18: =SUM(AK15:AK17) -> 69625.96 | AL18: =SUM(AL15:AL17) -> 69625.96 | AM18: =SUM(AM15:AM17) -> 69625.96 | AN18: 69625.96 | AP18: =HLOOKUP($AP$8,RateBaseScenarios,AR18,FALSE) -> 69625.96 | AQ18: =SUM(AQ15:AQ17) -> 0 | AR18: 11 | AS18: 6 | AV18: Total Intangible Plant | AY18: =AI18 -> 69625.96 | AZ18: =AJ18 -> 69625.96 | BA18: =AZ18-AY18 -> 0
A19: 948 | AR19: 12 | AS19: 7
A20: 949 | C20: Production & Gathering Plant | AR20: 13 | AS20: 8 | AV20: Production & Gathering Plant
A21: 950 | B21: 325 | C21: Land & Land Rights | H21: 6266900.69 | I21: 6266900.69 | J21: 6266900.69 | K21: 6266900.69 | L21: 6266900.69 | M21: 6266900.69 | N21: 6266900.69 | O21: 6266900.69 | P21: 6266900.69 | Q21: 6266900.69 | R21: 6266900.69 | S21: 6266900.69 | T21: 6266900.69 | U21: 6266900.69 | V21: 6266900.69 | W21: 6266900.69 | X21: 6266900.69 | Y21: 6266900.69 | Z21: 6266900.69 | AA21: 6266900.69 | AB21: 6266900.69 | AC21: 6266900.69 | AD21: 6266900.69 | AE21: 6266900.69 | AG21: =(SUM(T21:AD21)+(0.5*AE21)+(0.5*S21))/12 -> 6266900.69 | AI21: =AE21 -> 6266900.69 | AJ21: =AG21 -> 6266900.69 | AK21: =+'RB FORECAST'!AJ23 -> 6266900.69 | AL21: =+'RB FORECAST'!AG23 -> 6266900.69 | AM21: =+'RB FORECAST'!BA23 -> 6266900.69 | AN21: =+'RB FORECAST'!AW23 -> 6266900.69 | AP21: 6266900.69 | AQ21: =AP21-AE21 -> 0 | AR21: 14 | AS21: 9 | AU21: 325 | AV21: Land & Land Rights | AY21: =+AE21 -> 6266900.69 | AZ21: =AP21 -> 6266900.69 | BA21: =AZ21-AY21 -> 0
A22: 951 | B22: 326...9 | C22: Structures | H22: 1443936.84 | I22: 1443936.84 | J22: 1443936.84 | K22: 1443936.84 | L22: 1443936.84 | M22: 1437567.99 | N22: 1437567.99 | O22: 1437567.99 | P22: 1437567.99 | Q22: 1437567.99 | R22: 1437567.99 | S22: 1437567.99 | T22: 1437567.99 | U22: 1437567.99 | V22: 1437567.99 | W22: 1437567.99 | X22: 1437567.99 | Y22: 1437567.99 | Z22: 1437567.99 | AA22: 1437567.99 | AB22: 1437567.99 | AC22: 1437567.99 | AD22: 1437567.99 | AE22: 1437567.99 | AG22: =(SUM(T22:AD22)+(0.5*AE22)+(0.5*S22))/12 -> 1437567.99 | AI22: =AE22 -> 1437567.99 | AJ22: =AG22 -> 1437567.99 | AK22: =+'RB FORECAST'!AJ24 -> 1437567.99 | AL22: =+'RB FORECAST'!AG24 -> 1437567.99 | AM22: =+'RB FORECAST'!BA24 -> 1437567.99 | AN22: =+'RB FORECAST'!AW24 -> 1437567.99 | AP22: 1437567.99 | AQ22: 0 | AR22: 15 | AS22: 10 | AU22: 326...9 | AV22: Structures | AY22: 1437567.99 | AZ22: 1437567.99 | BA22: 0
A23: 952 | B23: 330 | C23: Gas Wells - Construction | H23: 52986090.91 | I23: 52986090.91 | J23: 52986090.91 | K23: 52986090.91 | L23: 52986090.91 | M23: 52175293.81 | N23: 52175293.81 | O23: 52175293.81 | P23: 52175293.81 | Q23: 52175293.81 | R23: 52175293.81 | S23: 52175293.81 | T23: 52175293.81 | U23: 52175293.81 | V23: 52175293.81 | W23: 52175293.81 | X23: 52175293.81 | Y23: 52175293.81 | Z23: 52175293.81 | AA23: 52175293.81 | AB23: 52175293.81 | AC23: 52175293.81 | AD23: 52175293.81 | AE23: 52175293.81 | AG23: =(SUM(T23:AD23)+(0.5*AE23)+(0.5*S23))/12 -> 52175293.81 | AI23: 52175293.81 | AJ23: 52175293.81 | AK23: =+'RB FORECAST'!AJ25 -> 52175293.81 | AL23: =+'RB FORECAST'!AG25 -> 52175293.81 | AM23: =+'RB FORECAST'!BA25 -> 52175293.81 | AN23: =+'RB FORECAST'!AW25 -> 52175293.81 | AP23: 52175293.81 | AQ23: 0 | AR23: 16 | AS23: 11 | AU23: 330 | AV23: Gas Wells - Construction | AY23: 52175293.81 | AZ23: 52175293.81 | BA23: 0
A24: 953 | B24: 331 | C24: Gas Wells - Equipment | H24: 17432452.88 | I24: 17432452.88 | J24: 17432452.88 | K24: 17432452.88 | L24: 17432452.88 | M24: 17216356.88 | N24: 17216356.88 | O24: 17216356.88 | P24: 17216356.88 | Q24: 17216356.88 | R24: 17216356.88 | S24: 17216356.88 | T24: 17216356.88 | U24: 17216356.88 | V24: 17216356.88 | W24: 17216356.88 | X24: 17216356.88 | Y24: 17216356.88 | Z24: 17216356.88 | AA24: 17216356.05 | AB24: 17216356.05 | AC24: 17216356.05 | AD24: 17216356.05 | AE24: 17216356.05 | AG24: 17216356.57 | AI24: 17216356.05 | AJ24: 17216356.57 | AK24: =+'RB FORECAST'!AJ26 -> 17216356.05 | AL24: =+'RB FORECAST'!AG26 -> 17216356.05 | AM24: =+'RB FORECAST'!BA26 -> 17216356.05 | AN24: =+'RB FORECAST'!AW26 -> 17216356.05 | AP24: 17216356.05 | AQ24: 0 | AR24: 17 | AS24: 12 | AU24: 331 | AV24: Gas Wells - Equipment | AY24: 17216356.05 | AZ24: 17216356.05 | BA24: 0
A25: 954 | B25: 332...4 | C25: Field Lines & Comp, Meas & Reg St Eqpt | H25: 2872306.78 | I25: 2872306.78 | J25: 2872306.78 | K25: 2872306.78 | L25: 2872306.78 | M25: 2693816.12 | N25: 2693816.12 | O25: 2693816.12 | P25: 2693816.12 | Q25: 2693816.12 | R25: 2693816.12 | S25: 2693816.12 | T25: 2693816.12 | U25: 2693816.12 | V25: 2693816.12 | W25: 2693816.12 | X25: 2693816.12 | Y25: 2693816.12 | Z25: 2693816.12 | AA25: 2693816.12 | AB25: 2693816.12 | AC25: 2693816.12 | AD25: 2693816.12 | AE25: 2693816.12 | AG25: 2693816.12 | AI25: 2693816.12 | AJ25: 2693816.12 | AK25: =+'RB FORECAST'!AJ27 -> 2693816.12 | AL25: =+'RB FORECAST'!AG27 -> 2693816.12 | AM25: =+'RB FORECAST'!BA27 -> 2693816.12 | AN25: =+'RB FORECAST'!AW27 -> 2693816.12 | AP25: 2693816.12 | AQ25: 0 | AR25: 18 | AS25: 13 | AU25: 332...4 | AV25: Field Lines & Comp, Meas & Reg St Eqpt | AY25: 2693816.12 | AZ25: 2693816.12 | BA25: 0
A26: 955 | B26: 336 | C26: Purification Equipment | H26: 57014.71 | I26: 57014.71 | J26: 57014.71 | K26: 57014.71 | L26: 57014.71 | M26: 57014.71 | N26: 57014.71 | O26: 57014.71 | P26: 57014.71 | Q26: 57014.71 | R26: 57014.71 | S26: 57014.71 | T26: 57014.71 | U26: 57014.71 | V26: 57014.71 | W26: 57014.71 | X26: 57014.71 | Y26: 57014.71 | Z26: 57014.71 | AA26: 57014.71 | AB26: 57014.71 | AC26: 57014.71 | AD26: 57014.71 | AE26: 57014.71 | AG26: 57014.71 | AI26: 57014.71 | AJ26: 57014.71 | AK26: =+'RB FORECAST'!AJ28 -> 57014.71 | AL26: =+'RB FORECAST'!AG28 -> 57014.71 | AM26: =+'RB FORECAST'!BA28 -> 57014.71 | AN26: =+'RB FORECAST'!AW28 -> 57014.71 | AP26: 57014.71 | AQ26: 0 | AR26: 19 | AS26: 14 | AU26: 336 | AV26: Purification Equipment | AY26: 57014.71 | AZ26: 57014.71 | BA26: 0
A27: 956 | B27: 337 | C27: Other Equipment | H27: 121186.63 | I27: 121186.63 | J27: 121186.63 | K27: 121186.63 | L27: 121186.63 | M27: 121186.63 | N27: 121186.63 | O27: 121186.63 | P27: 121186.63 | Q27: 121186.63 | R27: 121186.63 | S27: 121186.63 | T27: 121186.63 | U27: 121186.63 | V27: 121186.63 | W27: 121186.63 | X27: 121186.63 | Y27: 121186.63 | Z27: 121186.63 | AA27: 121186.63 | AB27: 121186.63 | AC27: 121186.63 | AD27: 121186.63 | AE27: 121186.63 | AG27: 121186.63 | AI27: 121186.63 | AJ27: 121186.63 | AK27: =+'RB FORECAST'!AJ29 -> 121186.63 | AL27: =+'RB FORECAST'!AG29 -> 121186.63 | AM27: =+'RB FORECAST'!BA29 -> 121186.63 | AN27: =+'RB FORECAST'!AW29 -> 121186.63 | AP27: 121186.63 | AQ27: 0 | AR27: 20 | AS27: 15 | AU27: 337 | AV27: Other Equipment | AY27: 121186.63 | AZ27: 121186.63 | BA27: 0
A28: 957 | AR28: 21 | AS28: 16
A29: 958 | C29: Total Production & Gathering Plant | H29: 81179889.44 | I29: 81179889.44 | J29: 81179889.44 | K29: 81179889.44 | L29: 81179889.44 | M29: 79968136.83 | N29: 79968136.83 | O29: 79968136.83 | P29: 79968136.83 | Q29: 79968136.83 | R29: 79968136.83 | S29: 79968136.83 | T29: =SUM(T21:T27) -> 79968136.83 | U29: 79968136.83 | V29: 79968136.83 | W29: 79968136.83 | X29: 79968136.83 | Y29: 79968136.83 | Z29: 79968136.83 | AA29: 79968136 | AB29: 79968136 | AC29: 79968136 | AD29: 79968136 | AE29: 79968136 | AG29: =SUM(AG21:AG27) -> 79968136.52 | AI29: =AE29 -> 79968136 | AJ29: =AG29 -> 79968136.52 | AK29: =SUM(AK21:AK27) -> 79968136 | AL29: =SUM(AL21:AL27) -> 79968136 | AM29: =SUM(AM21:AM27) -> 79968136 | AN29: 79968136 | AP29: 79968136 | AQ29: =SUM(AQ21:AQ27) -> 0 | AR29: 22 | AS29: 17 | AV29: Total Production & Gathering Plant | AY29: =AI29 -> 79968136 | AZ29: =AJ29 -> 79968136.52 | BA29: =AZ29-AY29 -> 0.518749997
A30: 959 | AR30: 23 | AS30: 18
A31: 960 | C31: Distribution Plant | AR31: 24 | AS31: 19 | AV31: Distribution Plant
A32: 961 | B32: 374 | C32: Land & Land Rights | AR32: 25 | AS32: 20 | AU32: 374 | AV32: Land & Land Rights
A33: 962 | D33: Wyoming | H33: 361364.44 | I33: 361364.44 | J33: 361364.44 | K33: 361364.44 | L33: 361364.44 | M33: 361364.44 | N33: 361364.44 | O33: 361364.44 | P33: 361364.44 | Q33: 361364.44 | R33: 381894.39 | S33: 381894.39 | T33: 381894.39 | U33: 381894.39 | V33: 400188.28 | W33: 400188.28 | X33: 400188.28 | Y33: 400188.28 | Z33: 400188.28 | AA33: 400188.28 | AB33: 400188.28 | AC33: 400188.28 | AD33: 400188.28 | AE33: 400188.28 | AG33: =(SUM(T33:AD33)+(0.5*AE33)+(0.5*S33))/12 -> 396377.0529 | AI33: =AE33 -> 400188.28 | AJ33: =AG33 -> 396377.0529 | AK33: =+'RB FORECAST'!AJ35 -> 400228.6198 | AL33: =+'RB FORECAST'!AG35 -> 400571.6147 | AM33: =+'RB FORECAST'!BA35 -> 400571.6147 | AN33: =+'RB FORECAST'!AW35 -> 400571.6147 | AP33: 400571.6147 | AQ33: =AP33-AE33 -> 383.3346686 | AR33: 26 | AS33: 21 | AW33: Wyoming | AY33: =+AE33 -> 400188.28 | AZ33: =AP33 -> 400571.6147 | BA33: =AZ33-AY33 -> 383.3346686
A34: 963 | D34: Utah | H34: 12719174.25 | I34: 12723425.03 | J34: 13822319.81 | K34: 13701155.42 | L34: 13701268.66 | M34: 13714884.27 | N34: 14388070 | O34: 14576087.81 | P34: 15057646.82 | Q34: 15057646.82 | R34: 15564264.28 | S34: 16452627.14 | T34: 16453519.21 | U34: 16453519.21 | V34: 16770722.2 | W34: 16771174.02 | X34: 16771388.12 | Y34: 16771388.12 | Z34: 16771388.12 | AA34: 16771388.12 | AB34: 16809045.53 | AC34: 17056541.56 | AD34: 17056541.56 | AE34: 17574435.46 | AG34: =(SUM(T34:AD34)+(0.5*AE34)+(0.5*S34))/12 -> 16789178.92 | AI34: =AE34 -> 17574435.46 | AJ34: =AG34 -> 16789178.92 | AK34: =+'RB FORECAST'!AJ36 -> 17562062.85 | AL34: =+'RB FORECAST'!AG36 -> 17574052.13 | AM34: =+'RB FORECAST'!BA36 -> 17574052.13 | AN34: =+'RB FORECAST'!AW36 -> 17574052.13 | AP34: 17574052.13 | AQ34: =AP34-AE34 -> -383.3346687 | AR34: 27 | AS34: 22 | AW34: Utah | AY34: =+AE34 -> 17574435.46 | AZ34: =AP34 -> 17574052.13 | BA34: -383.3346687
A35: 964 | D35: Total | H35: 13080538.69 | I35: 13084789.47 | J35: 14183684.25 | K35: 14062519.86 | L35: 14062633.1 | M35: 14076248.71 | N35: 14749434.44 | O35: 14937452.25 | P35: 15419011.26 | Q35: 15419011.26 | R35: 15946158.67 | S35: 16834521.53 | T35: =SUM(T33:T34) -> 16835413.6 | U35: 16835413.6 | V35: 17170910.48 | W35: 17171362.3 | X35: 17171576.4 | Y35: 17171576.4 | Z35: 17171576.4 | AA35: 17171576.4 | AB35: 17209233.81 | AC35: 17456729.84 | AD35: 17456729.84 | AE35: 17974623.74 | AG35: =SUM(AG33:AG34) -> 17185555.98 | AI35: =AE35 -> 17974623.74 | AJ35: =AG35 -> 17185555.98 | AK35: =SUM(AK33:AK34) -> 17962291.47 | AL35: =SUM(AL33:AL34) -> 17974623.74 | AM35: =SUM(AM33:AM34) -> 17974623.74 | AN35: 17974623.74 | AP35: 17974623.74 | AQ35: =SUM(AQ33:AQ34) -> -7.217749953e-09 | AR35: 28 | AS35: 23 | AW35: Total | AY35: =AI35 -> 17974623.74 | AZ35: =AJ35 -> 17185555.98 | BA35: -789067.7646
A36: 965 | AR36: 29 | AS36: 24
A37: 966 | B37: 375 | C37: Structures & Improyements | AR37: 30 | AS37: 25 | AU37: 375 | AV37: Structures & Improyements
A38: 967 | D38: Wyoming | H38: 721780.23 | I38: 721780.23 | J38: 721780.23 | K38: 721780.23 | L38: 721780.23 | M38: 721780.23 | N38: 721780.23 | O38: 717226.15 | P38: 717226.15 | Q38: 717226.15 | R38: 717226.15 | S38: 717226.15 | T38: 717226.15 | U38: 871199.46 | V38: 866096.88 | W38: 866243.66 | X38: 943906.23 | Y38: 943906.23 | Z38: 943906.23 | AA38: 943906.23 | AB38: 943906.23 | AC38: 943906.23 | AD38: 943906.23 | AE38: 982959.23 | AG38: =(SUM(T38:AD38)+(0.5*AE38)+(0.5*S38))/12 -> 898183.5375 | AI38: =AE38 -> 982959.23 | AJ38: =AG38 -> 898183.5375 | AK38: =+'RB FORECAST'!AJ40 -> 982497.914 | AL38: =+'RB FORECAST'!AG40 -> 981819.1057 | AM38: =+'RB FORECAST'!BA40 -> 981819.1057 | AN38: =+'RB FORECAST'!AW40 -> 981819.1057 | AP38: 981819.1057 | AQ38: =AP38-AE38 -> -1140.124267 | AR38: 31 | AS38: 26 | AW38: Wyoming | AY38: =+AE38 -> 982959.23 | AZ38: =AP38 -> 981819.1057 | BA38: =AZ38-AY38 -> -1140.124267
A39: 968 | D39: Utah | H39: 10869211.09 | I39: 10869211.09 | J39: 10424265.45 | K39: 10613284.26 | L39: 11180671.69 | M39: 11660031.16 | N39: 11712193.54 | O39: 11712952.97 | P39: 11715155.21 | Q39: 11748425.27 | R39: 11817112.62 | S39: 11933293.41 | T39: 11989968.78 | U39: 14733261.66 | V39: 14850891.31 | W39: 14875361.47 | X39: 14874161.47 | Y39: 15006285.34 | Z39: 15044597.81 | AA39: 15073542.3 | AB39: 15063980.02 | AC39: 15058392.77 | AD39: 15139493.43 | AE39: 15164181 | AG39: =(SUM(T39:AD39)+(0.5*AE39)+(0.5*S39))/12 -> 14604889.46 | AI39: =AE39 -> 15164181 | AJ39: =AG39 -> 14604889.46 | AK39: =+'RB FORECAST'!AJ41 -> 15171899.71 | AL39: =+'RB FORECAST'!AG41 -> 15165321.12 | AM39: =+'RB FORECAST'!BA41 -> 15165321.12 | AN39: =+'RB FORECAST'!AW41 -> 15165321.12 | AP39: 15165321.12 | AQ39: =AP39-AE39 -> 1140.124267 | AR39: 32 | AS39: 27 | AW39: Utah | AY39: =+AE39 -> 15164181 | AZ39: =AP39 -> 15165321.12 | BA39: 1140.124267
A40: 969 | D40: Total | H40: 11590991.32 | I40: 11590991.32 | J40: 11146045.68 | K40: 11335064.49 | L40: 11902451.92 | M40: 12381811.39 | N40: 12433973.77 | O40: 12430179.12 | P40: 12432381.36 | Q40: 12465651.42 | R40: 12534338.77 | S40: 12650519.56 | T40: =SUM(T38:T39) -> 12707194.93 | U40: 15604461.12 | V40: 15716988.19 | W40: 15741605.13 | X40: 15818067.7 | Y40: 15950191.57 | Z40: 15988504.04 | AA40: 16017448.53 | AB40: 16007886.25 | AC40: 16002299 | AD40: 16083399.66 | AE40: 16147140.23 | AG40: =SUM(AG38:AG39) -> 15503073 | AI40: =AE40 -> 16147140.23 | AJ40: =AG40 -> 15503073 | AK40: =SUM(AK38:AK39) -> 16154397.62 | AL40: =SUM(AL38:AL39) -> 16147140.23 | AM40: =SUM(AM38:AM39) -> 16147140.23 | AN40: 16147140.23 | AP40: 16147140.23 | AQ40: =SUM(AQ38:AQ39) -> -1.513399184e-09 | AR40: 33 | AS40: 28 | AW40: Total | AY40: =AI40 -> 16147140.23 | AZ40: =AJ40 -> 15503073 | BA40: -644067.2287
A41: 970 | AR41: 34 | AS41: 29
A42: 971 | B42: 376 | C42: Mains | AR42: 35 | AS42: 30 | AU42: 376 | AV42: Mains
A43: 972 | D43: Dist - Wy - Mains - SD | AP43: 0 | AR43: 36 | AS43: 31 | AV43: Dist - Wy - Mains - SD
A44: 973 | D44: Dist - Wy - Mains - LD | AP44: 0 | AR44: 37 | AS44: 32 | AV44: Dist - Wy - Mains - LD
A45: 974 | D45: Dist - Wy - Mains - Feeders | AP45: 0 | AR45: 38 | AS45: 33 | AV45: Dist - Wy - Mains - Feeders
A46: 975 | D46: Total Wyoming | H46: 32906200.59 | I46: 32917901.63 | J46: 32634970.48 | K46: 32475313.01 | L46: 32519791.55 | M46: 33270608.65 | N46: 33080212.1 | O46: 33041505.96 | P46: 33590552.92 | Q46: 33591506.12 | R46: 33858502.07 | S46: 34121858.45 | T46: 34128475 | U46: 34234962.28 | V46: 34518784.01 | W46: 34519290.61 | X46: 34633610.57 | Y46: 34870592.9 | Z46: 34870755.62 | AA46: 35301601.48 | AB46: 36429466.88 | AC46: 36692993.27 | AD46: 36697988.09 | AE46: 37088094.04 | AG46: =(SUM(T46:AD46)+(0.5*AE46)+(0.5*S46))/12 -> 35208624.75 | AI46: =AE46 -> 37088094.04 | AJ46: =AG46 -> 35208624.75 | AK46: =+'RB FORECAST'!AJ48 -> 38407949.77 | AL46: =+'RB FORECAST'!AG48 -> 41292466.53 | AM46: =+'RB FORECAST'!BA48 -> 42484208.74 | AN46: =+'RB FORECAST'!AW48 -> 44940021.79 | AP46: 42484208.74 | AQ46: =AP46-AE46 -> 5396114.699 | AR46: 39 | AS46: 34 | AV46: Total Wyoming | AW46: Wyoming | AY46: =+AE46 -> 37088094.04 | AZ46: =AP46 -> 42484208.74 | BA46: =AZ46-AY46 -> 5396114.699
A47: =+A46+1 -> 976 | D47: Dist - Ut - Mains - SD | AP47: 0 | AR47: =+AR46+1 -> 40 | AS47: =+AS46+1 -> 35 | AV47: Dist - Ut - Mains - SD
A48: 977 | D48: Dist - Ut - Mains - LD | AP48: 0 | AR48: 41 | AS48: 36 | AV48: Dist - Ut - Mains - LD
A49: 978 | D49: Dist - Ut - Mains - Feeders | AP49: 0 | AR49: 42 | AS49: 37 | AV49: Dist - Ut - Mains - Feeders
A50: 979 | D50: Total Utah | H50: 1070819313 | I50: 1075865883 | J50: 1091106215 | K50: 1093340596 | L50: 1097467945 | M50: 1106805124 | N50: 1107192093 | O50: 1108599961 | P50: 1131855852 | Q50: 1163061684 | R50: 1169234827 | S50: 1178719177 | T50: 1179529359 | U50: 1185206633 | V50: 1198670518 | W50: 1204699135 | X50: 1209014579 | Y50: 1211569343 | Z50: 1216314975 | AA50: 1228765737 | AB50: 1230684653 | AC50: 1289559180 | AD50: 1292700285 | AE50: 1319689573 | AG50: =(SUM(T50:AD50)+(0.5*AE50)+(0.5*S50))/12 -> 1224659898 | AI50: =AE50 -> 1319689573 | AJ50: =AG50 -> 1224659898 | AK50: =+'RB FORECAST'!AJ52 -> 1363288419 | AL50: =+'RB FORECAST'!AG52 -> 1464919314 | AM50: =+'RB FORECAST'!BA52 -> 1507198362 | AN50: =+'RB FORECAST'!AW52 -> 1594322438 | AP50: 1507198362 | AQ50: =AP50-AE50 -> 187508789.5 | AR50: 43 | AS50: 38 | AV50: Total Utah | AY50: =+AE50 -> 1319689573 | AZ50: =AP50 -> 1507198362 | BA50: =AZ50-AY50 -> 187508789.5
A51: =+A50+1 -> 980 | D51: Total | H51: 1103725513 | I51: 1108783785 | J51: 1123741186 | K51: 1125815909 | L51: 1129987736 | M51: 1140075732 | N51: 1140272305 | O51: 1141641467 | P51: 1165446405 | Q51: 1196653191 | R51: 1203093329 | S51: 1212841035 | T51: =SUM(T46:T50) -> 1213657834 | U51: 1219441596 | V51: 1233189302 | W51: 1239218426 | X51: 1243648190 | Y51: 1246439936 | Z51: 1251185731 | AA51: 1264067338 | AB51: 1267114120 | AC51: 1326252173 | AD51: 1329398273 | AE51: 1356777667 | AG51: =SUM(AG46:AG50) -> 1259868523 | AI51: =AE51 -> 1356777667 | AJ51: =AG51 -> 1259868523 | AK51: =SUM(AK46:AK50) -> 1401696369 | AL51: =SUM(AL46:AL50) -> 1506211781 | AM51: =SUM(AM46:AM50) -> 1549682571 | AN51: 1639262460 | AP51: 1549682571 | AQ51: =AQ50+AQ46 -> 192904904.2 | AR51: 44 | AS51: 39 | AW51: Total | AY51: =AI51 -> 1356777667 | AZ51: =AJ51 -> 1259868523 | BA51: =AZ51-AY51 -> -96909144.28
A52: =+A51+1 -> 981 | AR52: 45 | AS52: 40
A53: 982 | B53: 377 | C53: Compressor Station Equipment | AR53: 46 | AS53: 41 | AU53: 377 | AV53: Compressor Station Equipment
A54: 983 | D54: Wyoming | H54: 0 | I54: 0 | J54: 0 | K54: 0 | L54: 0 | M54: 0 | N54: 0 | O54: 0 | P54: 0 | Q54: 0 | R54: 0 | S54: 0 | T54: 0 | U54: 0 | V54: 0 | W54: 0 | X54: 0 | Y54: 0 | Z54: 0 | AA54: 0 | AB54: 0 | AC54: 0 | AD54: 0 | AE54: 0 | AG54: =(SUM(T54:AD54)+(0.5*AE54)+(0.5*S54))/12 -> 0 | AK54: =+'RB FORECAST'!AJ56 -> 0 | AL54: =+'RB FORECAST'!AG56 -> 0 | AM54: =+'RB FORECAST'!BA56 -> 0 | AN54: =+'RB FORECAST'!AW56 -> 0 | AP54: 0 | AR54: 47 | AS54: 42 | AW54: Wyoming | AY54: =+AE54 -> 0 | AZ54: =AP54 -> 0 | BA54: =AZ54-AY54 -> 0
A55: 984 | D55: Utah | H55: 15526458.51 | I55: 17607328.49 | J55: 17745410.74 | K55: 17712351.64 | L55: 17898265.07 | M55: 17742002.32 | N55: 17742002.32 | O55: 17742228.7 | P55: 17742228.7 | Q55: 17742228.7 | R55: 17742228.7 | S55: 18154668.64 | T55: 18154668.64 | U55: 18154668.64 | V55: 18154668.64 | W55: 18183537.4 | X55: 18190277.74 | Y55: 18192571.45 | Z55: 18194156.4 | AA55: 18194156.4 | AB55: 18210417.78 | AC55: 18210417.78 | AD55: 18210417.78 | AE55: 18242697.75 | AG55: =(SUM(T55:AD55)+(0.5*AE55)+(0.5*S55))/12 -> 18187386.82 | AI55: =AE55 -> 18242697.75 | AJ55: =AG55 -> 18187386.82 | AK55: =+'RB FORECAST'!AJ57 -> 18317946.31 | AL55: =+'RB FORECAST'!AG57 -> 18439393.8 | AM55: =+'RB FORECAST'!BA57 -> 18532312.44 | AN55: =+'RB FORECAST'!AW57 -> 18689393.8 | AP55: 18532312.44 | AQ55: =AP55-AE55 -> 289614.688 | AR55: 48 | AS55: 43 | AW55: Utah | AY55: =+AE55 -> 18242697.75 | AZ55: =AP55 -> 18532312.44 | BA55: =AZ55-AY55 -> 289614.688
A56: 985 | D56: Total | H56: 15526458.51 | I56: 17607328.49 | J56: 17745410.74 | K56: 17712351.64 | L56: 17898265.07 | M56: 17742002.32 | N56: 17742002.32 | O56: 17742228.7 | P56: 17742228.7 | Q56: 17742228.7 | R56: 17742228.7 | S56: 18154668.64 | T56: =SUM(T54:T55) -> 18154668.64 | U56: 18154668.64 | V56: 18154668.64 | W56: 18183537.4 | X56: 18190277.74 | Y56: 18192571.45 | Z56: 18194156.4 | AA56: 18194156.4 | AB56: 18210417.78 | AC56: 18210417.78 | AD56: 18210417.78 | AE56: 18242697.75 | AG56: =SUM(AG54:AG55) -> 18187386.82 | AI56: =AE56 -> 18242697.75 | AJ56: =AG56 -> 18187386.82 | AK56: =SUM(AK54:AK55) -> 18317946.31 | AL56: =SUM(AL54:AL55) -> 18439393.8 | AM56: =SUM(AM54:AM55) -> 18532312.44 | AN56: 18689393.8 | AP56: 18532312.44 | AQ56: =SUM(AQ54:AQ55) -> 289614.688 | AR56: 49 | AS56: 44 | AW56: Total | AY56: =AI56 -> 18242697.75 | AZ56: =AJ56 -> 18187386.82 | BA56: =AZ56-AY56 -> -55310.92958
A57: 986 | AR57: 50 | AS57: 45
A58: 987 | B58: 378 | C58: Measuring & Regulation Station Equip | AR58: 51 | AS58: 46 | AU58: 378 | AV58: Measuring & Regulation Station Equip
A59: 988 | D59: Wyoming | H59: 5213964.07 | I59: 5213964.07 | J59: 5229532.83 | K59: 5229532.83 | L59: 5229532.83 | M59: 5329343.01 | N59: 5334339.69 | O59: 5315594.5 | P59: 5354943.39 | Q59: 5354408.39 | R59: 6194071.52 | S59: 6275909.74 | T59: 6488955.88 | U59: 6451531.52 | V59: 6420397.35 | W59: 6421157.23 | X59: 6504225.07 | Y59: 6504342.47 | Z59: 6532578.25 | AA59: 6535230.78 | AB59: 6533623.99 | AC59: 6544959.17 | AD59: 6545412.21 | AE59: 6862112.53 | AG59: =(SUM(T59:AD59)+(0.5*AE59)+(0.5*S59))/12 -> 6504285.421 | AI59: =AE59 -> 6862112.53 | AJ59: =AG59 -> 6504285.421 | AK59: =+'RB FORECAST'!AJ61 -> 7132003.209 | AL59: =+'RB FORECAST'!AG61 -> 7892965.04 | AM59: =+'RB FORECAST'!BA61 -> 8129423.076 | AN59: =+'RB FORECAST'!AW61 -> 8539586.06 | AP59: 8129423.076 | AQ59: =AP59-AE59 -> 1267310.546 | AR59: 52 | AS59: 47 | AW59: Wyoming | AY59: =+AE59 -> 6862112.53 | AZ59: =AP59 -> 8129423.076 | BA59: =AZ59-AY59 -> 1267310.546
A60: 989 | D60: Utah | H60: 68674592.95 | I60: 70038338.6 | J60: 70715627.58 | K60: 70850665.35 | L60: 73655387.73 | M60: 74940570 | N60: 75054943.28 | O60: 75380820.51 | P60: 75396209.55 | Q60: 75526253.42 | R60: 76217550.6 | S60: 76788067.05 | T60: 76890036.68 | U60: 77003120.66 | V60: 78178648.13 | W60: 78210174.33 | X60: 78500991.62 | Y60: 78668073.7 | Z60: 79283759.95 | AA60: 79715742.31 | AB60: 79702550.06 | AC60: 80831205.55 | AD60: 81660760.39 | AE60: 82997758.23 | AG60: =(SUM(T60:AD60)+(0.5*AE60)+(0.5*S60))/12 -> 79044831.33 | AI60: =AE60 -> 82997758.23 | AJ60: =AG60 -> 79044831.33 | AK60: =+'RB FORECAST'!AJ62 -> 87811810.96 | AL60: =+'RB FORECAST'!AG62 -> 97084268.48 | AM60: =+'RB FORECAST'!BA62 -> 99992726.24 | AN60: =+'RB FORECAST'!AW62 -> 105037772.4 | AP60: 99992726.24 | AQ60: =AP60-AE60 -> 16994968.01 | AR60: 53 | AS60: 48 | AW60: Utah | AY60: =+AE60 -> 82997758.23 | AZ60: =AP60 -> 99992726.24 | BA60: =AZ60-AY60 -> 16994968.01
A61: 990 | D61: Total | H61: 73888557.02 | I61: 75252302.67 | J61: 75945160.41 | K61: 76080198.18 | L61: 78884920.56 | M61: 80269913.01 | N61: 80389282.97 | O61: 80696415.01 | P61: 80751152.94 | Q61: 80880661.81 | R61: 82411622.12 | S61: 83063976.79 | T61: =SUM(T59:T60) -> 83378992.56 | U61: 83454652.18 | V61: 84599045.48 | W61: 84631331.56 | X61: 85005216.69 | Y61: 85172416.17 | Z61: 85816338.2 | AA61: 86250973.09 | AB61: 86236174.05 | AC61: 87376164.72 | AD61: 88206172.6 | AE61: 89859870.76 | AG61: =SUM(AG59:AG60) -> 85549116.76 | AI61: =AE61 -> 89859870.76 | AJ61: =AG61 -> 85549116.76 | AK61: =SUM(AK59:AK60) -> 94943814.17 | AL61: =SUM(AL59:AL60) -> 104977233.5 | AM61: =SUM(AM59:AM60) -> 108122149.3 | AN61: 113577358.5 | AP61: 108122149.3 | AQ61: =SUM(AQ59:AQ60) -> 18262278.55 | AR61: 54 | AS61: 49 | AW61: Total | AY61: =AI61 -> 89859870.76 | AZ61: =AJ61 -> 85549116.76 | BA61: =AZ61-AY61 -> -4310754.004
A62: 991 | AR62: 55 | AS62: 50
A63: 992 | B63: 380 | C63: Seryices | AR63: 56 | AS63: 51 | AU63: 380 | AV63: Seryices
A64: 993 | D64: Wyoming | H64: 16065442.71 | I64: 16068526.31 | J64: 16037533.31 | K64: 16113189.52 | L64: 16165681.43 | M64: 16240875.56 | N64: 16320576.25 | O64: 16365247.61 | P64: 16393742.73 | Q64: 16435995.38 | R64: 16698714.26 | S64: 16772047.64 | T64: 16722941.59 | U64: 16779702.21 | V64: 16960115.71 | W64: 16985078.97 | X64: 17029541.37 | Y64: 17129766.59 | Z64: 17318485.71 | AA64: 17655967.61 | AB64: 17614265.9 | AC64: 17777876.75 | AD64: 17867640.82 | AE64: 18000938.79 | AG64: =(SUM(T64:AD64)+(0.5*AE64)+(0.5*S64))/12 -> 17268989.7 | AI64: =AE64 -> 18000938.79 | AJ64: =AG64 -> 17268989.7 | AK64: =+'RB FORECAST'!AJ66 -> 18428780.96 | AL64: =+'RB FORECAST'!AG66 -> 18927954.19 | AM64: =+'RB FORECAST'!BA66 -> 19496004.43 | AN64: =+'RB FORECAST'!AW66 -> 20068863.07 | AP64: 19496004.43 | AQ64: =AP64-AE64 -> 1495065.641 | AR64: 57 | AS64: 52 | AW64: Wyoming | AY64: =+AE64 -> 18000938.79 | AZ64: =AP64 -> 19496004.43 | BA64: =AZ64-AY64 -> 1495065.641
A65: 994 | D65: Utah | H65: 319874205 | I65: 319896475.4 | J65: 324057092.9 | K65: 324952022.3 | L65: 326379208.1 | M65: 327440763.5 | N65: 328245780.1 | O65: 328632238.1 | P65: 329260526.5 | Q65: 330185592.2 | R65: 329665476.4 | S65: 333057164 | T65: 332877469.2 | U65: 335121064.4 | V65: 340030226.8 | W65: 341438871.3 | X65: 345567302.8 | Y65: 346375857.3 | Z65: 347655975.2 | AA65: 349757963.9 | AB65: 350408526.5 | AC65: 351651272.3 | AD65: 352706587.5 | AE65: 356543938.6 | AG65: =(SUM(T65:AD65)+(0.5*AE65)+(0.5*S65))/12 -> 344865972.4 | AI65: =AE65 -> 356543938.6 | AJ65: =AG65 -> 344865972.4 | AK65: =+'RB FORECAST'!AJ67 -> 365639361.2 | AL65: =+'RB FORECAST'!AG67 -> 374878942.6 | AM65: =+'RB FORECAST'!BA67 -> 386129502.1 | AN65: =+'RB FORECAST'!AW67 -> 397475294.6 | AP65: 386129502.1 | AQ65: =AP65-AE65 -> 29585563.46 | AR65: 58 | AS65: 53 | AW65: Utah | AY65: =+AE65 -> 356543938.6 | AZ65: =AP65 -> 386129502.1 | BA65: =AZ65-AY65 -> 29585563.46
A66: 995 | D66: Total | H66: 335939647.7 | I66: 335965001.8 | J66: 340094626.2 | K66: 341065211.8 | L66: 342544889.6 | M66: 343681639.1 | N66: 344566356.3 | O66: 344997485.7 | P66: 345654269.3 | Q66: 346621587.6 | R66: 346364190.7 | S66: 349829211.7 | T66: =SUM(T64:T65) -> 349600410.8 | U66: 351900766.6 | V66: 356990342.5 | W66: 358423950.2 | X66: 362596844.1 | Y66: 363505623.9 | Z66: 364974460.9 | AA66: 367413931.5 | AB66: 368022792.4 | AC66: 369429149 | AD66: 370574228.4 | AE66: 374544877.4 | AG66: =SUM(AG64:AG65) -> 362134962.1 | AI66: =AE66 -> 374544877.4 | AJ66: =AG66 -> 362134962.1 | AK66: =SUM(AK64:AK65) -> 384068142.1 | AL66: =SUM(AL64:AL65) -> 393806896.8 | AM66: =SUM(AM64:AM65) -> 405625506.5 | AN66: 417544157.7 | AP66: 405625506.5 | AQ66: =SUM(AQ64:AQ65) -> 31080629.1 | AR66: 59 | AS66: 54 | AW66: Total | AY66: =AI66 -> 374544877.4 | AZ66: =AJ66 -> 362134962.1 | BA66: =AZ66-AY66 -> -12409915.35
A67: 996 | AR67: 60 | AS67: 55
A68: 997 | B68: 381...2 | C68: Meters & Meter Installation | AR68: 61 | AS68: 56 | AU68: 381...2 | AV68: Meters & Meter Installation
A69: 998 | D69: Wyoming | H69: 8295686.77 | I69: 8294992.424 | J69: 8448181.574 | K69: 8446102.244 | L69: 8445360.154 | M69: 8548706.494 | N69: 8535838.064 | O69: 8534583.804 | P69: 8649358.034 | Q69: 8666784.594 | R69: 8678974.554 | S69: 8688637.394 | T69: 8735216.524 | U69: 8770831.524 | V69: 8798058.224 | W69: 8850369.704 | X69: 8868015.144 | Y69: 8892452.884 | Z69: 8912547.124 | AA69: 8933376.154 | AB69: 8957954.874 | AC69: 8987879.374 | AD69: 9031284.734 | AE69: 9055333.204 | AG69: =(SUM(T69:AD69)+(0.5*AE69)+(0.5*S69))/12 -> 8884164.297 | AI69: =AE69 -> 9055333.204 | AJ69: =AG69 -> 8884164.297 | AK69: =+'RB FORECAST'!AJ71 -> 9293124.552 | AL69: =+'RB FORECAST'!AG71 -> 9635198.972 | AM69: =+'RB FORECAST'!BA71 -> 9887533.113 | AN69: =+'RB FORECAST'!AW71 -> 10136270.24 | AP69: 9887533.113 | AQ69: =AP69-AE69 -> 832199.9092 | AR69: 62 | AS69: 57 | AW69: Wyoming | AY69: =+AE69 -> 9055333.204 | AZ69: =AP69 -> 9887533.113 | BA69: =AZ69-AY69 -> 832199.9092
A70: 999 | D70: Utah | H70: 264249726.2 | I70: 264205376 | J70: 267672350.6 | K70: 267611554.6 | L70: 267576719.3 | M70: 271105230 | N70: 270931419.7 | O70: 270807793.1 | P70: 274096181.4 | Q70: 272774669.4 | R70: 273024925.6 | S70: 273408946.6 | T70: 274458101.9 | U70: 276554253.5 | V70: 278399086.2 | W70: 279188540.2 | X70: 279907173.7 | Y70: 280533278.3 | Z70: 281572374 | AA70: 282375480.3 | AB70: 283128076 | AC70: 283805800.2 | AD70: 285783288.9 | AE70: 287541434.2 | AG70: =(SUM(T70:AD70)+(0.5*AE70)+(0.5*S70))/12 -> 280515053.6 | AI70: =AE70 -> 287541434.2 | AJ70: =AG70 -> 280515053.6 | AK70: =+'RB FORECAST'!AJ72 -> 293329575.3 | AL70: =+'RB FORECAST'!AG72 -> 303911420.6 | AM70: =+'RB FORECAST'!BA72 -> 311870491 | AN70: =+'RB FORECAST'!AW72 -> 319716105.3 | AP70: 311870491 | AQ70: =AP70-AE70 -> 24329056.82 | AR70: 63 | AS70: 58 | AW70: Utah | AY70: =+AE70 -> 287541434.2 | AZ70: =AP70 -> 311870491 | BA70: =AZ70-AY70 -> 24329056.82
A71: 1000 | D71: Total | H71: 272545413 | I71: 272500368.4 | J71: 276120532.2 | K71: 276057656.9 | L71: 276022079.5 | M71: 279653936.5 | N71: 279467257.8 | O71: 279342376.9 | P71: 282745539.4 | Q71: 281441454 | R71: 281703900.2 | S71: 282097584 | T71: =SUM(T69:T70) -> 283193318.4 | U71: 285325085 | V71: 287197144.4 | W71: 288038910 | X71: 288775188.9 | Y71: 289425731.2 | Z71: 290484921.1 | AA71: 291308856.4 | AB71: 292086030.8 | AC71: 292793679.6 | AD71: 294814573.6 | AE71: 296596767.4 | AG71: =SUM(AG69:AG70) -> 289399217.9 | AI71: =AE71 -> 296596767.4 | AJ71: =AG71 -> 289399217.9 | AK71: =SUM(AK69:AK70) -> 302622699.9 | AL71: =SUM(AL69:AL70) -> 313546619.6 | AM71: =SUM(AM69:AM70) -> 321758024.1 | AN71: 329852375.5 | AP71: 321758024.1 | AQ71: =SUM(AQ69:AQ70) -> 25161256.73 | AR71: 64 | AS71: 59 | AW71: Total | AY71: =AI71 -> 296596767.4 | AZ71: =AJ71 -> 289399217.9 | BA71: =AZ71-AY71 -> -7197549.473
A72: 1001 | AR72: 65 | AS72: 60
A73: 1002 | B73: 383...4 | C73: House Regulators & Reg Installations | AR73: 66 | AS73: 61 | AU73: 383...4 | AV73: House Regulators & Reg Installations
A74: 1003 | D74: Wyoming | H74: 906588.31 | I74: 906588.31 | J74: 900429.84 | K74: 896557 | L74: 914729.58 | M74: 914729.58 | N74: 914729.58 | O74: 914729.58 | P74: 914729.58 | Q74: 914729.58 | R74: 647686.5 | S74: 904120.82 | T74: 903671.56 | U74: 899916.04 | V74: 899150.9 | W74: 893724.42 | X74: 887753.61 | Y74: 887753.61 | Z74: 876480.36 | AA74: 871041.16 | AB74: 866778.21 | AC74: 862546.84 | AD74: 859925.92 | AE74: 854214 | AG74: =(SUM(T74:AD74)+(0.5*AE74)+(0.5*S74))/12 -> 882325.8367 | AI74: =AE74 -> 854214 | AJ74: =AG74 -> 882325.8367 | AK74: =+'RB FORECAST'!AJ76 -> 803335.0146 | AL74: =+'RB FORECAST'!AG76 -> 793470.0083 | AM74: =+'RB FORECAST'!BA76 -> 771202.4321 | AN74: =+'RB FORECAST'!AW76 -> 787227.8354 | AP74: 771202.4321 | AQ74: =AP74-AE74 -> -83011.56785 | AR74: 67 | AS74: 62 | AW74: Wyoming | AY74: =+AE74 -> 854214 | AZ74: =AP74 -> 771202.4321 | BA74: =AZ74-AY74 -> -83011.56785
A75: 1004 | D75: Utah | H75: 14082787.11 | I75: 14082787.11 | J75: 14078914.27 | K75: 14083036.34 | L75: 14069377.45 | M75: 14020519.54 | N75: 14020519.54 | O75: 14020519.54 | P75: 13993509.2 | Q75: 13985312.92 | R75: 14180494.6 | S75: 13894040.07 | T75: 13869699.99 | U75: 13869587.53 | V75: 13835819.39 | W75: 13828884.39 | X75: 13828884.39 | Y75: 13828884.39 | Z75: 13828884.39 | AA75: 13828884.39 | AB75: 13828719.8 | AC75: 13828599.18 | AD75: 13828599.18 | AE75: 13923487.56 | AG75: =(SUM(T75:AD75)+(0.5*AE75)+(0.5*S75))/12 -> 13842850.9 | AI75: =AE75 -> 13923487.56 | AJ75: =AG75 -> 13842850.9 | AK75: =+'RB FORECAST'!AJ77 -> 13935531.07 | AL75: =+'RB FORECAST'!AG77 -> 13868883.84 | AM75: =+'RB FORECAST'!BA77 -> 13479673.89 | AN75: =+'RB FORECAST'!AW77 -> 13759778.3 | AP75: 13479673.89 | AQ75: =AP75-AE75 -> -443813.6742 | AR75: 68 | AS75: 63 | AW75: Utah | AY75: =+AE75 -> 13923487.56 | AZ75: =AP75 -> 13479673.89 | BA75: =AZ75-AY75 -> -443813.6742
A76: 1005 | D76: Total | H76: 14989375.42 | I76: 14989375.42 | J76: 14979344.11 | K76: 14979593.34 | L76: 14984107.03 | M76: 14935249.12 | N76: 14935249.12 | O76: 14935249.12 | P76: 14908238.78 | Q76: 14900042.5 | R76: 14828181.1 | S76: 14798160.89 | T76: =SUM(T74:T75) -> 14773371.55 | U76: 14769503.57 | V76: 14734970.29 | W76: 14722608.81 | X76: 14716638 | Y76: 14716638 | Z76: 14705364.75 | AA76: 14699925.55 | AB76: 14695498.01 | AC76: 14691146.02 | AD76: 14688525.1 | AE76: 14777701.56 | AG76: =SUM(AG74:AG75) -> 14725176.74 | AI76: =AE76 -> 14777701.56 | AJ76: =AG76 -> 14725176.74 | AK76: =SUM(AK74:AK75) -> 14738866.08 | AL76: =SUM(AL74:AL75) -> 14662353.85 | AM76: =SUM(AM74:AM75) -> 14250876.32 | AN76: 14547006.14 | AP76: 14250876.32 | AQ76: =SUM(AQ74:AQ75) -> -526825.2421 | AR76: 69 | AS76: 64 | AW76: Total | AY76: =AI76 -> 14777701.56 | AZ76: =AJ76 -> 14725176.74 | BA76: =AZ76-AY76 -> -52524.82042
A77: 1006 | AR77: 70 | AS77: 65
A78: 1007 | B78: 387 | C78: Other Equipment | AR78: 71 | AS78: 66 | AU78: 387 | AV78: Other Equipment
A79: 1008 | D79: Wyoming | H79: 52618.85 | I79: 52618.85 | J79: 48746.01 | K79: 52618.85 | L79: 52618.85 | M79: 52618.85 | N79: 52618.85 | O79: 52618.85 | P79: 52618.85 | Q79: 56482.77 | R79: 52618.85 | S79: 52618.85 | T79: 52618.85 | U79: 52618.85 | V79: 76118.65 | W79: 76118.65 | X79: 76118.65 | Y79: 76118.65 | Z79: 76118.65 | AA79: 76118.65 | AB79: 76118.65 | AC79: 76118.65 | AD79: 76118.65 | AE79: 68977.44 | AG79: =(SUM(T79:AD79)+(0.5*AE79)+(0.5*S79))/12 -> 70925.30792 | AI79: =AE79 -> 68977.44 | AJ79: =AG79 -> 70925.30792 | AK79: =+'RB FORECAST'!AJ81 -> 64581.734 | AL79: =+'RB FORECAST'!AG81 -> 57385.03805 | AM79: =+'RB FORECAST'!BA81 -> 57262.42885 | AN79: =+'RB FORECAST'!AW81 -> 57140.96177 | AP79: =HLOOKUP($AP$8,RateBaseScenarios,AR79,FALSE) -> 57262.42885 | AQ79: =AP79-AE79 -> -11715.01115 | AR79: 72 | AS79: 67 | AW79: Wyoming | AY79: =+AE79 -> 68977.44 | AZ79: =AP79 -> 57262.42885 | BA79: =AZ79-AY79 -> -11715.01115
A80: 1009 | D80: Utah | H80: 1193080.95 | I80: 1193080.95 | J80: 1517090.11 | K80: 1513217.27 | L80: 1531223 | M80: 1531223 | N80: 906448.28 | O80: 700967.14 | P80: 700967.14 | Q80: 779169.25 | R80: 815969.38 | S80: 991700.26 | T80: 994458.45 | U80: 994458.45 | V80: 1158704.32 | W80: 1160614.96 | X80: 1346450.74 | Y80: 1349835.08 | Z80: 1446124.18 | AA80: 1446624.69 | AB80: 1447877.92 | AC80: 1449301.84 | AD80: 1450671.77 | AE80: 1617141.37 | AG80: =(SUM(T80:AD80)+(0.5*AE80)+(0.5*S80))/12 -> 1295795.268 | AI80: =AE80 -> 1617141.37 | AJ80: =AG80 -> 1295795.268 | AK80: =+'RB FORECAST'!AJ82 -> 1755784.541 | AL80: =+'RB FORECAST'!AG82 -> 1621592.562 | AM80: =+'RB FORECAST'!BA82 -> 1618127.858 | AN80: =+'RB FORECAST'!AW82 -> 1614695.428 | AP80: 1618127.858 | AQ80: =AP80-AE80 -> 986.4878985 | AR80: 73 | AS80: 68 | AW80: Utah | AY80: =+AE80 -> 1617141.37 | AZ80: =AP80 -> 1618127.858 | BA80: =AZ80-AY80 -> 986.4878985
A81: 1010 | D81: Total | H81: 1245699.8 | I81: 1245699.8 | J81: 1565836.12 | K81: 1565836.12 | L81: 1583841.85 | M81: 1583841.85 | N81: 959067.13 | O81: 753585.99 | P81: 753585.99 | Q81: 835652.02 | R81: 868588.23 | S81: 1044319.11 | T81: =SUM(T79:T80) -> 1047077.3 | U81: 1047077.3 | V81: 1234822.97 | W81: 1236733.61 | X81: 1422569.39 | Y81: 1425953.73 | Z81: 1522242.83 | AA81: 1522743.34 | AB81: 1523996.57 | AC81: 1525420.49 | AD81: 1526790.42 | AE81: 1686118.81 | AG81: =SUM(AG79:AG80) -> 1366720.576 | AI81: =AE81 -> 1686118.81 | AJ81: =AG81 -> 1366720.576 | AK81: =SUM(AK79:AK80) -> 1820366.275 | AL81: =SUM(AL79:AL80) -> 1678977.6 | AM81: =SUM(AM79:AM80) -> 1675390.287 | AN81: 1671836.39 | AP81: 1675390.287 | AQ81: =SUM(AQ79:AQ80) -> -10728.52326 | AR81: 74 | AS81: 69 | AW81: Total | AY81: =AI81 -> 1686118.81 | AZ81: =AJ81 -> 1366720.576 | BA81: =AZ81-AY81 -> -319398.2342
A82: 1011 | AR82: 75 | AS82: 70
A83: 1012 | B83: 388 | C83: Asset Retirement Costs | AR83: 76 | AS83: 71 | AU83: 388 | AV83: Asset Retirement Costs
A84: 1013 | D84: Wyoming | H84: 7220 | I84: 7220 | J84: 7220 | K84: 7220 | L84: 7220 | M84: 7220 | N84: 7220 | O84: 7220 | P84: 7220 | Q84: 7220 | R84: 7220 | S84: 7220 | T84: 7220 | U84: 7220 | V84: 7220 | W84: 7220 | X84: 7220 | Y84: 7220 | Z84: 7220 | AA84: 7220 | AB84: 7220 | AC84: 7220 | AD84: 7220 | AE84: 7220 | AG84: =(SUM(T84:AD84)+(0.5*AE84)+(0.5*S84))/12 -> 7220 | AI84: =AE84 -> 7220 | AJ84: =AG84 -> 7220 | AK84: =+'RB FORECAST'!AJ86 -> 6535.859418 | AL84: =+'RB FORECAST'!AG86 -> 6698.101946 | AM84: =+'RB FORECAST'!BA86 -> 6433.961196 | AN84: =+'RB FORECAST'!AW86 -> 6369.382406 | AP84: 6433.961196 | AQ84: =AP84-AE84 -> -786.0388038 | AR84: 77 | AS84: 72 | AW84: Wyoming | AY84: =+AE84 -> 7220 | AZ84: =AP84 -> 6433.961196 | BA84: =AZ84-AY84 -> -786.0388038
A85: 1014 | D85: Utah | H85: 309948 | I85: 309948 | J85: 319038 | K85: 319038 | L85: 319038 | M85: 319038 | N85: 319038 | O85: 319038 | P85: 319038 | Q85: 319038 | R85: 319038 | S85: 319038 | T85: 319038 | U85: 305101.6 | V85: 305101.6 | W85: 286172.69 | X85: 290689.26 | Y85: 290689.26 | Z85: 290689.26 | AA85: 290689.26 | AB85: 290689.26 | AC85: 290689.26 | AD85: 290689.26 | AE85: 290689.26 | AG85: =(SUM(T85:AD85)+(0.5*AE85)+(0.5*S85))/12 -> 296258.5283 | AI85: =AE85 -> 290689.26 | AJ85: =AG85 -> 296258.5283 | AK85: =+'RB FORECAST'!AJ87 -> 281305.6157 | AL85: =+'RB FORECAST'!AG87 -> 277274.7581 | AM85: =+'RB FORECAST'!BA87 -> 266340.3824 | AN85: =+'RB FORECAST'!AW87 -> 263667.0776 | AP85: 266340.3824 | AQ85: =AP85-AE85 -> -24348.87757 | AR85: 78 | AS85: 73 | AW85: Utah | AY85: =+AE85 -> 290689.26 | AZ85: =AP85 -> 266340.3824 | BA85: =AZ85-AY85 -> -24348.87757
